Workbook

Sheet Main
A1: General Instructions:
A2: This workbook is intended to help provide peer school comparisons on important accountability metrics. To begin, use the drop down menu below to select the county that your school of interest is located in. Next select the district from the list of districts within that county. Finally, select the school from the list of schools within that district. The rest of the workbook will populate automatically (please note that it may take several seconds for everything to populate). When a school is selected, the following table will show the top 10 most similar schools as determined by an algorithm that compares all schools on size, location, grade span, and key demographics. The subsequent worksheets contain comparisons between the schools on each of the academic indicators and the overall page.
B4: Please select a school using the drop-down menus below:
B6: County | C6: District | E6: School
B7: ADAIR | C7: GREASY | E7: GREASY PUBLIC SCHOOL
A9: Below are the 10 most similar schools in terms of size, urbanicity, and demographic composition
A11: School ID | B11: County | C11: District | E11: School | G11: Percent Match
A12: =IFERROR(INDEX(Matrix!$F$1:$CGJ$1,1,MATCH(G12,INDEX(Matrix!$F$2:$CGJ$2000,MATCH(CONCATENATE($B$7,$C$7,$E$7),Matrix!$E$2:$E$2000,0),0),0)),"") -> 68C050110 | B12: =IFERROR(TRIM(VLOOKUP($A12,'School Lookup'!$A$1:$F$2001,4)),"") -> SEQUOYAH | C12: =IFERROR(TRIM(VLOOKUP($A12,'School Lookup'!$A$1:$F$2001,5)),"") -> BELFONTE | E12: =IFERROR(TRIM(VLOOKUP($A12,'School Lookup'!$A$1:$F$2001,6)),"") -> BELFONTE BELL ES (ADAIR CNTY) | G12: =IFERROR(LARGE(INDEX(Matrix!$F$2:$CGJ$2000,MATCH(CONCATENATE($B$7,$C$7,$E$7),Matrix!$E$2:$E$2000,0),0),2),"") -> 0.9580887066
A13: =IFERROR(INDEX(Matrix!$F$1:$CGJ$1,1,MATCH(G13,INDEX(Matrix!$F$2:$CGJ$2000,MATCH(CONCATENATE($B$7,$C$7,$E$7),Matrix!$E$2:$E$2000,0),0),0)),"") -> 01C029105 | B13: =IFERROR(TRIM(VLOOKUP($A13,'School Lookup'!$A$1:$F$2001,4)),"") -> ADAIR | C13: =IFERROR(TRIM(VLOOKUP($A13,'School Lookup'!$A$1:$F$2001,5)),"") -> DAHLONEGAH | E13: =IFERROR(TRIM(VLOOKUP($A13,'School Lookup'!$A$1:$F$2001,6)),"") -> DAHLONEGAH PUBLIC SCHOOL | G13: =IFERROR(LARGE(INDEX(Matrix!$F$2:$CGJ$2000,MATCH(CONCATENATE($B$7,$C$7,$E$7),Matrix!$E$2:$E$2000,0),0),3),"") -> 0.9563616377
A14: =IFERROR(INDEX(Matrix!$F$1:$CGJ$1,1,MATCH(G14,INDEX(Matrix!$F$2:$CGJ$2000,MATCH(CONCATENATE($B$7,$C$7,$E$7),Matrix!$E$2:$E$2000,0),0),0)),"") -> 68C050105 | B14: =IFERROR(TRIM(VLOOKUP($A14,'School Lookup'!$A$1:$F$2001,4)),"") -> SEQUOYAH | C14: =IFERROR(TRIM(VLOOKUP($A14,'School Lookup'!$A$1:$F$2001,5)),"") -> BELFONTE | E14: =IFERROR(TRIM(VLOOKUP($A14,'School Lookup'!$A$1:$F$2001,6)),"") -> BELFONTE PUBLIC SCHOOL | G14: =IFERROR(LARGE(INDEX(Matrix!$F$2:$CGJ$2000,MATCH(CONCATENATE($B$7,$C$7,$E$7),Matrix!$E$2:$E$2000,0),0),4),"") -> 0.9536023619
A15: =IFERROR(INDEX(Matrix!$F$1:$CGJ$1,1,MATCH(G15,INDEX(Matrix!$F$2:$CGJ$2000,MATCH(CONCATENATE($B$7,$C$7,$E$7),Matrix!$E$2:$E$2000,0),0),0)),"") -> 01C019105 | B15: =IFERROR(TRIM(VLOOKUP($A15,'School Lookup'!$A$1:$F$2001,4)),"") -> ADAIR | C15: =IFERROR(TRIM(VLOOKUP($A15,'School Lookup'!$A$1:$F$2001,5)),"") -> PEAVINE | E15: =IFERROR(TRIM(VLOOKUP($A15,'School Lookup'!$A$1:$F$2001,6)),"") -> PEAVINE PUBLIC SCHOOL | G15: =IFERROR(LARGE(INDEX(Matrix!$F$2:$CGJ$2000,MATCH(CONCATENATE($B$7,$C$7,$E$7),Matrix!$E$2:$E$2000,0),0),5),"") -> 0.9520142082
A16: =IFERROR(INDEX(Matrix!$F$1:$CGJ$1,1,MATCH(G16,INDEX(Matrix!$F$2:$CGJ$2000,MATCH(CONCATENATE($B$7,$C$7,$E$7),Matrix!$E$2:$E$2000,0),0),0)),"") -> 48C072105 | B16: =IFERROR(TRIM(VLOOKUP($A16,'School Lookup'!$A$1:$F$2001,4)),"") -> MCCURTAIN | C16: =IFERROR(TRIM(VLOOKUP($A16,'School Lookup'!$A$1:$F$2001,5)),"") -> HOLLY CREEK | E16: =IFERROR(TRIM(VLOOKUP($A16,'School Lookup'!$A$1:$F$2001,6)),"") -> HOLLY CREEK PUBLIC SCHOOL | G16: =IFERROR(LARGE(INDEX(Matrix!$F$2:$CGJ$2000,MATCH(CONCATENATE($B$7,$C$7,$E$7),Matrix!$E$2:$E$2000,0),0),6),"") -> 0.9436652514
A17: =IFERROR(INDEX(Matrix!$F$1:$CGJ$1,1,MATCH(G17,INDEX(Matrix!$F$2:$CGJ$2000,MATCH(CONCATENATE($B$7,$C$7,$E$7),Matrix!$E$2:$E$2000,0),0),0)),"") -> 51C009105 | B17: =IFERROR(TRIM(VLOOKUP($A17,'School Lookup'!$A$1:$F$2001,4)),"") -> MUSKOGEE | C17: =IFERROR(TRIM(VLOOKUP($A17,'School Lookup'!$A$1:$F$2001,5)),"") -> WAINWRIGHT | E17: =IFERROR(TRIM(VLOOKUP($A17,'School Lookup'!$A$1:$F$2001,6)),"") -> WAINWRIGHT PUBLIC SCHOOL | G17: =IFERROR(LARGE(INDEX(Matrix!$F$2:$CGJ$2000,MATCH(CONCATENATE($B$7,$C$7,$E$7),Matrix!$E$2:$E$2000,0),0),7),"") -> 0.9366312325
A18: =IFERROR(INDEX(Matrix!$F$1:$CGJ$1,1,MATCH(G18,INDEX(Matrix!$F$2:$CGJ$2000,MATCH(CONCATENATE($B$7,$C$7,$E$7),Matrix!$E$2:$E$2000,0),0),0)),"") -> 57C035105 | B18: =IFERROR(TRIM(VLOOKUP($A18,'School Lookup'!$A$1:$F$2001,4)),"") -> OSAGE | C18: =IFERROR(TRIM(VLOOKUP($A18,'School Lookup'!$A$1:$F$2001,5)),"") -> AVANT | E18: =IFERROR(TRIM(VLOOKUP($A18,'School Lookup'!$A$1:$F$2001,6)),"") -> AVANT PUBLIC SCHOOL | G18: =IFERROR(LARGE(INDEX(Matrix!$F$2:$CGJ$2000,MATCH(CONCATENATE($B$7,$C$7,$E$7),Matrix!$E$2:$E$2000,0),0),8),"") -> 0.936101206
A19: =IFERROR(INDEX(Matrix!$F$1:$CGJ$1,1,MATCH(G19,INDEX(Matrix!$F$2:$CGJ$2000,MATCH(CONCATENATE($B$7,$C$7,$E$7),Matrix!$E$2:$E$2000,0),0),0)),"") -> 48C001105 | B19: =IFERROR(TRIM(VLOOKUP($A19,'School Lookup'!$A$1:$F$2001,4)),"") -> MCCURTAIN | C19: =IFERROR(TRIM(VLOOKUP($A19,'School Lookup'!$A$1:$F$2001,5)),"") -> FOREST GROVE | E19: =IFERROR(TRIM(VLOOKUP($A19,'School Lookup'!$A$1:$F$2001,6)),"") -> FOREST GROVE PUBLIC SCHOOL | G19: =IFERROR(LARGE(INDEX(Matrix!$F$2:$CGJ$2000,MATCH(CONCATENATE($B$7,$C$7,$E$7),Matrix!$E$2:$E$2000,0),0),9),"") -> 0.9344181844
A20: =IFERROR(INDEX(Matrix!$F$1:$CGJ$1,1,MATCH(G20,INDEX(Matrix!$F$2:$CGJ$2000,MATCH(CONCATENATE($B$7,$C$7,$E$7),Matrix!$E$2:$E$2000,0),0),0)),"") -> 01I030105 | B20: =IFERROR(TRIM(VLOOKUP($A20,'School Lookup'!$A$1:$F$2001,4)),"") -> ADAIR | C20: =IFERROR(TRIM(VLOOKUP($A20,'School Lookup'!$A$1:$F$2001,5)),"") -> CAVE SPRINGS | E20: =IFERROR(TRIM(VLOOKUP($A20,'School Lookup'!$A$1:$F$2001,6)),"") -> CAVE SPRINGS ES | G20: =IFERROR(LARGE(INDEX(Matrix!$F$2:$CGJ$2000,MATCH(CONCATENATE($B$7,$C$7,$E$7),Matrix!$E$2:$E$2000,0),0),10),"") -> 0.9338694645
A21: =IFERROR(INDEX(Matrix!$F$1:$CGJ$1,1,MATCH(G21,INDEX(Matrix!$F$2:$CGJ$2000,MATCH(CONCATENATE($B$7,$C$7,$E$7),Matrix!$E$2:$E$2000,0),0),0)),"") -> 31C010105 | B21: =IFERROR(TRIM(VLOOKUP($A21,'School Lookup'!$A$1:$F$2001,4)),"") -> HASKELL | C21: =IFERROR(TRIM(VLOOKUP($A21,'School Lookup'!$A$1:$F$2001,5)),"") -> WHITEFIELD | E21: =IFERROR(TRIM(VLOOKUP($A21,'School Lookup'!$A$1:$F$2001,6)),"") -> WHITEFIELD PUBLIC SCHOOL | G21: =IFERROR(LARGE(INDEX(Matrix!$F$2:$CGJ$2000,MATCH(CONCATENATE($B$7,$C$7,$E$7),Matrix!$E$2:$E$2000,0),0),11),"") -> 0.9328008921
A23: Select Demographic Information
A24: School | C24: Total Enrollment | D24: Urbanicity Status | E24: Percent Economically Disadvantaged | F24: Percent Students w/ Disabilities | G24: Percent EL Students | H24: Percent White | I24: Percent Hispanic/Latino | J24: Percent Black | K24: Percent Native American | L24: Percent Asian/Pacific Islander | M24: Percent Two or More Races
A25: =E7 -> GREASY PUBLIC SCHOOL | C25: =VLOOKUP(INDEX(Matrix!$A$1:$E$2000,MATCH(CONCATENATE(Main!$B$7:$B$7,Main!$C$7:$C$7,Main!$E$7:$E$7),Matrix!$E$1:$E$2000,0),1),DemographicInfo!$A$1:$AM$2001,37) -> 73 | D25: =CONCATENATE(VLOOKUP(INDEX(Matrix!$A$1:$E$2000,MATCH(CONCATENATE(Main!$B$7:$B$7,Main!$C$7:$C$7,Main!$E$7:$E$7),Matrix!$E$1:$E$2000,0),1),DemographicInfo!$A$1:$AM$2001,29)," - ",IF(VLOOKUP(INDEX(Matrix!$A$1:$E$2000,MATCH(CONCATENATE(Main!$B$7:$B$7,Main!$C$7:$C$7,Main!$E$7:$E$7),Matrix!$E$1:$E$2000,0),1),DemographicInfo!$A$1:$AM$2001,30) <> "NULL",VLOOKUP(INDEX(Matrix!$A$1:$E$2000,MATCH(CONCATENATE(Main!$B$7:$B$7,Main!$C$7:$C$7,Main!$E$7:$E$7),Matrix!$E$1:$E$2000,0),1),DemographicInfo!$A$1:$AM$2001,30),VLOOKUP(INDEX(Matrix!$A$1:$E$2000,MATCH(CONCATENATE(Main!$B$7:$B$7,Main!$C$7:$C$7,Main!$E$7:$E$7),Matrix!$E$1:$E$2000,0),1),DemographicInfo!$A$1:$AM$2001,31) )) -> Rural - Distant | E25: =VLOOKUP(INDEX(Matrix!$A$1:$E$2000,MATCH(CONCATENATE(Main!$B$7:$B$7,Main!$C$7:$C$7,Main!$E$7:$E$7),Matrix!$E$1:$E$2000,0),1),DemographicInfo!$A$1:$AM$2001,22) -> 0.917808219 | F25: =VLOOKUP(INDEX(Matrix!$A$1:$E$2000,MATCH(CONCATENATE(Main!$B$7:$B$7,Main!$C$7:$C$7,Main!$E$7:$E$7),Matrix!$E$1:$E$2000,0),1),DemographicInfo!$A$1:$AM$2001,19) -> 0.424657534 | G25: =VLOOKUP(INDEX(Matrix!$A$1:$E$2000,MATCH(CONCATENATE(Main!$B$7:$B$7,Main!$C$7:$C$7,Main!$E$7:$E$7),Matrix!$E$1:$E$2000,0),1),DemographicInfo!$A$1:$AM$2001,18) -> 0.164383562 | H25: =VLOOKUP(INDEX(Matrix!$A$1:$E$2000,MATCH(CONCATENATE(Main!$B$7:$B$7,Main!$C$7:$C$7,Main!$E$7:$E$7),Matrix!$E$1:$E$2000,0),1),DemographicInfo!$A$1:$AM$2001,16) -> 0.136986301 | I25: =VLOOKUP(INDEX(Matrix!$A$1:$E$2000,MATCH(CONCATENATE(Main!$B$7:$B$7,Main!$C$7:$C$7,Main!$E$7:$E$7),Matrix!$E$1:$E$2000,0),1),DemographicInfo!$A$1:$AM$2001,12) -> 0.02739726 | J25: =VLOOKUP(INDEX(Matrix!$A$1:$E$2000,MATCH(CONCATENATE(Main!$B$7:$B$7,Main!$C$7:$C$7,Main!$E$7:$E$7),Matrix!$E$1:$E$2000,0),1),DemographicInfo!$A$1:$AM$2001,15) -> 0 | K25: =VLOOKUP(INDEX(Matrix!$A$1:$E$2000,MATCH(CONCATENATE(Main!$B$7:$B$7,Main!$C$7:$C$7,Main!$E$7:$E$7),Matrix!$E$1:$E$2000,0),1),DemographicInfo!$A$1:$AM$2001,13) -> 0.835616438 | L25: =VLOOKUP(INDEX(Matrix!$A$1:$E$2000,MATCH(CONCATENATE(Main!$B$7:$B$7,Main!$C$7:$C$7,Main!$E$7:$E$7),Matrix!$E$1:$E$2000,0),1),DemographicInfo!$A$1:$AM$2001,14) -> 0 | M25: =VLOOKUP(INDEX(Matrix!$A$1:$E$2000,MATCH(CONCATENATE(Main!$B$7:$B$7,Main!$C$7:$C$7,Main!$E$7:$E$7),Matrix!$E$1:$E$2000,0),1),DemographicInfo!$A$1:$AM$2001,17) -> 0
A26: =E12 -> BELFONTE BELL ES (ADAIR CNTY) | C26: =VLOOKUP(A12,DemographicInfo!$A$1:$AM$2001,37) -> 90 | D26: =CONCATENATE(VLOOKUP(A12,DemographicInfo!$A$1:$AM$2001,29)," - ",IF(VLOOKUP(A12,DemographicInfo!$A$1:$AM$2001,30) <> "NULL",VLOOKUP(A12,DemographicInfo!$A$1:$AM$2001,30),VLOOKUP(A12,DemographicInfo!$A$1:$AM$2001,31))) -> Rural - Distant | E26: =VLOOKUP($A12,DemographicInfo!$A$1:$AM$2001,22) -> 1 | F26: =VLOOKUP($A12,DemographicInfo!$A$1:$AM$2001,19) -> 0.3 | G26: =VLOOKUP($A12,DemographicInfo!$A$1:$AM$2001,18) -> 0.255555556 | H26: =VLOOKUP($A12,DemographicInfo!$A$1:$AM$2001,16) -> 0.033333333 | I26: =VLOOKUP($A12,DemographicInfo!$A$1:$AM$2001,12) -> 0.022222222 | J26: =VLOOKUP($A12,DemographicInfo!$A$1:$AM$2001,15) -> 0 | K26: =VLOOKUP($A12,DemographicInfo!$A$1:$AM$2001,13) -> 0.933333333 | L26: =VLOOKUP($A12,DemographicInfo!$A$1:$AM$2001,14) -> 0 | M26: =VLOOKUP($A12,DemographicInfo!$A$1:$AM$2001,17) -> 0.011111111
A27: =E13 -> DAHLONEGAH PUBLIC SCHOOL | C27: =VLOOKUP(A13,DemographicInfo!$A$1:$AM$2001,37) -> 152 | D27: =CONCATENATE(VLOOKUP(A13,DemographicInfo!$A$1:$AM$2001,29)," - ",IF(VLOOKUP(A13,DemographicInfo!$A$1:$AM$2001,30) <> "NULL",VLOOKUP(A13,DemographicInfo!$A$1:$AM$2001,30),VLOOKUP(A13,DemographicInfo!$A$1:$AM$2001,31))) -> Rural - Distant | E27: =VLOOKUP($A13,DemographicInfo!$A$1:$AM$2001,22) -> 0.993421053 | F27: =VLOOKUP($A13,DemographicInfo!$A$1:$AM$2001,19) -> 0.381578947 | G27: =VLOOKUP($A13,DemographicInfo!$A$1:$AM$2001,18) -> 0.032894737 | H27: =VLOOKUP($A13,DemographicInfo!$A$1:$AM$2001,16) -> 0.019736842 | I27: =VLOOKUP($A13,DemographicInfo!$A$1:$AM$2001,12) -> 0.072368421 | J27: =VLOOKUP($A13,DemographicInfo!$A$1:$AM$2001,15) -> 0 | K27: =VLOOKUP($A13,DemographicInfo!$A$1:$AM$2001,13) -> 0.907894737 | L27: =VLOOKUP($A13,DemographicInfo!$A$1:$AM$2001,14) -> 0 | M27: =VLOOKUP($A13,DemographicInfo!$A$1:$AM$2001,17) -> 0
A28: BELFONTE PUBLIC SCHOOL | C28: =VLOOKUP(A14,DemographicInfo!$A$1:$AM$2001,37) -> 104 | D28: =CONCATENATE(VLOOKUP(A14,DemographicInfo!$A$1:$AM$2001,29)," - ",IF(VLOOKUP(A14,DemographicInfo!$A$1:$AM$2001,30) <> "NULL",VLOOKUP(A14,DemographicInfo!$A$1:$AM$2001,30),VLOOKUP(A14,DemographicInfo!$A$1:$AM$2001,31))) -> Rural - Distant | E28: =VLOOKUP($A14,DemographicInfo!$A$1:$AM$2001,22) -> 1 | F28: =VLOOKUP($A14,DemographicInfo!$A$1:$AM$2001,19) -> 0.365384615 | G28: =VLOOKUP($A14,DemographicInfo!$A$1:$AM$2001,18) -> 0.25 | H28: =VLOOKUP($A14,DemographicInfo!$A$1:$AM$2001,16) -> 0.375 | I28: =VLOOKUP($A14,DemographicInfo!$A$1:$AM$2001,12) -> 0.086538462 | J28: =VLOOKUP($A14,DemographicInfo!$A$1:$AM$2001,15) -> 0 | K28: =VLOOKUP($A14,DemographicInfo!$A$1:$AM$2001,13) -> 0.490384615 | L28: =VLOOKUP($A14,DemographicInfo!$A$1:$AM$2001,14) -> 0.028846154 | M28: =VLOOKUP($A14,DemographicInfo!$A$1:$AM$2001,17) -> 0.019230769
A29: PEAVINE PUBLIC SCHOOL | C29: =VLOOKUP(A15,DemographicInfo!$A$1:$AM$2001,37) -> 122 | D29: =CONCATENATE(VLOOKUP(A15,DemographicInfo!$A$1:$AM$2001,29)," - ",IF(VLOOKUP(A15,DemographicInfo!$A$1:$AM$2001,30) <> "NULL",VLOOKUP(A15,DemographicInfo!$A$1:$AM$2001,30),VLOOKUP(A15,DemographicInfo!$A$1:$AM$2001,31))) -> Rural - Distant | E29: =VLOOKUP($A15,DemographicInfo!$A$1:$AM$2001,22) -> 1 | F29: =VLOOKUP($A15,DemographicInfo!$A$1:$AM$2001,19) -> 0.278688525 | G29: =VLOOKUP($A15,DemographicInfo!$A$1:$AM$2001,18) -> 0.131147541 | H29: =VLOOKUP($A15,DemographicInfo!$A$1:$AM$2001,16) -> 0.286885246 | I29: =VLOOKUP($A15,DemographicInfo!$A$1:$AM$2001,12) -> 0.032786885 | J29: =VLOOKUP($A15,DemographicInfo!$A$1:$AM$2001,15) -> 0.008196721 | K29: =VLOOKUP($A15,DemographicInfo!$A$1:$AM$2001,13) -> 0.663934426 | L29: =VLOOKUP($A15,DemographicInfo!$A$1:$AM$2001,14) -> 0.008196721 | M29: =VLOOKUP($A15,DemographicInfo!$A$1:$AM$2001,17) -> 0
A30: HOLLY CREEK PUBLIC SCHOOL | C30: =VLOOKUP(A16,DemographicInfo!$A$1:$AM$2001,37) -> 247 | D30: =CONCATENATE(VLOOKUP(A16,DemographicInfo!$A$1:$AM$2001,29)," - ",IF(VLOOKUP(A16,DemographicInfo!$A$1:$AM$2001,30) <> "NULL",VLOOKUP(A16,DemographicInfo!$A$1:$AM$2001,30),VLOOKUP(A16,DemographicInfo!$A$1:$AM$2001,31))) -> Rural - Distant | E30: =VLOOKUP($A16,DemographicInfo!$A$1:$AM$2001,22) -> 0.939271255 | F30: =VLOOKUP($A16,DemographicInfo!$A$1:$AM$2001,19) -> 0.299595142 | G30: =VLOOKUP($A16,DemographicInfo!$A$1:$AM$2001,18) -> 0.024291498 | H30: =VLOOKUP($A16,DemographicInfo!$A$1:$AM$2001,16) -> 0.55465587 | I30: =VLOOKUP($A16,DemographicInfo!$A$1:$AM$2001,12) -> 0.068825911 | J30: =VLOOKUP($A16,DemographicInfo!$A$1:$AM$2001,15) -> 0.024291498 | K30: =VLOOKUP($A16,DemographicInfo!$A$1:$AM$2001,13) -> 0.271255061 | L30: =VLOOKUP($A16,DemographicInfo!$A$1:$AM$2001,14) -> 0 | M30: =VLOOKUP($A16,DemographicInfo!$A$1:$AM$2001,17) -> 0.08097166
A31: WAINWRIGHT PUBLIC SCHOOL | C31: =VLOOKUP(A17,DemographicInfo!$A$1:$AM$2001,37) -> 99 | D31: =CONCATENATE(VLOOKUP(A17,DemographicInfo!$A$1:$AM$2001,29)," - ",IF(VLOOKUP(A17,DemographicInfo!$A$1:$AM$2001,30) <> "NULL",VLOOKUP(A17,DemographicInfo!$A$1:$AM$2001,30),VLOOKUP(A17,DemographicInfo!$A$1:$AM$2001,31))) -> Rural - Distant | E31: =VLOOKUP($A17,DemographicInfo!$A$1:$AM$2001,22) -> 1 | F31: =VLOOKUP($A17,DemographicInfo!$A$1:$AM$2001,19) -> 0.333333333 | G31: =VLOOKUP($A17,DemographicInfo!$A$1:$AM$2001,18) -> 0 | H31: =VLOOKUP($A17,DemographicInfo!$A$1:$AM$2001,16) -> 0.414141414 | I31: =VLOOKUP($A17,DemographicInfo!$A$1:$AM$2001,12) -> 0.03030303 | J31: =VLOOKUP($A17,DemographicInfo!$A$1:$AM$2001,15) -> 0.04040404 | K31: =VLOOKUP($A17,DemographicInfo!$A$1:$AM$2001,13) -> 0.505050505 | L31: =VLOOKUP($A17,DemographicInfo!$A$1:$AM$2001,14) -> 0.01010101 | M31: =VLOOKUP($A17,DemographicInfo!$A$1:$AM$2001,17) -> 0
A32: AVANT PUBLIC SCHOOL | C32: =VLOOKUP(A18,DemographicInfo!$A$1:$AM$2001,37) -> 90 | D32: =CONCATENATE(VLOOKUP(A18,DemographicInfo!$A$1:$AM$2001,29)," - ",IF(VLOOKUP(A18,DemographicInfo!$A$1:$AM$2001,30) <> "NULL",VLOOKUP(A18,DemographicInfo!$A$1:$AM$2001,30),VLOOKUP(A18,DemographicInfo!$A$1:$AM$2001,31))) -> Rural - Distant | E32: =VLOOKUP($A18,DemographicInfo!$A$1:$AM$2001,22) -> 1 | F32: =VLOOKUP($A18,DemographicInfo!$A$1:$AM$2001,19) -> 0.233333333 | G32: =VLOOKUP($A18,DemographicInfo!$A$1:$AM$2001,18) -> 0.022222222 | H32: =VLOOKUP($A18,DemographicInfo!$A$1:$AM$2001,16) -> 0.366666667 | I32: =VLOOKUP($A18,DemographicInfo!$A$1:$AM$2001,12) -> 0.066666667 | J32: =VLOOKUP($A18,DemographicInfo!$A$1:$AM$2001,15) -> 0 | K32: =VLOOKUP($A18,DemographicInfo!$A$1:$AM$2001,13) -> 0.466666667 | L32: =VLOOKUP($A18,DemographicInfo!$A$1:$AM$2001,14) -> 0 | M32: =VLOOKUP($A18,DemographicInfo!$A$1:$AM$2001,17) -> 0.1
A33: FOREST GROVE PUBLIC SCHOOL | C33: =VLOOKUP(A19,DemographicInfo!$A$1:$AM$2001,37) -> 168 | D33: =CONCATENATE(VLOOKUP(A19,DemographicInfo!$A$1:$AM$2001,29)," - ",IF(VLOOKUP(A19,DemographicInfo!$A$1:$AM$2001,30) <> "NULL",VLOOKUP(A19,DemographicInfo!$A$1:$AM$2001,30),VLOOKUP(A19,DemographicInfo!$A$1:$AM$2001,31))) -> Rural - Distant | E33: =VLOOKUP($A19,DemographicInfo!$A$1:$AM$2001,22) -> 1 | F33: =VLOOKUP($A19,DemographicInfo!$A$1:$AM$2001,19) -> 0.321428571 | G33: =VLOOKUP($A19,DemographicInfo!$A$1:$AM$2001,18) -> 0 | H33: =VLOOKUP($A19,DemographicInfo!$A$1:$AM$2001,16) -> 0.505952381 | I33: =VLOOKUP($A19,DemographicInfo!$A$1:$AM$2001,12) -> 0.154761905 | J33: =VLOOKUP($A19,DemographicInfo!$A$1:$AM$2001,15) -> 0.077380952 | K33: =VLOOKUP($A19,DemographicInfo!$A$1:$AM$2001,13) -> 0.238095238 | L33: =VLOOKUP($A19,DemographicInfo!$A$1:$AM$2001,14) -> 0.011904762 | M33: =VLOOKUP($A19,DemographicInfo!$A$1:$AM$2001,17) -> 0.011904762
A34: CAVE SPRINGS ES | C34: =VLOOKUP(A20,DemographicInfo!$A$1:$AM$2001,37) -> 49 | D34: =CONCATENATE(VLOOKUP(A20,DemographicInfo!$A$1:$AM$2001,29)," - ",IF(VLOOKUP(A20,DemographicInfo!$A$1:$AM$2001,30) <> "NULL",VLOOKUP(A20,DemographicInfo!$A$1:$AM$2001,30),VLOOKUP(A20,DemographicInfo!$A$1:$AM$2001,31))) -> Rural - Distant | E34: =VLOOKUP($A20,DemographicInfo!$A$1:$AM$2001,22) -> 0.959183673 | F34: =VLOOKUP($A20,DemographicInfo!$A$1:$AM$2001,19) -> 0.346938776 | G34: =VLOOKUP($A20,DemographicInfo!$A$1:$AM$2001,18) -> 0.12244898 | H34: =VLOOKUP($A20,DemographicInfo!$A$1:$AM$2001,16) -> 0.081632653 | I34: =VLOOKUP($A20,DemographicInfo!$A$1:$AM$2001,12) -> 0 | J34: =VLOOKUP($A20,DemographicInfo!$A$1:$AM$2001,15) -> 0 | K34: =VLOOKUP($A20,DemographicInfo!$A$1:$AM$2001,13) -> 0.918367347 | L34: =VLOOKUP($A20,DemographicInfo!$A$1:$AM$2001,14) -> 0 | M34: =VLOOKUP($A20,DemographicInfo!$A$1:$AM$2001,17) -> 0
A35: =E21 -> WHITEFIELD PUBLIC SCHOOL | C35: =VLOOKUP(A21,DemographicInfo!$A$1:$AM$2001,37) -> 162 | D35: =CONCATENATE(VLOOKUP(A21,DemographicInfo!$A$1:$AM$2001,29)," - ",IF(VLOOKUP(A21,DemographicInfo!$A$1:$AM$2001,30) <> "NULL",VLOOKUP(A21,DemographicInfo!$A$1:$AM$2001,30),VLOOKUP(A21,DemographicInfo!$A$1:$AM$2001,31))) -> Rural - Distant | E35: =VLOOKUP($A21,DemographicInfo!$A$1:$AM$2001,22) -> 1 | F35: =VLOOKUP($A21,DemographicInfo!$A$1:$AM$2001,19) -> 0.333333333 | G35: =VLOOKUP($A21,DemographicInfo!$A$1:$AM$2001,18) -> 0 | H35: =VLOOKUP($A21,DemographicInfo!$A$1:$AM$2001,16) -> 0.543209877 | I35: =VLOOKUP($A21,DemographicInfo!$A$1:$AM$2001,12) -> 0.037037037 | J35: =VLOOKUP($A21,DemographicInfo!$A$1:$AM$2001,15) -> 0.00617284 | K35: =VLOOKUP($A21,DemographicInfo!$A$1:$AM$2001,13) -> 0.413580247 | L35: =VLOOKUP($A21,DemographicInfo!$A$1:$AM$2001,14) -> 0 | M35: =VLOOKUP($A21,DemographicInfo!$A$1:$AM$2001,17) -> 0

Sheet DemographicInfo (hidden)
A1: Fullcode | B1: SchoolPercentMatch_DetailID | C1: SchoolYear | D1: CountyCode | E1: DistrictCode | F1: SiteCode | G1: LowGrade | H1: HighGrade | I1: ModelType | J1: MalePercent | K1: FemalePercent | L1: HispanicLatinoPercent | M1: AmericanIndianPercent | N1: AsianPacIslanderPercent | O1: BlackPercent | P1: WhitePercent | Q1: TwoOrMoreRacesPercent | R1: ELPercent | S1: IEPPercent | T1: GiftedTalentedPercent | U1: FreeReducedPercent | V1: EconomicDisadvantagePercent | W1: ImmigrantPercent | X1: Section504Percent | Y1: OtherPlacementPercent | Z1: BilingualPercent | AA1: ELProficient_Year1_2Percent | AB1: MigrantPercent | AC1: UrbancityGroup | AD1: UrbanicityDistance | AE1: UrbanicitySize | AF1: CharterSchool | AG1: VirtualSchool | AH1: DependentSchool | AI1: Hospital | AJ1: AlternativeSchool | AK1: TotalEnrollment | AL1: GradesServed | AM1: EnrollmentPerGrade
A3: 01C019105 | B3: 11988 | C3: 2018 | D3: =LEFT(A3,2) -> 01 | E3: C019 | F3: 105 | G3: -1 | H3: 8 | I3: ESMS | J3: 0.5 | K3: 0.5 | L3: 0.032786885 | M3: 0.663934426 | N3: 0.008196721 | O3: 0.008196721 | P3: 0.286885246 | Q3: 0 | R3: 0.131147541 | S3: 0.278688525 | T3: 0.12295082 | U3: 1 | V3: 1 | W3: 0 | X3: 0 | Y3: 0 | Z3: 0.139344262 | AA3: 0.008196721 | AB3: 0 | AC3: Rural | AD3: Distant | AE3: NULL | AF3: 0 | AG3: 0 | AH3: 1 | AI3: 0 | AJ3: 0 | AK3: 122 | AL3: 10 | AM3: 12.2
A4: 01C022105 | B4: 11493 | C4: 2018 | D4: 01 | E4: C022 | F4: 105 | G4: -1 | H4: 8 | I4: ESMS | J4: 0.493865031 | K4: 0.506134969 | L4: 0.079754601 | M4: 0.777607362 | N4: 0.003067485 | O4: 0 | P4: 0.121165644 | Q4: 0.018404908 | R4: 0.180981595 | S4: 0.263803681 | T4: 0.187116564 | U4: 0.699386503 | V4: 0.699386503 | W4: 0 | X4: 0 | Y4: 0 | Z4: 0.234662577 | AA4: 0.053680982 | AB4: 0 | AC4: Rural | AD4: Fringe | AE4: NULL | AF4: 0 | AG4: 0 | AH4: 1 | AI4: 0 | AJ4: 0 | AK4: 652 | AL4: 10 | AM4: 65.2
A5: 01C024105 | B5: 11081 | C5: 2018 | D5: 01 | E5: C024 | F5: 105 | G5: -1 | H5: 8 | I5: ESMS | J5: 0.470588235 | K5: 0.529411765 | L5: 0.026737968 | M5: 0.871657754 | N5: 0 | O5: 0.010695187 | P5: 0.080213904 | Q5: 0.010695187 | R5: 0.326203209 | S5: 0.267379679 | T5: 0.117647059 | U5: 1 | V5: 1 | W5: 0 | X5: 0 | Y5: 0 | Z5: 0.427807487 | AA5: 0.042780749 | AB5: 0 | AC5: Town | AD5: Distant | AE5: NULL | AF5: 0 | AG5: 0 | AH5: 1 | AI5: 0 | AJ5: 0 | AK5: 187 | AL5: 10 | AM5: 18.7
A6: 01C028105 | B6: 12206 | C6: 2018 | D6: 01 | E6: C028 | F6: 105 | G6: -1 | H6: 8 | I6: ESMS | J6: 0.534883721 | K6: 0.465116279 | L6: 0 | M6: 0.85755814 | N6: 0 | O6: 0 | P6: 0.14244186 | Q6: 0 | R6: 0.10755814 | S6: 0.215116279 | T6: 0.148255814 | U6: 1 | V6: 1 | W6: 0 | X6: 0 | Y6: 0 | Z6: 0.10755814 | AA6: 0.014534884 | AB6: 0 | AC6: Rural | AD6: Fringe | AE6: NULL | AF6: 0 | AG6: 0 | AH6: 1 | AI6: 0 | AJ6: 0 | AK6: 344 | AL6: 10 | AM6: 34.4
A7: 01C029105 | B7: 11333 | C7: 2018 | D7: 01 | E7: C029 | F7: 105 | G7: -1 | H7: 8 | I7: ESMS | J7: 0.440789474 | K7: 0.559210526 | L7: 0.072368421 | M7: 0.907894737 | N7: 0 | O7: 0 | P7: 0.019736842 | Q7: 0 | R7: 0.032894737 | S7: 0.381578947 | T7: 0.059210526 | U7: 0.993421053 | V7: 0.993421053 | W7: 0 | X7: 0 | Y7: 0 | Z7: 0.065789474 | AA7: 0.019736842 | AB7: 0 | AC7: Rural | AD7: Distant | AE7: NULL | AF7: 0 | AG7: 0 | AH7: 1 | AI7: 0 | AJ7: 0 | AK7: 152 | AL7: 10 | AM7: 15.2
A8: 01C032105 | B8: 11326 | C8: 2018 | D8: 01 | E8: C032 | F8: 105 | G8: -1 | H8: 8 | I8: ESMS | J8: 0.397260274 | K8: 0.602739726 | L8: 0.02739726 | M8: 0.835616438 | N8: 0 | O8: 0 | P8: 0.136986301 | Q8: 0 | R8: 0.164383562 | S8: 0.424657534 | T8: 0 | U8: 0.917808219 | V8: 0.917808219 | W8: 0 | X8: 0 | Y8: 0 | Z8: 0.164383562 | AA8: 0 | AB8: 0 | AC8: Rural | AD8: Distant | AE8: NULL | AF8: 0 | AG8: 0 | AH8: 1 | AI8: 0 | AJ8: 0 | AK8: 73 | AL8: 10 | AM8: 7.3
A9: 01I004105 | B9: 12827 | C9: 2018 | D9: 01 | E9: I004 | F9: 105 | G9: -1 | H9: 8 | I9: ESMS | J9: 0.517647059 | K9: 0.482352941 | L9: 0.123529412 | M9: 0.241176471 | N9: 0.011764706 | O9: 0 | P9: 0.4 | Q9: 0.223529412 | R9: 0.064705882 | S9: 0.217647059 | T9: 0.023529412 | U9: 1 | V9: 0.994117647 | W9: 0 | X9: 0 | Y9: 0 | Z9: 0.064705882 | AA9: 0 | AB9: 0 | AC9: Rural | AD9: Fringe | AE9: NULL | AF9: 0 | AG9: 0 | AH9: 0 | AI9: 0 | AJ9: 0 | AK9: 170 | AL9: 10 | AM9: 17
A10: 01I004705 | B10: 12635 | C10: 2018 | D10: 01 | E10: I004 | F10: 705 | G10: 9 | H10: 12 | I10: HS | J10: 0.495495495 | K10: 0.504504505 | L10: 0.153153153 | M10: 0.342342342 | N10: 0.018018018 | O10: 0 | P10: 0.27027027 | Q10: 0.216216216 | R10: 0.027027027 | S10: 0.216216216 | T10: 0.171171171 | U10: 1 | V10: 0.981981982 | W10: 0 | X10: 0 | Y10: 0 | Z10: 0.036036036 | AA10: 0 | AB10: 0 | AC10: Rural | AD10: Fringe | AE10: NULL | AF10: 0 | AG10: 0 | AH10: 0 | AI10: 0 | AJ10: 0 | AK10: 111 | AL10: 4 | AM10: 27.75
A11: 01I011105 | B11: 12044 | C11: 2018 | D11: 01 | E11: I011 | F11: 105 | G11: -1 | H11: 6 | I11: ESMS | J11: 0.507438017 | K11: 0.492561983 | L11: 0.044628099 | M11: 0.466115702 | N11: 0.01322314 | O11: 0.003305785 | P11: 0.32892562 | Q11: 0.143801653 | R11: 0.042975207 | S11: 0.158677686 | T11: 0.018181818 | U11: 0.968595041 | V11: 0.968595041 | W11: 0 | X11: 0.008264463 | Y11: 0 | Z11: 0.044628099 | AA11: 0 | AB11: 0.018181818 | AC11: Rural | AD11: Distant | AE11: NULL | AF11: 0 | AG11: 0 | AH11: 0 | AI11: 0 | AJ11: 0 | AK11: 605 | AL11: 8 | AM11: 75.625
A12: 01I011610 | B12: 12255 | C12: 2018 | D12: 01 | E12: I011 | F12: 610 | G12: 7 | H12: 8 | I12: ESMS | J12: 0.549707602 | K12: 0.450292398 | L12: 0.081871345 | M12: 0.538011696 | N12: 0.029239766 | O12: 0.005847953 | P12: 0.245614035 | Q12: 0.099415205 | R12: 0.052631579 | S12: 0.157894737 | T12: 0.192982456 | U12: 0.947368421 | V12: 0.947368421 | W12: 0 | X12: 0.01754386 | Y12: 0 | Z12: 0.052631579 | AA12: 0 | AB12: 0.011695906 | AC12: Rural | AD12: Distant | AE12: NULL | AF12: 0 | AG12: 0 | AH12: 0 | AI12: 0 | AJ12: 0 | AK12: 171 | AL12: 2 | AM12: 85.5
A13: 01I011705 | B13: 11178 | C13: 2018 | D13: 01 | E13: I011 | F13: 705 | G13: 9 | H13: 12 | I13: HS | J13: 0.507042254 | K13: 0.492957746 | L13: 0.042253521 | M13: 0.487323944 | N13: 0.016901408 | O13: 0 | P13: 0.329577465 | Q13: 0.123943662 | R13: 0.022535211 | S13: 0.163380282 | T13: 0.261971831 | U13: 0.763380282 | V13: 0.763380282 | W13: 0 | X13: 0.025352113 | Y13: 0 | Z13: 0.028169014 | AA13: 0 | AB13: 0.014084507 | AC13: Rural | AD13: Distant | AE13: NULL | AF13: 0 | AG13: 0 | AH13: 0 | AI13: 0 | AJ13: 0 | AK13: 355 | AL13: 4 | AM13: 88.75
A14: 01I025105 | B14: 12244 | C14: 2018 | D14: 01 | E14: I025 | F14: 105 | G14: -1 | H14: 4 | I14: ESMS | J14: 0.58 | K14: 0.42 | L14: 0.245 | M14: 0.5325 | N14: 0 | O14: 0.005 | P14: 0.21 | Q14: 0.0075 | R14: 0.2075 | S14: 0.3375 | T14: 0.0575 | U14: 1 | V14: 0.9975 | W14: 0 | X14: 0.01 | Y14: 0 | Z14: 0.215 | AA14: 0.0025 | AB14: 0 | AC14: Town | AD14: Distant | AE14: NULL | AF14: 0 | AG14: 0 | AH14: 0 | AI14: 0 | AJ14: 0 | AK14: 400 | AL14: 6 | AM14: 66.66666667
A15: 01I025505 | B15: 11342 | C15: 2018 | D15: 01 | E15: I025 | F15: 505 | G15: 5 | H15: 8 | I15: ESMS | J15: 0.526748971 | K15: 0.473251029 | L15: 0.226337449 | M15: 0.551440329 | N15: 0.004115226 | O15: 0.004115226 | P15: 0.205761317 | Q15: 0.008230453 | R15: 0.090534979 | S15: 0.255144033 | T15: 0.395061728 | U15: 1 | V15: 1 | W15: 0 | X15: 0.008230453 | Y15: 0 | Z15: 0.267489712 | AA15: 0.032921811 | AB15: 0 | AC15: Town | AD15: Distant | AE15: NULL | AF15: 0 | AG15: 0 | AH15: 0 | AI15: 0 | AJ15: 0 | AK15: 243 | AL15: 4 | AM15: 60.75
A16: 01I025705 | B16: 12657 | C16: 2018 | D16: 01 | E16: I025 | F16: 705 | G16: 9 | H16: 12 | I16: HS | J16: 0.507886435 | K16: 0.492113565 | L16: 0.099369085 | M16: 0.70977918 | N16: 0.004731861 | O16: 0 | P16: 0.179810726 | Q16: 0.006309148 | R16: 0.100946372 | S16: 0.189274448 | T16: 0.552050473 | U16: 1 | V16: 1 | W16: 0 | X16: 0.009463722 | Y16: 0 | Z16: 0.141955836 | AA16: 0.001577287 | AB16: 0 | AC16: Town | AD16: Distant | AE16: NULL | AF16: 0 | AG16: 0 | AH16: 0 | AI16: 0 | AJ16: 0 | AK16: 634 | AL16: 4 | AM16: 158.5
A17: 01I030105 | B17: 11210 | C17: 2018 | D17: 01 | E17: I030 | F17: 105 | G17: -1 | H17: 4 | I17: ESMS | J17: 0.530612245 | K17: 0.469387755 | L17: 0 | M17: 0.918367347 | N17: 0 | O17: 0 | P17: 0.081632653 | Q17: 0 | R17: 0.12244898 | S17: 0.346938776 | T17: 0 | U17: 0.959183673 | V17: 0.959183673 | W17: 0 | X17: 0 | Y17: 0 | Z17: 0.12244898 | AA17: 0.020408163 | AB17: 0 | AC17: Rural | AD17: Distant | AE17: NULL | AF17: 0 | AG17: 0 | AH17: 0 | AI17: 0 | AJ17: 0 | AK17: 49 | AL17: 6 | AM17: 8.166666667
A18: 01I030505 | B18: 11859 | C18: 2018 | D18: 01 | E18: I030 | F18: 505 | G18: 5 | H18: 8 | I18: ESMS | J18: 0.55 | K18: 0.45 | L18: 0.025 | M18: 0.75 | N18: 0 | O18: 0 | P18: 0.225 | Q18: 0 | R18: 0.075 | S18: 0.2 | T18: 0.05 | U18: 1 | V18: 1 | W18: 0 | X18: 0 | Y18: 0 | Z18: 0.1 | AA18: 0.025 | AB18: 0 | AC18: Rural | AD18: Distant | AE18: NULL | AF18: 0 | AG18: 0 | AH18: 0 | AI18: 0 | AJ18: 0 | AK18: 40 | AL18: 4 | AM18: 10
A19: 01I030705 | B19: 12769 | C19: 2018 | D19: 01 | E19: I030 | F19: 705 | G19: 9 | H19: 12 | I19: HS | J19: 0.56557377 | K19: 0.43442623 | L19: 0.008196721 | M19: 0.942622951 | N19: 0 | O19: 0 | P19: 0.049180328 | Q19: 0 | R19: 0.06557377 | S19: 0.278688525 | T19: 0.049180328 | U19: 0.983606557 | V19: 0.983606557 | W19: 0 | X19: 0 | Y19: 0 | Z19: 0.06557377 | AA19: 0 | AB19: 0 | AC19: Rural | AD19: Distant | AE19: NULL | AF19: 0 | AG19: 0 | AH19: 0 | AI19: 0 | AJ19: 0 | AK19: 122 | AL19: 4 | AM19: 30.5
A20: 02I001105 | B20: 12277 | C20: 2018 | D20: 02 | E20: I001 | F20: 105 | G20: -1 | H20: 8 | I20: ESMS | J20: 0.466101695 | K20: 0.533898305 | L20: 0.050847458 | M20: 0 | N20: 0 | O20: 0 | P20: 0.754237288 | Q20: 0.194915254 | R20: 0 | S20: 0.152542373 | T20: 0.186440678 | U20: 0.542372881 | V20: 0.542372881 | W20: 0 | X20: 0 | Y20: 0 | Z20: 0.093220339 | AA20: 0.059322034 | AB20: 0 | AC20: Rural | AD20: Remote | AE20: NULL | AF20: 0 | AG20: 0 | AH20: 0 | AI20: 0 | AJ20: 0 | AK20: 118 | AL20: 10 | AM20: 11.8
A21: 02I001705 | B21: 11980 | C21: 2018 | D21: 02 | E21: I001 | F21: 705 | G21: 9 | H21: 12 | I21: HS | J21: 0.6 | K21: 0.4 | L21: 0.175 | M21: 0 | N21: 0 | O21: 0 | P21: 0.675 | Q21: 0.15 | R21: 0 | S21: 0.25 | T21: 0.45 | U21: 0.425 | V21: 0.425 | W21: 0 | X21: 0 | Y21: 0 | Z21: 0.025 | AA21: 0 | AB21: 0 | AC21: Rural | AD21: Remote | AE21: NULL | AF21: 0 | AG21: 0 | AH21: 0 | AI21: 0 | AJ21: 0 | AK21: 40 | AL21: 4 | AM21: 10
A22: 02I046105 | B22: 12499 | C22: 2018 | D22: 02 | E22: I046 | F22: 105 | G22: -1 | H22: 5 | I22: ESMS | J22: 0.522321429 | K22: 0.477678571 | L22: 0.125 | M22: 0.022321429 | N22: 0.004464286 | O22: 0 | P22: 0.776785714 | Q22: 0.071428571 | R22: 0.026785714 | S22: 0.263392857 | T22: 0.035714286 | U22: 0.486607143 | V22: 0.486607143 | W22: 0 | X22: 0 | Y22: 0 | Z22: 0.03125 | AA22: 0 | AB22: 0 | AC22: Rural | AD22: Remote | AE22: NULL | AF22: 0 | AG22: 0 | AH22: 0 | AI22: 0 | AJ22: 0 | AK22: 224 | AL22: 7 | AM22: 32
A23: 02I046510 | B23: 11927 | C23: 2018 | D23: 02 | E23: I046 | F23: 510 | G23: 6 | H23: 8 | I23: ESMS | J23: 0.533333333 | K23: 0.466666667 | L23: 0.146666667 | M23: 0.026666667 | N23: 0 | O23: 0.013333333 | P23: 0.773333333 | Q23: 0.04 | R23: 0.013333333 | S23: 0.32 | T23: 0.226666667 | U23: 0.44 | V23: 0.44 | W23: 0 | X23: 0 | Y23: 0 | Z23: 0.026666667 | AA23: 0 | AB23: 0 | AC23: Rural | AD23: Remote | AE23: NULL | AF23: 0 | AG23: 0 | AH23: 0 | AI23: 0 | AJ23: 0 | AK23: 75 | AL23: 3 | AM23: 25
A24: 02I046705 | B24: 12216 | C24: 2018 | D24: 02 | E24: I046 | F24: 705 | G24: 9 | H24: 12 | I24: HS | J24: 0.529411765 | K24: 0.470588235 | L24: 0.088235294 | M24: 0.049019608 | N24: 0 | O24: 0.009803922 | P24: 0.823529412 | Q24: 0.029411765 | R24: 0 | S24: 0.18627451 | T24: 0.274509804 | U24: 0.352941176 | V24: 0.352941176 | W24: 0 | X24: 0.009803922 | Y24: 0 | Z24: 0.029411765 | AA24: 0 | AB24: 0 | AC24: Rural | AD24: Remote | AE24: NULL | AF24: 0 | AG24: 0 | AH24: 0 | AI24: 0 | AJ24: 0 | AK24: 102 | AL24: 4 | AM24: 25.5
A25: 02I093105 | B25: 12775 | C25: 2018 | D25: 02 | E25: I093 | F25: 105 | G25: -1 | H25: 8 | I25: ESMS | J25: 0.502283105 | K25: 0.497716895 | L25: 0.02739726 | M25: 0.04109589 | N25: 0 | O25: 0.00913242 | P25: 0.885844749 | Q25: 0.03652968 | R25: 0 | S25: 0.232876712 | T25: 0.114155251 | U25: 0.584474886 | V25: 0.625570776 | W25: 0 | X25: 0.01826484 | Y25: 0 | Z25: 0 | AA25: 0 | AB25: 0 | AC25: Rural | AD25: Remote | AE25: NULL | AF25: 0 | AG25: 0 | AH25: 0 | AI25: 0 | AJ25: 0 | AK25: 219 | AL25: 10 | AM25: 21.9
A26: 02I093705 | B26: 11259 | C26: 2018 | D26: 02 | E26: I093 | F26: 705 | G26: 9 | H26: 12 | I26: HS | J26: 0.590909091 | K26: 0.409090909 | L26: 0.015151515 | M26: 0.090909091 | N26: 0.045454545 | O26: 0.045454545 | P26: 0.757575758 | Q26: 0.045454545 | R26: 0 | S26: 0.272727273 | T26: 0.121212121 | U26: 0.545454545 | V26: 0.590909091 | W26: 0 | X26: 0 | Y26: 0 | Z26: 0 | AA26: 0 | AB26: 0 | AC26: Rural | AD26: Remote | AE26: NULL | AF26: 0 | AG26: 0 | AH26: 0 | AI26: 0 | AJ26: 0 | AK26: 66 | AL26: 4 | AM26: 16.5
A27: 03C021105 | B27: 11633 | C27: 2018 | D27: 03 | E27: C021 | F27: 105 | G27: -1 | H27: 8 | I27: ESMS | J27: 0.491452991 | K27: 0.508547009 | L27: 0.017094017 | M27: 0.324786325 | N27: 0 | O27: 0.004273504 | P27: 0.508547009 | Q27: 0.145299145 | R27: 0 | S27: 0.333333333 | T27: 0.085470085 | U27: 0.820512821 | V27: 0.846153846 | W27: 0 | X27: 0 | Y27: 0 | Z27: 0.017094017 | AA27: 0 | AB27: 0 | AC27: Rural | AD27: Remote | AE27: NULL | AF27: 0 | AG27: 0 | AH27: 1 | AI27: 0 | AJ27: 0 | AK27: 234 | AL27: 10 | AM27: 23.4
A28: 03C022105 | B28: 12110 | C28: 2018 | D28: 03 | E28: C022 | F28: 105 | G28: -1 | H28: 8 | I28: ESMS | J28: 0.489051095 | K28: 0.510948905 | L28: 0.040145985 | M28: 0.339416058 | N28: 0.003649635 | O28: 0 | P28: 0.47810219 | Q28: 0.138686131 | R28: 0 | S28: 0.346715328 | T28: 0.145985401 | U28: 0.799270073 | V28: 0.857664234 | W28: 0 | X28: 0.003649635 | Y28: 0 | Z28: 0 | AA28: 0 | AB28: 0 | AC28: Rural | AD28: Remote | AE28: NULL | AF28: 0 | AG28: 0 | AH28: 1 | AI28: 0 | AJ28: 0 | AK28: 274 | AL28: 10 | AM28: 27.4
A29: 03I007105 | B29: 12548 | C29: 2018 | D29: 03 | E29: I007 | F29: 105 | G29: -1 | H29: 8 | I29: ESMS | J29: 0.476190476 | K29: 0.523809524 | L29: 0.013605442 | M29: 0.448979592 | N29: 0 | O29: 0.06122449 | P29: 0.448979592 | Q29: 0.027210884 | R29: 0 | S29: 0.238095238 | T29: 0.108843537 | U29: 0.823129252 | V29: 0.870748299 | W29: 0 | X29: 0.006802721 | Y29: 0 | Z29: 0 | AA29: 0 | AB29: 0 | AC29: Rural | AD29: Remote | AE29: NULL | AF29: 0 | AG29: 0 | AH29: 0 | AI29: 0 | AJ29: 0 | AK29: 147 | AL29: 10 | AM29: 14.7
A30: 03I007705 | B30: 11291 | C30: 2018 | D30: 03 | E30: I007 | F30: 705 | G30: 9 | H30: 12 | I30: HS | J30: 0.564102564 | K30: 0.435897436 | L30: 0 | M30: 0.512820513 | N30: 0 | O30: 0.025641026 | P30: 0.448717949 | Q30: 0.012820513 | R30: 0 | S30: 0.384615385 | T30: 0.205128205 | U30: 0.769230769 | V30: 0.807692308 | W30: 0 | X30: 0 | Y30: 0 | Z30: 0 | AA30: 0 | AB30: 0 | AC30: Rural | AD30: Remote | AE30: NULL | AF30: 0 | AG30: 0 | AH30: 0 | AI30: 0 | AJ30: 0 | AK30: 78 | AL30: 4 | AM30: 19.5
A31: 03I015120 | B31: 11391 | C31: 2018 | D31: 03 | E31: I015 | F31: 120 | G31: -1 | H31: 8 | I31: ESMS | J31: 0.529109589 | K31: 0.470890411 | L31: 0.054794521 | M31: 0.318493151 | N31: 0.01369863 | O31: 0.080479452 | P31: 0.424657534 | Q31: 0.107876712 | R31: 0 | S31: 0.273972603 | T31: 0.203767123 | U31: 0.599315068 | V31: 0.63869863 | W31: 0 | X31: 0.003424658 | Y31: 0 | Z31: 0 | AA31: 0 | AB31: 0 | AC31: Rural | AD31: Remote | AE31: NULL | AF31: 0 | AG31: 0 | AH31: 0 | AI31: 0 | AJ31: 0 | AK31: 584 | AL31: 10 | AM31: 58.4
A32: 03I015705 | B32: 11911 | C32: 2018 | D32: 03 | E32: I015 | F32: 705 | G32: 9 | H32: 12 | I32: HS | J32: 0.522033898 | K32: 0.477966102 | L32: 0.06440678 | M32: 0.305084746 | N32: 0.016949153 | O32: 0.057627119 | P32: 0.53220339 | Q32: 0.023728814 | R32: 0 | S32: 0.26779661 | T32: 0.366101695 | U32: 0.423728814 | V32: 0.525423729 | W32: 0 | X32: 0.006779661 | Y32: 0 | Z32: 0 | AA32: 0 | AB32: 0 | AC32: Rural | AD32: Remote | AE32: NULL | AF32: 0 | AG32: 0 | AH32: 0 | AI32: 0 | AJ32: 0 | AK32: 295 | AL32: 4 | AM32: 73.75
A33: 03I019105 | B33: 12414 | C33: 2018 | D33: 03 | E33: I019 | F33: 105 | G33: -1 | H33: 8 | I33: ESMS | J33: 0.512027491 | K33: 0.487972509 | L33: 0.024054983 | M33: 0.378006873 | N33: 0.003436426 | O33: 0.003436426 | P33: 0.587628866 | Q33: 0.003436426 | R33: 0 | S33: 0.237113402 | T33: 0.189003436 | U33: 0.670103093 | V33: 0.670103093 | W33: 0 | X33: 0 | Y33: 0 | Z33: 0 | AA33: 0 | AB33: 0 | AC33: Rural | AD33: Remote | AE33: NULL | AF33: 0 | AG33: 0 | AH33: 0 | AI33: 0 | AJ33: 0 | AK33: 291 | AL33: 10 | AM33: 29.1
A34: 03I019705 | B34: 11195 | C34: 2018 | D34: 03 | E34: I019 | F34: 705 | G34: 9 | H34: 12 | I34: HS | J34: 0.456953642 | K34: 0.543046358 | L34: 0.006622517 | M34: 0.324503311 | N34: 0.006622517 | O34: 0 | P34: 0.649006623 | Q34: 0.013245033 | R34: 0 | S34: 0.298013245 | T34: 0.291390728 | U34: 0.549668874 | V34: 0.549668874 | W34: 0 | X34: 0 | Y34: 0 | Z34: 0 | AA34: 0 | AB34: 0 | AC34: Rural | AD34: Remote | AE34: NULL | AF34: 0 | AG34: 0 | AH34: 0 | AI34: 0 | AJ34: 0 | AK34: 151 | AL34: 4 | AM34: 37.75
A35: 03I026105 | B35: 11986 | C35: 2018 | D35: 03 | E35: I026 | F35: 105 | G35: -1 | H35: 8 | I35: ESMS | J35: 0.537142857 | K35: 0.462857143 | L35: 0.045714286 | M35: 0.32 | N35: 0 | O35: 0.017142857 | P35: 0.52 | Q35: 0.097142857 | R35: 0 | S35: 0.205714286 | T35: 0.125714286 | U35: 1 | V35: 0.257142857 | W35: 0 | X35: 0 | Y35: 0 | Z35: 0.034285714 | AA35: 0 | AB35: 0 | AC35: Rural | AD35: Remote | AE35: NULL | AF35: 0 | AG35: 0 | AH35: 0 | AI35: 0 | AJ35: 0 | AK35: 175 | AL35: 10 | AM35: 17.5
A36: 03I026705 | B36: 12616 | C36: 2018 | D36: 03 | E36: I026 | F36: 705 | G36: 9 | H36: 12 | I36: HS | J36: 0.524590164 | K36: 0.475409836 | L36: 0.032786885 | M36: 0.409836066 | N36: 0 | O36: 0.016393443 | P36: 0.393442623 | Q36: 0.147540984 | R36: 0 | S36: 0.229508197 | T36: 0.327868852 | U36: 1 | V36: 0.229508197 | W36: 0 | X36: 0.016393443 | Y36: 0 | Z36: 0.016393443 | AA36: 0 | AB36: 0 | AC36: Rural | AD36: Remote | AE36: NULL | AF36: 0 | AG36: 0 | AH36: 0 | AI36: 0 | AJ36: 0 | AK36: 61 | AL36: 4 | AM36: 15.25
A37: 04I022105 | B37: 11435 | C37: 2018 | D37: 04 | E37: I022 | F37: 105 | G37: -1 | H37: 8 | I37: ESMS | J37: 0.52016129 | K37: 0.47983871 | L37: 0.338709677 | M37: 0.012096774 | N37: 0.008064516 | O37: 0.004032258 | P37: 0.629032258 | Q37: 0.008064516 | R37: 0.100806452 | S37: 0.141129032 | T37: 0.032258065 | U37: 0.64516129 | V37: 0.64516129 | W37: 0 | X37: 0 | Y37: 0 | Z37: 0.245967742 | AA37: 0.012096774 | AB37: 0 | AC37: Rural | AD37: Remote | AE37: NULL | AF37: 0 | AG37: 0 | AH37: 0 | AI37: 0 | AJ37: 0 | AK37: 248 | AL37: 10 | AM37: 24.8
A38: 04I022705 | B38: 11281 | C38: 2018 | D38: 04 | E38: I022 | F38: 705 | G38: 9 | H38: 12 | I38: HS | J38: 0.515151515 | K38: 0.484848485 | L38: 0.343434343 | M38: 0 | N38: 0 | O38: 0.01010101 | P38: 0.636363636 | Q38: 0.01010101 | R38: 0.070707071 | S38: 0.121212121 | T38: 0.232323232 | U38: 0.484848485 | V38: 0.484848485 | W38: 0 | X38: 0 | Y38: 0 | Z38: 0.212121212 | AA38: 0.050505051 | AB38: 0 | AC38: Rural | AD38: Remote | AE38: NULL | AF38: 0 | AG38: 0 | AH38: 0 | AI38: 0 | AJ38: 0 | AK38: 99 | AL38: 4 | AM38: 24.75
A39: 04I075105 | B39: 12747 | C39: 2018 | D39: 04 | E39: I075 | F39: 105 | G39: -1 | H39: 8 | I39: ESMS | J39: 0.551724138 | K39: 0.448275862 | L39: 0.129310345 | M39: 0.017241379 | N39: 0 | O39: 0 | P39: 0.836206897 | Q39: 0.017241379 | R39: 0.034482759 | S39: 0.146551724 | T39: 0.051724138 | U39: 0.379310345 | V39: 0.379310345 | W39: 0 | X39: 0.034482759 | Y39: 0 | Z39: 0.034482759 | AA39: 0 | AB39: 0 | AC39: Rural | AD39: Remote | AE39: NULL | AF39: 0 | AG39: 0 | AH39: 0 | AI39: 0 | AJ39: 0 | AK39: 116 | AL39: 10 | AM39: 11.6
A40: 04I075705 | B40: 11828 | C40: 2018 | D40: 04 | E40: I075 | F40: 705 | G40: 9 | H40: 12 | I40: HS | J40: 0.446808511 | K40: 0.553191489 | L40: 0 | M40: 0 | N40: 0.021276596 | O40: 0.021276596 | P40: 0.957446809 | Q40: 0 | R40: 0 | S40: 0.212765957 | T40: 0.106382979 | U40: 0.234042553 | V40: 0.234042553 | W40: 0 | X40: 0.042553191 | Y40: 0 | Z40: 0 | AA40: 0 | AB40: 0 | AC40: Rural | AD40: Remote | AE40: NULL | AF40: 0 | AG40: 0 | AH40: 0 | AI40: 0 | AJ40: 0 | AK40: 47 | AL40: 4 | AM40: 11.75
A41: 04I123105 | B41: 12816 | C41: 2018 | D41: 04 | E41: I123 | F41: 105 | G41: -1 | H41: 8 | I41: ESMS | J41: 0.555555556 | K41: 0.444444444 | L41: 0.398148148 | M41: 0 | N41: 0 | O41: 0 | P41: 0.601851852 | Q41: 0 | R41: 0.074074074 | S41: 0.212962963 | T41: 0.027777778 | U41: 0.574074074 | V41: 0.574074074 | W41: 0 | X41: 0.009259259 | Y41: 0 | Z41: 0.138888889 | AA41: 0 | AB41: 0 | AC41: Rural | AD41: Remote | AE41: NULL | AF41: 0 | AG41: 0 | AH41: 0 | AI41: 0 | AJ41: 0 | AK41: 108 | AL41: 10 | AM41: 10.8
A42: 04I123705 | B42: 11653 | C42: 2018 | D42: 04 | E42: I123 | F42: 705 | G42: 9 | H42: 12 | I42: HS | J42: 0.5 | K42: 0.5 | L42: 0.428571429 | M42: 0 | N42: 0 | O42: 0 | P42: 0.547619048 | Q42: 0.023809524 | R42: 0.071428571 | S42: 0.285714286 | T42: 0.071428571 | U42: 0.547619048 | V42: 0.547619048 | W42: 0 | X42: 0.047619048 | Y42: 0 | Z42: 0.238095238 | AA42: 0 | AB42: 0 | AC42: Rural | AD42: Remote | AE42: NULL | AF42: 0 | AG42: 0 | AH42: 0 | AI42: 0 | AJ42: 0 | AK42: 42 | AL42: 4 | AM42: 10.5
A43: 04I128105 | B43: 11523 | C43: 2018 | D43: 04 | E43: I128 | F43: 105 | G43: -1 | H43: 8 | I43: ESMS | J43: 0.483180428 | K43: 0.516819572 | L43: 0.5382263 | M43: 0 | N43: 0.003058104 | O43: 0.003058104 | P43: 0.434250765 | Q43: 0.021406728 | R43: 0.217125382 | S43: 0.073394495 | T43: 0.04587156 | U43: 0.654434251 | V43: 0.672782875 | W43: 0 | X43: 0.009174312 | Y43: 0 | Z43: 0.409785933 | AA43: 0.067278287 | AB43: 0 | AC43: Rural | AD43: Remote | AE43: NULL | AF43: 0 | AG43: 0 | AH43: 0 | AI43: 0 | AJ43: 0 | AK43: 327 | AL43: 10 | AM43: 32.7
A44: 04I128705 | B44: 12804 | C44: 2018 | D44: 04 | E44: I128 | F44: 705 | G44: 9 | H44: 12 | I44: HS | J44: 0.518867925 | K44: 0.481132075 | L44: 0.509433962 | M44: 0 | N44: 0 | O44: 0.009433962 | P44: 0.481132075 | Q44: 0 | R44: 0.141509434 | S44: 0.160377358 | T44: 0.198113208 | U44: 0.650943396 | V44: 0.669811321 | W44: 0 | X44: 0.047169811 | Y44: 0 | Z44: 0.405660377 | AA44: 0.018867925 | AB44: 0 | AC44: Rural | AD44: Remote | AE44: NULL | AF44: 0 | AG44: 0 | AH44: 0 | AI44: 0 | AJ44: 0 | AK44: 106 | AL44: 4 | AM44: 26.5
A45: 05I002105 | B45: 12154 | C45: 2018 | D45: 05 | E45: I002 | F45: 105 | G45: -1 | H45: 8 | I45: ESMS | J45: 0.501567398 | K45: 0.498432602 | L45: 0.123824451 | M45: 0.054858934 | N45: 0.012539185 | O45: 0.006269592 | P45: 0.775862069 | Q45: 0.026645768 | R45: 0.037617555 | S45: 0.137931034 | T45: 0.137931034 | U45: 0.579937304 | V45: 0.579937304 | W45: 0 | X45: 0 | Y45: 0 | Z45: 0.072100313 | AA45: 0.010971787 | AB45: 0.119122257 | AC45: Rural | AD45: Fringe | AE45: NULL | AF45: 0 | AG45: 0 | AH45: 0 | AI45: 0 | AJ45: 0 | AK45: 638 | AL45: 10 | AM45: 63.8
A46: 05I002705 | B46: 12605 | C46: 2018 | D46: 05 | E46: I002 | F46: 705 | G46: 9 | H46: 12 | I46: HS | J46: 0.526627219 | K46: 0.473372781 | L46: 0.165680473 | M46: 0.059171598 | N46: 0 | O46: 0 | P46: 0.775147929 | Q46: 0 | R46: 0.041420118 | S46: 0.177514793 | T46: 0.24852071 | U46: 0.639053254 | V46: 0.639053254 | W46: 0 | X46: 0 | Y46: 0 | Z46: 0.088757396 | AA46: 0 | AB46: 0.218934911 | AC46: Rural | AD46: Fringe | AE46: NULL | AF46: 0 | AG46: 0 | AH46: 0 | AI46: 0 | AJ46: 0 | AK46: 169 | AL46: 4 | AM46: 42.25
A47: 05I006115 | B47: 12841 | C47: 2018 | D47: 05 | E47: I006 | F47: 115 | G47: 4 | H47: 6 | I47: ESMS | J47: 0.532188841 | K47: 0.467811159 | L47: 0.253218884 | M47: 0.025751073 | N47: 0.008583691 | O47: 0.032188841 | P47: 0.603004292 | Q47: 0.077253219 | R47: 0.079399142 | S47: 0.154506438 | T47: 0.113733906 | U47: 0.658798283 | V47: 0.665236052 | W47: 0 | X47: 0 | Y47: 0 | Z47: 0.139484979 | AA47: 0.053648069 | AB47: 0 | AC47: Town | AD47: Remote | AE47: NULL | AF47: 0 | AG47: 0 | AH47: 0 | AI47: 0 | AJ47: 0 | AK47: 466 | AL47: 3 | AM47: 155.3333333
A48: 05I006125 | B48: 12601 | C48: 2018 | D48: 05 | E48: I006 | F48: 125 | G48: -1 | H48: 3 | I48: ESMS | J48: 0.527958388 | K48: 0.472041612 | L48: 0.22236671 | M48: 0.053315995 | N48: 0.007802341 | O48: 0.036410923 | P48: 0.624187256 | Q48: 0.055916775 | R48: 0.091027308 | S48: 0.123537061 | T48: 0.00130039 | U48: 0.647594278 | V48: 0.655396619 | W48: 0 | X48: 0.00520156 | Y48: 0 | Z48: 0.096228869 | AA48: 0 | AB48: 0 | AC48: Rural | AD48: Fringe | AE48: NULL | AF48: 0 | AG48: 0 | AH48: 0 | AI48: 0 | AJ48: 0 | AK48: 769 | AL48: 5 | AM48: 153.8
A49: 05I006610 | B49: 11878 | C49: 2018 | D49: 05 | E49: I006 | F49: 610 | G49: 7 | H49: 8 | I49: ESMS | J49: 0.542857143 | K49: 0.457142857 | L49: 0.184126984 | M49: 0.044444444 | N49: 0.022222222 | O49: 0.022222222 | P49: 0.66031746 | Q49: 0.066666667 | R49: 0.025396825 | S49: 0.123809524 | T49: 0.133333333 | U49: 0.533333333 | V49: 0.536507937 | W49: 0 | X49: 0.012698413 | Y49: 0 | Z49: 0.06031746 | AA49: 0.00952381 | AB49: 0 | AC49: Town | AD49: Remote | AE49: NULL | AF49: 0 | AG49: 0 | AH49: 0 | AI49: 0 | AJ49: 0 | AK49: 315 | AL49: 2 | AM49: 157.5
A50: 05I006705 | B50: 11663 | C50: 2018 | D50: 05 | E50: I006 | F50: 705 | G50: 8 | H50: 12 | I50: HS | J50: 0.530357143 | K50: 0.469642857 | L50: 0.2125 | M50: 0.046428571 | N50: 0.007142857 | O50: 0.042857143 | P50: 0.658928571 | Q50: 0.032142857 | R50: 0.058928571 | S50: 0.153571429 | T50: 0.1125 | U50: 0.541071429 | V50: 0.542857143 | W50: 0 | X50: 0.0125 | Y50: 0.008928571 | Z50: 0.114285714 | AA50: 0.010714286 | AB50: 0 | AC50: Rural | AD50: Fringe | AE50: NULL | AF50: 0 | AG50: 0 | AH50: 0 | AI50: 0 | AJ50: 0 | AK50: 560 | AL50: 5 | AM50: 112
A51: 05I031105 | B51: 12420 | C51: 2018 | D51: 05 | E51: I031 | F51: 105 | G51: -1 | H51: 5 | I51: ESMS | J51: 0.538461538 | K51: 0.461538462 | L51: 0.105128205 | M51: 0.017948718 | N51: 0.002564103 | O51: 0.002564103 | P51: 0.797435897 | Q51: 0.074358974 | R51: 0.002564103 | S51: 0.130769231 | T51: 0.015384615 | U51: 0.648717949 | V51: 0.648717949 | W51: 0 | X51: 0 | Y51: 0 | Z51: 0.01025641 | AA51: 0 | AB51: 0 | AC51: Town | AD51: Remote | AE51: NULL | AF51: 0 | AG51: 0 | AH51: 0 | AI51: 0 | AJ51: 0 | AK51: 390 | AL51: 7 | AM51: 55.71428571
A52: 05I031505 | B52: 12080 | C52: 2018 | D52: 05 | E52: I031 | F52: 505 | G52: 6 | H52: 8 | I52: ESMS | J52: 0.5 | K52: 0.5 | L52: 0.131578947 | M52: 0.019736842 | N52: 0 | O52: 0.006578947 | P52: 0.782894737 | Q52: 0.059210526 | R52: 0 | S52: 0.157894737 | T52: 0.098684211 | U52: 0.5 | V52: 0.5 | W52: 0 | X52: 0.006578947 | Y52: 0 | Z52: 0.013157895 | AA52: 0 | AB52: 0 | AC52: Town | AD52: Remote | AE52: NULL | AF52: 0 | AG52: 0 | AH52: 0 | AI52: 0 | AJ52: 0 | AK52: 152 | AL52: 3 | AM52: 50.66666667
A53: 05I031705 | B53: 12181 | C53: 2018 | D53: 05 | E53: I031 | F53: 705 | G53: 9 | H53: 12 | I53: HS | J53: 0.526041667 | K53: 0.473958333 | L53: 0.104166667 | M53: 0.015625 | N53: 0.005208333 | O53: 0.005208333 | P53: 0.791666667 | Q53: 0.078125 | R53: 0.005208333 | S53: 0.182291667 | T53: 0.078125 | U53: 0.442708333 | V53: 0.442708333 | W53: 0 | X53: 0.005208333 | Y53: 0 | Z53: 0.010416667 | AA53: 0 | AB53: 0 | AC53: Town | AD53: Remote | AE53: NULL | AF53: 0 | AG53: 0 | AH53: 0 | AI53: 0 | AJ53: 0 | AK53: 192 | AL53: 4 | AM53: 48
A54: 05I051105 | B54: 12762 | C54: 2018 | D54: 05 | E54: I051 | F54: 105 | G54: -1 | H54: 8 | I54: ESMS | J54: 0.561497326 | K54: 0.438502674 | L54: 0.037433155 | M54: 0.005347594 | N54: 0.005347594 | O54: 0.010695187 | P54: 0.871657754 | Q54: 0.069518717 | R54: 0 | S54: 0.13368984 | T54: 0.101604278 | U54: 0.588235294 | V54: 0.652406417 | W54: 0 | X54: 0.005347594 | Y54: 0 | Z54: 0.005347594 | AA54: 0 | AB54: 0 | AC54: Rural | AD54: Remote | AE54: NULL | AF54: 0 | AG54: 0 | AH54: 0 | AI54: 0 | AJ54: 0 | AK54: 187 | AL54: 10 | AM54: 18.7
A55: 05I051715 | B55: 12535 | C55: 2018 | D55: 05 | E55: I051 | F55: 715 | G55: 9 | H55: 12 | I55: HS | J55: 0.476923077 | K55: 0.523076923 | L55: 0.076923077 | M55: 0.015384615 | N55: 0.015384615 | O55: 0 | P55: 0.815384615 | Q55: 0.076923077 | R55: 0 | S55: 0.153846154 | T55: 0.153846154 | U55: 0.353846154 | V55: 0.461538462 | W55: 0 | X55: 0.046153846 | Y55: 0 | Z55: 0.015384615 | AA55: 0 | AB55: 0 | AC55: Rural | AD55: Remote | AE55: NULL | AF55: 0 | AG55: 0 | AH55: 0 | AI55: 0 | AJ55: 0 | AK55: 65 | AL55: 4 | AM55: 16.25
A56: 06I009105 | B56: 11294 | C56: 2018 | D56: 06 | E56: I009 | F56: 105 | G56: -1 | H56: 6 | I56: ESMS | J56: 0.62254902 | K56: 0.37745098 | L56: 0.166666667 | M56: 0.024509804 | N56: 0 | O56: 0.014705882 | P56: 0.794117647 | Q56: 0 | R56: 0.039215686 | S56: 0.191176471 | T56: 0.058823529 | U56: 0.573529412 | V56: 0.578431373 | W56: 0.024509804 | X56: 0 | Y56: 0 | Z56: 0.088235294 | AA56: 0 | AB56: 0 | AC56: Rural | AD56: Remote | AE56: NULL | AF56: 0 | AG56: 0 | AH56: 0 | AI56: 0 | AJ56: 0 | AK56: 204 | AL56: 8 | AM56: 25.5
A57: 06I009615 | B57: 11190 | C57: 2018 | D57: 06 | E57: I009 | F57: 615 | G57: 7 | H57: 8 | I57: ESMS | J57: 0.58 | K57: 0.42 | L57: 0.26 | M57: 0.04 | N57: 0 | O57: 0.02 | P57: 0.68 | Q57: 0 | R57: 0.06 | S57: 0.24 | T57: 0.2 | U57: 0.54 | V57: 0.54 | W57: 0.1 | X57: 0 | Y57: 0 | Z57: 0.2 | AA57: 0 | AB57: 0 | AC57: Rural | AD57: Remote | AE57: NULL | AF57: 0 | AG57: 0 | AH57: 0 | AI57: 0 | AJ57: 0 | AK57: 50 | AL57: 2 | AM57: 25
A58: 06I009715 | B58: 11417 | C58: 2018 | D58: 06 | E58: I009 | F58: 715 | G58: 9 | H58: 12 | I58: HS | J58: 0.445783133 | K58: 0.554216867 | L58: 0.180722892 | M58: 0.024096386 | N58: 0 | O58: 0 | P58: 0.795180723 | Q58: 0 | R58: 0 | S58: 0.240963855 | T58: 0.144578313 | U58: 0.493975904 | V58: 0.493975904 | W58: 0 | X58: 0 | Y58: 0 | Z58: 0.060240964 | AA58: 0 | AB58: 0 | AC58: Rural | AD58: Remote | AE58: NULL | AF58: 0 | AG58: 0 | AH58: 0 | AI58: 0 | AJ58: 0 | AK58: 83 | AL58: 4 | AM58: 20.75
A59: 06I042105 | B59: 12487 | C59: 2018 | D59: 06 | E59: I042 | F59: 105 | G59: -1 | H59: 5 | I59: ESMS | J59: 0.536708861 | K59: 0.463291139 | L59: 0.205063291 | M59: 0.136708861 | N59: 0.002531646 | O59: 0.032911392 | P59: 0.473417722 | Q59: 0.149367089 | R59: 0.078481013 | S59: 0.167088608 | T59: 0.017721519 | U59: 0.8 | V59: 0.805063291 | W59: 0 | X59: 0.002531646 | Y59: 0 | Z59: 0.113924051 | AA59: 0.02278481 | AB59: 0 | AC59: Town | AD59: Remote | AE59: NULL | AF59: 0 | AG59: 0 | AH59: 0 | AI59: 0 | AJ59: 0 | AK59: 395 | AL59: 7 | AM59: 56.42857143
A60: 06I042505 | B60: 11777 | C60: 2018 | D60: 06 | E60: I042 | F60: 505 | G60: 6 | H60: 8 | I60: ESMS | J60: 0.484848485 | K60: 0.515151515 | L60: 0.187878788 | M60: 0.127272727 | N60: 0 | O60: 0.03030303 | P60: 0.521212121 | Q60: 0.133333333 | R60: 0.03030303 | S60: 0.139393939 | T60: 0.115151515 | U60: 0.739393939 | V60: 0.739393939 | W60: 0 | X60: 0 | Y60: 0 | Z60: 0.090909091 | AA60: 0.042424242 | AB60: 0 | AC60: Town | AD60: Remote | AE60: NULL | AF60: 0 | AG60: 0 | AH60: 0 | AI60: 0 | AJ60: 0 | AK60: 165 | AL60: 3 | AM60: 55
A61: 06I042705 | B61: 11967 | C61: 2018 | D61: 06 | E61: I042 | F61: 705 | G61: 9 | H61: 12 | I61: HS | J61: 0.510204082 | K61: 0.489795918 | L61: 0.209183673 | M61: 0.112244898 | N61: 0.015306122 | O61: 0.040816327 | P61: 0.535714286 | Q61: 0.086734694 | R61: 0.025510204 | S61: 0.153061224 | T61: 0.219387755 | U61: 0.704081633 | V61: 0.704081633 | W61: 0 | X61: 0.025510204 | Y61: 0 | Z61: 0.117346939 | AA61: 0.020408163 | AB61: 0 | AC61: Town | AD61: Remote | AE61: NULL | AF61: 0 | AG61: 0 | AH61: 0 | AI61: 0 | AJ61: 0 | AK61: 196 | AL61: 4 | AM61: 49
A62: 06I080105 | B62: 11254 | C62: 2018 | D62: 06 | E62: I080 | F62: 105 | G62: -1 | H62: 5 | I62: ESMS | J62: 0.542857143 | K62: 0.457142857 | L62: 0.12 | M62: 0.428571429 | N62: 0 | O62: 0.005714286 | P62: 0.44 | Q62: 0.005714286 | R62: 0.068571429 | S62: 0.177142857 | T62: 0.045714286 | U62: 1 | V62: 0.542857143 | W62: 0 | X62: 0 | Y62: 0 | Z62: 0.068571429 | AA62: 0 | AB62: 0 | AC62: Rural | AD62: Remote | AE62: NULL | AF62: 0 | AG62: 0 | AH62: 0 | AI62: 0 | AJ62: 0 | AK62: 175 | AL62: 7 | AM62: 25
A63: 06I080500 | B63: 11749 | C63: 2018 | D63: 06 | E63: I080 | F63: 500 | G63: 6 | H63: 8 | I63: ESMS | J63: 0.416666667 | K63: 0.583333333 | L63: 0.208333333 | M63: 0.416666667 | N63: 0 | O63: 0.013888889 | P63: 0.361111111 | Q63: 0 | R63: 0.111111111 | S63: 0.083333333 | T63: 0.166666667 | U63: 1 | V63: 0.472222222 | W63: 0 | X63: 0 | Y63: 0 | Z63: 0.152777778 | AA63: 0 | AB63: 0 | AC63: Rural | AD63: Remote | AE63: NULL | AF63: 0 | AG63: 0 | AH63: 0 | AI63: 0 | AJ63: 0 | AK63: 72 | AL63: 3 | AM63: 24
A64: 06I080715 | B64: 12351 | C64: 2018 | D64: 06 | E64: I080 | F64: 715 | G64: 9 | H64: 12 | I64: HS | J64: 0.471910112 | K64: 0.528089888 | L64: 0.168539326 | M64: 0.359550562 | N64: 0 | O64: 0.033707865 | P64: 0.404494382 | Q64: 0.033707865 | R64: 0.078651685 | S64: 0.157303371 | T64: 0.235955056 | U64: 1 | V64: 0.359550562 | W64: 0 | X64: 0 | Y64: 0 | Z64: 0.112359551 | AA64: 0 | AB64: 0 | AC64: Rural | AD64: Remote | AE64: NULL | AF64: 0 | AG64: 0 | AH64: 0 | AI64: 0 | AJ64: 0 | AK64: 89 | AL64: 4 | AM64: 22.25
A65: 06I105105 | B65: 11838 | C65: 2018 | D65: 06 | E65: I105 | F65: 105 | G65: -1 | H65: 8 | I65: ESMS | J65: 0.540441176 | K65: 0.459558824 | L65: 0.125 | M65: 0.231617647 | N65: 0.003676471 | O65: 0 | P65: 0.613970588 | Q65: 0.025735294 | R65: 0.007352941 | S65: 0.161764706 | T65: 0.0625 | U65: 0.713235294 | V65: 0.738970588 | W65: 0 | X65: 0.007352941 | Y65: 0 | Z65: 0.014705882 | AA65: 0.003676471 | AB65: 0 | AC65: Rural | AD65: Remote | AE65: NULL | AF65: 0 | AG65: 0 | AH65: 0 | AI65: 0 | AJ65: 0 | AK65: 272 | AL65: 10 | AM65: 27.2
A66: 06I105705 | B66: 12012 | C66: 2018 | D66: 06 | E66: I105 | F66: 705 | G66: 9 | H66: 12 | I66: HS | J66: 0.494252874 | K66: 0.505747126 | L66: 0.068965517 | M66: 0.264367816 | N66: 0 | O66: 0 | P66: 0.609195402 | Q66: 0.057471264 | R66: 0 | S66: 0.252873563 | T66: 0.137931034 | U66: 0.540229885 | V66: 0.551724138 | W66: 0 | X66: 0.034482759 | Y66: 0 | Z66: 0.022988506 | AA66: 0 | AB66: 0 | AC66: Rural | AD66: Remote | AE66: NULL | AF66: 0 | AG66: 0 | AH66: 0 | AI66: 0 | AJ66: 0 | AK66: 87 | AL66: 4 | AM66: 21.75
A67: 07I001110 | B67: 12658 | C67: 2018 | D67: =LEFT(A67,2) -> 07 | E67: I001 | F67: 110 | G67: -1 | H67: 5 | I67: ESMS | J67: 0.533333333 | K67: 0.466666667 | L67: 0.054545455 | M67: 0.260606061 | N67: 0 | O67: 0.002020202 | P67: 0.591919192 | Q67: 0.090909091 | R67: 0.01010101 | S67: 0.23030303 | T67: 0.072727273 | U67: 0.703030303 | V67: 0.703030303 | W67: 0 | X67: 0 | Y67: 0 | Z67: 0.01010101 | AA67: 0 | AB67: 0 | AC67: Rural | AD67: Fringe | AE67: NULL | AF67: 0 | AG67: 0 | AH67: 0 | AI67: 0 | AJ67: 0 | AK67: 495 | AL67: 7 | AM67: 70.71428571
A68: 07I001515 | B68: 12037 | C68: 2018 | D68: 07 | E68: I001 | F68: 515 | G68: 6 | H68: 8 | I68: ESMS | J68: 0.513368984 | K68: 0.486631016 | L68: 0.058823529 | M68: 0.192513369 | N68: 0 | O68: 0.005347594 | P68: 0.673796791 | Q68: 0.069518717 | R68: 0.005347594 | S68: 0.203208556 | T68: 0.155080214 | U68: 0.668449198 | V68: 0.668449198 | W68: 0 | X68: 0 | Y68: 0 | Z68: 0.026737968 | AA68: 0.010695187 | AB68: 0 | AC68: Rural | AD68: Fringe | AE68: NULL | AF68: 0 | AG68: 0 | AH68: 0 | AI68: 0 | AJ68: 0 | AK68: 187 | AL68: 3 | AM68: 62.33333333
A69: 07I001705 | B69: 12119 | C69: 2018 | D69: 07 | E69: I001 | F69: 705 | G69: 9 | H69: 12 | I69: HS | J69: 0.469827586 | K69: 0.530172414 | L69: 0.064655172 | M69: 0.232758621 | N69: 0.004310345 | O69: 0 | P69: 0.607758621 | Q69: 0.090517241 | R69: 0.00862069 | S69: 0.232758621 | T69: 0.237068966 | U69: 0.629310345 | V69: 0.629310345 | W69: 0 | X69: 0 | Y69: 0 | Z69: 0.030172414 | AA69: 0 | AB69: 0 | AC69: Rural | AD69: Fringe | AE69: NULL | AF69: 0 | AG69: 0 | AH69: 0 | AI69: 0 | AJ69: 0 | AK69: 232 | AL69: 4 | AM69: 58
A70: 07I002105 | B70: 12436 | C70: 2018 | D70: 07 | E70: I002 | F70: 105 | G70: -1 | H70: 8 | I70: ESMS | J70: 0.558479532 | K70: 0.441520468 | L70: 0.052631579 | M70: 0.280701754 | N70: 0.002923977 | O70: 0.011695906 | P70: 0.640350877 | Q70: 0.011695906 | R70: 0 | S70: 0.248538012 | T70: 0.35380117 | U70: 1 | V70: 0.976608187 | W70: 0 | X70: 0 | Y70: 0 | Z70: 0 | AA70: 0 | AB70: 0 | AC70: Rural | AD70: Distant | AE70: NULL | AF70: 0 | AG70: 0 | AH70: 0 | AI70: 0 | AJ70: 0 | AK70: 342 | AL70: 10 | AM70: 34.2
A71: 07I002705 | B71: 11796 | C71: 2018 | D71: 07 | E71: I002 | F71: 705 | G71: 9 | H71: 12 | I71: HS | J71: 0.445205479 | K71: 0.554794521 | L71: 0.047945205 | M71: 0.239726027 | N71: 0.006849315 | O71: 0.02739726 | P71: 0.671232877 | Q71: 0.006849315 | R71: 0 | S71: 0.253424658 | T71: 0.342465753 | U71: 1 | V71: 0.98630137 | W71: 0 | X71: 0 | Y71: 0 | Z71: 0 | AA71: 0 | AB71: 0 | AC71: Rural | AD71: Remote | AE71: NULL | AF71: 0 | AG71: 0 | AH71: 0 | AI71: 0 | AJ71: 0 | AK71: 146 | AL71: 4 | AM71: 36.5
A72: 07I003105 | B72: 12284 | C72: 2018 | D72: 07 | E72: I003 | F72: 105 | G72: -1 | H72: 8 | I72: ESMS | J72: 0.531835206 | K72: 0.468164794 | L72: 0.052434457 | M72: 0.194756554 | N72: 0 | O72: 0.003745318 | P72: 0.632958801 | Q72: 0.116104869 | R72: 0 | S72: 0.232209738 | T72: 0.059925094 | U72: 0.685393258 | V72: 0.685393258 | W72: 0 | X72: 0 | Y72: 0 | Z72: 0 | AA72: 0 | AB72: 0 | AC72: Rural | AD72: Distant | AE72: NULL | AF72: 0 | AG72: 0 | AH72: 0 | AI72: 0 | AJ72: 0 | AK72: 267 | AL72: 10 | AM72: 26.7
A73: 07I003705 | B73: 11697 | C73: 2018 | D73: 07 | E73: I003 | F73: 705 | G73: 9 | H73: 12 | I73: HS | J73: 0.559139785 | K73: 0.440860215 | L73: 0.032258065 | M73: 0.172043011 | N73: 0 | O73: 0.021505376 | P73: 0.709677419 | Q73: 0.064516129 | R73: 0 | S73: 0.279569892 | T73: 0.258064516 | U73: 0.655913978 | V73: 0.655913978 | W73: 0 | X73: 0 | Y73: 0 | Z73: 0 | AA73: 0 | AB73: 0 | AC73: Rural | AD73: Distant | AE73: NULL | AF73: 0 | AG73: 0 | AH73: 0 | AI73: 0 | AJ73: 0 | AK73: 93 | AL73: 4 | AM73: 23.25
A74: 07I004105 | B74: 12737 | C74: 2018 | D74: 07 | E74: I004 | F74: 105 | G74: 4 | H74: 6 | I74: ESMS | J74: 0.51572327 | K74: 0.48427673 | L74: 0.119496855 | M74: 0.320754717 | N74: 0 | O74: 0.037735849 | P74: 0.48427673 | Q74: 0.037735849 | R74: 0 | S74: 0.220125786 | T74: 0.081761006 | U74: 1 | V74: 0.735849057 | W74: 0 | X74: 0.006289308 | Y74: 0 | Z74: 0.044025157 | AA74: 0.012578616 | AB74: 0 | AC74: Rural | AD74: Distant | AE74: NULL | AF74: 0 | AG74: 0 | AH74: 0 | AI74: 0 | AJ74: 0 | AK74: 159 | AL74: 3 | AM74: 53
A75: 07I004110 | B75: 12488 | C75: 2018 | D75: 07 | E75: I004 | F75: 110 | G75: -1 | H75: 3 | I75: ESMS | J75: 0.573099415 | K75: 0.426900585 | L75: 0.102339181 | M75: 0.286549708 | N75: 0.002923977 | O75: 0.026315789 | P75: 0.538011696 | Q75: 0.043859649 | R75: 0 | S75: 0.283625731 | T75: 0.032163743 | U75: 1 | V75: 0.877192982 | W75: 0 | X75: 0 | Y75: 0 | Z75: 0.040935673 | AA75: 0.067251462 | AB75: 0 | AC75: Rural | AD75: Distant | AE75: NULL | AF75: 0 | AG75: 0 | AH75: 0 | AI75: 0 | AJ75: 0 | AK75: 342 | AL75: 5 | AM75: 68.4
A76: 07I004505 | B76: 12498 | C76: 2018 | D76: 07 | E76: I004 | F76: 505 | G76: 7 | H76: 8 | I76: ESMS | J76: 0.512605042 | K76: 0.487394958 | L76: 0.084033613 | M76: 0.285714286 | N76: 0 | O76: 0.016806723 | P76: 0.571428571 | Q76: 0.042016807 | R76: 0 | S76: 0.193277311 | T76: 0.100840336 | U76: 1 | V76: 0.697478992 | W76: 0 | X76: 0 | Y76: 0 | Z76: 0.058823529 | AA76: 0 | AB76: 0 | AC76: Rural | AD76: Distant | AE76: NULL | AF76: 0 | AG76: 0 | AH76: 0 | AI76: 0 | AJ76: 0 | AK76: 119 | AL76: 2 | AM76: 59.5
A77: 07I004715 | B77: 12677 | C77: 2018 | D77: 07 | E77: I004 | F77: 715 | G77: 9 | H77: 12 | I77: HS | J77: 0.578947368 | K77: 0.421052632 | L77: 0.04784689 | M77: 0.354066986 | N77: 0.004784689 | O77: 0.028708134 | P77: 0.531100478 | Q77: 0.033492823 | R77: 0 | S77: 0.234449761 | T77: 0.129186603 | U77: 1 | V77: 0.727272727 | W77: 0 | X77: 0.014354067 | Y77: 0 | Z77: 0.038277512 | AA77: 0 | AB77: 0 | AC77: Rural | AD77: Distant | AE77: NULL | AF77: 0 | AG77: 0 | AH77: 0 | AI77: 0 | AJ77: 0 | AK77: 209 | AL77: 4 | AM77: 52.25
A78: 07I005105 | B78: 12274 | C78: 2018 | D78: 07 | E78: I005 | F78: 105 | G78: -1 | H78: 8 | I78: ESMS | J78: 0.490084986 | K78: 0.509915014 | L78: 0.02266289 | M78: 0.294617564 | N78: 0 | O78: 0.005665722 | P78: 0.575070822 | Q78: 0.101983003 | R78: 0 | S78: 0.249291785 | T78: 0.206798867 | U78: 0.705382436 | V78: 0.705382436 | W78: 0 | X78: 0 | Y78: 0 | Z78: 0 | AA78: 0 | AB78: 0 | AC78: Rural | AD78: Distant | AE78: NULL | AF78: 0 | AG78: 0 | AH78: 0 | AI78: 0 | AJ78: 0 | AK78: 353 | AL78: 10 | AM78: 35.3
A79: 07I005715 | B79: 11995 | C79: 2018 | D79: 07 | E79: I005 | F79: 715 | G79: 9 | H79: 12 | I79: HS | J79: 0.483660131 | K79: 0.516339869 | L79: 0.013071895 | M79: 0.294117647 | N79: 0.006535948 | O79: 0 | P79: 0.607843137 | Q79: 0.078431373 | R79: 0 | S79: 0.241830065 | T79: 0.503267974 | U79: 0.725490196 | V79: 0.725490196 | W79: 0 | X79: 0 | Y79: 0 | Z79: 0 | AA79: 0 | AB79: 0 | AC79: Rural | AD79: Distant | AE79: NULL | AF79: 0 | AG79: 0 | AH79: 0 | AI79: 0 | AJ79: 0 | AK79: 153 | AL79: 4 | AM79: 38.25
A80: 07I040105 | B80: 12560 | C80: 2018 | D80: 07 | E80: I040 | F80: 105 | G80: -1 | H80: 8 | I80: ESMS | J80: 0.521912351 | K80: 0.478087649 | L80: 0.03187251 | M80: 0.426294821 | N80: 0 | O80: 0.015936255 | P80: 0.494023904 | Q80: 0.03187251 | R80: 0 | S80: 0.326693227 | T80: 0.043824701 | U80: 0.697211155 | V80: 0.729083665 | W80: 0 | X80: 0 | Y80: 0 | Z80: 0 | AA80: 0 | AB80: 0 | AC80: Rural | AD80: Remote | AE80: NULL | AF80: 0 | AG80: 0 | AH80: 0 | AI80: 0 | AJ80: 0 | AK80: 251 | AL80: 10 | AM80: 25.1
A81: 07I040705 | B81: 11626 | C81: 2018 | D81: 07 | E81: I040 | F81: 705 | G81: 9 | H81: 12 | I81: HS | J81: 0.542857143 | K81: 0.457142857 | L81: 0.028571429 | M81: 0.533333333 | N81: 0 | O81: 0 | P81: 0.40952381 | Q81: 0.028571429 | R81: 0.00952381 | S81: 0.333333333 | T81: 0.171428571 | U81: 0.761904762 | V81: 0.828571429 | W81: 0 | X81: 0 | Y81: 0 | Z81: 0.00952381 | AA81: 0 | AB81: 0 | AC81: Rural | AD81: Remote | AE81: NULL | AF81: 0 | AG81: 0 | AH81: 0 | AI81: 0 | AJ81: 0 | AK81: 105 | AL81: 4 | AM81: 26.25
A82: 07I048105 | B82: 11239 | C82: 2018 | D82: 07 | E82: I048 | F82: 105 | G82: -1 | H82: 8 | I82: ESMS | J82: 0.514529915 | K82: 0.485470085 | L82: 0.052991453 | M82: 0.290598291 | N82: 0.001709402 | O82: 0.008547009 | P82: 0.509401709 | Q82: 0.136752137 | R82: 0 | S82: 0.203418803 | T82: 0.18974359 | U82: 0.658119658 | V82: 0.658119658 | W82: 0 | X82: 0.001709402 | Y82: 0 | Z82: 0 | AA82: 0 | AB82: 0 | AC82: Town | AD82: Distant | AE82: NULL | AF82: 0 | AG82: 0 | AH82: 0 | AI82: 0 | AJ82: 0 | AK82: 585 | AL82: 10 | AM82: 58.5
A83: 07I048705 | B83: 12456 | C83: 2018 | D83: 07 | E83: I048 | F83: 705 | G83: 9 | H83: 12 | I83: HS | J83: 0.489247312 | K83: 0.510752688 | L83: 0.043010753 | M83: 0.301075269 | N83: 0.010752688 | O83: 0.005376344 | P83: 0.537634409 | Q83: 0.102150538 | R83: 0 | S83: 0.258064516 | T83: 0.360215054 | U83: 0.516129032 | V83: 0.516129032 | W83: 0 | X83: 0 | Y83: 0 | Z83: 0 | AA83: 0 | AB83: 0 | AC83: Town | AD83: Distant | AE83: NULL | AF83: 0 | AG83: 0 | AH83: 0 | AI83: 0 | AJ83: 0 | AK83: 186 | AL83: 4 | AM83: 46.5
A84: 07I072105 | B84: 12485 | C84: 2018 | D84: 07 | E84: I072 | F84: 105 | G84: 0 | H84: 3 | I84: ESMS | J84: 0.523952096 | K84: 0.476047904 | L84: 0.124251497 | M84: 0.221556886 | N84: 0.002994012 | O84: 0.020958084 | P84: 0.486526946 | Q84: 0.143712575 | R84: 0.053892216 | S84: 0.172155689 | T84: 0.02994012 | U84: 0.729041916 | V84: 0.729041916 | W84: 0.005988024 | X84: 0.001497006 | Y84: 0 | Z84: 0.055389222 | AA84: 0.005988024 | AB84: 0 | AC84: Town | AD84: Distant | AE84: NULL | AF84: 0 | AG84: 0 | AH84: 0 | AI84: 0 | AJ84: 0 | AK84: 668 | AL84: 4 | AM84: 167
A85: 07I072110 | B85: 12292 | C85: 2018 | D85: 07 | E85: I072 | F85: 110 | G85: -1 | H85: -1 | I85: PK2 | J85: 0.485185185 | K85: 0.514814815 | L85: 0.151851852 | M85: 0.218518519 | N85: 0.007407407 | O85: 0.018518519 | P85: 0.459259259 | Q85: 0.144444444 | R85: 0 | S85: 0.081481481 | T85: 0 | U85: 0.622222222 | V85: 0.622222222 | W85: 0 | X85: 0 | Y85: 0 | Z85: 0.044444444 | AA85: 0 | AB85: 0 | AC85: Town | AD85: Distant | AE85: NULL | AF85: 0 | AG85: 0 | AH85: 0 | AI85: 0 | AJ85: 0 | AK85: 270 | AL85: 1 | AM85: 270
A86: 07I072115 | B86: 12629 | C86: 2018 | D86: 07 | E86: I072 | F86: 115 | G86: 0 | H86: 3 | I86: ESMS | J86: 0.508038585 | K86: 0.491961415 | L86: 0.1414791 | M86: 0.202572347 | N86: 0.01607717 | O86: 0.035369775 | P86: 0.51607717 | Q86: 0.088424437 | R86: 0.083601286 | S86: 0.155948553 | T86: 0.04340836 | U86: 0.635048232 | V86: 0.635048232 | W86: 0.006430868 | X86: 0 | Y86: 0 | Z86: 0.08681672 | AA86: 0.001607717 | AB86: 0 | AC86: Town | AD86: Distant | AE86: NULL | AF86: 0 | AG86: 0 | AH86: 0 | AI86: 0 | AJ86: 0 | AK86: 622 | AL86: 4 | AM86: 155.5
A87: 07I072125 | B87: 11569 | C87: 2018 | D87: 07 | E87: I072 | F87: 125 | G87: 4 | H87: 6 | I87: ESMS | J87: 0.47012987 | K87: 0.52987013 | L87: 0.154545455 | M87: 0.248051948 | N87: 0.006493506 | O87: 0.032467532 | P87: 0.472727273 | Q87: 0.085714286 | R87: 0.049350649 | S87: 0.167532468 | T87: 0.288311688 | U87: 0.679220779 | V87: 0.679220779 | W87: 0.009090909 | X87: 0.01038961 | Y87: 0 | Z87: 0.087012987 | AA87: 0.031168831 | AB87: 0 | AC87: Town | AD87: Distant | AE87: NULL | AF87: 0 | AG87: 0 | AH87: 0 | AI87: 0 | AJ87: 0 | AK87: 770 | AL87: 3 | AM87: 256.6666667
A88: 07I072500 | B88: 11634 | C88: 2018 | D88: 07 | E88: I072 | F88: 500 | G88: 7 | H88: 8 | I88: ESMS | J88: 0.505070994 | K88: 0.494929006 | L88: 0.135902637 | M88: 0.235294118 | N88: 0.018255578 | O88: 0.022312373 | P88: 0.511156187 | Q88: 0.077079108 | R88: 0.056795132 | S88: 0.196754564 | T88: 0.367139959 | U88: 0.62474645 | V88: 0.62474645 | W88: 0.004056795 | X88: 0.00811359 | Y88: 0 | Z88: 0.085192698 | AA88: 0.018255578 | AB88: 0 | AC88: Town | AD88: Distant | AE88: NULL | AF88: 0 | AG88: 0 | AH88: 0 | AI88: 0 | AJ88: 0 | AK88: 493 | AL88: 2 | AM88: 246.5
A89: 07I072705 | B89: 11246 | C89: 2018 | D89: 07 | E89: I072 | F89: 705 | G89: 9 | H89: 12 | I89: HS | J89: 0.501070664 | K89: 0.498929336 | L89: 0.116702355 | M89: 0.285867238 | N89: 0.018201285 | O89: 0.018201285 | P89: 0.506423983 | Q89: 0.054603854 | R89: 0.03640257 | S89: 0.149892934 | T89: 0.440042827 | U89: 0.54496788 | V89: 0.54496788 | W89: 0.00856531 | X89: 0.004282655 | Y89: 0.002141328 | Z89: 0.072805139 | AA89: 0.010706638 | AB89: 0 | AC89: Town | AD89: Distant | AE89: NULL | AF89: 0 | AG89: 0 | AH89: 0 | AI89: 0 | AJ89: 0 | AK89: 934 | AL89: 4 | AM89: 233.5
A90: 08I011105 | B90: 11798 | C90: 2018 | D90: 08 | E90: I011 | F90: 105 | G90: -1 | H90: 5 | I90: ESMS | J90: 0.495238095 | K90: 0.504761905 | L90: 0.20952381 | M90: 0.023809524 | N90: 0 | O90: 0.023809524 | P90: 0.695238095 | Q90: 0.047619048 | R90: 0.080952381 | S90: 0.166666667 | T90: 0.076190476 | U90: 0.566666667 | V90: 0.566666667 | W90: 0 | X90: 0 | Y90: 0 | Z90: 0.1 | AA90: 0.023809524 | AB90: 0 | AC90: Rural | AD90: Distant | AE90: NULL | AF90: 0 | AG90: 0 | AH90: 0 | AI90: 0 | AJ90: 0 | AK90: 210 | AL90: 7 | AM90: 30
A91: 08I011505 | B91: 11956 | C91: 2018 | D91: 08 | E91: I011 | F91: 505 | G91: 6 | H91: 8 | I91: ESMS | J91: 0.527472527 | K91: 0.472527473 | L91: 0.230769231 | M91: 0.076923077 | N91: 0 | O91: 0.032967033 | P91: 0.637362637 | Q91: 0.021978022 | R91: 0.142857143 | S91: 0.142857143 | T91: 0.208791209 | U91: 0.582417582 | V91: 0.582417582 | W91: 0 | X91: 0 | Y91: 0 | Z91: 0.164835165 | AA91: 0.032967033 | AB91: 0 | AC91: Rural | AD91: Distant | AE91: NULL | AF91: 0 | AG91: 0 | AH91: 0 | AI91: 0 | AJ91: 0 | AK91: 91 | AL91: 3 | AM91: 30.33333333
A92: 08I011715 | B92: 12185 | C92: 2018 | D92: 08 | E92: I011 | F92: 715 | G92: 9 | H92: 12 | I92: HS | J92: 0.448 | K92: 0.552 | L92: 0.208 | M92: 0.064 | N92: 0 | O92: 0.016 | P92: 0.688 | Q92: 0.024 | R92: 0.096 | S92: 0.144 | T92: 0.224 | U92: 0.48 | V92: 0.48 | W92: 0 | X92: 0.008 | Y92: 0 | Z92: 0.136 | AA92: 0.016 | AB92: 0 | AC92: Rural | AD92: Distant | AE92: NULL | AF92: 0 | AG92: 0 | AH92: 0 | AI92: 0 | AJ92: 0 | AK92: 125 | AL92: 4 | AM92: 31.25
A93: 08I012105 | B93: 11175 | C93: 2018 | D93: 08 | E93: I012 | F93: 105 | G93: -1 | H93: 8 | I93: ESMS | J93: 0.442528736 | K93: 0.557471264 | L93: 0.224137931 | M93: 0.028735632 | N93: 0 | O93: 0 | P93: 0.620689655 | Q93: 0.126436782 | R93: 0 | S93: 0.172413793 | T93: 0.040229885 | U93: 0.701149425 | V93: 0.701149425 | W93: 0 | X93: 0 | Y93: 0 | Z93: 0.086206897 | AA93: 0.086206897 | AB93: 0 | AC93: Rural | AD93: Remote | AE93: NULL | AF93: 0 | AG93: 0 | AH93: 0 | AI93: 0 | AJ93: 0 | AK93: 174 | AL93: 10 | AM93: 17.4
A94: 08I012705 | B94: 11794 | C94: 2018 | D94: 08 | E94: I012 | F94: 705 | G94: 9 | H94: 12 | I94: HS | J94: 0.569444444 | K94: 0.430555556 | L94: 0.263888889 | M94: 0.083333333 | N94: 0 | O94: 0.013888889 | P94: 0.458333333 | Q94: 0.180555556 | R94: 0 | S94: 0.138888889 | T94: 0.25 | U94: 0.763888889 | V94: 0.763888889 | W94: 0 | X94: 0 | Y94: 0 | Z94: 0.166666667 | AA94: 0.027777778 | AB94: 0 | AC94: Rural | AD94: Remote | AE94: NULL | AF94: 0 | AG94: 0 | AH94: 0 | AI94: 0 | AJ94: 0 | AK94: 72 | AL94: 4 | AM94: 18
A95: 08I020105 | B95: 11173 | C95: 2018 | D95: 08 | E95: I020 | F95: 105 | G95: 2 | H95: 3 | I95: ESMS | J95: 0.473880597 | K95: 0.526119403 | L95: 0.171641791 | M95: 0.667910448 | N95: 0.003731343 | O95: 0.02238806 | P95: 0.130597015 | Q95: 0.003731343 | R95: 0.029850746 | S95: 0.123134328 | T95: 0.160447761 | U95: 0.992537313 | V95: 0.582089552 | W95: 0 | X95: 0.014925373 | Y95: 0 | Z95: 0.037313433 | AA95: 0 | AB95: 0 | AC95: Town | AD95: Distant | AE95: NULL | AF95: 0 | AG95: 0 | AH95: 0 | AI95: 0 | AJ95: 0 | AK95: 268 | AL95: 2 | AM95: 134
A96: 08I020115 | B96: 11577 | C96: 2018 | D96: 08 | E96: I020 | F96: 115 | G96: 0 | H96: 1 | I96: PK2 | J96: 0.558490566 | K96: 0.441509434 | L96: 0.166037736 | M96: 0.622641509 | N96: 0 | O96: 0.090566038 | P96: 0.109433962 | Q96: 0.011320755 | R96: 0 | S96: 0.116981132 | T96: 0 | U96: 1 | V96: 0.547169811 | W96: 0 | X96: 0.003773585 | Y96: 0 | Z96: 0.00754717 | AA96: 0 | AB96: 0 | AC96: Town | AD96: Distant | AE96: NULL | AF96: 0 | AG96: 0 | AH96: 0 | AI96: 0 | AJ96: 0 | AK96: 265 | AL96: 2 | AM96: 132.5
A97: 08I020120 | B97: 12281 | C97: 2018 | D97: 08 | E97: I020 | F97: 120 | G97: -1 | H97: 5 | I97: ESMS | J97: 0.511560694 | K97: 0.488439306 | L97: 0.164739884 | M97: 0.604046243 | N97: 0.011560694 | O97: 0.040462428 | P97: 0.176300578 | Q97: 0.002890173 | R97: 0.069364162 | S97: 0.104046243 | T97: 0.153179191 | U97: 0.99132948 | V97: 0.494219653 | W97: 0 | X97: 0 | Y97: 0 | Z97: 0.089595376 | AA97: 0.00867052 | AB97: 0 | AC97: Town | AD97: Distant | AE97: NULL | AF97: 0 | AG97: 0 | AH97: 0 | AI97: 0 | AJ97: 0 | AK97: 346 | AL97: 7 | AM97: 49.42857143
A98: 08I020510 | B98: 12760 | C98: 2018 | D98: 08 | E98: I020 | F98: 510 | G98: 6 | H98: 8 | I98: ESMS | J98: 0.49704142 | K98: 0.50295858 | L98: 0.215976331 | M98: 0.571005917 | N98: 0.00295858 | O98: 0.029585799 | P98: 0.177514793 | Q98: 0.00295858 | R98: 0.026627219 | S98: 0.130177515 | T98: 0.183431953 | U98: 0.98816568 | V98: 0.523668639 | W98: 0 | X98: 0.01183432 | Y98: 0 | Z98: 0.041420118 | AA98: 0.01183432 | AB98: 0 | AC98: Town | AD98: Distant | AE98: NULL | AF98: 0 | AG98: 0 | AH98: 0 | AI98: 0 | AJ98: 0 | AK98: 338 | AL98: 3 | AM98: 112.6666667
A99: 08I020705 | B99: 12138 | C99: 2018 | D99: 08 | E99: I020 | F99: 705 | G99: 9 | H99: 12 | I99: HS | J99: 0.479657388 | K99: 0.520342612 | L99: 0.184154176 | M99: 0.573875803 | N99: 0.004282655 | O99: 0.029978587 | P99: 0.201284797 | Q99: 0.006423983 | R99: 0.019271949 | S99: 0.098501071 | T99: 0.241970021 | U99: 0.625267666 | V99: 0.635974304 | W99: 0.004282655 | X99: 0.004282655 | Y99: 0 | Z99: 0.032119914 | AA99: 0.002141328 | AB99: 0 | AC99: Town | AD99: Distant | AE99: NULL | AF99: 0 | AG99: 0 | AH99: 0 | AI99: 0 | AJ99: 0 | AK99: 467 | AL99: 4 | AM99: 116.75
A100: 08I033105 | B100: 12639 | C100: 2018 | D100: 08 | E100: I033 | F100: 105 | G100: -1 | H100: 5 | I100: ESMS | J100: 0.49691358 | K100: 0.50308642 | L100: 0.191358025 | M100: 0.293209877 | N100: 0 | O100: 0.00308642 | P100: 0.317901235 | Q100: 0.194444444 | R100: 0.077160494 | S100: 0.191358025 | T100: 0.191358025 | U100: 0.827160494 | V100: 0.827160494 | W100: 0 | X100: 0 | Y100: 0 | Z100: 0.092592593 | AA100: 0.015432099 | AB100: 0 | AC100: Rural | AD100: Remote | AE100: NULL | AF100: 0 | AG100: 0 | AH100: 0 | AI100: 0 | AJ100: 0 | AK100: 324 | AL100: 7 | AM100: 46.28571429
A101: 08I033510 | B101: 12663 | C101: 2018 | D101: 08 | E101: I033 | F101: 510 | G101: 6 | H101: 8 | I101: ESMS | J101: 0.596330275 | K101: 0.403669725 | L101: 0.128440367 | M101: 0.366972477 | N101: 0.009174312 | O101: 0.009174312 | P101: 0.376146789 | Q101: 0.110091743 | R101: 0 | S101: 0.155963303 | T101: 0.201834862 | U101: 0.80733945 | V101: 0.80733945 | W101: 0 | X101: 0 | Y101: 0 | Z101: 0.055045872 | AA101: 0 | AB101: 0 | AC101: Rural | AD101: Remote | AE101: NULL | AF101: 0 | AG101: 0 | AH101: 0 | AI101: 0 | AJ101: 0 | AK101: 109 | AL101: 3 | AM101: 36.33333333
A102: 08I033705 | B102: 12086 | C102: 2018 | D102: 08 | E102: I033 | F102: 705 | G102: 9 | H102: 12 | I102: HS | J102: 0.510067114 | K102: 0.489932886 | L102: 0.140939597 | M102: 0.422818792 | N102: 0 | O102: 0.006711409 | P102: 0.322147651 | Q102: 0.10738255 | R102: 0 | S102: 0.100671141 | T102: 0.208053691 | U102: 0.785234899 | V102: 0.785234899 | W102: 0 | X102: 0 | Y102: 0 | Z102: 0.053691275 | AA102: 0 | AB102: 0 | AC102: Rural | AD102: Remote | AE102: NULL | AF102: 0 | AG102: 0 | AH102: 0 | AI102: 0 | AJ102: 0 | AK102: 149 | AL102: 4 | AM102: 37.25
A103: 08I056105 | B103: 11158 | C103: 2018 | D103: 08 | E103: I056 | F103: 105 | G103: -1 | H103: 5 | I103: ESMS | J103: 0.494252874 | K103: 0.505747126 | L103: 0.130268199 | M103: 0.375478927 | N103: 0.003831418 | O103: 0.007662835 | P103: 0.356321839 | Q103: 0.126436782 | R103: 0.019157088 | S103: 0.172413793 | T103: 0.003831418 | U103: 0.816091954 | V103: 0.816091954 | W103: 0 | X103: 0.007662835 | Y103: 0.003831418 | Z103: 0.022988506 | AA103: 0 | AB103: 0 | AC103: Rural | AD103: Distant | AE103: NULL | AF103: 0 | AG103: 0 | AH103: 0 | AI103: 0 | AJ103: 0 | AK103: 261 | AL103: 7 | AM103: 37.28571429
A104: 08I056505 | B104: 12409 | C104: 2018 | D104: 08 | E104: I056 | F104: 505 | G104: 6 | H104: 8 | I104: ESMS | J104: 0.515873016 | K104: 0.484126984 | L104: 0.103174603 | M104: 0.357142857 | N104: 0.007936508 | O104: 0 | P104: 0.373015873 | Q104: 0.158730159 | R104: 0 | S104: 0.134920635 | T104: 0.158730159 | U104: 0.865079365 | V104: 0.865079365 | W104: 0 | X104: 0 | Y104: 0 | Z104: 0 | AA104: 0 | AB104: 0 | AC104: Rural | AD104: Distant | AE104: NULL | AF104: 0 | AG104: 0 | AH104: 0 | AI104: 0 | AJ104: 0 | AK104: 126 | AL104: 3 | AM104: 42
A105: 08I056705 | B105: 12729 | C105: 2018 | D105: 08 | E105: I056 | F105: 705 | G105: 9 | H105: 12 | I105: HS | J105: 0.564102564 | K105: 0.435897436 | L105: 0.123076923 | M105: 0.312820513 | N105: 0 | O105: 0 | P105: 0.4 | Q105: 0.164102564 | R105: 0 | S105: 0.097435897 | T105: 0.138461538 | U105: 0.697435897 | V105: 0.697435897 | W105: 0 | X105: 0.020512821 | Y105: 0 | Z105: 0 | AA105: 0 | AB105: 0 | AC105: Rural | AD105: Distant | AE105: NULL | AF105: 0 | AG105: 0 | AH105: 0 | AI105: 0 | AJ105: 0 | AK105: 195 | AL105: 4 | AM105: 48.75
A106: 08I064105 | B106: 12531 | C106: 2018 | D106: 08 | E106: I064 | F106: 105 | G106: -1 | H106: 6 | I106: ESMS | J106: 0.50990099 | K106: 0.49009901 | L106: 0.064356436 | M106: 0.193069307 | N106: 0.004950495 | O106: 0.00990099 | P106: 0.613861386 | Q106: 0.113861386 | R106: 0 | S106: 0.143564356 | T106: 0.024752475 | U106: 0.722772277 | V106: 0.722772277 | W106: 0 | X106: 0 | Y106: 0 | Z106: 0.004950495 | AA106: 0 | AB106: 0 | AC106: Rural | AD106: Distant | AE106: NULL | AF106: 0 | AG106: 0 | AH106: 0 | AI106: 0 | AJ106: 0 | AK106: 202 | AL106: 8 | AM106: 25.25
A107: 08I064610 | B107: 12814 | C107: 2018 | D107: 08 | E107: I064 | F107: 610 | G107: 7 | H107: 8 | I107: ESMS | J107: 0.527272727 | K107: 0.472727273 | L107: 0.072727273 | M107: 0.290909091 | N107: 0 | O107: 0 | P107: 0.618181818 | Q107: 0.018181818 | R107: 0.018181818 | S107: 0.181818182 | T107: 0.090909091 | U107: 0.654545455 | V107: 0.654545455 | W107: 0 | X107: 0 | Y107: 0 | Z107: 0.036363636 | AA107: 0 | AB107: 0 | AC107: Rural | AD107: Distant | AE107: NULL | AF107: 0 | AG107: 0 | AH107: 0 | AI107: 0 | AJ107: 0 | AK107: 55 | AL107: 2 | AM107: 27.5
A108: 08I064715 | B108: 12590 | C108: 2018 | D108: 08 | E108: I064 | F108: 715 | G108: 9 | H108: 12 | I108: HS | J108: 0.516129032 | K108: 0.483870968 | L108: 0.053763441 | M108: 0.215053763 | N108: 0 | O108: 0 | P108: 0.677419355 | Q108: 0.053763441 | R108: 0.032258065 | S108: 0.215053763 | T108: 0.172043011 | U108: 0.559139785 | V108: 0.559139785 | W108: 0 | X108: 0 | Y108: 0 | Z108: 0.032258065 | AA108: 0 | AB108: 0 | AC108: Rural | AD108: Distant | AE108: NULL | AF108: 0 | AG108: 0 | AH108: 0 | AI108: 0 | AJ108: 0 | AK108: 93 | AL108: 4 | AM108: 23.25
A109: 08I086105 | B109: 12457 | C109: 2018 | D109: 08 | E109: I086 | F109: 105 | G109: -1 | H109: 8 | I109: ESMS | J109: 0.563492063 | K109: 0.436507937 | L109: 0.095238095 | M109: 0.492063492 | N109: 0 | O109: 0 | P109: 0.166666667 | Q109: 0.246031746 | R109: 0 | S109: 0.198412698 | T109: 0.182539683 | U109: 0.746031746 | V109: 0.746031746 | W109: 0 | X109: 0 | Y109: 0 | Z109: 0.015873016 | AA109: 0 | AB109: 0 | AC109: Rural | AD109: Distant | AE109: NULL | AF109: 0 | AG109: 0 | AH109: 0 | AI109: 0 | AJ109: 0 | AK109: 126 | AL109: 10 | AM109: 12.6
A110: 08I086705 | B110: 11102 | C110: 2018 | D110: 08 | E110: I086 | F110: 705 | G110: 9 | H110: 12 | I110: HS | J110: 0.571428571 | K110: 0.428571429 | L110: 0.06122449 | M110: 0.612244898 | N110: 0 | O110: 0 | P110: 0.244897959 | Q110: 0.081632653 | R110: 0 | S110: 0.204081633 | T110: 0.265306122 | U110: 0.775510204 | V110: 0.775510204 | W110: 0 | X110: 0 | Y110: 0 | Z110: 0 | AA110: 0 | AB110: 0 | AC110: Rural | AD110: Distant | AE110: NULL | AF110: 0 | AG110: 0 | AH110: 0 | AI110: 0 | AJ110: 0 | AK110: 49 | AL110: 4 | AM110: 12.25
A111: 08I160105 | B111: 12544 | C111: 2018 | D111: 08 | E111: I160 | F111: 105 | G111: -1 | H111: 8 | I111: ESMS | J111: 0.494117647 | K111: 0.505882353 | L111: 0.052941176 | M111: 0.2 | N111: 0 | O111: 0.029411765 | P111: 0.705882353 | Q111: 0.011764706 | R111: 0 | S111: 0.188235294 | T111: 0.035294118 | U111: 0.788235294 | V111: 0.788235294 | W111: 0 | X111: 0.011764706 | Y111: 0 | Z111: 0 | AA111: 0 | AB111: 0 | AC111: Rural | AD111: Distant | AE111: NULL | AF111: 0 | AG111: 0 | AH111: 0 | AI111: 0 | AJ111: 0 | AK111: 170 | AL111: 10 | AM111: 17
A112: 08I160715 | B112: 11418 | C112: 2018 | D112: 08 | E112: I160 | F112: 715 | G112: 9 | H112: 12 | I112: HS | J112: 0.614285714 | K112: 0.385714286 | L112: 0.057142857 | M112: 0.114285714 | N112: 0 | O112: 0 | P112: 0.757142857 | Q112: 0.071428571 | R112: 0 | S112: 0.214285714 | T112: 0.171428571 | U112: 0.828571429 | V112: 0.828571429 | W112: 0 | X112: 0.028571429 | Y112: 0 | Z112: 0 | AA112: 0 | AB112: 0 | AC112: Rural | AD112: Distant | AE112: NULL | AF112: 0 | AG112: 0 | AH112: 0 | AI112: 0 | AJ112: 0 | AK112: 70 | AL112: 4 | AM112: 17.5
A113: 08I161105 | B113: 12460 | C113: 2018 | D113: 08 | E113: I161 | F113: 105 | G113: -1 | H113: 5 | I113: ESMS | J113: 0.512315271 | K113: 0.487684729 | L113: 0.233990148 | M113: 0.064039409 | N113: 0 | O113: 0.009852217 | P113: 0.68226601 | Q113: 0.009852217 | R113: 0.15270936 | S113: 0.137931034 | T113: 0.128078818 | U113: 0.628078818 | V113: 0.642857143 | W113: 0 | X113: 0.007389163 | Y113: 0 | Z113: 0.174876847 | AA113: 0.017241379 | AB113: 0 | AC113: Rural | AD113: Remote | AE113: NULL | AF113: 0 | AG113: 0 | AH113: 0 | AI113: 0 | AJ113: 0 | AK113: 406 | AL113: 7 | AM113: 58
A114: 08I161610 | B114: 11768 | C114: 2018 | D114: 08 | E114: I161 | F114: 610 | G114: 6 | H114: 8 | I114: ESMS | J114: 0.503267974 | K114: 0.496732026 | L114: 0.215686275 | M114: 0.078431373 | N114: 0 | O114: 0.013071895 | P114: 0.653594771 | Q114: 0.039215686 | R114: 0 | S114: 0.156862745 | T114: 0.307189542 | U114: 0.496732026 | V114: 0.594771242 | W114: 0 | X114: 0.019607843 | Y114: 0 | Z114: 0.14379085 | AA114: 0.14379085 | AB114: 0 | AC114: Rural | AD114: Remote | AE114: NULL | AF114: 0 | AG114: 0 | AH114: 0 | AI114: 0 | AJ114: 0 | AK114: 153 | AL114: 3 | AM114: 51
A115: 08I161705 | B115: 11945 | C115: 2018 | D115: 08 | E115: I161 | F115: 705 | G115: 9 | H115: 12 | I115: HS | J115: 0.502824859 | K115: 0.497175141 | L115: 0.203389831 | M115: 0.06779661 | N115: 0 | O115: 0.028248588 | P115: 0.661016949 | Q115: 0.039548023 | R115: 0.028248588 | S115: 0.141242938 | T115: 0.384180791 | U115: 0.401129944 | V115: 0.491525424 | W115: 0 | X115: 0.033898305 | Y115: 0 | Z115: 0.18079096 | AA115: 0.118644068 | AB115: 0 | AC115: Rural | AD115: Remote | AE115: NULL | AF115: 0 | AG115: 0 | AH115: 0 | AI115: 0 | AJ115: 0 | AK115: 177 | AL115: 4 | AM115: 44.25
A116: 08I167105 | B116: 12377 | C116: 2018 | D116: 08 | E116: I167 | F116: 105 | G116: -1 | H116: 5 | I116: ESMS | J116: 0.506329114 | K116: 0.493670886 | L116: 0.037974684 | M116: 0.227848101 | N116: 0 | O116: 0.037974684 | P116: 0.537974684 | Q116: 0.158227848 | R116: 0.006329114 | S116: 0.221518987 | T116: 0.037974684 | U116: 0.797468354 | V116: 0.797468354 | W116: 0 | X116: 0 | Y116: 0 | Z116: 0.006329114 | AA116: 0 | AB116: 0 | AC116: Rural | AD116: Remote | AE116: NULL | AF116: 0 | AG116: 0 | AH116: 0 | AI116: 0 | AJ116: 0 | AK116: 158 | AL116: 7 | AM116: 22.57142857
A117: 08I167505 | B117: 11903 | C117: 2018 | D117: 08 | E117: I167 | F117: 505 | G117: 6 | H117: 8 | I117: ESMS | J117: 0.53968254 | K117: 0.46031746 | L117: 0.031746032 | M117: 0.174603175 | N117: 0 | O117: 0 | P117: 0.682539683 | Q117: 0.111111111 | R117: 0.015873016 | S117: 0.126984127 | T117: 0.174603175 | U117: 0.619047619 | V117: 0.619047619 | W117: 0 | X117: 0 | Y117: 0 | Z117: 0.015873016 | AA117: 0 | AB117: 0 | AC117: Rural | AD117: Remote | AE117: NULL | AF117: 0 | AG117: 0 | AH117: 0 | AI117: 0 | AJ117: 0 | AK117: 63 | AL117: 3 | AM117: 21
A118: 08I167705 | B118: 11904 | C118: 2018 | D118: 08 | E118: I167 | F118: 705 | G118: 9 | H118: 12 | I118: HS | J118: 0.606382979 | K118: 0.393617021 | L118: 0.117021277 | M118: 0.191489362 | N118: 0 | O118: 0.010638298 | P118: 0.531914894 | Q118: 0.14893617 | R118: 0.021276596 | S118: 0.14893617 | T118: 0.138297872 | U118: 0.723404255 | V118: 0.723404255 | W118: 0 | X118: 0 | Y118: 0 | Z118: 0.042553191 | AA118: 0 | AB118: 0 | AC118: Rural | AD118: Remote | AE118: NULL | AF118: 0 | AG118: 0 | AH118: 0 | AI118: 0 | AJ118: 0 | AK118: 94 | AL118: 4 | AM118: 23.5
A119: 08I168105 | B119: 11632 | C119: 2018 | D119: 08 | E119: I168 | F119: 105 | G119: -1 | H119: 8 | I119: ESMS | J119: 0.528634361 | K119: 0.471365639 | L119: 0.052863436 | M119: 0.176211454 | N119: 0 | O119: 0.013215859 | P119: 0.625550661 | Q119: 0.13215859 | R119: 0 | S119: 0.255506608 | T119: 0.215859031 | U119: 0.753303965 | V119: 0.753303965 | W119: 0 | X119: 0 | Y119: 0 | Z119: 0 | AA119: 0 | AB119: 0 | AC119: Rural | AD119: Remote | AE119: NULL | AF119: 0 | AG119: 0 | AH119: 0 | AI119: 0 | AJ119: 0 | AK119: 227 | AL119: 10 | AM119: 22.7
A120: 08I168705 | B120: 12392 | C120: 2018 | D120: 08 | E120: I168 | F120: 705 | G120: 9 | H120: 12 | I120: HS | J120: 0.594594595 | K120: 0.405405405 | L120: 0.045045045 | M120: 0.189189189 | N120: 0.018018018 | O120: 0.036036036 | P120: 0.612612613 | Q120: 0.099099099 | R120: 0 | S120: 0.279279279 | T120: 0.288288288 | U120: 0.810810811 | V120: 0.810810811 | W120: 0 | X120: 0 | Y120: 0 | Z120: 0 | AA120: 0 | AB120: 0 | AC120: Rural | AD120: Remote | AE120: NULL | AF120: 0 | AG120: 0 | AH120: 0 | AI120: 0 | AJ120: 0 | AK120: 111 | AL120: 4 | AM120: 27.75
A121: 09C029105 | B121: 11386 | C121: 2018 | D121: 09 | E121: C029 | F121: 105 | G121: -1 | H121: 8 | I121: ESMS | J121: 0.497175141 | K121: 0.502824859 | L121: 0.220338983 | M121: 0.050847458 | N121: 0 | O121: 0.04519774 | P121: 0.632768362 | Q121: 0.050847458 | R121: 0.050847458 | S121: 0.11299435 | T121: 0 | U121: 0.644067797 | V121: 0.649717514 | W121: 0 | X121: 0.005649718 | Y121: 0 | Z121: 0.09039548 | AA121: 0.02259887 | AB121: 0 | AC121: Rural | AD121: Fringe | AE121: NULL | AF121: 0 | AG121: 0 | AH121: 1 | AI121: 0 | AJ121: 0 | AK121: 177 | AL121: 10 | AM121: 17.7
A122: 09C031105 | B122: 12772 | C122: 2018 | D122: 09 | E122: C031 | F122: 105 | G122: -1 | H122: 8 | I122: ESMS | J122: 0.504385965 | K122: 0.495614035 | L122: 0.100877193 | M122: 0.01754386 | N122: 0.035087719 | O122: 0.004385965 | P122: 0.75 | Q122: 0.092105263 | R122: 0.052631579 | S122: 0.171052632 | T122: 0.131578947 | U122: 0.442982456 | V122: 0.442982456 | W122: 0 | X122: 0.013157895 | Y122: 0 | Z122: 0.061403509 | AA122: 0 | AB122: 0 | AC122: Rural | AD122: Fringe | AE122: NULL | AF122: 0 | AG122: 0 | AH122: 1 | AI122: 0 | AJ122: 0 | AK122: 228 | AL122: 10 | AM122: 22.8
A123: 09C070105 | B123: 12126 | C123: 2018 | D123: 09 | E123: C070 | F123: 105 | G123: -1 | H123: 8 | I123: ESMS | J123: 0.448 | K123: 0.552 | L123: 0.112 | M123: 0.676 | N123: 0 | O123: 0.024 | P123: 0.092 | Q123: 0.096 | R123: 0 | S123: 0.1 | T123: 0.108 | U123: 0.988 | V123: 0.988 | W123: 0 | X123: 0 | Y123: 0 | Z123: 0.02 | AA123: 0 | AB123: 0 | AC123: Rural | AD123: Fringe | AE123: NULL | AF123: 0 | AG123: 0 | AH123: 1 | AI123: 0 | AJ123: 0 | AK123: 250 | AL123: 10 | AM123: 25
A124: 09C162105 | B124: 11557 | C124: 2018 | D124: 09 | E124: C162 | F124: 105 | G124: -1 | H124: 8 | I124: ESMS | J124: 0.389221557 | K124: 0.610778443 | L124: 0.125748503 | M124: 0.053892216 | N124: 0 | O124: 0 | P124: 0.724550898 | Q124: 0.095808383 | R124: 0.005988024 | S124: 0.089820359 | T124: 0.22754491 | U124: 0.239520958 | V124: 0.239520958 | W124: 0 | X124: 0.017964072 | Y124: 0 | Z124: 0.011976048 | AA124: 0.011976048 | AB124: 0 | AC124: Rural | AD124: Distant | AE124: NULL | AF124: 0 | AG124: 0 | AH124: 1 | AI124: 0 | AJ124: 0 | AK124: 167 | AL124: 10 | AM124: 16.7
A125: 09I022105 | B125: 12111 | C125: 2018 | D125: 09 | E125: I022 | F125: 105 | G125: 0 | H125: 4 | I125: ESMS | J125: 0.52815534 | K125: 0.47184466 | L125: 0.104854369 | M125: 0.05631068 | N125: 0.003883495 | O125: 0.015533981 | P125: 0.745631068 | Q125: 0.073786408 | R125: 0.029126214 | S125: 0.122330097 | T125: 0.066019417 | U125: 0.229126214 | V125: 0.231067961 | W125: 0 | X125: 0.017475728 | Y125: 0.005825243 | Z125: 0.038834951 | AA125: 0.015533981 | AB125: 0 | AC125: Rural | AD125: Fringe | AE125: NULL | AF125: 0 | AG125: 0 | AH125: 0 | AI125: 0 | AJ125: 0 | AK125: 515 | AL125: 5 | AM125: 103
A126: 09I022110 | B126: 11726 | C126: 2018 | D126: 09 | E126: I022 | F126: 110 | G126: -1 | H126: -1 | I126: PK2 | J126: 0.5256917 | K126: 0.4743083 | L126: 0.075098814 | M126: 0.114624506 | N126: 0.035573123 | O126: 0.015810277 | P126: 0.743083004 | Q126: 0.015810277 | R126: 0.027667984 | S126: 0.079051383 | T126: 0 | U126: 0.14229249 | V126: 0.146245059 | W126: 0 | X126: 0 | Y126: 0.007905138 | Z126: 0.035573123 | AA126: 0 | AB126: 0 | AC126: Rural | AD126: Fringe | AE126: NULL | AF126: 0 | AG126: 0 | AH126: 0 | AI126: 0 | AJ126: 0 | AK126: 253 | AL126: 1 | AM126: 253
A127: 09I022115 | B127: 11950 | C127: 2018 | D127: 09 | E127: I022 | F127: 115 | G127: -1 | H127: 4 | I127: ESMS | J127: 0.529513889 | K127: 0.470486111 | L127: 0.071180556 | M127: 0.076388889 | N127: 0.050347222 | O127: 0.052083333 | P127: 0.657986111 | Q127: 0.092013889 | R127: 0.03125 | S127: 0.145833333 | T127: 0.050347222 | U127: 0.105902778 | V127: 0.109375 | W127: 0 | X127: 0.005208333 | Y127: 0.008680556 | Z127: 0.048611111 | AA127: 0.020833333 | AB127: 0 | AC127: Rural | AD127: Fringe | AE127: NULL | AF127: 0 | AG127: 0 | AH127: 0 | AI127: 0 | AJ127: 0 | AK127: 576 | AL127: 6 | AM127: 96
A128: 09I022120 | B128: 11976 | C128: 2018 | D128: 09 | E128: I022 | F128: 120 | G128: 0 | H128: 4 | I128: ESMS | J128: 0.516765286 | K128: 0.483234714 | L128: 0.108481262 | M128: 0.063116371 | N128: 0.041420118 | O128: 0.041420118 | P128: 0.692307692 | Q128: 0.053254438 | R128: 0.055226824 | S128: 0.149901381 | T128: 0.08086785 | U128: 0.24260355 | V128: 0.24260355 | W128: 0 | X128: 0 | Y128: 0.019723866 | Z128: 0.076923077 | AA128: 0.019723866 | AB128: 0 | AC128: Rural | AD128: Fringe | AE128: NULL | AF128: 0 | AG128: 0 | AH128: 0 | AI128: 0 | AJ128: 0 | AK128: 507 | AL128: 5 | AM128: 101.4
A129: 09I022125 | B129: 11837 | C129: 2018 | D129: 09 | E129: I022 | F129: 125 | G129: 5 | H129: 6 | I129: ESMS | J129: 0.48013245 | K129: 0.51986755 | L129: 0.099337748 | M129: 0.072847682 | N129: 0.041390728 | O129: 0.026490066 | P129: 0.697019868 | Q129: 0.062913907 | R129: 0.014900662 | S129: 0.149006623 | T129: 0.21192053 | U129: 0.205298013 | V129: 0.210264901 | W129: 0 | X129: 0.009933775 | Y129: 0.004966887 | Z129: 0.056291391 | AA129: 0.011589404 | AB129: 0 | AC129: Rural | AD129: Fringe | AE129: NULL | AF129: 0 | AG129: 0 | AH129: 0 | AI129: 0 | AJ129: 0 | AK129: 604 | AL129: 2 | AM129: 302
A130: 09I022510 | B130: 11105 | C130: 2018 | D130: 09 | E130: I022 | F130: 510 | G130: 7 | H130: 8 | I130: ESMS | J130: 0.51384083 | K130: 0.48615917 | L130: 0.081314879 | M130: 0.110726644 | N130: 0.048442907 | O130: 0.038062284 | P130: 0.690311419 | Q130: 0.031141869 | R130: 0.003460208 | S130: 0.150519031 | T130: 0.233564014 | U130: 0.19550173 | V130: 0.197231834 | W130: 0.001730104 | X130: 0.022491349 | Y130: 0.001730104 | Z130: 0.062283737 | AA130: 0.008650519 | AB130: 0 | AC130: Rural | AD130: Fringe | AE130: NULL | AF130: 0 | AG130: 0 | AH130: 0 | AI130: 0 | AJ130: 0 | AK130: 578 | AL130: 2 | AM130: 289
A131: 09I022705 | B131: 11727 | C131: 2018 | D131: =LEFT(A131,2) -> 09 | E131: I022 | F131: 705 | G131: 9 | H131: 12 | I131: HS | J131: 0.526666667 | K131: 0.473333333 | L131: 0.1 | M131: 0.117142857 | N131: 0.039047619 | O131: 0.046666667 | P131: 0.682857143 | Q131: 0.014285714 | R131: 0.008571429 | S131: 0.094285714 | T131: 0.327619048 | U131: 0.157142857 | V131: 0.157142857 | W131: 0 | X131: 0.022857143 | Y131: 0 | Z131: 0.051428571 | AA131: 0.008571429 | AB131: 0 | AC131: Rural | AD131: Fringe | AE131: NULL | AF131: 0 | AG131: 0 | AH131: 0 | AI131: 0 | AJ131: 0 | AK131: 1050 | AL131: 4 | AM131: 262.5
A132: 09I027105 | B132: 12748 | C132: 2018 | D132: 09 | E132: I027 | F132: 105 | G132: -1 | H132: 3 | I132: ESMS | J132: 0.535326087 | K132: 0.464673913 | L132: 0.108695652 | M132: 0.04076087 | N132: 0.02173913 | O132: 0.016304348 | P132: 0.75 | Q132: 0.0625 | R132: 0.0625 | S132: 0.182065217 | T132: 0.097826087 | U132: 0.467391304 | V132: 0.467391304 | W132: 0.008152174 | X132: 0.010869565 | Y132: 0 | Z132: 0.078804348 | AA132: 0.008152174 | AB132: 0 | AC132: Suburb | AD132: NULL | AE132: Large | AF132: 0 | AG132: 0 | AH132: 0 | AI132: 0 | AJ132: 0 | AK132: 368 | AL132: 5 | AM132: 73.6
A133: 09I027110 | B133: 11559 | C133: 2018 | D133: 09 | E133: I027 | F133: 110 | G133: -1 | H133: 3 | I133: ESMS | J133: 0.522727273 | K133: 0.477272727 | L133: 0.241477273 | M133: 0.059659091 | N133: 0.002840909 | O133: 0.028409091 | P133: 0.5625 | Q133: 0.105113636 | R133: 0.159090909 | S133: 0.201704545 | T133: 0.065340909 | U133: 0.485795455 | V133: 0.485795455 | W133: 0.014204545 | X133: 0.019886364 | Y133: 0 | Z133: 0.181818182 | AA133: 0.008522727 | AB133: 0 | AC133: Suburb | AD133: NULL | AE133: Large | AF133: 0 | AG133: 0 | AH133: 0 | AI133: 0 | AJ133: 0 | AK133: 352 | AL133: 5 | AM133: 70.4
A134: 09I027115 | B134: 11392 | C134: 2018 | D134: 09 | E134: I027 | F134: 115 | G134: -1 | H134: 3 | I134: ESMS | J134: 0.525885559 | K134: 0.474114441 | L134: 0.313351499 | M134: 0.04359673 | N134: 0.008174387 | O134: 0.010899183 | P134: 0.547683924 | Q134: 0.076294278 | R134: 0.253405995 | S134: 0.136239782 | T134: 0.08719346 | U134: 0.719346049 | V134: 0.719346049 | W134: 0.013623978 | X134: 0.019073569 | Y134: 0 | Z134: 0.283378747 | AA134: 0.013623978 | AB134: 0 | AC134: Suburb | AD134: NULL | AE134: Large | AF134: 0 | AG134: 0 | AH134: 0 | AI134: 0 | AJ134: 0 | AK134: 367 | AL134: 5 | AM134: 73.4
A135: 09I027120 | B135: 11590 | C135: 2018 | D135: 09 | E135: I027 | F135: 120 | G135: -1 | H135: 3 | I135: ESMS | J135: 0.540540541 | K135: 0.459459459 | L135: 0.127764128 | M135: 0.029484029 | N135: 0.041769042 | O135: 0.036855037 | P135: 0.702702703 | Q135: 0.061425061 | R135: 0.071253071 | S135: 0.179361179 | T135: 0.066339066 | U135: 0.457002457 | V135: 0.457002457 | W135: 0.00982801 | X135: 0.004914005 | Y135: 0 | Z135: 0.113022113 | AA135: 0.012285012 | AB135: 0 | AC135: Suburb | AD135: NULL | AE135: Large | AF135: 0 | AG135: 0 | AH135: 0 | AI135: 0 | AJ135: 0 | AK135: 407 | AL135: 5 | AM135: 81.4
A136: 09I027125 | B136: 12099 | C136: 2018 | D136: 09 | E136: I027 | F136: 125 | G136: -1 | H136: 3 | I136: ESMS | J136: 0.483420593 | K136: 0.516579407 | L136: 0.080279232 | M136: 0.033158813 | N136: 0.019197208 | O136: 0.062827225 | P136: 0.703315881 | Q136: 0.10122164 | R136: 0.041884817 | S136: 0.118673647 | T136: 0.057591623 | U136: 0.256544503 | V136: 0.256544503 | W136: 0.006980803 | X136: 0.015706806 | Y136: 0 | Z136: 0.062827225 | AA136: 0.005235602 | AB136: 0 | AC136: City | AD136: NULL | AE136: Large | AF136: 0 | AG136: 0 | AH136: 0 | AI136: 0 | AJ136: 0 | AK136: 573 | AL136: 5 | AM136: 114.6
A137: 09I027130 | B137: 12502 | C137: 2018 | D137: 09 | E137: I027 | F137: 130 | G137: -1 | H137: 3 | I137: ESMS | J137: 0.524637681 | K137: 0.475362319 | L137: 0.092753623 | M137: 0.043478261 | N137: 0.020289855 | O137: 0.023188406 | P137: 0.742028986 | Q137: 0.07826087 | R137: 0.014492754 | S137: 0.115942029 | T137: 0.115942029 | U137: 0.368115942 | V137: 0.368115942 | W137: 0.005797101 | X137: 0 | Y137: 0 | Z137: 0.028985507 | AA137: 0.002898551 | AB137: 0 | AC137: Suburb | AD137: NULL | AE137: Large | AF137: 0 | AG137: 0 | AH137: 0 | AI137: 0 | AJ137: 0 | AK137: 345 | AL137: 5 | AM137: 69
A138: 09I027135 | B138: 11972 | C138: 2018 | D138: 09 | E138: I027 | F138: 135 | G138: -1 | H138: 3 | I138: ESMS | J138: 0.504456328 | K138: 0.495543672 | L138: 0.081996435 | M138: 0.060606061 | N138: 0.024955437 | O138: 0.032085561 | P138: 0.714795009 | Q138: 0.085561497 | R138: 0.039215686 | S138: 0.158645276 | T138: 0.081996435 | U138: 0.426024955 | V138: 0.426024955 | W138: 0.008912656 | X138: 0.012477718 | Y138: 0 | Z138: 0.060606061 | AA138: 0.003565062 | AB138: 0 | AC138: Suburb | AD138: NULL | AE138: Large | AF138: 0 | AG138: 0 | AH138: 0 | AI138: 0 | AJ138: 0 | AK138: 561 | AL138: 5 | AM138: 112.2
A139: 09I027140 | B139: 12667 | C139: 2018 | D139: 09 | E139: I027 | F139: 140 | G139: 4 | H139: 5 | I139: ESMS | J139: 0.52120383 | K139: 0.47879617 | L139: 0.20246238 | M139: 0.042407661 | N139: 0.013679891 | O139: 0.031463748 | P139: 0.610123119 | Q139: 0.099863201 | R139: 0.080711354 | S139: 0.206566347 | T139: 0.242134063 | U139: 0.487004104 | V139: 0.487004104 | W139: 0.008207934 | X139: 0.025991792 | Y139: 0 | Z139: 0.165526676 | AA139: 0.04377565 | AB139: 0 | AC139: Suburb | AD139: NULL | AE139: Large | AF139: 0 | AG139: 0 | AH139: 0 | AI139: 0 | AJ139: 0 | AK139: 731 | AL139: 2 | AM139: 365.5
A140: 09I027145 | B140: 12307 | C140: 2018 | D140: 09 | E140: I027 | F140: 145 | G140: 4 | H140: 5 | I140: ESMS | J140: 0.492307692 | K140: 0.507692308 | L140: 0.109230769 | M140: 0.046153846 | N140: 0.027692308 | O140: 0.04 | P140: 0.730769231 | Q140: 0.046153846 | R140: 0.029230769 | S140: 0.178461538 | T140: 0.283076923 | U140: 0.421538462 | V140: 0.421538462 | W140: 0.001538462 | X140: 0.035384615 | Y140: 0 | Z140: 0.084615385 | AA140: 0.023076923 | AB140: 0 | AC140: Suburb | AD140: NULL | AE140: Large | AF140: 0 | AG140: 0 | AH140: 0 | AI140: 0 | AJ140: 0 | AK140: 650 | AL140: 2 | AM140: 325
A141: 09I027520 | B141: 12195 | C141: 2018 | D141: 09 | E141: I027 | F141: 520 | G141: 6 | H141: 8 | I141: ESMS | J141: 0.505670103 | K141: 0.494329897 | L141: 0.142268041 | M141: 0.054123711 | N141: 0.030412371 | O141: 0.032989691 | P141: 0.691237113 | Q141: 0.048969072 | R141: 0.023195876 | S141: 0.179896907 | T141: 0.263402062 | U141: 0.38556701 | V141: 0.38556701 | W141: 0.005670103 | X141: 0.039690722 | Y141: 0 | Z141: 0.12628866 | AA141: 0.019587629 | AB141: 0 | AC141: Suburb | AD141: NULL | AE141: Large | AF141: 0 | AG141: 0 | AH141: 0 | AI141: 0 | AJ141: 0 | AK141: 1940 | AL141: 3 | AM141: 646.6666667
A142: 09I027705 | B142: 12335 | C142: 2018 | D142: 09 | E142: I027 | F142: 705 | G142: 9 | H142: 12 | I142: HS | J142: 0.492561319 | K142: 0.507438681 | L142: 0.11982308 | M142: 0.048652996 | N142: 0.02774427 | O142: 0.042219542 | P142: 0.72818657 | Q142: 0.033373542 | R142: 0.024125452 | S142: 0.136308806 | T142: 0.176919984 | U142: 0.31805388 | V142: 0.31805388 | W142: 0.007237636 | X142: 0.039806996 | Y142: 0 | Z142: 0.113389626 | AA142: 0.002010454 | AB142: 0 | AC142: Suburb | AD142: NULL | AE142: Large | AF142: 0 | AG142: 0 | AH142: 0 | AI142: 0 | AJ142: 0 | AK142: 2487 | AL142: 4 | AM142: 621.75
A143: 09I034110 | B143: 11639 | C143: 2018 | D143: 09 | E143: I034 | F143: 110 | G143: -1 | H143: 0 | I143: PK2 | J143: 0.498442368 | K143: 0.501557632 | L143: 0.22741433 | M143: 0.118380062 | N143: 0 | O143: 0.018691589 | P143: 0.514018692 | Q143: 0.121495327 | R143: 0.15576324 | S143: 0.183800623 | T143: 0 | U143: 0.716510903 | V143: 0.716510903 | W143: 0.015576324 | X143: 0.009345794 | Y143: 0 | Z143: 0.186915888 | AA143: 0 | AB143: 0 | AC143: Town | AD143: Distant | AE143: NULL | AF143: 0 | AG143: 0 | AH143: 0 | AI143: 0 | AJ143: 0 | AK143: 321 | AL143: 2 | AM143: 160.5
A144: 09I034120 | B144: 12290 | C144: 2018 | D144: 09 | E144: I034 | F144: 120 | G144: 3 | H144: 4 | I144: ESMS | J144: 0.536082474 | K144: 0.463917526 | L144: 0.288659794 | M144: 0.100515464 | N144: 0 | O144: 0.036082474 | P144: 0.479381443 | Q144: 0.095360825 | R144: 0.221649485 | S144: 0.224226804 | T144: 0.170103093 | U144: 0.801546392 | V144: 0.804123711 | W144: 0.005154639 | X144: 0.020618557 | Y144: 0 | Z144: 0.244845361 | AA144: 0.005154639 | AB144: 0 | AC144: Rural | AD144: Fringe | AE144: NULL | AF144: 0 | AG144: 0 | AH144: 0 | AI144: 0 | AJ144: 0 | AK144: 388 | AL144: 2 | AM144: 194
A145: 09I034135 | B145: 12627 | C145: 2018 | D145: 09 | E145: I034 | F145: 135 | G145: 1 | H145: 2 | I145: PK2 | J145: 0.517412935 | K145: 0.482587065 | L145: 0.273631841 | M145: 0.087064677 | N145: 0.004975124 | O145: 0.032338308 | P145: 0.502487562 | Q145: 0.099502488 | R145: 0.223880597 | S145: 0.194029851 | T145: 0.05721393 | U145: 0.743781095 | V145: 0.748756219 | W145: 0.024875622 | X145: 0.009950249 | Y145: 0 | Z145: 0.231343284 | AA145: 0 | AB145: 0 | AC145: Town | AD145: Distant | AE145: NULL | AF145: 0 | AG145: 0 | AH145: 0 | AI145: 0 | AJ145: 0 | AK145: 402 | AL145: 2 | AM145: 201
A146: 09I034510 | B146: 12268 | C146: 2018 | D146: 09 | E146: I034 | F146: 510 | G146: 5 | H146: 6 | I146: ESMS | J146: 0.493403694 | K146: 0.506596306 | L146: 0.258575198 | M146: 0.126649077 | N146: 0 | O146: 0.044854881 | P146: 0.477572559 | Q146: 0.092348285 | R146: 0.102902375 | S146: 0.216358839 | T146: 0.306068602 | U146: 0.807387863 | V146: 0.807387863 | W146: 0.002638522 | X146: 0.013192612 | Y146: 0 | Z146: 0.218997361 | AA146: 0.026385224 | AB146: 0 | AC146: Rural | AD146: Fringe | AE146: NULL | AF146: 0 | AG146: 0 | AH146: 0 | AI146: 0 | AJ146: 0 | AK146: 379 | AL146: 2 | AM146: 189.5
A147: 09I034610 | B147: 12363 | C147: 2018 | D147: 09 | E147: I034 | F147: 610 | G147: 7 | H147: 8 | I147: ESMS | J147: 0.522099448 | K147: 0.477900552 | L147: 0.245856354 | M147: 0.113259669 | N147: 0 | O147: 0.016574586 | P147: 0.472375691 | Q147: 0.151933702 | R147: 0.063535912 | S147: 0.240331492 | T147: 0.267955801 | U147: 0.781767956 | V147: 0.781767956 | W147: 0.016574586 | X147: 0.024861878 | Y147: 0 | Z147: 0.179558011 | AA147: 0.011049724 | AB147: 0 | AC147: Town | AD147: Distant | AE147: NULL | AF147: 0 | AG147: 0 | AH147: 0 | AI147: 0 | AJ147: 0 | AK147: 362 | AL147: 2 | AM147: 181
A148: 09I034705 | B148: 11069 | C148: 2018 | D148: 09 | E148: I034 | F148: 705 | G148: 8 | H148: 12 | I148: HS | J148: 0.526682135 | K148: 0.473317865 | L148: 0.216937355 | M148: 0.129930394 | N148: 0.003480278 | O148: 0.02900232 | P148: 0.498839907 | Q148: 0.121809745 | R148: 0.046403712 | S148: 0.164733179 | T148: 0.214617169 | U148: 0.653132251 | V148: 0.653132251 | W148: 0.001160093 | X148: 0.015081206 | Y148: 0.023201856 | Z148: 0.158932715 | AA148: 0.004640371 | AB148: 0 | AC148: Town | AD148: Distant | AE148: NULL | AF148: 0 | AG148: 0 | AH148: 0 | AI148: 0 | AJ148: 0 | AK148: 862 | AL148: 5 | AM148: 172.4
A149: 09I057105 | B149: 12685 | C149: 2018 | D149: 09 | E149: I057 | F149: 105 | G149: -1 | H149: 8 | I149: ESMS | J149: 0.512077295 | K149: 0.487922705 | L149: 0.115942029 | M149: 0.033816425 | N149: 0.004830918 | O149: 0 | P149: 0.739130435 | Q149: 0.106280193 | R149: 0 | S149: 0.144927536 | T149: 0.086956522 | U149: 0.574879227 | V149: 0.574879227 | W149: 0 | X149: 0 | Y149: 0 | Z149: 0.043478261 | AA149: 0 | AB149: 0 | AC149: Rural | AD149: Distant | AE149: NULL | AF149: 0 | AG149: 0 | AH149: 0 | AI149: 0 | AJ149: 0 | AK149: 207 | AL149: 10 | AM149: 20.7
A150: 09I057705 | B150: 11943 | C150: 2018 | D150: 09 | E150: I057 | F150: 705 | G150: 9 | H150: 12 | I150: HS | J150: 0.535087719 | K150: 0.464912281 | L150: 0.070175439 | M150: 0.01754386 | N150: 0 | O150: 0 | P150: 0.815789474 | Q150: 0.096491228 | R150: 0 | S150: 0.184210526 | T150: 0.245614035 | U150: 0.456140351 | V150: 0.456140351 | W150: 0 | X150: 0.01754386 | Y150: 0 | Z150: 0.035087719 | AA150: 0 | AB150: 0 | AC150: Rural | AD150: Distant | AE150: NULL | AF150: 0 | AG150: 0 | AH150: 0 | AI150: 0 | AJ150: 0 | AK150: 114 | AL150: 4 | AM150: 28.5
A151: 09I069105 | B151: 11583 | C151: 2018 | D151: 09 | E151: I069 | F151: 105 | G151: -1 | H151: 4 | I151: ESMS | J151: 0.562632696 | K151: 0.437367304 | L151: 0.101910828 | M151: 0.040339703 | N151: 0.027600849 | O151: 0.008492569 | P151: 0.717622081 | Q151: 0.10403397 | R151: 0.06581741 | S151: 0.08492569 | T151: 0.033970276 | U151: 0.35881104 | V151: 0.35881104 | W151: 0 | X151: 0.023354565 | Y151: 0 | Z151: 0.072186837 | AA151: 0.006369427 | AB151: 0 | AC151: Suburb | AD151: NULL | AE151: Large | AF151: 0 | AG151: 0 | AH151: 0 | AI151: 0 | AJ151: 0 | AK151: 471 | AL151: 6 | AM151: 78.5
A152: 09I069110 | B152: 11774 | C152: 2018 | D152: 09 | E152: I069 | F152: 110 | G152: 0 | H152: 4 | I152: ESMS | J152: 0.486676017 | K152: 0.513323983 | L152: 0.081346424 | M152: 0.036465638 | N152: 0.067321178 | O152: 0.029453015 | P152: 0.659186536 | Q152: 0.126227209 | R152: 0.086956522 | S152: 0.119214586 | T152: 0.043478261 | U152: 0.298737728 | V152: 0.302945302 | W152: 0.002805049 | X152: 0.023842917 | Y152: 0 | Z152: 0.099579243 | AA152: 0.009817672 | AB152: 0 | AC152: City | AD152: NULL | AE152: Large | AF152: 0 | AG152: 0 | AH152: 0 | AI152: 0 | AJ152: 0 | AK152: 713 | AL152: 5 | AM152: 142.6
A153: 09I069115 | B153: 11533 | C153: 2018 | D153: 09 | E153: I069 | F153: 115 | G153: 0 | H153: 4 | I153: ESMS | J153: 0.493358634 | K153: 0.506641366 | L153: 0.068311195 | M153: 0.060721063 | N153: 0.011385199 | O153: 0.026565465 | P153: 0.755218216 | Q153: 0.077798861 | R153: 0.036053131 | S153: 0.10056926 | T153: 0.032258065 | U153: 0.290322581 | V153: 0.290322581 | W153: 0 | X153: 0.039848197 | Y153: 0 | Z153: 0.043643264 | AA153: 0 | AB153: 0 | AC153: Suburb | AD153: NULL | AE153: Large | AF153: 0 | AG153: 0 | AH153: 0 | AI153: 0 | AJ153: 0 | AK153: 527 | AL153: 5 | AM153: 105.4
A154: 09I069120 | B154: 11844 | C154: 2018 | D154: 09 | E154: I069 | F154: 120 | G154: -1 | H154: 4 | I154: ESMS | J154: 0.483754513 | K154: 0.516245487 | L154: 0.108303249 | M154: 0.051744886 | N154: 0.055354994 | O154: 0.037304452 | P154: 0.630565584 | Q154: 0.116726835 | R154: 0.08543923 | S154: 0.140794224 | T154: 0.027677497 | U154: 0.389891697 | V154: 0.391095066 | W154: 0.002406739 | X154: 0.019253911 | Y154: 0 | Z154: 0.097472924 | AA154: 0.003610108 | AB154: 0 | AC154: City | AD154: NULL | AE154: Large | AF154: 0 | AG154: 0 | AH154: 0 | AI154: 0 | AJ154: 0 | AK154: 831 | AL154: 6 | AM154: 138.5
A155: 09I069125 | B155: 11975 | C155: 2018 | D155: 09 | E155: I069 | F155: 125 | G155: -1 | H155: 4 | I155: ESMS | J155: 0.488514548 | K155: 0.511485452 | L155: 0.098009188 | M155: 0.047473201 | N155: 0.055130168 | O155: 0.038284839 | P155: 0.615620214 | Q155: 0.145482389 | R155: 0.071975498 | S155: 0.113323124 | T155: 0.029096478 | U155: 0.496171516 | V155: 0.49770291 | W155: 0.009188361 | X155: 0.016845329 | Y155: 0 | Z155: 0.082695253 | AA155: 0.001531394 | AB155: 0 | AC155: City | AD155: NULL | AE155: Large | AF155: 0 | AG155: 0 | AH155: 0 | AI155: 0 | AJ155: 0 | AK155: 653 | AL155: 6 | AM155: 108.8333333
A156: 09I069130 | B156: 12279 | C156: 2018 | D156: 09 | E156: I069 | F156: 130 | G156: -1 | H156: -1 | I156: PK2 | J156: 0.531468531 | K156: 0.468531469 | L156: 0.06993007 | M156: 0.076923077 | N156: 0.052447552 | O156: 0.020979021 | P156: 0.667832168 | Q156: 0.111888112 | R156: 0.041958042 | S156: 0.125874126 | T156: 0 | U156: 0.223776224 | V156: 0.230769231 | W156: 0.003496503 | X156: 0 | Y156: 0 | Z156: 0.076923077 | AA156: 0 | AB156: 0 | AC156: Suburb | AD156: NULL | AE156: Large | AF156: 0 | AG156: 0 | AH156: 0 | AI156: 0 | AJ156: 0 | AK156: 286 | AL156: 1 | AM156: 286
A157: 09I069135 | B157: 12002 | C157: 2018 | D157: 09 | E157: I069 | F157: 135 | G157: -1 | H157: 4 | I157: ESMS | J157: 0.524229075 | K157: 0.475770925 | L157: 0.10866373 | M157: 0.069016153 | N157: 0.020558003 | O157: 0.026431718 | P157: 0.665198238 | Q157: 0.110132159 | R157: 0.089574156 | S157: 0.162995595 | T157: 0.030837004 | U157: 0.444933921 | V157: 0.455212922 | W157: 0.002936858 | X157: 0.013215859 | Y157: 0 | Z157: 0.095447871 | AA157: 0.001468429 | AB157: 0 | AC157: Suburb | AD157: NULL | AE157: Large | AF157: 0 | AG157: 0 | AH157: 0 | AI157: 0 | AJ157: 0 | AK157: 681 | AL157: 6 | AM157: 113.5
A158: 09I069140 | B158: 12350 | C158: 2018 | D158: 09 | E158: I069 | F158: 140 | G158: 5 | H158: 6 | I158: ESMS | J158: 0.483116883 | K158: 0.516883117 | L158: 0.120779221 | M158: 0.063636364 | N158: 0.01038961 | O158: 0.035064935 | P158: 0.703896104 | Q158: 0.066233766 | R158: 0.028571429 | S158: 0.148051948 | T158: 0.236363636 | U158: 0.415584416 | V158: 0.418181818 | W158: 0 | X158: 0.042857143 | Y158: 0 | Z158: 0.055844156 | AA158: 0.012987013 | AB158: 0 | AC158: Suburb | AD158: NULL | AE158: Large | AF158: 0 | AG158: 0 | AH158: 0 | AI158: 0 | AJ158: 0 | AK158: 770 | AL158: 2 | AM158: 385
A159: 09I069145 | B159: 12203 | C159: 2018 | D159: 09 | E159: I069 | F159: 145 | G159: 5 | H159: 6 | I159: ESMS | J159: 0.508555133 | K159: 0.491444867 | L159: 0.120722433 | M159: 0.045627376 | N159: 0.076996198 | O159: 0.043726236 | P159: 0.619771863 | Q159: 0.093155894 | R159: 0.046577947 | S159: 0.147338403 | T159: 0.247148289 | U159: 0.395437262 | V159: 0.395437262 | W159: 0.003802281 | X159: 0.044676806 | Y159: 0 | Z159: 0.090304183 | AA159: 0.017110266 | AB159: 0 | AC159: City | AD159: NULL | AE159: Large | AF159: 0 | AG159: 0 | AH159: 0 | AI159: 0 | AJ159: 0 | AK159: 1052 | AL159: 2 | AM159: 526
A160: 09I069150 | B160: 12746 | C160: 2018 | D160: 09 | E160: I069 | F160: 150 | G160: -1 | H160: 4 | I160: ESMS | J160: 0.508527132 | K160: 0.491472868 | L160: 0.150387597 | M160: 0.026356589 | N160: 0.105426357 | O160: 0.034108527 | P160: 0.575193798 | Q160: 0.108527132 | R160: 0.114728682 | S160: 0.119379845 | T160: 0.040310078 | U160: 0.341085271 | V160: 0.344186047 | W160: 0.010852713 | X160: 0.010852713 | Y160: 0 | Z160: 0.15503876 | AA160: 0.026356589 | AB160: 0 | AC160: Suburb | AD160: NULL | AE160: Large | AF160: 0 | AG160: 0 | AH160: 0 | AI160: 0 | AJ160: 0 | AK160: 645 | AL160: 6 | AM160: 107.5
A161: 09I069505 | B161: 11094 | C161: 2018 | D161: 09 | E161: I069 | F161: 505 | G161: 7 | H161: 8 | I161: ESMS | J161: 0.549936789 | K161: 0.450063211 | L161: 0.118836915 | M161: 0.054361568 | N161: 0.02528445 | O161: 0.026548673 | P161: 0.689001264 | Q161: 0.08596713 | R161: 0.02528445 | S161: 0.115044248 | T161: 0.342604298 | U161: 0.379266751 | V161: 0.381795196 | W161: 0.002528445 | X161: 0.059418458 | Y161: 0 | Z161: 0.072060683 | AA161: 0.003792668 | AB161: 0 | AC161: Suburb | AD161: NULL | AE161: Large | AF161: 0 | AG161: 0 | AH161: 0 | AI161: 0 | AJ161: 0 | AK161: 791 | AL161: 2 | AM161: 395.5
A162: 09I069510 | B162: 11330 | C162: 2018 | D162: 09 | E162: I069 | F162: 510 | G162: 7 | H162: 8 | I162: ESMS | J162: 0.512684989 | K162: 0.487315011 | L162: 0.130021142 | M162: 0.046511628 | N162: 0.081395349 | O162: 0.04756871 | P162: 0.615221987 | Q162: 0.079281184 | R162: 0.023255814 | S162: 0.123678647 | T162: 0.380549683 | U162: 0.366807611 | V162: 0.367864693 | W162: 0.005285412 | X162: 0.027484144 | Y162: 0 | Z162: 0.10359408 | AA162: 0.007399577 | AB162: 0 | AC162: City | AD162: NULL | AE162: Large | AF162: 0 | AG162: 0 | AH162: 0 | AI162: 0 | AJ162: 0 | AK162: 946 | AL162: 2 | AM162: 473
A163: 09I069705 | B163: 12484 | C163: 2018 | D163: 09 | E163: I069 | F163: 705 | G163: 9 | H163: 12 | I163: HS | J163: 0.497233973 | K163: 0.502766027 | L163: 0.122030589 | M163: 0.061178002 | N163: 0.053042629 | O163: 0.045558087 | P163: 0.646273999 | Q163: 0.071916694 | R163: 0.01789782 | S163: 0.115522291 | T163: 0.392775789 | U163: 0.326716564 | V163: 0.328343638 | W163: 0.006182883 | X163: 0.028311097 | Y163: 0.005532053 | Z163: 0.074194598 | AA163: 0.003579564 | AB163: 0 | AC163: Suburb | AD163: NULL | AE163: Large | AF163: 0 | AG163: 0 | AH163: 0 | AI163: 0 | AJ163: 0 | AK163: 3073 | AL163: 4 | AM163: 768.25
A164: 09I076105 | B164: 12378 | C164: 2018 | D164: 09 | E164: I076 | F164: 105 | G164: -1 | H164: 8 | I164: ESMS | J164: 0.463687151 | K164: 0.536312849 | L164: 0.100558659 | M164: 0.212290503 | N164: 0 | O164: 0.005586592 | P164: 0.631284916 | Q164: 0.05027933 | R164: 0 | S164: 0.201117318 | T164: 0.067039106 | U164: 0.653631285 | V164: 0.653631285 | W164: 0 | X164: 0.022346369 | Y164: 0 | Z164: 0 | AA164: 0 | AB164: 0 | AC164: Rural | AD164: Distant | AE164: NULL | AF164: 0 | AG164: 0 | AH164: 0 | AI164: 0 | AJ164: 0 | AK164: 179 | AL164: 10 | AM164: 17.9
A165: 09I076705 | B165: 11434 | C165: 2018 | D165: 09 | E165: I076 | F165: 705 | G165: 9 | H165: 12 | I165: HS | J165: 0.512820513 | K165: 0.487179487 | L165: 0.115384615 | M165: 0.115384615 | N165: 0 | O165: 0 | P165: 0.679487179 | Q165: 0.08974359 | R165: 0 | S165: 0.128205128 | T165: 0.192307692 | U165: 0.564102564 | V165: 0.564102564 | W165: 0 | X165: 0.076923077 | Y165: 0 | Z165: 0 | AA165: 0 | AB165: 0 | AC165: Rural | AD165: Distant | AE165: NULL | AF165: 0 | AG165: 0 | AH165: 0 | AI165: 0 | AJ165: 0 | AK165: 78 | AL165: 4 | AM165: 19.5
A166: 10C072105 | B166: 12743 | C166: 2018 | D166: 10 | E166: C072 | F166: 105 | G166: -1 | H166: 8 | I166: ESMS | J166: 0.523178808 | K166: 0.476821192 | L166: 0.059602649 | M166: 0.079470199 | N166: 0 | O166: 0.009933775 | P166: 0.533112583 | Q166: 0.317880795 | R166: 0 | S166: 0.17218543 | T166: 0.218543046 | U166: 0.834437086 | V166: 0.870860927 | W166: 0 | X166: 0 | Y166: 0 | Z166: 0 | AA166: 0 | AB166: 0 | AC166: Rural | AD166: Remote | AE166: NULL | AF166: 0 | AG166: 0 | AH166: 1 | AI166: 0 | AJ166: 0 | AK166: 302 | AL166: 10 | AM166: 30.2
A167: 10I019110 | B167: 12107 | C167: 2018 | D167: 10 | E167: I019 | F167: 110 | G167: 1 | H167: 5 | I167: ESMS | J167: 0.494736842 | K167: 0.505263158 | L167: 0.168421053 | M167: 0.089473684 | N167: 0.028947368 | O167: 0.121052632 | P167: 0.539473684 | Q167: 0.052631579 | R167: 0.107894737 | S167: 0.184210526 | T167: 0 | U167: 1 | V167: 0.994736842 | W167: 0.002631579 | X167: 0.005263158 | Y167: 0 | Z167: 0.121052632 | AA167: 0.023684211 | AB167: 0 | AC167: Town | AD167: Remote | AE167: NULL | AF167: 0 | AG167: 0 | AH167: 0 | AI167: 0 | AJ167: 0 | AK167: 380 | AL167: 5 | AM167: 76
A168: 10I019120 | B168: 11129 | C168: 2018 | D168: 10 | E168: I019 | F168: 120 | G168: 1 | H168: 5 | I168: ESMS | J168: 0.5 | K168: 0.5 | L168: 0.216911765 | M168: 0.117647059 | N168: 0 | O168: 0.227941176 | P168: 0.272058824 | Q168: 0.165441176 | R168: 0.136029412 | S168: 0.191176471 | T168: 0.003676471 | U168: 1 | V168: 1 | W168: 0 | X168: 0.014705882 | Y168: 0 | Z168: 0.154411765 | AA168: 0.022058824 | AB168: 0 | AC168: Town | AD168: Remote | AE168: NULL | AF168: 0 | AG168: 0 | AH168: 0 | AI168: 0 | AJ168: 0 | AK168: 272 | AL168: 5 | AM168: 54.4
A169: 10I019125 | B169: 12655 | C169: 2018 | D169: 10 | E169: I019 | F169: 125 | G169: 1 | H169: 5 | I169: ESMS | J169: 0.533816425 | K169: 0.466183575 | L169: 0.222222222 | M169: 0.089371981 | N169: 0.009661836 | O169: 0.128019324 | P169: 0.374396135 | Q169: 0.176328502 | R169: 0.108695652 | S169: 0.161835749 | T169: 0.026570048 | U169: 1 | V169: 0.995169082 | W169: 0 | X169: 0.019323671 | Y169: 0 | Z169: 0.120772947 | AA169: 0.014492754 | AB169: 0 | AC169: Town | AD169: Remote | AE169: NULL | AF169: 0 | AG169: 0 | AH169: 0 | AI169: 0 | AJ169: 0 | AK169: 414 | AL169: 5 | AM169: 82.8
A170: 10I019135 | B170: 11952 | C170: 2018 | D170: 10 | E170: I019 | F170: 135 | G170: -1 | H170: 0 | I170: PK2 | J170: 0.539408867 | K170: 0.460591133 | L170: 0.209359606 | M170: 0.137931034 | N170: 0.007389163 | O170: 0.115763547 | P170: 0.334975369 | Q170: 0.194581281 | R170: 0.100985222 | S170: 0.123152709 | T170: 0 | U170: 1 | V170: 0.990147783 | W170: 0 | X170: 0 | Y170: 0 | Z170: 0.118226601 | AA170: 0 | AB170: 0 | AC170: Town | AD170: Remote | AE170: NULL | AF170: 0 | AG170: 0 | AH170: 0 | AI170: 0 | AJ170: 0 | AK170: 406 | AL170: 2 | AM170: 203
A171: 10I019505 | B171: 12830 | C171: 2018 | D171: 10 | E171: I019 | F171: 505 | G171: 6 | H171: 8 | I171: ESMS | J171: 0.5 | K171: 0.5 | L171: 0.215034965 | M171: 0.089160839 | N171: 0.006993007 | O171: 0.152097902 | P171: 0.465034965 | Q171: 0.071678322 | R171: 0.04020979 | S171: 0.16958042 | T171: 0.096153846 | U171: 1 | V171: 0.998251748 | W171: 0 | X171: 0.036713287 | Y171: 0 | Z171: 0.104895105 | AA171: 0.031468531 | AB171: 0 | AC171: Rural | AD171: Fringe | AE171: NULL | AF171: 0 | AG171: 0 | AH171: 0 | AI171: 0 | AJ171: 0 | AK171: 572 | AL171: 3 | AM171: 190.6666667
A172: 10I019705 | B172: 12474 | C172: 2018 | D172: 10 | E172: I019 | F172: 705 | G172: 9 | H172: 12 | I172: HS | J172: 0.504358655 | K172: 0.495641345 | L172: 0.171855542 | M172: 0.124533001 | N172: 0.02241594 | O172: 0.173100872 | P172: 0.486924035 | Q172: 0.02117061 | R172: 0.04732254 | S172: 0.153175592 | T172: 0.114570361 | U172: 1 | V172: 0.99875467 | W172: 0 | X172: 0.03113325 | Y172: 0 | Z172: 0.113325031 | AA172: 0.01120797 | AB172: 0 | AC172: Rural | AD172: Fringe | AE172: NULL | AF172: 0 | AG172: 0 | AH172: 0 | AI172: 0 | AJ172: 0 | AK172: 803 | AL172: 4 | AM172: 200.75
A173: 10I021105 | B173: 11667 | C173: 2018 | D173: 10 | E173: I021 | F173: 105 | G173: -1 | H173: 8 | I173: ESMS | J173: 0.531914894 | K173: 0.468085106 | L173: 0.053191489 | M173: 0.154255319 | N173: 0 | O173: 0.063829787 | P173: 0.45212766 | Q173: 0.276595745 | R173: 0 | S173: 0.20212766 | T173: 0.069148936 | U173: 0.739361702 | V173: 0.739361702 | W173: 0 | X173: 0 | Y173: 0 | Z173: 0 | AA173: 0 | AB173: 0 | AC173: Rural | AD173: Distant | AE173: NULL | AF173: 0 | AG173: 0 | AH173: 0 | AI173: 0 | AJ173: 0 | AK173: 188 | AL173: 10 | AM173: 18.8
A174: 10I021705 | B174: 11283 | C174: 2018 | D174: 10 | E174: I021 | F174: 705 | G174: 9 | H174: 12 | I174: HS | J174: 0.5 | K174: 0.5 | L174: 0.076923077 | M174: 0.134615385 | N174: 0 | O174: 0.019230769 | P174: 0.519230769 | Q174: 0.25 | R174: 0 | S174: 0.115384615 | T174: 0.134615385 | U174: 0.634615385 | V174: 0.634615385 | W174: 0 | X174: 0 | Y174: 0 | Z174: 0 | AA174: 0 | AB174: 0 | AC174: Rural | AD174: Distant | AE174: NULL | AF174: 0 | AG174: 0 | AH174: 0 | AI174: 0 | AJ174: 0 | AK174: 52 | AL174: 4 | AM174: 13
A175: 10I027105 | B175: 11407 | C175: 2018 | D175: 10 | E175: I027 | F175: 105 | G175: -1 | H175: 2 | I175: PK2 | J175: 0.494172494 | K175: 0.505827506 | L175: 0.153846154 | M175: 0.142191142 | N175: 0.048951049 | O175: 0.011655012 | P175: 0.501165501 | Q175: 0.142191142 | R175: 0.06993007 | S175: 0.167832168 | T175: 0.128205128 | U175: 0.407925408 | V175: 0.407925408 | W175: 0 | X175: 0 | Y175: 0 | Z175: 0.088578089 | AA175: 0.009324009 | AB175: 0 | AC175: Rural | AD175: Fringe | AE175: NULL | AF175: 0 | AG175: 0 | AH175: 0 | AI175: 0 | AJ175: 0 | AK175: 429 | AL175: 4 | AM175: 107.25
A176: 10I027110 | B176: 12371 | C176: 2018 | D176: 10 | E176: I027 | F176: 110 | G176: 3 | H176: 5 | I176: ESMS | J176: 0.507598784 | K176: 0.492401216 | L176: 0.112462006 | M176: 0.121580547 | N176: 0.039513678 | O176: 0.012158055 | P176: 0.601823708 | Q176: 0.112462006 | R176: 0.045592705 | S176: 0.167173252 | T176: 0.212765957 | U176: 0.41337386 | V176: 0.41337386 | W176: 0 | X176: 0 | Y176: 0 | Z176: 0.069908815 | AA176: 0.009118541 | AB176: 0 | AC176: Rural | AD176: Fringe | AE176: NULL | AF176: 0 | AG176: 0 | AH176: 0 | AI176: 0 | AJ176: 0 | AK176: 329 | AL176: 3 | AM176: 109.6666667
A177: 10I027505 | B177: 12208 | C177: 2018 | D177: 10 | E177: I027 | F177: 505 | G177: 6 | H177: 8 | I177: ESMS | J177: 0.538251366 | K177: 0.461748634 | L177: 0.098360656 | M177: 0.092896175 | N177: 0.049180328 | O177: 0.013661202 | P177: 0.598360656 | Q177: 0.147540984 | R177: 0.013661202 | S177: 0.142076503 | T177: 0.202185792 | U177: 0.37431694 | V177: 0.382513661 | W177: 0 | X177: 0.010928962 | Y177: 0 | Z177: 0.06557377 | AA177: 0.019125683 | AB177: 0 | AC177: Rural | AD177: Fringe | AE177: NULL | AF177: 0 | AG177: 0 | AH177: 0 | AI177: 0 | AJ177: 0 | AK177: 366 | AL177: 3 | AM177: 122
A178: 10I027705 | B178: 12749 | C178: 2018 | D178: 10 | E178: I027 | F178: 705 | G178: 9 | H178: 12 | I178: HS | J178: 0.502487562 | K178: 0.497512438 | L178: 0.10199005 | M178: 0.069651741 | N178: 0.044776119 | O178: 0.007462687 | P178: 0.616915423 | Q178: 0.15920398 | R178: 0.02238806 | S178: 0.139303483 | T178: 0.333333333 | U178: 0.251243781 | V178: 0.263681592 | W178: 0 | X178: 0.014925373 | Y178: 0 | Z178: 0.059701493 | AA178: 0.007462687 | AB178: 0 | AC178: Rural | AD178: Fringe | AE178: NULL | AF178: 0 | AG178: 0 | AH178: 0 | AI178: 0 | AJ178: 0 | AK178: 402 | AL178: 4 | AM178: 100.5
A179: 10I032105 | B179: 12532 | C179: 2018 | D179: 10 | E179: I032 | F179: 105 | G179: 3 | H179: 5 | I179: ESMS | J179: 0.491071429 | K179: 0.508928571 | L179: 0.086309524 | M179: 0.154761905 | N179: 0.005952381 | O179: 0.008928571 | P179: 0.663690476 | Q179: 0.080357143 | R179: 0.011904762 | S179: 0.19047619 | T179: 0.136904762 | U179: 0.526785714 | V179: 0.526785714 | W179: 0 | X179: 0.00297619 | Y179: 0 | Z179: 0.011904762 | AA179: 0 | AB179: 0 | AC179: Rural | AD179: Distant | AE179: NULL | AF179: 0 | AG179: 0 | AH179: 0 | AI179: 0 | AJ179: 0 | AK179: 336 | AL179: 3 | AM179: 112
A180: 10I032110 | B180: 12673 | C180: 2018 | D180: 10 | E180: I032 | F180: 110 | G180: -1 | H180: 2 | I180: PK2 | J180: 0.551068884 | K180: 0.448931116 | L180: 0.073634204 | M180: 0.204275534 | N180: 0.002375297 | O180: 0.019002375 | P180: 0.624703088 | Q180: 0.076009501 | R180: 0.009501188 | S180: 0.128266033 | T180: 0.076009501 | U180: 0.560570071 | V180: 0.560570071 | W180: 0 | X180: 0 | Y180: 0 | Z180: 0.009501188 | AA180: 0.004750594 | AB180: 0 | AC180: Rural | AD180: Distant | AE180: NULL | AF180: 0 | AG180: 0 | AH180: 0 | AI180: 0 | AJ180: 0 | AK180: 421 | AL180: 4 | AM180: 105.25
A181: 10I032505 | B181: 11276 | C181: 2018 | D181: 10 | E181: I032 | F181: 505 | G181: 6 | H181: 8 | I181: ESMS | J181: 0.528189911 | K181: 0.471810089 | L181: 0.074183976 | M181: 0.169139466 | N181: 0.002967359 | O181: 0.026706231 | P181: 0.629080119 | Q181: 0.097922849 | R181: 0.005934718 | S181: 0.169139466 | T181: 0.133531157 | U181: 0.507418398 | V181: 0.507418398 | W181: 0 | X181: 0.002967359 | Y181: 0 | Z181: 0.017804154 | AA181: 0.002967359 | AB181: 0 | AC181: Rural | AD181: Distant | AE181: NULL | AF181: 0 | AG181: 0 | AH181: 0 | AI181: 0 | AJ181: 0 | AK181: 337 | AL181: 3 | AM181: 112.3333333
A182: 10I032705 | B182: 11795 | C182: 2018 | D182: 10 | E182: I032 | F182: 705 | G182: 9 | H182: 12 | I182: HS | J182: 0.455958549 | K182: 0.544041451 | L182: 0.051813472 | M182: 0.18134715 | N182: 0 | O182: 0.010362694 | P182: 0.68134715 | Q182: 0.075129534 | R182: 0.005181347 | S182: 0.150259067 | T182: 0.158031088 | U182: 0.396373057 | V182: 0.396373057 | W182: 0 | X182: 0.005181347 | Y182: 0 | Z182: 0.012953368 | AA182: 0.002590674 | AB182: 0 | AC182: Rural | AD182: Distant | AE182: NULL | AF182: 0 | AG182: 0 | AH182: 0 | AI182: 0 | AJ182: 0 | AK182: 386 | AL182: 4 | AM182: 96.5
A183: 10I043105 | B183: 11769 | C183: 2018 | D183: 10 | E183: I043 | F183: 105 | G183: -1 | H183: 8 | I183: ESMS | J183: 0.484732824 | K183: 0.515267176 | L183: 0.007633588 | M183: 0.312977099 | N183: 0.015267176 | O183: 0.003816794 | P183: 0.580152672 | Q183: 0.080152672 | R183: 0 | S183: 0.194656489 | T183: 0 | U183: 0.797709924 | V183: 0.797709924 | W183: 0 | X183: 0.007633588 | Y183: 0 | Z183: 0 | AA183: 0 | AB183: 0 | AC183: Rural | AD183: Remote | AE183: NULL | AF183: 0 | AG183: 0 | AH183: 0 | AI183: 0 | AJ183: 0 | AK183: 262 | AL183: 10 | AM183: 26.2
A184: 10I043705 | B184: 11482 | C184: 2018 | D184: 10 | E184: I043 | F184: 705 | G184: 9 | H184: 12 | I184: HS | J184: 0.442857143 | K184: 0.557142857 | L184: 0.014285714 | M184: 0.385714286 | N184: 0.007142857 | O184: 0.007142857 | P184: 0.578571429 | Q184: 0.007142857 | R184: 0 | S184: 0.15 | T184: 0.035714286 | U184: 0.628571429 | V184: 0.628571429 | W184: 0 | X184: 0 | Y184: 0 | Z184: 0 | AA184: 0 | AB184: 0 | AC184: Rural | AD184: Remote | AE184: NULL | AF184: 0 | AG184: 0 | AH184: 0 | AI184: 0 | AJ184: 0 | AK184: 140 | AL184: 4 | AM184: 35
A185: 10I055105 | B185: 11460 | C185: 2018 | D185: 10 | E185: I055 | F185: 105 | G185: -1 | H185: 5 | I185: ESMS | J185: 0.482905983 | K185: 0.517094017 | L185: 0.111111111 | M185: 0.106837607 | N185: 0.004273504 | O185: 0.004273504 | P185: 0.658119658 | Q185: 0.115384615 | R185: 0 | S185: 0.239316239 | T185: 0.004273504 | U185: 0.713675214 | V185: 0.735042735 | W185: 0 | X185: 0 | Y185: 0 | Z185: 0 | AA185: 0 | AB185: 0 | AC185: Rural | AD185: Remote | AE185: NULL | AF185: 0 | AG185: 0 | AH185: 0 | AI185: 0 | AJ185: 0 | AK185: 234 | AL185: 7 | AM185: 33.42857143
A186: 10I055505 | B186: 12109 | C186: 2018 | D186: 10 | E186: I055 | F186: 505 | G186: 6 | H186: 8 | I186: ESMS | J186: 0.583333333 | K186: 0.416666667 | L186: 0.125 | M186: 0.010416667 | N186: 0.010416667 | O186: 0 | P186: 0.59375 | Q186: 0.260416667 | R186: 0 | S186: 0.197916667 | T186: 0.125 | U186: 0.729166667 | V186: 0.802083333 | W186: 0 | X186: 0 | Y186: 0 | Z186: 0 | AA186: 0 | AB186: 0 | AC186: Rural | AD186: Remote | AE186: NULL | AF186: 0 | AG186: 0 | AH186: 0 | AI186: 0 | AJ186: 0 | AK186: 96 | AL186: 3 | AM186: 32
A187: 10I055705 | B187: 11743 | C187: 2018 | D187: 10 | E187: I055 | F187: 705 | G187: 9 | H187: 12 | I187: HS | J187: 0.514792899 | K187: 0.485207101 | L187: 0.112426036 | M187: 0.01183432 | N187: 0.01183432 | O187: 0.01183432 | P187: 0.585798817 | Q187: 0.266272189 | R187: 0 | S187: 0.183431953 | T187: 0.035502959 | U187: 0.597633136 | V187: 0.698224852 | W187: 0 | X187: 0 | Y187: 0 | Z187: 0 | AA187: 0.01183432 | AB187: 0 | AC187: Rural | AD187: Remote | AE187: NULL | AF187: 0 | AG187: 0 | AH187: 0 | AI187: 0 | AJ187: 0 | AK187: 169 | AL187: 4 | AM187: 42.25
A188: 10I074105 | B188: 11981 | C188: 2018 | D188: 10 | E188: I074 | F188: 105 | G188: -1 | H188: 8 | I188: ESMS | J188: 0.460465116 | K188: 0.539534884 | L188: 0.013953488 | M188: 0.125581395 | N188: 0.004651163 | O188: 0.11627907 | P188: 0.609302326 | Q188: 0.130232558 | R188: 0 | S188: 0.162790698 | T188: 0.027906977 | U188: 0.860465116 | V188: 0.860465116 | W188: 0 | X188: 0 | Y188: 0.004651163 | Z188: 0 | AA188: 0 | AB188: 0 | AC188: Rural | AD188: Remote | AE188: NULL | AF188: 0 | AG188: 0 | AH188: 0 | AI188: 0 | AJ188: 0 | AK188: 215 | AL188: 10 | AM188: 21.5
A189: 10I074705 | B189: 11698 | C189: 2018 | D189: 10 | E189: I074 | F189: 705 | G189: 9 | H189: 12 | I189: HS | J189: 0.651685393 | K189: 0.348314607 | L189: 0.02247191 | M189: 0.123595506 | N189: 0.011235955 | O189: 0.078651685 | P189: 0.752808989 | Q189: 0.011235955 | R189: 0 | S189: 0.146067416 | T189: 0.123595506 | U189: 0.640449438 | V189: 0.640449438 | W189: 0 | X189: 0 | Y189: 0 | Z189: 0 | AA189: 0 | AB189: 0 | AC189: Rural | AD189: Remote | AE189: NULL | AF189: 0 | AG189: 0 | AH189: 0 | AI189: 0 | AJ189: 0 | AK189: 89 | AL189: 4 | AM189: 22.25
A190: 10I077105 | B190: 12326 | C190: 2018 | D190: 10 | E190: I077 | F190: 105 | G190: -1 | H190: 2 | I190: PK2 | J190: 0.532467532 | K190: 0.467532468 | L190: 0.101298701 | M190: 0.155844156 | N190: 0 | O190: 0 | P190: 0.571428571 | Q190: 0.171428571 | R190: 0 | S190: 0.119480519 | T190: 0.098701299 | U190: 0.618181818 | V190: 0.618181818 | W190: 0 | X190: 0 | Y190: 0 | Z190: 0.020779221 | AA190: 0 | AB190: 0 | AC190: Rural | AD190: Distant | AE190: NULL | AF190: 0 | AG190: 0 | AH190: 0 | AI190: 0 | AJ190: 0 | AK190: 385 | AL190: 4 | AM190: 96.25
A191: 10I077110 | B191: 11269 | C191: 2018 | D191: 10 | E191: I077 | F191: 110 | G191: 3 | H191: 5 | I191: ESMS | J191: 0.549206349 | K191: 0.450793651 | L191: 0.082539683 | M191: 0.165079365 | N191: 0.003174603 | O191: 0.00952381 | P191: 0.536507937 | Q191: 0.203174603 | R191: 0 | S191: 0.168253968 | T191: 0.225396825 | U191: 0.638095238 | V191: 0.638095238 | W191: 0 | X191: 0 | Y191: 0 | Z191: 0.025396825 | AA191: 0 | AB191: 0 | AC191: Rural | AD191: Distant | AE191: NULL | AF191: 0 | AG191: 0 | AH191: 0 | AI191: 0 | AJ191: 0 | AK191: 315 | AL191: 3 | AM191: 105
A192: 10I077510 | B192: 11613 | C192: 2018 | D192: 10 | E192: I077 | F192: 510 | G192: 6 | H192: 8 | I192: ESMS | J192: 0.506711409 | K192: 0.493288591 | L192: 0.05033557 | M192: 0.218120805 | N192: 0 | O192: 0.020134228 | P192: 0.644295302 | Q192: 0.067114094 | R192: 0 | S192: 0.154362416 | T192: 0.211409396 | U192: 0.570469799 | V192: 0.570469799 | W192: 0 | X192: 0 | Y192: 0 | Z192: 0.020134228 | AA192: 0 | AB192: 0 | AC192: Rural | AD192: Distant | AE192: NULL | AF192: 0 | AG192: 0 | AH192: 0 | AI192: 0 | AJ192: 0 | AK192: 298 | AL192: 3 | AM192: 99.33333333
A193: 10I077705 | B193: 11453 | C193: 2018 | D193: 10 | E193: I077 | F193: 705 | G193: 9 | H193: 12 | I193: HS | J193: 0.479224377 | K193: 0.520775623 | L193: 0.038781163 | M193: 0.24099723 | N193: 0.002770083 | O193: 0.013850416 | P193: 0.620498615 | Q193: 0.083102493 | R193: 0 | S193: 0.138504155 | T193: 0.265927978 | U193: 0.468144044 | V193: 0.468144044 | W193: 0 | X193: 0 | Y193: 0 | Z193: 0.011080332 | AA193: 0 | AB193: 0 | AC193: Rural | AD193: Distant | AE193: NULL | AF193: 0 | AG193: 0 | AH193: 0 | AI193: 0 | AJ193: 0 | AK193: 361 | AL193: 4 | AM193: 90.25
A194: 11C010105 | B194: 11751 | C194: 2018 | D194: 11 | E194: C010 | F194: 105 | G194: -1 | H194: 8 | I194: ESMS | J194: 0.493243243 | K194: 0.506756757 | L194: 0.074324324 | M194: 0.668918919 | N194: 0 | O194: 0.006756757 | P194: 0.209459459 | Q194: 0.040540541 | R194: 0.054054054 | S194: 0.209459459 | T194: 0.067567568 | U194: 1 | V194: 1 | W194: 0.006756757 | X194: 0 | Y194: 0 | Z194: 0.054054054 | AA194: 0 | AB194: 0 | AC194: Rural | AD194: Distant | AE194: NULL | AF194: 0 | AG194: 0 | AH194: 1 | AI194: 0 | AJ194: 0 | AK194: 148 | AL194: 10 | AM194: 14.8
A195: 11C014105 | B195: 11969 | C195: 2018 | D195: =LEFT(A195,2) -> 11 | E195: C014 | F195: 105 | G195: -1 | H195: 8 | I195: ESMS | J195: 0.575342466 | K195: 0.424657534 | L195: 0.061643836 | M195: 0.438356164 | N195: 0 | O195: 0.054794521 | P195: 0.246575342 | Q195: 0.198630137 | R195: 0 | S195: 0.239726027 | T195: 0.178082192 | U195: 1 | V195: 0.993150685 | W195: 0 | X195: 0 | Y195: 0 | Z195: 0.02739726 | AA195: 0 | AB195: 0 | AC195: Rural | AD195: Distant | AE195: NULL | AF195: 0 | AG195: 0 | AH195: 1 | AI195: 0 | AJ195: 0 | AK195: 146 | AL195: 10 | AM195: 14.6
A196: 11C021105 | B196: 11618 | C196: 2018 | D196: 11 | E196: C021 | F196: 105 | G196: -1 | H196: 8 | I196: ESMS | J196: 0.494929006 | K196: 0.505070994 | L196: 0.105476673 | M196: 0.37525355 | N196: 0 | O196: 0 | P196: 0.198782961 | Q196: 0.320486815 | R196: 0.058823529 | S196: 0.184584178 | T196: 0.087221095 | U196: 0.649087221 | V196: 0.649087221 | W196: 0 | X196: 0.004056795 | Y196: 0 | Z196: 0.058823529 | AA196: 0 | AB196: 0 | AC196: Rural | AD196: Distant | AE196: NULL | AF196: 0 | AG196: 0 | AH196: 1 | AI196: 0 | AJ196: 0 | AK196: 493 | AL196: 10 | AM196: 49.3
A197: 11C026105 | B197: 11194 | C197: 2018 | D197: 11 | E197: C026 | F197: 105 | G197: -1 | H197: 8 | I197: ESMS | J197: 0.465838509 | K197: 0.534161491 | L197: 0.074534161 | M197: 0.726708075 | N197: 0.00621118 | O197: 0.00621118 | P197: 0.186335404 | Q197: 0 | R197: 0 | S197: 0.229813665 | T197: 0.099378882 | U197: 1 | V197: 1 | W197: 0 | X197: 0 | Y197: 0 | Z197: 0.658385093 | AA197: 0.372670807 | AB197: 0 | AC197: Rural | AD197: Distant | AE197: NULL | AF197: 0 | AG197: 0 | AH197: 1 | AI197: 0 | AJ197: 0 | AK197: 161 | AL197: 10 | AM197: 16.1
A198: 11C031105 | B198: 11821 | C198: 2018 | D198: 11 | E198: C031 | F198: 105 | G198: -1 | H198: 8 | I198: ESMS | J198: 0.474137931 | K198: 0.525862069 | L198: 0.025862069 | M198: 0.801724138 | N198: 0 | O198: 0 | P198: 0.163793103 | Q198: 0.00862069 | R198: 0 | S198: 0.344827586 | T198: 0.224137931 | U198: 1 | V198: 0.331896552 | W198: 0 | X198: 0 | Y198: 0.00862069 | Z198: 0.064655172 | AA198: 0 | AB198: 0 | AC198: Rural | AD198: Remote | AE198: NULL | AF198: 0 | AG198: 0 | AH198: 1 | AI198: 0 | AJ198: 0 | AK198: 232 | AL198: 10 | AM198: 23.2
A199: 11C034105 | B199: 11301 | C199: 2018 | D199: 11 | E199: C034 | F199: 105 | G199: -1 | H199: 8 | I199: ESMS | J199: 0.493913043 | K199: 0.506086957 | L199: 0.11826087 | M199: 0.662608696 | N199: 0 | O199: 0.015652174 | P199: 0.151304348 | Q199: 0.052173913 | R199: 0.466086957 | S199: 0.180869565 | T199: 0.153043478 | U199: 1 | V199: 0.994782609 | W199: 0 | X199: 0.003478261 | Y199: 0 | Z199: 0.493913043 | AA199: 0.013913043 | AB199: 0 | AC199: Rural | AD199: Fringe | AE199: NULL | AF199: 0 | AG199: 0 | AH199: 1 | AI199: 0 | AJ199: 0 | AK199: 575 | AL199: 10 | AM199: 57.5
A200: 11C044105 | B200: 12653 | C200: 2018 | D200: 11 | E200: C044 | F200: 105 | G200: -1 | H200: 8 | I200: ESMS | J200: 0.504347826 | K200: 0.495652174 | L200: 0.141304348 | M200: 0.584782609 | N200: 0.002173913 | O200: 0 | P200: 0.165217391 | Q200: 0.106521739 | R200: 0.063043478 | S200: 0.156521739 | T200: 0.132608696 | U200: 1 | V200: 1 | W200: 0 | X200: 0 | Y200: 0 | Z200: 0.110869565 | AA200: 0.006521739 | AB200: 0 | AC200: Rural | AD200: Distant | AE200: NULL | AF200: 0 | AG200: 0 | AH200: 1 | AI200: 0 | AJ200: 0 | AK200: 460 | AL200: 10 | AM200: 46
A201: 11C066105 | B201: 12212 | C201: 2018 | D201: 11 | E201: C066 | F201: 105 | G201: -1 | H201: 8 | I201: ESMS | J201: 0.531561462 | K201: 0.468438538 | L201: 0.019933555 | M201: 0.744186047 | N201: 0 | O201: 0.009966777 | P201: 0.219269103 | Q201: 0.006644518 | R201: 0.142857143 | S201: 0.209302326 | T201: 0.215946844 | U201: 1 | V201: 0.388704319 | W201: 0 | X201: 0 | Y201: 0 | Z201: 0.249169435 | AA201: 0.03654485 | AB201: 0 | AC201: Rural | AD201: Distant | AE201: NULL | AF201: 0 | AG201: 0 | AH201: 1 | AI201: 0 | AJ201: 0 | AK201: 301 | AL201: 10 | AM201: 30.1
... 1598 more rows

Sheet Academic Achievement
A2: Academic Achievement
A3: The Academic Achievement Indicator uses individual student performance on annual state tests as a measure of a student’s readiness for the next grade or course and an indication of the degree to which students are prepared for life after high school. Points are earned based on meeting or exceeding state-level targets used to ensure all students have the opportunity to improve. For all bar graphs, the reference school is in orange and the comparison schools are blue. *For elementary and middle schools, Science is worth a maximum of 5 points.
F4: Composite Score
A5: School ID | B5: County | C5: District | D5: School | E5: Academic Achievement Grade
A6: =INDEX(Matrix!$A$1:$E$2000,MATCH(CONCATENATE(Main!$B$7:$B$7,Main!$C$7:$C$7,Main!$E$7:$E$7),Matrix!$E$1:$E$2000,0),1) -> 01C032105 | B6: =Main!$B$7:$B$7 -> ADAIR | C6: =Main!$C$7:$C$7 -> GREASY | D6: =Main!$E$7:$E$7 -> GREASY PUBLIC SCHOOL | E6: =IFERROR(TRIM(VLOOKUP(A6,'Outcome Data'!$A$1:$BF$2001,14)),"") -> F
A7: =Main!A12 -> 68C050110 | B7: =Main!B12 -> SEQUOYAH | C7: =Main!C12 -> BELFONTE | D7: =Main!E12 -> BELFONTE BELL ES (ADAIR CNTY) | E7: =IFERROR(TRIM(VLOOKUP(A7,'Outcome Data'!$A$1:$BF$2001,14)),"") -> F
A8: =Main!A13 -> 01C029105 | B8: =Main!B13 -> ADAIR | C8: =Main!C13 -> DAHLONEGAH | D8: =Main!E13 -> DAHLONEGAH PUBLIC SCHOOL | E8: =IFERROR(TRIM(VLOOKUP(A8,'Outcome Data'!$A$1:$BF$2001,14)),"") -> F
A9: =Main!A14 -> 68C050105 | B9: =Main!B14 -> SEQUOYAH | C9: =Main!C14 -> BELFONTE | D9: =Main!E14 -> BELFONTE PUBLIC SCHOOL | E9: =IFERROR(TRIM(VLOOKUP(A9,'Outcome Data'!$A$1:$BF$2001,14)),"") -> C
A10: =Main!A15 -> 01C019105 | B10: =Main!B15 -> ADAIR | C10: =Main!C15 -> PEAVINE | D10: =Main!E15 -> PEAVINE PUBLIC SCHOOL | E10: =IFERROR(TRIM(VLOOKUP(A10,'Outcome Data'!$A$1:$BF$2001,14)),"") -> D
A11: =Main!A16 -> 48C072105 | B11: =Main!B16 -> MCCURTAIN | C11: =Main!C16 -> HOLLY CREEK | D11: =Main!E16 -> HOLLY CREEK PUBLIC SCHOOL | E11: =IFERROR(TRIM(VLOOKUP(A11,'Outcome Data'!$A$1:$BF$2001,14)),"") -> B
A12: =Main!A17 -> 51C009105 | B12: =Main!B17 -> MUSKOGEE | C12: =Main!C17 -> WAINWRIGHT | D12: =Main!E17 -> WAINWRIGHT PUBLIC SCHOOL | E12: =IFERROR(TRIM(VLOOKUP(A12,'Outcome Data'!$A$1:$BF$2001,14)),"") -> C
A13: =Main!A18 -> 57C035105 | B13: =Main!B18 -> OSAGE | C13: =Main!C18 -> AVANT | D13: =Main!E18 -> AVANT PUBLIC SCHOOL | E13: =IFERROR(TRIM(VLOOKUP(A13,'Outcome Data'!$A$1:$BF$2001,14)),"") -> D
A14: =Main!A19 -> 48C001105 | B14: =Main!B19 -> MCCURTAIN | C14: =Main!C19 -> FOREST GROVE | D14: =Main!E19 -> FOREST GROVE PUBLIC SCHOOL | E14: =IFERROR(TRIM(VLOOKUP(A14,'Outcome Data'!$A$1:$BF$2001,14)),"") -> C
A15: =Main!A20 -> 01I030105 | B15: =Main!B20 -> ADAIR | C15: =Main!C20 -> CAVE SPRINGS | D15: =Main!E20 -> CAVE SPRINGS ES | E15: =IFERROR(TRIM(VLOOKUP(A15,'Outcome Data'!$A$1:$BF$2001,14)),"") -> D
A16: =Main!A21 -> 31C010105 | B16: =Main!B21 -> HASKELL | C16: =Main!C21 -> WHITEFIELD | D16: =Main!E21 -> WHITEFIELD PUBLIC SCHOOL | E16: =IFERROR(TRIM(VLOOKUP(A16,'Outcome Data'!$A$1:$BF$2001,14)),"") -> C
AD17: SchoolName | AE17: PercentPointsPossibleComposite | AF17: PointsReceivedComposite | AG17: AverageStatusPointsMath | AH17: AFPointsReceivedMath | AI17: AverageStatusPointsELA | AJ17: AFPointsReceivedELA | AK17: AverageStatusPointsScience | AL17: AFPointsReceivedScience
AD18: =Main!$E$7:$E$7 -> GREASY PUBLIC SCHOOL | AE18: =IFERROR(VLOOKUP(INDEX(Matrix!$A$1:$E$2000,MATCH(CONCATENATE(Main!$B$7:$B$7,Main!$C$7:$C$7,Main!$E$7:$E$7),Matrix!$E$1:$E$2000,0),1),'Outcome Data'!$A$1:$BF$2001,10),"") -> 0.0003 | AF18: =IFERROR(VLOOKUP(INDEX(Matrix!$A$1:$E$2000,MATCH(CONCATENATE(Main!$B$7:$B$7,Main!$C$7:$C$7,Main!$E$7:$E$7),Matrix!$E$1:$E$2000,0),1),'Outcome Data'!$A$1:$BF$2001,11),"") -> 0.01 | AG18: =IFERROR(VLOOKUP(INDEX(Matrix!$A$1:$E$2000,MATCH(CONCATENATE(Main!$B$7:$B$7,Main!$C$7:$C$7,Main!$E$7:$E$7),Matrix!$E$1:$E$2000,0),1),'Outcome Data'!$A$1:$BF$2001,15)*100,"N/A") -> 9.48 | AH18: =IFERROR(VLOOKUP(INDEX(Matrix!$A$1:$E$2000,MATCH(CONCATENATE(Main!$B$7:$B$7,Main!$C$7:$C$7,Main!$E$7:$E$7),Matrix!$E$1:$E$2000,0),1),'Outcome Data'!$A$1:$BF$2001,16),"") -> 0 | AI18: =IFERROR(VLOOKUP(INDEX(Matrix!$A$1:$E$2000,MATCH(CONCATENATE(Main!$B$7:$B$7,Main!$C$7:$C$7,Main!$E$7:$E$7),Matrix!$E$1:$E$2000,0),1),'Outcome Data'!$A$1:$BF$2001,19)*100,"N/A") -> 18.4 | AJ18: =IFERROR(VLOOKUP(INDEX(Matrix!$A$1:$E$2000,MATCH(CONCATENATE(Main!$B$7:$B$7,Main!$C$7:$C$7,Main!$E$7:$E$7),Matrix!$E$1:$E$2000,0),1),'Outcome Data'!$A$1:$BF$2001,20),"") -> 0.01 | AK18: =IFERROR(VLOOKUP(INDEX(Matrix!$A$1:$E$2000,MATCH(CONCATENATE(Main!$B$7:$B$7,Main!$C$7:$C$7,Main!$E$7:$E$7),Matrix!$E$1:$E$2000,0),1),'Outcome Data'!$A$1:$BF$2001,23)*100,"N/A") -> 8.87 | AL18: =IFERROR(VLOOKUP(INDEX(Matrix!$A$1:$E$2000,MATCH(CONCATENATE(Main!$B$7:$B$7,Main!$C$7:$C$7,Main!$E$7:$E$7),Matrix!$E$1:$E$2000,0),1),'Outcome Data'!$A$1:$BF$2001,24),"") -> 0
A19: Mathematics | E19: English/ Language Arts | O19: Science | AD19: =Main!E12 -> BELFONTE BELL ES (ADAIR CNTY) | AE19: =IFERROR(VLOOKUP(Main!$A$12,'Outcome Data'!$A$1:$BG$1781,10),"") -> 0.1143 | AF19: =IFERROR(VLOOKUP(Main!$A$12,'Outcome Data'!$A$1:$BG$1781,11),"") -> 4 | AG19: =IFERROR(VLOOKUP(Main!$A$12,'Outcome Data'!$A$1:$BG$1781,15)*100,"N/A") -> 29.48 | AH19: =IFERROR(VLOOKUP(Main!$A$12,'Outcome Data'!$A$1:$BG$1781,16),"") -> 4 | AI19: =IFERROR(VLOOKUP(Main!$A$12,'Outcome Data'!$A$1:$BG$1781,19)*100,"N/A") -> 5.89 | AJ19: =IFERROR(VLOOKUP(Main!$A$12,'Outcome Data'!$A$1:$BG$1781,20),"") -> 0 | AK19: =IFERROR(VLOOKUP(Main!$A$12,'Outcome Data'!$A$1:$BG$1781,23)*100,"N/A") -> 0 | AL19: =IFERROR(VLOOKUP(Main!$A$12,'Outcome Data'!$A$1:$BG$1781,24),"") -> 0
AD20: =Main!E13 -> DAHLONEGAH PUBLIC SCHOOL | AE20: =IFERROR(VLOOKUP(Main!$A$13,'Outcome Data'!$A$1:$BG$1781,10),"") -> 0.0794 | AF20: =IFERROR(VLOOKUP(Main!$A$13,'Outcome Data'!$A$1:$BG$1781,11),"") -> 2.78 | AG20: =IFERROR(VLOOKUP(Main!$A$13,'Outcome Data'!$A$1:$BG$1781,15)*100,"N/A") -> 14.34 | AH20: =IFERROR(VLOOKUP(Main!$A$13,'Outcome Data'!$A$1:$BG$1781,16),"") -> 0.47 | AI20: =IFERROR(VLOOKUP(Main!$A$13,'Outcome Data'!$A$1:$BG$1781,19)*100,"N/A") -> 26.54 | AJ20: =IFERROR(VLOOKUP(Main!$A$13,'Outcome Data'!$A$1:$BG$1781,20),"") -> 2.31 | AK20: =IFERROR(VLOOKUP(Main!$A$13,'Outcome Data'!$A$1:$BG$1781,23)*100,"N/A") -> 11.09 | AL20: =IFERROR(VLOOKUP(Main!$A$13,'Outcome Data'!$A$1:$BG$1781,24),"") -> 0
AD21: =Main!E14 -> BELFONTE PUBLIC SCHOOL | AE21: =IFERROR(VLOOKUP(Main!$A$14,'Outcome Data'!$A$1:$BG$1781,10),"") -> 0.5097 | AF21: =IFERROR(VLOOKUP(Main!$A$14,'Outcome Data'!$A$1:$BG$1781,11),"") -> 17.84 | AG21: =IFERROR(VLOOKUP(Main!$A$14,'Outcome Data'!$A$1:$BG$1781,15)*100,"N/A") -> 50.77 | AH21: =IFERROR(VLOOKUP(Main!$A$14,'Outcome Data'!$A$1:$BG$1781,16),"") -> 8.95 | AI21: =IFERROR(VLOOKUP(Main!$A$14,'Outcome Data'!$A$1:$BG$1781,19)*100,"N/A") -> 47.1 | AJ21: =IFERROR(VLOOKUP(Main!$A$14,'Outcome Data'!$A$1:$BG$1781,20),"") -> 8.1 | AK21: =IFERROR(VLOOKUP(Main!$A$14,'Outcome Data'!$A$1:$BG$1781,23)*100,"N/A") -> 26.41 | AL21: =IFERROR(VLOOKUP(Main!$A$14,'Outcome Data'!$A$1:$BG$1781,24),"") -> 0.79
AD22: =Main!E15 -> PEAVINE PUBLIC SCHOOL | AE22: =IFERROR(VLOOKUP(Main!$A$15,'Outcome Data'!$A$1:$BG$1781,10),"") -> 0.3866 | AF22: =IFERROR(VLOOKUP(Main!$A$15,'Outcome Data'!$A$1:$BG$1781,11),"") -> 13.53 | AG22: =IFERROR(VLOOKUP(Main!$A$15,'Outcome Data'!$A$1:$BG$1781,15)*100,"N/A") -> 49.07 | AH22: =IFERROR(VLOOKUP(Main!$A$15,'Outcome Data'!$A$1:$BG$1781,16),"") -> 8.55 | AI22: =IFERROR(VLOOKUP(Main!$A$15,'Outcome Data'!$A$1:$BG$1781,19)*100,"N/A") -> 32.45 | AJ22: =IFERROR(VLOOKUP(Main!$A$15,'Outcome Data'!$A$1:$BG$1781,20),"") -> 3.97 | AK22: =IFERROR(VLOOKUP(Main!$A$15,'Outcome Data'!$A$1:$BG$1781,23)*100,"N/A") -> 29.47 | AL22: =IFERROR(VLOOKUP(Main!$A$15,'Outcome Data'!$A$1:$BG$1781,24),"") -> 1.01
AD23: =Main!E16 -> HOLLY CREEK PUBLIC SCHOOL | AE23: =IFERROR(VLOOKUP(Main!$A$16,'Outcome Data'!$A$1:$BG$1781,10),"") -> 0.7311 | AF23: =IFERROR(VLOOKUP(Main!$A$16,'Outcome Data'!$A$1:$BG$1781,11),"") -> 25.59 | AG23: =IFERROR(VLOOKUP(Main!$A$16,'Outcome Data'!$A$1:$BG$1781,15)*100,"N/A") -> 65.68 | AH23: =IFERROR(VLOOKUP(Main!$A$16,'Outcome Data'!$A$1:$BG$1781,16),"") -> 12.41 | AI23: =IFERROR(VLOOKUP(Main!$A$16,'Outcome Data'!$A$1:$BG$1781,19)*100,"N/A") -> 57.22 | AJ23: =IFERROR(VLOOKUP(Main!$A$16,'Outcome Data'!$A$1:$BG$1781,20),"") -> 10.95 | AK23: =IFERROR(VLOOKUP(Main!$A$16,'Outcome Data'!$A$1:$BG$1781,23)*100,"N/A") -> 46.28 | AL23: =IFERROR(VLOOKUP(Main!$A$16,'Outcome Data'!$A$1:$BG$1781,24),"") -> 2.23
AD24: =Main!E17 -> WAINWRIGHT PUBLIC SCHOOL | AE24: =IFERROR(VLOOKUP(Main!$A$17,'Outcome Data'!$A$1:$BG$1781,10),"") -> 0.4766 | AF24: =IFERROR(VLOOKUP(Main!$A$17,'Outcome Data'!$A$1:$BG$1781,11),"") -> 16.68 | AG24: =IFERROR(VLOOKUP(Main!$A$17,'Outcome Data'!$A$1:$BG$1781,15)*100,"N/A") -> 33.06 | AH24: =IFERROR(VLOOKUP(Main!$A$17,'Outcome Data'!$A$1:$BG$1781,16),"") -> 4.83 | AI24: =IFERROR(VLOOKUP(Main!$A$17,'Outcome Data'!$A$1:$BG$1781,19)*100,"N/A") -> 48.61 | AJ24: =IFERROR(VLOOKUP(Main!$A$17,'Outcome Data'!$A$1:$BG$1781,20),"") -> 8.52 | AK24: =IFERROR(VLOOKUP(Main!$A$17,'Outcome Data'!$A$1:$BG$1781,23)*100,"N/A") -> 61.38 | AL24: =IFERROR(VLOOKUP(Main!$A$17,'Outcome Data'!$A$1:$BG$1781,24),"") -> 3.33
AD25: =Main!E18 -> AVANT PUBLIC SCHOOL | AE25: =IFERROR(VLOOKUP(Main!$A$18,'Outcome Data'!$A$1:$BG$1781,10),"") -> 0.2749 | AF25: =IFERROR(VLOOKUP(Main!$A$18,'Outcome Data'!$A$1:$BG$1781,11),"") -> 9.62 | AG25: =IFERROR(VLOOKUP(Main!$A$18,'Outcome Data'!$A$1:$BG$1781,15)*100,"N/A") -> 24.12 | AH25: =IFERROR(VLOOKUP(Main!$A$18,'Outcome Data'!$A$1:$BG$1781,16),"") -> 2.75 | AI25: =IFERROR(VLOOKUP(Main!$A$18,'Outcome Data'!$A$1:$BG$1781,19)*100,"N/A") -> 33.57 | AJ25: =IFERROR(VLOOKUP(Main!$A$18,'Outcome Data'!$A$1:$BG$1781,20),"") -> 4.29 | AK25: =IFERROR(VLOOKUP(Main!$A$18,'Outcome Data'!$A$1:$BG$1781,23)*100,"N/A") -> 51.06 | AL25: =IFERROR(VLOOKUP(Main!$A$18,'Outcome Data'!$A$1:$BG$1781,24),"") -> 2.58
AD26: =Main!E19 -> FOREST GROVE PUBLIC SCHOOL | AE26: =IFERROR(VLOOKUP(Main!$A$19,'Outcome Data'!$A$1:$BG$1781,10),"") -> 0.4029 | AF26: =IFERROR(VLOOKUP(Main!$A$19,'Outcome Data'!$A$1:$BG$1781,11),"") -> 14.1 | AG26: =IFERROR(VLOOKUP(Main!$A$19,'Outcome Data'!$A$1:$BG$1781,15)*100,"N/A") -> 37.23 | AH26: =IFERROR(VLOOKUP(Main!$A$19,'Outcome Data'!$A$1:$BG$1781,16),"") -> 5.8 | AI26: =IFERROR(VLOOKUP(Main!$A$19,'Outcome Data'!$A$1:$BG$1781,19)*100,"N/A") -> 39.73 | AJ26: =IFERROR(VLOOKUP(Main!$A$19,'Outcome Data'!$A$1:$BG$1781,20),"") -> 6.02 | AK26: =IFERROR(VLOOKUP(Main!$A$19,'Outcome Data'!$A$1:$BG$1781,23)*100,"N/A") -> 46.91 | AL26: =IFERROR(VLOOKUP(Main!$A$19,'Outcome Data'!$A$1:$BG$1781,24),"") -> 2.28
AD27: =Main!E20 -> CAVE SPRINGS ES | AE27: =IFERROR(VLOOKUP(Main!$A$20,'Outcome Data'!$A$1:$BG$1781,10),"") -> 0.4433 | AF27: =IFERROR(VLOOKUP(Main!$A$20,'Outcome Data'!$A$1:$BG$1781,11),"") -> 13.3 | AG27: =IFERROR(VLOOKUP(Main!$A$20,'Outcome Data'!$A$1:$BG$1781,15)*100,"N/A") -> 45.15 | AH27: =IFERROR(VLOOKUP(Main!$A$20,'Outcome Data'!$A$1:$BG$1781,16),"") -> 6.87 | AI27: =IFERROR(VLOOKUP(Main!$A$20,'Outcome Data'!$A$1:$BG$1781,19)*100,"N/A") -> 43.22 | AJ27: =IFERROR(VLOOKUP(Main!$A$20,'Outcome Data'!$A$1:$BG$1781,20),"") -> 6.43 | AK27: =IFERROR(VLOOKUP(Main!$A$20,'Outcome Data'!$A$1:$BG$1781,23)*100,"N/A") -> N/A | AL27: =IFERROR(VLOOKUP(Main!$A$20,'Outcome Data'!$A$1:$BG$1781,24),"") -> N/A
AD28: =Main!E21 -> WHITEFIELD PUBLIC SCHOOL | AE28: =IFERROR(VLOOKUP(Main!$A$21,'Outcome Data'!$A$1:$BG$1781,10),"") -> 0.4129 | AF28: =IFERROR(VLOOKUP(Main!$A$21,'Outcome Data'!$A$1:$BG$1781,11),"") -> 14.45 | AG28: =IFERROR(VLOOKUP(Main!$A$21,'Outcome Data'!$A$1:$BG$1781,15)*100,"N/A") -> 40.65 | AH28: =IFERROR(VLOOKUP(Main!$A$21,'Outcome Data'!$A$1:$BG$1781,16),"") -> 6.59 | AI28: =IFERROR(VLOOKUP(Main!$A$21,'Outcome Data'!$A$1:$BG$1781,19)*100,"N/A") -> 38.25 | AJ28: =IFERROR(VLOOKUP(Main!$A$21,'Outcome Data'!$A$1:$BG$1781,20),"") -> 5.6 | AK28: =IFERROR(VLOOKUP(Main!$A$21,'Outcome Data'!$A$1:$BG$1781,23)*100,"N/A") -> 46.71 | AL28: =IFERROR(VLOOKUP(Main!$A$21,'Outcome Data'!$A$1:$BG$1781,24),"") -> 2.26
AE31: Custom Science Axes
AD32: Axis | AE32: X
AD33: Max | AE33: =IF(OR(VLOOKUP($A$6,'Outcome Data'!$A$1:$BH$2001,60)="HS",VLOOKUP($A$6,'Outcome Data'!$A$1:$BH$2001,60)="12",VLOOKUP($A$6,'Outcome Data'!$A$1:$BH$2001,60)="11",VLOOKUP($A$6,'Outcome Data'!$A$1:$BH$2001,60)="10"),15,5) -> 5
AD34: Min | AE34: 0
AD35: Major Unit | AE35: =IF(OR(VLOOKUP($A$6,'Outcome Data'!$A$1:$BH$2001,60)="HS",VLOOKUP($A$6,'Outcome Data'!$A$1:$BH$2001,60)="12",VLOOKUP($A$6,'Outcome Data'!$A$1:$BH$2001,60)="11",VLOOKUP($A$6,'Outcome Data'!$A$1:$BH$2001,60)="10"),2,1) -> 1

Sheet Academic Growth
A1: Academic Growth
A2: The Academic Growth Indicator measures an individual student’s movement within and across performance levels for English language arts (ELA) and math in consecutive years. Points for this indicator are earned based on how students are progressing in mastery of grade-level academic standards. For all bar graphs, the reference school is in orange and the comparison schools are blue.
F3: Composite Score
A4: School ID | B4: County | C4: District | D4: School | E4: Academic Growth Grade
A5: =INDEX(Matrix!$A$1:$E$2000,MATCH(CONCATENATE(Main!$B$7:$B$7,Main!$C$7:$C$7,Main!$E$7:$E$7),Matrix!$E$1:$E$2000,0),1) -> 01C032105 | B5: =Main!$B$7:$B$7 -> ADAIR | C5: =Main!$C$7:$C$7 -> GREASY | D5: =Main!$E$7:$E$7 -> GREASY PUBLIC SCHOOL | E5: =IFERROR(TRIM(VLOOKUP(A5,'Outcome Data'!$A$1:$BF$2001,31)),"") -> F
A6: =Main!A12 -> 68C050110 | B6: =Main!B12 -> SEQUOYAH | C6: =Main!C12 -> BELFONTE | D6: =Main!E12 -> BELFONTE BELL ES (ADAIR CNTY) | E6: =IFERROR(TRIM(VLOOKUP(A6,'Outcome Data'!$A$1:$BF$2001,31)),"") -> B
A7: =Main!A13 -> 01C029105 | B7: =Main!B13 -> ADAIR | C7: =Main!C13 -> DAHLONEGAH | D7: =Main!E13 -> DAHLONEGAH PUBLIC SCHOOL | E7: =IFERROR(TRIM(VLOOKUP(A7,'Outcome Data'!$A$1:$BF$2001,31)),"") -> C
A8: =Main!A14 -> 68C050105 | B8: =Main!B14 -> SEQUOYAH | C8: =Main!C14 -> BELFONTE | D8: =Main!E14 -> BELFONTE PUBLIC SCHOOL | E8: =IFERROR(TRIM(VLOOKUP(A8,'Outcome Data'!$A$1:$BF$2001,31)),"") -> A
A9: =Main!A15 -> 01C019105 | B9: =Main!B15 -> ADAIR | C9: =Main!C15 -> PEAVINE | D9: =Main!E15 -> PEAVINE PUBLIC SCHOOL | E9: =IFERROR(TRIM(VLOOKUP(A9,'Outcome Data'!$A$1:$BF$2001,31)),"") -> C
A10: =Main!A16 -> 48C072105 | B10: =Main!B16 -> MCCURTAIN | C10: =Main!C16 -> HOLLY CREEK | D10: =Main!E16 -> HOLLY CREEK PUBLIC SCHOOL | E10: =IFERROR(TRIM(VLOOKUP(A10,'Outcome Data'!$A$1:$BF$2001,31)),"") -> B
A11: =Main!A17 -> 51C009105 | B11: =Main!B17 -> MUSKOGEE | C11: =Main!C17 -> WAINWRIGHT | D11: =Main!E17 -> WAINWRIGHT PUBLIC SCHOOL | E11: =IFERROR(TRIM(VLOOKUP(A11,'Outcome Data'!$A$1:$BF$2001,31)),"") -> C
A12: =Main!A18 -> 57C035105 | B12: =Main!B18 -> OSAGE | C12: =Main!C18 -> AVANT | D12: =Main!E18 -> AVANT PUBLIC SCHOOL | E12: =IFERROR(TRIM(VLOOKUP(A12,'Outcome Data'!$A$1:$BF$2001,31)),"") -> D
A13: =Main!A19 -> 48C001105 | B13: =Main!B19 -> MCCURTAIN | C13: =Main!C19 -> FOREST GROVE | D13: =Main!E19 -> FOREST GROVE PUBLIC SCHOOL | E13: =IFERROR(TRIM(VLOOKUP(A13,'Outcome Data'!$A$1:$BF$2001,31)),"") -> D
A14: =Main!A20 -> 01I030105 | B14: =Main!B20 -> ADAIR | C14: =Main!C20 -> CAVE SPRINGS | D14: =Main!E20 -> CAVE SPRINGS ES | E14: =IFERROR(TRIM(VLOOKUP(A14,'Outcome Data'!$A$1:$BF$2001,31)),"") -> N/A
A15: =Main!A21 -> 31C010105 | B15: =Main!B21 -> HASKELL | C15: =Main!C21 -> WHITEFIELD | D15: =Main!E21 -> WHITEFIELD PUBLIC SCHOOL | E15: =IFERROR(TRIM(VLOOKUP(A15,'Outcome Data'!$A$1:$BF$2001,31)),"") -> C
AD16: SchoolName | AE16: PercentPointsPossibleComposite | AF16: PointsReceivedComposite | AG16: AverageGrowthPointsMath | AH16: AFPointsReceivedMath | AI16: AverageGrowthPointsELA | AJ16: AFPointsReceivedELA
AD17: =Main!$E$7:$E$7 -> GREASY PUBLIC SCHOOL | AE17: =IFERROR(VLOOKUP(INDEX(Matrix!$A$1:$E$2000,MATCH(CONCATENATE(Main!$B$7:$B$7,Main!$C$7:$C$7,Main!$E$7:$E$7),Matrix!$E$1:$E$2000,0),1),'Outcome Data'!$A$1:$BF$2001,27),"") -> 0.0743 | AF17: =IFERROR(VLOOKUP(INDEX(Matrix!$A$1:$E$2000,MATCH(CONCATENATE(Main!$B$7:$B$7,Main!$C$7:$C$7,Main!$E$7:$E$7),Matrix!$E$1:$E$2000,0),1),'Outcome Data'!$A$1:$BF$2001,28),"") -> 2.23 | AG17: =IFERROR(VLOOKUP(INDEX(Matrix!$A$1:$E$2000,MATCH(CONCATENATE(Main!$B$7:$B$7,Main!$C$7:$C$7,Main!$E$7:$E$7),Matrix!$E$1:$E$2000,0),1),'Outcome Data'!$A$1:$BF$2001,32)*100,"N/A") -> 49.03 | AH17: =IFERROR(VLOOKUP(INDEX(Matrix!$A$1:$E$2000,MATCH(CONCATENATE(Main!$B$7:$B$7,Main!$C$7:$C$7,Main!$E$7:$E$7),Matrix!$E$1:$E$2000,0),1),'Outcome Data'!$A$1:$BF$2001,33),"") -> 0 | AI17: =IFERROR(VLOOKUP(INDEX(Matrix!$A$1:$E$2000,MATCH(CONCATENATE(Main!$B$7:$B$7,Main!$C$7:$C$7,Main!$E$7:$E$7),Matrix!$E$1:$E$2000,0),1),'Outcome Data'!$A$1:$BF$2001,36)*100,"N/A") -> 76.77 | AJ17: =IFERROR(VLOOKUP(INDEX(Matrix!$A$1:$E$2000,MATCH(CONCATENATE(Main!$B$7:$B$7,Main!$C$7:$C$7,Main!$E$7:$E$7),Matrix!$E$1:$E$2000,0),1),'Outcome Data'!$A$1:$BF$2001,37),"") -> 2.23
A18: Mathematics | E18: English/ Language Arts | AD18: =Main!E12 -> BELFONTE BELL ES (ADAIR CNTY) | AE18: =IFERROR(VLOOKUP(Main!$A$12,'Outcome Data'!$A$1:$BG$1781,27),"") -> 0.804 | AF18: =IFERROR(VLOOKUP(Main!$A$12,'Outcome Data'!$A$1:$BG$1781,28),"") -> 24.12 | AG18: =IFERROR(VLOOKUP(Main!$A$12,'Outcome Data'!$A$1:$BG$1781,32)*100,"N/A") -> 99 | AH18: =IFERROR(VLOOKUP(Main!$A$12,'Outcome Data'!$A$1:$BG$1781,33),"") -> 13.48 | AI18: =IFERROR(VLOOKUP(Main!$A$12,'Outcome Data'!$A$1:$BG$1781,36)*100,"N/A") -> 96.6 | AJ18: =IFERROR(VLOOKUP(Main!$A$12,'Outcome Data'!$A$1:$BG$1781,37),"") -> 10.64
AD19: =Main!E13 -> DAHLONEGAH PUBLIC SCHOOL | AE19: =IFERROR(VLOOKUP(Main!$A$13,'Outcome Data'!$A$1:$BG$1781,27),"") -> 0.5027 | AF19: =IFERROR(VLOOKUP(Main!$A$13,'Outcome Data'!$A$1:$BG$1781,28),"") -> 15.08 | AG19: =IFERROR(VLOOKUP(Main!$A$13,'Outcome Data'!$A$1:$BG$1781,32)*100,"N/A") -> 73.69 | AH19: =IFERROR(VLOOKUP(Main!$A$13,'Outcome Data'!$A$1:$BG$1781,33),"") -> 5.95 | AI19: =IFERROR(VLOOKUP(Main!$A$13,'Outcome Data'!$A$1:$BG$1781,36)*100,"N/A") -> 93.05 | AJ19: =IFERROR(VLOOKUP(Main!$A$13,'Outcome Data'!$A$1:$BG$1781,37),"") -> 9.13
AD20: =Main!E14 -> BELFONTE PUBLIC SCHOOL | AE20: =IFERROR(VLOOKUP(Main!$A$14,'Outcome Data'!$A$1:$BG$1781,27),"") -> 0.897 | AF20: =IFERROR(VLOOKUP(Main!$A$14,'Outcome Data'!$A$1:$BG$1781,28),"") -> 26.91 | AG20: =IFERROR(VLOOKUP(Main!$A$14,'Outcome Data'!$A$1:$BG$1781,32)*100,"N/A") -> 95.5 | AH20: =IFERROR(VLOOKUP(Main!$A$14,'Outcome Data'!$A$1:$BG$1781,33),"") -> 12.44 | AI20: =IFERROR(VLOOKUP(Main!$A$14,'Outcome Data'!$A$1:$BG$1781,36)*100,"N/A") -> 105.63 | AJ20: =IFERROR(VLOOKUP(Main!$A$14,'Outcome Data'!$A$1:$BG$1781,37),"") -> 14.47
AD21: =Main!E15 -> PEAVINE PUBLIC SCHOOL | AE21: =IFERROR(VLOOKUP(Main!$A$15,'Outcome Data'!$A$1:$BG$1781,27),"") -> 0.5097 | AF21: =IFERROR(VLOOKUP(Main!$A$15,'Outcome Data'!$A$1:$BG$1781,28),"") -> 15.29 | AG21: =IFERROR(VLOOKUP(Main!$A$15,'Outcome Data'!$A$1:$BG$1781,32)*100,"N/A") -> 85.42 | AH21: =IFERROR(VLOOKUP(Main!$A$15,'Outcome Data'!$A$1:$BG$1781,33),"") -> 9.44 | AI21: =IFERROR(VLOOKUP(Main!$A$15,'Outcome Data'!$A$1:$BG$1781,36)*100,"N/A") -> 85.31 | AJ21: =IFERROR(VLOOKUP(Main!$A$15,'Outcome Data'!$A$1:$BG$1781,37),"") -> 5.85
AD22: =Main!E16 -> HOLLY CREEK PUBLIC SCHOOL | AE22: =IFERROR(VLOOKUP(Main!$A$16,'Outcome Data'!$A$1:$BG$1781,27),"") -> 0.6573 | AF22: =IFERROR(VLOOKUP(Main!$A$16,'Outcome Data'!$A$1:$BG$1781,28),"") -> 19.72 | AG22: =IFERROR(VLOOKUP(Main!$A$16,'Outcome Data'!$A$1:$BG$1781,32)*100,"N/A") -> 88.26 | AH22: =IFERROR(VLOOKUP(Main!$A$16,'Outcome Data'!$A$1:$BG$1781,33),"") -> 10.29 | AI22: =IFERROR(VLOOKUP(Main!$A$16,'Outcome Data'!$A$1:$BG$1781,36)*100,"N/A") -> 93.76 | AJ22: =IFERROR(VLOOKUP(Main!$A$16,'Outcome Data'!$A$1:$BG$1781,37),"") -> 9.43
AD23: =Main!E17 -> WAINWRIGHT PUBLIC SCHOOL | AE23: =IFERROR(VLOOKUP(Main!$A$17,'Outcome Data'!$A$1:$BG$1781,27),"") -> 0.4843 | AF23: =IFERROR(VLOOKUP(Main!$A$17,'Outcome Data'!$A$1:$BG$1781,28),"") -> 14.53 | AG23: =IFERROR(VLOOKUP(Main!$A$17,'Outcome Data'!$A$1:$BG$1781,32)*100,"N/A") -> 64.1 | AH23: =IFERROR(VLOOKUP(Main!$A$17,'Outcome Data'!$A$1:$BG$1781,33),"") -> 3.1 | AI23: =IFERROR(VLOOKUP(Main!$A$17,'Outcome Data'!$A$1:$BG$1781,36)*100,"N/A") -> 98.46 | AJ23: =IFERROR(VLOOKUP(Main!$A$17,'Outcome Data'!$A$1:$BG$1781,37),"") -> 11.43
AD24: =Main!E18 -> AVANT PUBLIC SCHOOL | AE24: =IFERROR(VLOOKUP(Main!$A$18,'Outcome Data'!$A$1:$BG$1781,27),"") -> 0.263 | AF24: =IFERROR(VLOOKUP(Main!$A$18,'Outcome Data'!$A$1:$BG$1781,28),"") -> 7.89 | AG24: =IFERROR(VLOOKUP(Main!$A$18,'Outcome Data'!$A$1:$BG$1781,32)*100,"N/A") -> 60.56 | AH24: =IFERROR(VLOOKUP(Main!$A$18,'Outcome Data'!$A$1:$BG$1781,33),"") -> 2.05 | AI24: =IFERROR(VLOOKUP(Main!$A$18,'Outcome Data'!$A$1:$BG$1781,36)*100,"N/A") -> 85.28 | AJ24: =IFERROR(VLOOKUP(Main!$A$18,'Outcome Data'!$A$1:$BG$1781,37),"") -> 5.84
AD25: =Main!E19 -> FOREST GROVE PUBLIC SCHOOL | AE25: =IFERROR(VLOOKUP(Main!$A$19,'Outcome Data'!$A$1:$BG$1781,27),"") -> 0.3303 | AF25: =IFERROR(VLOOKUP(Main!$A$19,'Outcome Data'!$A$1:$BG$1781,28),"") -> 9.91 | AG25: =IFERROR(VLOOKUP(Main!$A$19,'Outcome Data'!$A$1:$BG$1781,32)*100,"N/A") -> 68.94 | AH25: =IFERROR(VLOOKUP(Main!$A$19,'Outcome Data'!$A$1:$BG$1781,33),"") -> 4.54 | AI25: =IFERROR(VLOOKUP(Main!$A$19,'Outcome Data'!$A$1:$BG$1781,36)*100,"N/A") -> 84.17 | AJ25: =IFERROR(VLOOKUP(Main!$A$19,'Outcome Data'!$A$1:$BG$1781,37),"") -> 5.37
AD26: =Main!E20 -> CAVE SPRINGS ES | AE26: =IFERROR(VLOOKUP(Main!$A$20,'Outcome Data'!$A$1:$BG$1781,27),"") -> N/A | AF26: =IFERROR(VLOOKUP(Main!$A$20,'Outcome Data'!$A$1:$BG$1781,28),"") -> N/A | AG26: =IFERROR(VLOOKUP(Main!$A$20,'Outcome Data'!$A$1:$BG$1781,32)*100,"N/A") -> N/A | AH26: =IFERROR(VLOOKUP(Main!$A$20,'Outcome Data'!$A$1:$BG$1781,33),"") -> N/A | AI26: =IFERROR(VLOOKUP(Main!$A$20,'Outcome Data'!$A$1:$BG$1781,36)*100,"N/A") -> N/A | AJ26: =IFERROR(VLOOKUP(Main!$A$20,'Outcome Data'!$A$1:$BG$1781,37),"") -> N/A
AD27: =Main!E21 -> WHITEFIELD PUBLIC SCHOOL | AE27: =IFERROR(VLOOKUP(Main!$A$21,'Outcome Data'!$A$1:$BG$1781,27),"") -> 0.445 | AF27: =IFERROR(VLOOKUP(Main!$A$21,'Outcome Data'!$A$1:$BG$1781,28),"") -> 13.35 | AG27: =IFERROR(VLOOKUP(Main!$A$21,'Outcome Data'!$A$1:$BG$1781,32)*100,"N/A") -> 66.28 | AH27: =IFERROR(VLOOKUP(Main!$A$21,'Outcome Data'!$A$1:$BG$1781,33),"") -> 3.75 | AI27: =IFERROR(VLOOKUP(Main!$A$21,'Outcome Data'!$A$1:$BG$1781,36)*100,"N/A") -> 94.15 | AJ27: =IFERROR(VLOOKUP(Main!$A$21,'Outcome Data'!$A$1:$BG$1781,37),"") -> 9.6
AE30: Custom Science Axes
AD31: Axis | AE31: X
AD32: Max | AE32: =IF(OR(VLOOKUP($A$5,'Outcome Data'!$A$1:$BH$2001,60)="HS",VLOOKUP($A$5,'Outcome Data'!$A$1:$BH$2001,60)="12",VLOOKUP($A$5,'Outcome Data'!$A$1:$BH$2001,60)="11",VLOOKUP($A$5,'Outcome Data'!$A$1:$BH$2001,60)="10"),15,5) -> 5
AD33: Min | AE33: 0
AD34: Major Unit | AE34: =IF(OR(VLOOKUP($A$5,'Outcome Data'!$A$1:$BH$2001,60)="HS",VLOOKUP($A$5,'Outcome Data'!$A$1:$BH$2001,60)="12",VLOOKUP($A$5,'Outcome Data'!$A$1:$BH$2001,60)="11",VLOOKUP($A$5,'Outcome Data'!$A$1:$BH$2001,60)="10"),2,1) -> 1

Sheet ELP Progress
A1: ELP Progress
A2: The English Language Proficiency (ELP) Indicator measures the progress of English learners (ELs) toward achieving English language proficiency in their language acquisition program. This indicator reflects the percentage of ELs who meet or exceed their yearly checkpoint score, indicating that they are on track to exit within the prescribed timeframe. The indicator also includes students who have exited their program within the last four years. For all bar graphs, the reference school is in orange and the comparison schools are blue.
A4: School ID | B4: County | C4: District | D4: School | E4: ELP Progress Grade
A5: =INDEX(Matrix!$A$1:$E$2000,MATCH(CONCATENATE(Main!$B$7:$B$7,Main!$C$7:$C$7,Main!$E$7:$E$7),Matrix!$E$1:$E$2000,0),1) -> 01C032105 | B5: =Main!$B$7:$B$7 -> ADAIR | C5: =Main!$C$7:$C$7 -> GREASY | D5: =Main!$E$7:$E$7 -> GREASY PUBLIC SCHOOL | E5: =IFERROR(TRIM(VLOOKUP(A5,'Outcome Data'!$A$1:$BF$2001,44)),"") -> N/A
A6: =Main!A12 -> 68C050110 | B6: =Main!B12 -> SEQUOYAH | C6: =Main!C12 -> BELFONTE | D6: =Main!E12 -> BELFONTE BELL ES (ADAIR CNTY) | E6: =IFERROR(TRIM(VLOOKUP(A6,'Outcome Data'!$A$1:$BF$2001,44)),"") -> F
A7: =Main!A13 -> 01C029105 | B7: =Main!B13 -> ADAIR | C7: =Main!C13 -> DAHLONEGAH | D7: =Main!E13 -> DAHLONEGAH PUBLIC SCHOOL | E7: =IFERROR(TRIM(VLOOKUP(A7,'Outcome Data'!$A$1:$BF$2001,44)),"") -> N/A
A8: =Main!A14 -> 68C050105 | B8: =Main!B14 -> SEQUOYAH | C8: =Main!C14 -> BELFONTE | D8: =Main!E14 -> BELFONTE PUBLIC SCHOOL | E8: =IFERROR(TRIM(VLOOKUP(A8,'Outcome Data'!$A$1:$BF$2001,44)),"") -> C
A9: =Main!A15 -> 01C019105 | B9: =Main!B15 -> ADAIR | C9: =Main!C15 -> PEAVINE | D9: =Main!E15 -> PEAVINE PUBLIC SCHOOL | E9: =IFERROR(TRIM(VLOOKUP(A9,'Outcome Data'!$A$1:$BF$2001,44)),"") -> C
A10: =Main!A16 -> 48C072105 | B10: =Main!B16 -> MCCURTAIN | C10: =Main!C16 -> HOLLY CREEK | D10: =Main!E16 -> HOLLY CREEK PUBLIC SCHOOL | E10: =IFERROR(TRIM(VLOOKUP(A10,'Outcome Data'!$A$1:$BF$2001,44)),"") -> N/A
A11: =Main!A17 -> 51C009105 | B11: =Main!B17 -> MUSKOGEE | C11: =Main!C17 -> WAINWRIGHT | D11: =Main!E17 -> WAINWRIGHT PUBLIC SCHOOL | E11: =IFERROR(TRIM(VLOOKUP(A11,'Outcome Data'!$A$1:$BF$2001,44)),"") -> N/A
A12: =Main!A18 -> 57C035105 | B12: =Main!B18 -> OSAGE | C12: =Main!C18 -> AVANT | D12: =Main!E18 -> AVANT PUBLIC SCHOOL | E12: =IFERROR(TRIM(VLOOKUP(A12,'Outcome Data'!$A$1:$BF$2001,44)),"") -> N/A
A13: =Main!A19 -> 48C001105 | B13: =Main!B19 -> MCCURTAIN | C13: =Main!C19 -> FOREST GROVE | D13: =Main!E19 -> FOREST GROVE PUBLIC SCHOOL | E13: =IFERROR(TRIM(VLOOKUP(A13,'Outcome Data'!$A$1:$BF$2001,44)),"") -> N/A
A14: =Main!A20 -> 01I030105 | B14: =Main!B20 -> ADAIR | C14: =Main!C20 -> CAVE SPRINGS | D14: =Main!E20 -> CAVE SPRINGS ES | E14: =IFERROR(TRIM(VLOOKUP(A14,'Outcome Data'!$A$1:$BF$2001,44)),"") -> N/A
A15: =Main!A21 -> 31C010105 | B15: =Main!B21 -> HASKELL | C15: =Main!C21 -> WHITEFIELD | D15: =Main!E21 -> WHITEFIELD PUBLIC SCHOOL | E15: =IFERROR(TRIM(VLOOKUP(A15,'Outcome Data'!$A$1:$BF$2001,44)),"") -> N/A
AD16: SchoolName | AE16: PercentOnTrack | AF16: PointsReceived
AD17: =Main!$E$7:$E$7 -> GREASY PUBLIC SCHOOL | AE17: =IFERROR(VLOOKUP(INDEX(Matrix!$A$1:$E$2000,MATCH(CONCATENATE(Main!$B$7:$B$7,Main!$C$7:$C$7,Main!$E$7:$E$7),Matrix!$E$1:$E$2000,0),1),'Outcome Data'!$A$1:$BF$2001,40),"") -> N/A | AF17: =IFERROR(VLOOKUP(INDEX(Matrix!$A$1:$E$2000,MATCH(CONCATENATE(Main!$B$7:$B$7,Main!$C$7:$C$7,Main!$E$7:$E$7),Matrix!$E$1:$E$2000,0),1),'Outcome Data'!$A$1:$BF$2001,41),"") -> N/A
AD18: =Main!E12 -> BELFONTE BELL ES (ADAIR CNTY) | AE18: =IFERROR(VLOOKUP(Main!$A$12,'Outcome Data'!$A$1:$BG$1781,40),"") -> 0 | AF18: =IFERROR(VLOOKUP(Main!$A$12,'Outcome Data'!$A$1:$BG$1781,41),"") -> 0
AD19: =Main!E13 -> DAHLONEGAH PUBLIC SCHOOL | AE19: =IFERROR(VLOOKUP(Main!$A$13,'Outcome Data'!$A$1:$BG$1781,40),"") -> N/A | AF19: =IFERROR(VLOOKUP(Main!$A$13,'Outcome Data'!$A$1:$BG$1781,41),"") -> N/A
AD20: =Main!E14 -> BELFONTE PUBLIC SCHOOL | AE20: =IFERROR(VLOOKUP(Main!$A$14,'Outcome Data'!$A$1:$BG$1781,40),"") -> 0.1667 | AF20: =IFERROR(VLOOKUP(Main!$A$14,'Outcome Data'!$A$1:$BG$1781,41),"") -> 4.23
AD21: =Main!E15 -> PEAVINE PUBLIC SCHOOL | AE21: =IFERROR(VLOOKUP(Main!$A$15,'Outcome Data'!$A$1:$BG$1781,40),"") -> 0.1538 | AF21: =IFERROR(VLOOKUP(Main!$A$15,'Outcome Data'!$A$1:$BG$1781,41),"") -> 3.9
AD22: =Main!E16 -> HOLLY CREEK PUBLIC SCHOOL | AE22: =IFERROR(VLOOKUP(Main!$A$16,'Outcome Data'!$A$1:$BG$1781,40),"") -> N/A | AF22: =IFERROR(VLOOKUP(Main!$A$16,'Outcome Data'!$A$1:$BG$1781,41),"") -> N/A
AD23: =Main!E17 -> WAINWRIGHT PUBLIC SCHOOL | AE23: =IFERROR(VLOOKUP(Main!$A$17,'Outcome Data'!$A$1:$BG$1781,40),"") -> N/A | AF23: =IFERROR(VLOOKUP(Main!$A$17,'Outcome Data'!$A$1:$BG$1781,41),"") -> N/A
AD24: =Main!E18 -> AVANT PUBLIC SCHOOL | AE24: =IFERROR(VLOOKUP(Main!$A$18,'Outcome Data'!$A$1:$BG$1781,40),"") -> N/A | AF24: =IFERROR(VLOOKUP(Main!$A$18,'Outcome Data'!$A$1:$BG$1781,41),"") -> N/A
AD25: =Main!E19 -> FOREST GROVE PUBLIC SCHOOL | AE25: =IFERROR(VLOOKUP(Main!$A$19,'Outcome Data'!$A$1:$BG$1781,40),"") -> N/A | AF25: =IFERROR(VLOOKUP(Main!$A$19,'Outcome Data'!$A$1:$BG$1781,41),"") -> N/A
AD26: =Main!E20 -> CAVE SPRINGS ES | AE26: =IFERROR(VLOOKUP(Main!$A$20,'Outcome Data'!$A$1:$BG$1781,40),"") -> N/A | AF26: =IFERROR(VLOOKUP(Main!$A$20,'Outcome Data'!$A$1:$BG$1781,41),"") -> N/A
AD27: =Main!E21 -> WHITEFIELD PUBLIC SCHOOL | AE27: =IFERROR(VLOOKUP(Main!$A$21,'Outcome Data'!$A$1:$BG$1781,40),"") -> N/A | AF27: =IFERROR(VLOOKUP(Main!$A$21,'Outcome Data'!$A$1:$BG$1781,41),"") -> N/A
AE30: Custom Science Axes
AD31: Axis | AE31: X
AD32: Max | AE32: =IF(OR(VLOOKUP($A$5,'Outcome Data'!$A$1:$BH$2001,60)="HS",VLOOKUP($A$5,'Outcome Data'!$A$1:$BH$2001,60)="12",VLOOKUP($A$5,'Outcome Data'!$A$1:$BH$2001,60)="11",VLOOKUP($A$5,'Outcome Data'!$A$1:$BH$2001,60)="10"),15,5) -> 5
AD33: Min | AE33: 0
AD34: Major Unit | AE34: =IF(OR(VLOOKUP($A$5,'Outcome Data'!$A$1:$BH$2001,60)="HS",VLOOKUP($A$5,'Outcome Data'!$A$1:$BH$2001,60)="12",VLOOKUP($A$5,'Outcome Data'!$A$1:$BH$2001,60)="11",VLOOKUP($A$5,'Outcome Data'!$A$1:$BH$2001,60)="10"),2,1) -> 1

Sheet Graduation
A1: Graduation
A2: The Graduation Indicator measures how Oklahoma schools are providing the guidance and supports students need to graduate. The Graduation indicator is comprised of two measures: the four-year graduation rate and a graduation improvement score. The improvement score is not a “rate” but rather a measure of students who graduated in their fifth (or sixth, beginning in the 2018-19) year. For all bar graphs, the reference school is in orange and the comparison schools are blue. *The graduation score is the Four Year Graduation Rate plus the Improvement Score.
A4: School ID | B4: County | C4: District | D4: School | E4: Graduation Grade
A5: =INDEX(Matrix!$A$1:$E$2000,MATCH(CONCATENATE(Main!$B$7:$B$7,Main!$C$7:$C$7,Main!$E$7:$E$7),Matrix!$E$1:$E$2000,0),1) -> 01C032105 | B5: =Main!$B$7:$B$7 -> ADAIR | C5: =Main!$C$7:$C$7 -> GREASY | D5: =Main!$E$7:$E$7 -> GREASY PUBLIC SCHOOL | E5: =IFERROR(TRIM(VLOOKUP(A5,'Outcome Data'!$A$1:$BF$2001,49)),"") -> N/A
A6: =Main!A12 -> 68C050110 | B6: =Main!B12 -> SEQUOYAH | C6: =Main!C12 -> BELFONTE | D6: =Main!E12 -> BELFONTE BELL ES (ADAIR CNTY) | E6: =IFERROR(TRIM(VLOOKUP(A6,'Outcome Data'!$A$1:$BF$2001,49)),"") -> N/A
A7: =Main!A13 -> 01C029105 | B7: =Main!B13 -> ADAIR | C7: =Main!C13 -> DAHLONEGAH | D7: =Main!E13 -> DAHLONEGAH PUBLIC SCHOOL | E7: =IFERROR(TRIM(VLOOKUP(A7,'Outcome Data'!$A$1:$BF$2001,49)),"") -> N/A
A8: =Main!A14 -> 68C050105 | B8: =Main!B14 -> SEQUOYAH | C8: =Main!C14 -> BELFONTE | D8: =Main!E14 -> BELFONTE PUBLIC SCHOOL | E8: =IFERROR(TRIM(VLOOKUP(A8,'Outcome Data'!$A$1:$BF$2001,49)),"") -> N/A
A9: =Main!A15 -> 01C019105 | B9: =Main!B15 -> ADAIR | C9: =Main!C15 -> PEAVINE | D9: =Main!E15 -> PEAVINE PUBLIC SCHOOL | E9: =IFERROR(TRIM(VLOOKUP(A9,'Outcome Data'!$A$1:$BF$2001,49)),"") -> N/A
A10: =Main!A16 -> 48C072105 | B10: =Main!B16 -> MCCURTAIN | C10: =Main!C16 -> HOLLY CREEK | D10: =Main!E16 -> HOLLY CREEK PUBLIC SCHOOL | E10: =IFERROR(TRIM(VLOOKUP(A10,'Outcome Data'!$A$1:$BF$2001,49)),"") -> N/A
A11: =Main!A17 -> 51C009105 | B11: =Main!B17 -> MUSKOGEE | C11: =Main!C17 -> WAINWRIGHT | D11: =Main!E17 -> WAINWRIGHT PUBLIC SCHOOL | E11: =IFERROR(TRIM(VLOOKUP(A11,'Outcome Data'!$A$1:$BF$2001,49)),"") -> N/A
A12: =Main!A18 -> 57C035105 | B12: =Main!B18 -> OSAGE | C12: =Main!C18 -> AVANT | D12: =Main!E18 -> AVANT PUBLIC SCHOOL | E12: =IFERROR(TRIM(VLOOKUP(A12,'Outcome Data'!$A$1:$BF$2001,49)),"") -> N/A
A13: =Main!A19 -> 48C001105 | B13: =Main!B19 -> MCCURTAIN | C13: =Main!C19 -> FOREST GROVE | D13: =Main!E19 -> FOREST GROVE PUBLIC SCHOOL | E13: =IFERROR(TRIM(VLOOKUP(A13,'Outcome Data'!$A$1:$BF$2001,49)),"") -> N/A
A14: =Main!A20 -> 01I030105 | B14: =Main!B20 -> ADAIR | C14: =Main!C20 -> CAVE SPRINGS | D14: =Main!E20 -> CAVE SPRINGS ES | E14: =IFERROR(TRIM(VLOOKUP(A14,'Outcome Data'!$A$1:$BF$2001,49)),"") -> N/A
A15: =Main!A21 -> 31C010105 | B15: =Main!B21 -> HASKELL | C15: =Main!C21 -> WHITEFIELD | D15: =Main!E21 -> WHITEFIELD PUBLIC SCHOOL | E15: =IFERROR(TRIM(VLOOKUP(A15,'Outcome Data'!$A$1:$BF$2001,49)),"") -> N/A
AD16: SchoolName | AE16: PercentOnTrack | AF16: PointsReceived | AG16: GradRate4Y
AD17: =Main!$E$7:$E$7 -> GREASY PUBLIC SCHOOL | AE17: =IFERROR(VLOOKUP(INDEX(Matrix!$A$1:$E$2000,MATCH(CONCATENATE(Main!$B$7:$B$7,Main!$C$7:$C$7,Main!$E$7:$E$7),Matrix!$E$1:$E$2000,0),1),'Outcome Data'!$A$1:$BF$2001,45)*100,"N/A") -> N/A | AF17: =IFERROR(VLOOKUP(INDEX(Matrix!$A$1:$E$2000,MATCH(CONCATENATE(Main!$B$7:$B$7,Main!$C$7:$C$7,Main!$E$7:$E$7),Matrix!$E$1:$E$2000,0),1),'Outcome Data'!$A$1:$BF$2001,46),"") -> N/A | AG17: =IFERROR(VLOOKUP(INDEX(Matrix!$A$1:$E$2000,MATCH(CONCATENATE(Main!$B$7:$B$7,Main!$C$7:$C$7,Main!$E$7:$E$7),Matrix!$E$1:$E$2000,0),1),'Outcome Data'!$A$1:$BI$2001,61),"") -> 0
AD18: =Main!E12 -> BELFONTE BELL ES (ADAIR CNTY) | AE18: =IFERROR(VLOOKUP(Main!$A$12,'Outcome Data'!$A$1:$BG$1781,45)*100,"N/A") -> N/A | AF18: =IFERROR(VLOOKUP(Main!$A$12,'Outcome Data'!$A$1:$BG$1781,46),"") -> N/A | AG18: =IFERROR(VLOOKUP(Main!$A$12,'Outcome Data'!$A$1:$BI$1781,61),"") -> 0
AD19: =Main!E13 -> DAHLONEGAH PUBLIC SCHOOL | AE19: =IFERROR(VLOOKUP(Main!$A$13,'Outcome Data'!$A$1:$BG$1781,45)*100,"N/A") -> N/A | AF19: =IFERROR(VLOOKUP(Main!$A$13,'Outcome Data'!$A$1:$BG$1781,46),"") -> N/A | AG19: =IFERROR(VLOOKUP(Main!$A$13,'Outcome Data'!$A$1:$BI$1781,61),"") -> 0
AD20: =Main!E14 -> BELFONTE PUBLIC SCHOOL | AE20: =IFERROR(VLOOKUP(Main!$A$14,'Outcome Data'!$A$1:$BG$1781,45)*100,"N/A") -> N/A | AF20: =IFERROR(VLOOKUP(Main!$A$14,'Outcome Data'!$A$1:$BG$1781,46),"") -> N/A | AG20: =IFERROR(VLOOKUP(Main!$A$14,'Outcome Data'!$A$1:$BI$1781,61),"") -> 0
AD21: =Main!E15 -> PEAVINE PUBLIC SCHOOL | AE21: =IFERROR(VLOOKUP(Main!$A$15,'Outcome Data'!$A$1:$BG$1781,45)*100,"N/A") -> N/A | AF21: =IFERROR(VLOOKUP(Main!$A$15,'Outcome Data'!$A$1:$BG$1781,46),"") -> N/A | AG21: =IFERROR(VLOOKUP(Main!$A$15,'Outcome Data'!$A$1:$BI$1781,61),"") -> 0
AD22: =Main!E16 -> HOLLY CREEK PUBLIC SCHOOL | AE22: =IFERROR(VLOOKUP(Main!$A$16,'Outcome Data'!$A$1:$BG$1781,45)*100,"N/A") -> N/A | AF22: =IFERROR(VLOOKUP(Main!$A$16,'Outcome Data'!$A$1:$BG$1781,46),"") -> N/A | AG22: =IFERROR(VLOOKUP(Main!$A$16,'Outcome Data'!$A$1:$BI$1781,61),"") -> 0
AD23: =Main!E17 -> WAINWRIGHT PUBLIC SCHOOL | AE23: =IFERROR(VLOOKUP(Main!$A$17,'Outcome Data'!$A$1:$BG$1781,45)*100,"N/A") -> N/A | AF23: =IFERROR(VLOOKUP(Main!$A$17,'Outcome Data'!$A$1:$BG$1781,46),"") -> N/A | AG23: =IFERROR(VLOOKUP(Main!$A$17,'Outcome Data'!$A$1:$BI$1781,61),"") -> 0
AD24: =Main!E18 -> AVANT PUBLIC SCHOOL | AE24: =IFERROR(VLOOKUP(Main!$A$18,'Outcome Data'!$A$1:$BG$1781,45)*100,"N/A") -> N/A | AF24: =IFERROR(VLOOKUP(Main!$A$18,'Outcome Data'!$A$1:$BG$1781,46),"") -> N/A | AG24: =IFERROR(VLOOKUP(Main!$A$18,'Outcome Data'!$A$1:$BI$1781,61),"") -> 0
AD25: =Main!E19 -> FOREST GROVE PUBLIC SCHOOL | AE25: =IFERROR(VLOOKUP(Main!$A$19,'Outcome Data'!$A$1:$BG$1781,45)*100,"N/A") -> N/A | AF25: =IFERROR(VLOOKUP(Main!$A$19,'Outcome Data'!$A$1:$BG$1781,46),"") -> N/A | AG25: =IFERROR(VLOOKUP(Main!$A$19,'Outcome Data'!$A$1:$BI$1781,61),"") -> 0
AD26: =Main!E20 -> CAVE SPRINGS ES | AE26: =IFERROR(VLOOKUP(Main!$A$20,'Outcome Data'!$A$1:$BG$1781,45)*100,"N/A") -> N/A | AF26: =IFERROR(VLOOKUP(Main!$A$20,'Outcome Data'!$A$1:$BG$1781,46),"") -> N/A | AG26: =IFERROR(VLOOKUP(Main!$A$20,'Outcome Data'!$A$1:$BI$1781,61),"") -> 0
AD27: =Main!E21 -> WHITEFIELD PUBLIC SCHOOL | AE27: =IFERROR(VLOOKUP(Main!$A$21,'Outcome Data'!$A$1:$BG$1781,45)*100,"N/A") -> N/A | AF27: =IFERROR(VLOOKUP(Main!$A$21,'Outcome Data'!$A$1:$BG$1781,46),"") -> N/A | AG27: =IFERROR(VLOOKUP(Main!$A$21,'Outcome Data'!$A$1:$BI$1781,61),"") -> 0
AE30: Custom Science Axes
AD31: Axis | AE31: X
AD32: Max | AE32: =IF(OR(VLOOKUP($A$5,'Outcome Data'!$A$1:$BH$2001,60)="HS",VLOOKUP($A$5,'Outcome Data'!$A$1:$BH$2001,60)="12",VLOOKUP($A$5,'Outcome Data'!$A$1:$BH$2001,60)="11",VLOOKUP($A$5,'Outcome Data'!$A$1:$BH$2001,60)="10"),15,5) -> 5
AD33: Min | AE33: 0
AD34: Major Unit | AE34: =IF(OR(VLOOKUP($A$5,'Outcome Data'!$A$1:$BH$2001,60)="HS",VLOOKUP($A$5,'Outcome Data'!$A$1:$BH$2001,60)="12",VLOOKUP($A$5,'Outcome Data'!$A$1:$BH$2001,60)="11",VLOOKUP($A$5,'Outcome Data'!$A$1:$BH$2001,60)="10"),2,1) -> 1

Sheet Postsecondary
A1: Postsecondary Opportunities
A2: The Postsecondary Opportunities Indicator measures how Oklahoma schools are providing opportunities for students to participate in activities and programs that enhance preparation for life after high school. The indicator is based on the percentage of high school juniors and seniors completing at least one of the approved options to prepare for life after high school, including college preparatory coursework (including Advanced Placement courses and International Baccalaureate programs), certain industry certification programs through the Department of Career and Technology Education, work-based internships and dual-concurrent enrollment in college coursework. For all bar graphs, the reference school is in orange and the comparison schools are blue.
A4: School ID | B4: County | C4: District | D4: School | E4: Postsecondary Opportunities Grade
A5: =INDEX(Matrix!$A$1:$E$2000,MATCH(CONCATENATE(Main!$B$7:$B$7,Main!$C$7:$C$7,Main!$E$7:$E$7),Matrix!$E$1:$E$2000,0),1) -> 01C032105 | B5: =Main!$B$7:$B$7 -> ADAIR | C5: =Main!$C$7:$C$7 -> GREASY | D5: =Main!$E$7:$E$7 -> GREASY PUBLIC SCHOOL | E5: =IFERROR(TRIM(VLOOKUP(A5,'Outcome Data'!$A$1:$BF$2001,54)),"") -> N/A
A6: =Main!A12 -> 68C050110 | B6: =Main!B12 -> SEQUOYAH | C6: =Main!C12 -> BELFONTE | D6: =Main!E12 -> BELFONTE BELL ES (ADAIR CNTY) | E6: =IFERROR(TRIM(VLOOKUP(A6,'Outcome Data'!$A$1:$BF$2001,54)),"") -> N/A
A7: =Main!A13 -> 01C029105 | B7: =Main!B13 -> ADAIR | C7: =Main!C13 -> DAHLONEGAH | D7: =Main!E13 -> DAHLONEGAH PUBLIC SCHOOL | E7: =IFERROR(TRIM(VLOOKUP(A7,'Outcome Data'!$A$1:$BF$2001,54)),"") -> N/A
A8: =Main!A14 -> 68C050105 | B8: =Main!B14 -> SEQUOYAH | C8: =Main!C14 -> BELFONTE | D8: =Main!E14 -> BELFONTE PUBLIC SCHOOL | E8: =IFERROR(TRIM(VLOOKUP(A8,'Outcome Data'!$A$1:$BF$2001,54)),"") -> N/A
A9: =Main!A15 -> 01C019105 | B9: =Main!B15 -> ADAIR | C9: =Main!C15 -> PEAVINE | D9: =Main!E15 -> PEAVINE PUBLIC SCHOOL | E9: =IFERROR(TRIM(VLOOKUP(A9,'Outcome Data'!$A$1:$BF$2001,54)),"") -> N/A
A10: =Main!A16 -> 48C072105 | B10: =Main!B16 -> MCCURTAIN | C10: =Main!C16 -> HOLLY CREEK | D10: =Main!E16 -> HOLLY CREEK PUBLIC SCHOOL | E10: =IFERROR(TRIM(VLOOKUP(A10,'Outcome Data'!$A$1:$BF$2001,54)),"") -> N/A
A11: =Main!A17 -> 51C009105 | B11: =Main!B17 -> MUSKOGEE | C11: =Main!C17 -> WAINWRIGHT | D11: =Main!E17 -> WAINWRIGHT PUBLIC SCHOOL | E11: =IFERROR(TRIM(VLOOKUP(A11,'Outcome Data'!$A$1:$BF$2001,54)),"") -> N/A
A12: =Main!A18 -> 57C035105 | B12: =Main!B18 -> OSAGE | C12: =Main!C18 -> AVANT | D12: =Main!E18 -> AVANT PUBLIC SCHOOL | E12: =IFERROR(TRIM(VLOOKUP(A12,'Outcome Data'!$A$1:$BF$2001,54)),"") -> N/A
A13: =Main!A19 -> 48C001105 | B13: =Main!B19 -> MCCURTAIN | C13: =Main!C19 -> FOREST GROVE | D13: =Main!E19 -> FOREST GROVE PUBLIC SCHOOL | E13: =IFERROR(TRIM(VLOOKUP(A13,'Outcome Data'!$A$1:$BF$2001,54)),"") -> N/A
A14: =Main!A20 -> 01I030105 | B14: =Main!B20 -> ADAIR | C14: =Main!C20 -> CAVE SPRINGS | D14: =Main!E20 -> CAVE SPRINGS ES | E14: =IFERROR(TRIM(VLOOKUP(A14,'Outcome Data'!$A$1:$BF$2001,54)),"") -> N/A
A15: =Main!A21 -> 31C010105 | B15: =Main!B21 -> HASKELL | C15: =Main!C21 -> WHITEFIELD | D15: =Main!E21 -> WHITEFIELD PUBLIC SCHOOL | E15: =IFERROR(TRIM(VLOOKUP(A15,'Outcome Data'!$A$1:$BF$2001,54)),"") -> N/A
AD16: SchoolName | AE16: PercentParticipating | AF16: PointsReceived
AD17: =Main!$E$7:$E$7 -> GREASY PUBLIC SCHOOL | AE17: =IFERROR(VLOOKUP(INDEX(Matrix!$A$1:$E$2000,MATCH(CONCATENATE(Main!$B$7:$B$7,Main!$C$7:$C$7,Main!$E$7:$E$7),Matrix!$E$1:$E$2000,0),1),'Outcome Data'!$A$1:$BF$2001,50),"N/A") -> N/A | AF17: =IFERROR(VLOOKUP(INDEX(Matrix!$A$1:$E$2000,MATCH(CONCATENATE(Main!$B$7:$B$7,Main!$C$7:$C$7,Main!$E$7:$E$7),Matrix!$E$1:$E$2000,0),1),'Outcome Data'!$A$1:$BF$2001,51),"") -> N/A
AD18: =Main!E12 -> BELFONTE BELL ES (ADAIR CNTY) | AE18: =IFERROR(VLOOKUP(Main!$A$12,'Outcome Data'!$A$1:$BG$1781,50),"N/A") -> N/A | AF18: =IFERROR(VLOOKUP(Main!$A$12,'Outcome Data'!$A$1:$BG$1781,51),"") -> N/A
AD19: =Main!E13 -> DAHLONEGAH PUBLIC SCHOOL | AE19: =IFERROR(VLOOKUP(Main!$A$13,'Outcome Data'!$A$1:$BG$1781,50),"N/A") -> N/A | AF19: =IFERROR(VLOOKUP(Main!$A$13,'Outcome Data'!$A$1:$BG$1781,51),"") -> N/A
AD20: =Main!E14 -> BELFONTE PUBLIC SCHOOL | AE20: =IFERROR(VLOOKUP(Main!$A$14,'Outcome Data'!$A$1:$BG$1781,50),"N/A") -> N/A | AF20: =IFERROR(VLOOKUP(Main!$A$14,'Outcome Data'!$A$1:$BG$1781,51),"") -> N/A
AD21: =Main!E15 -> PEAVINE PUBLIC SCHOOL | AE21: =IFERROR(VLOOKUP(Main!$A$15,'Outcome Data'!$A$1:$BG$1781,50),"N/A") -> N/A | AF21: =IFERROR(VLOOKUP(Main!$A$15,'Outcome Data'!$A$1:$BG$1781,51),"") -> N/A
AD22: =Main!E16 -> HOLLY CREEK PUBLIC SCHOOL | AE22: =IFERROR(VLOOKUP(Main!$A$16,'Outcome Data'!$A$1:$BG$1781,50),"N/A") -> N/A | AF22: =IFERROR(VLOOKUP(Main!$A$16,'Outcome Data'!$A$1:$BG$1781,51),"") -> N/A
AD23: =Main!E17 -> WAINWRIGHT PUBLIC SCHOOL | AE23: =IFERROR(VLOOKUP(Main!$A$17,'Outcome Data'!$A$1:$BG$1781,50),"N/A") -> N/A | AF23: =IFERROR(VLOOKUP(Main!$A$17,'Outcome Data'!$A$1:$BG$1781,51),"") -> N/A
AD24: =Main!E18 -> AVANT PUBLIC SCHOOL | AE24: =IFERROR(VLOOKUP(Main!$A$18,'Outcome Data'!$A$1:$BG$1781,50),"N/A") -> N/A | AF24: =IFERROR(VLOOKUP(Main!$A$18,'Outcome Data'!$A$1:$BG$1781,51),"") -> N/A
AD25: =Main!E19 -> FOREST GROVE PUBLIC SCHOOL | AE25: =IFERROR(VLOOKUP(Main!$A$19,'Outcome Data'!$A$1:$BG$1781,50),"N/A") -> N/A | AF25: =IFERROR(VLOOKUP(Main!$A$19,'Outcome Data'!$A$1:$BG$1781,51),"") -> N/A
AD26: =Main!E20 -> CAVE SPRINGS ES | AE26: =IFERROR(VLOOKUP(Main!$A$20,'Outcome Data'!$A$1:$BG$1781,50),"N/A") -> N/A | AF26: =IFERROR(VLOOKUP(Main!$A$20,'Outcome Data'!$A$1:$BG$1781,51),"") -> N/A
AD27: =Main!E21 -> WHITEFIELD PUBLIC SCHOOL | AE27: =IFERROR(VLOOKUP(Main!$A$21,'Outcome Data'!$A$1:$BG$1781,50),"N/A") -> N/A | AF27: =IFERROR(VLOOKUP(Main!$A$21,'Outcome Data'!$A$1:$BG$1781,51),"") -> N/A
AE30: Custom Science Axes
AD31: Axis | AE31: X
AD32: Max | AE32: =IF(OR(VLOOKUP($A$5,'Outcome Data'!$A$1:$BH$2001,60)="HS",VLOOKUP($A$5,'Outcome Data'!$A$1:$BH$2001,60)="12",VLOOKUP($A$5,'Outcome Data'!$A$1:$BH$2001,60)="11",VLOOKUP($A$5,'Outcome Data'!$A$1:$BH$2001,60)="10"),15,5) -> 5
AD33: Min | AE33: 0
AD34: Major Unit | AE34: =IF(OR(VLOOKUP($A$5,'Outcome Data'!$A$1:$BH$2001,60)="HS",VLOOKUP($A$5,'Outcome Data'!$A$1:$BH$2001,60)="12",VLOOKUP($A$5,'Outcome Data'!$A$1:$BH$2001,60)="11",VLOOKUP($A$5,'Outcome Data'!$A$1:$BH$2001,60)="10"),2,1) -> 1

Sheet Chronic Absenteeism
A1: Chronic Absenteeism
A2: The Chronic Absenteeism Indicator is a measure of the percentage of students in good attendance (i.e., not chronically absent), as Students cannot learn if they are not present for instruction; an absence of as few as two days per month puts them at risk of falling behind academically. A student is considered chronically absent after missing 10 percent or more of instructional time during a school year. For all bar graphs, the reference school is in orange and the comparison schools are blue. *The percent of students that are chronically absent equals 100% - the percentage of students in good attendance.
A4: School ID | B4: County | C4: District | D4: School | E4: Chronic Absenteeism Grade
A5: =INDEX(Matrix!$A$1:$E$2000,MATCH(CONCATENATE(Main!$B$7:$B$7,Main!$C$7:$C$7,Main!$E$7:$E$7),Matrix!$E$1:$E$2000,0),1) -> 01C032105 | B5: =Main!$B$7:$B$7 -> ADAIR | C5: =Main!$C$7:$C$7 -> GREASY | D5: =Main!$E$7:$E$7 -> GREASY PUBLIC SCHOOL | E5: =IFERROR(TRIM(VLOOKUP(A5,'Outcome Data'!$A$1:$BG$2001,59)),"") -> F
A6: =Main!A12 -> 68C050110 | B6: =Main!B12 -> SEQUOYAH | C6: =Main!C12 -> BELFONTE | D6: =Main!E12 -> BELFONTE BELL ES (ADAIR CNTY) | E6: =IFERROR(TRIM(VLOOKUP(A6,'Outcome Data'!$A$1:$BG$2001,59)),"") -> C
A7: =Main!A13 -> 01C029105 | B7: =Main!B13 -> ADAIR | C7: =Main!C13 -> DAHLONEGAH | D7: =Main!E13 -> DAHLONEGAH PUBLIC SCHOOL | E7: =IFERROR(TRIM(VLOOKUP(A7,'Outcome Data'!$A$1:$BG$2001,59)),"") -> F
A8: =Main!A14 -> 68C050105 | B8: =Main!B14 -> SEQUOYAH | C8: =Main!C14 -> BELFONTE | D8: =Main!E14 -> BELFONTE PUBLIC SCHOOL | E8: =IFERROR(TRIM(VLOOKUP(A8,'Outcome Data'!$A$1:$BG$2001,59)),"") -> F
A9: =Main!A15 -> 01C019105 | B9: =Main!B15 -> ADAIR | C9: =Main!C15 -> PEAVINE | D9: =Main!E15 -> PEAVINE PUBLIC SCHOOL | E9: =IFERROR(TRIM(VLOOKUP(A9,'Outcome Data'!$A$1:$BG$2001,59)),"") -> C
A10: =Main!A16 -> 48C072105 | B10: =Main!B16 -> MCCURTAIN | C10: =Main!C16 -> HOLLY CREEK | D10: =Main!E16 -> HOLLY CREEK PUBLIC SCHOOL | E10: =IFERROR(TRIM(VLOOKUP(A10,'Outcome Data'!$A$1:$BG$2001,59)),"") -> A
A11: =Main!A17 -> 51C009105 | B11: =Main!B17 -> MUSKOGEE | C11: =Main!C17 -> WAINWRIGHT | D11: =Main!E17 -> WAINWRIGHT PUBLIC SCHOOL | E11: =IFERROR(TRIM(VLOOKUP(A11,'Outcome Data'!$A$1:$BG$2001,59)),"") -> C
A12: =Main!A18 -> 57C035105 | B12: =Main!B18 -> OSAGE | C12: =Main!C18 -> AVANT | D12: =Main!E18 -> AVANT PUBLIC SCHOOL | E12: =IFERROR(TRIM(VLOOKUP(A12,'Outcome Data'!$A$1:$BG$2001,59)),"") -> D
A13: =Main!A19 -> 48C001105 | B13: =Main!B19 -> MCCURTAIN | C13: =Main!C19 -> FOREST GROVE | D13: =Main!E19 -> FOREST GROVE PUBLIC SCHOOL | E13: =IFERROR(TRIM(VLOOKUP(A13,'Outcome Data'!$A$1:$BG$2001,59)),"") -> B
A14: =Main!A20 -> 01I030105 | B14: =Main!B20 -> ADAIR | C14: =Main!C20 -> CAVE SPRINGS | D14: =Main!E20 -> CAVE SPRINGS ES | E14: =IFERROR(TRIM(VLOOKUP(A14,'Outcome Data'!$A$1:$BG$2001,59)),"") -> F
A15: =Main!A21 -> 31C010105 | B15: =Main!B21 -> HASKELL | C15: =Main!C21 -> WHITEFIELD | D15: =Main!E21 -> WHITEFIELD PUBLIC SCHOOL | E15: =IFERROR(TRIM(VLOOKUP(A15,'Outcome Data'!$A$1:$BG$2001,59)),"") -> C
AD16: SchoolName | AE16: PercentChronicallyAbsent | AF16: PointsReceived
AD17: =Main!$E$7:$E$7 -> GREASY PUBLIC SCHOOL | AE17: =IFERROR(1-VLOOKUP(INDEX(Matrix!$A$1:$E$2000,MATCH(CONCATENATE(Main!$B$7:$B$7,Main!$C$7:$C$7,Main!$E$7:$E$7),Matrix!$E$1:$E$2000,0),1),'Outcome Data'!$A$1:$BF$2001,55),"N/A") -> 0.25 | AF17: =IFERROR(VLOOKUP(INDEX(Matrix!$A$1:$E$2000,MATCH(CONCATENATE(Main!$B$7:$B$7,Main!$C$7:$C$7,Main!$E$7:$E$7),Matrix!$E$1:$E$2000,0),1),'Outcome Data'!$A$1:$BF$2001,56),"") -> 0.83
AD18: =Main!E12 -> BELFONTE BELL ES (ADAIR CNTY) | AE18: =IFERROR(1-VLOOKUP(Main!$A$12,'Outcome Data'!$A$1:$BG$1781,55),"N/A") -> 0.15 | AF18: =IFERROR(VLOOKUP(Main!$A$12,'Outcome Data'!$A$1:$BG$1781,56),"") -> 4.5
AD19: =Main!E13 -> DAHLONEGAH PUBLIC SCHOOL | AE19: =IFERROR(1-VLOOKUP(Main!$A$13,'Outcome Data'!$A$1:$BG$1781,55),"N/A") -> 0.2542 | AF19: =IFERROR(VLOOKUP(Main!$A$13,'Outcome Data'!$A$1:$BG$1781,56),"") -> 0.67
AD20: =Main!E14 -> BELFONTE PUBLIC SCHOOL | AE20: =IFERROR(1-VLOOKUP(Main!$A$14,'Outcome Data'!$A$1:$BG$1781,55),"N/A") -> 0.3467 | AF20: =IFERROR(VLOOKUP(Main!$A$14,'Outcome Data'!$A$1:$BG$1781,56),"") -> 0
AD21: =Main!E15 -> PEAVINE PUBLIC SCHOOL | AE21: =IFERROR(1-VLOOKUP(Main!$A$15,'Outcome Data'!$A$1:$BG$1781,55),"N/A") -> 0.1042 | AF21: =IFERROR(VLOOKUP(Main!$A$15,'Outcome Data'!$A$1:$BG$1781,56),"") -> 6.18
AD22: =Main!E16 -> HOLLY CREEK PUBLIC SCHOOL | AE22: =IFERROR(1-VLOOKUP(Main!$A$16,'Outcome Data'!$A$1:$BG$1781,55),"N/A") -> 0.0289 | AF22: =IFERROR(VLOOKUP(Main!$A$16,'Outcome Data'!$A$1:$BG$1781,56),"") -> 8.94
AD23: =Main!E17 -> WAINWRIGHT PUBLIC SCHOOL | AE23: =IFERROR(1-VLOOKUP(Main!$A$17,'Outcome Data'!$A$1:$BG$1781,55),"N/A") -> 0.1486 | AF23: =IFERROR(VLOOKUP(Main!$A$17,'Outcome Data'!$A$1:$BG$1781,56),"") -> 4.55
AD24: =Main!E18 -> AVANT PUBLIC SCHOOL | AE24: =IFERROR(1-VLOOKUP(Main!$A$18,'Outcome Data'!$A$1:$BG$1781,55),"N/A") -> 0.1875 | AF24: =IFERROR(VLOOKUP(Main!$A$18,'Outcome Data'!$A$1:$BG$1781,56),"") -> 3.12
AD25: =Main!E19 -> FOREST GROVE PUBLIC SCHOOL | AE25: =IFERROR(1-VLOOKUP(Main!$A$19,'Outcome Data'!$A$1:$BG$1781,55),"N/A") -> 0.0902 | AF25: =IFERROR(VLOOKUP(Main!$A$19,'Outcome Data'!$A$1:$BG$1781,56),"") -> 6.69
AD26: =Main!E20 -> CAVE SPRINGS ES | AE26: =IFERROR(1-VLOOKUP(Main!$A$20,'Outcome Data'!$A$1:$BG$1781,55),"N/A") -> 0.3243 | AF26: =IFERROR(VLOOKUP(Main!$A$20,'Outcome Data'!$A$1:$BG$1781,56),"") -> 0
AD27: =Main!E21 -> WHITEFIELD PUBLIC SCHOOL | AE27: =IFERROR(1-VLOOKUP(Main!$A$21,'Outcome Data'!$A$1:$BG$1781,55),"N/A") -> 0.1316 | AF27: =IFERROR(VLOOKUP(Main!$A$21,'Outcome Data'!$A$1:$BG$1781,56),"") -> 5.17
AE30: Custom Science Axes
AD31: Axis | AE31: X
AD32: Max | AE32: =IF(OR(VLOOKUP($A$5,'Outcome Data'!$A$1:$BH$2001,60)="HS",VLOOKUP($A$5,'Outcome Data'!$A$1:$BH$2001,60)="12",VLOOKUP($A$5,'Outcome Data'!$A$1:$BH$2001,60)="11",VLOOKUP($A$5,'Outcome Data'!$A$1:$BH$2001,60)="10"),15,5) -> 5
AD33: Min | AE33: 0
AD34: Major Unit | AE34: =IF(OR(VLOOKUP($A$5,'Outcome Data'!$A$1:$BH$2001,60)="HS",VLOOKUP($A$5,'Outcome Data'!$A$1:$BH$2001,60)="12",VLOOKUP($A$5,'Outcome Data'!$A$1:$BH$2001,60)="11",VLOOKUP($A$5,'Outcome Data'!$A$1:$BH$2001,60)="10"),2,1) -> 1

Sheet Overall
A1: Overall Score
A2: The Overall Score is the summation of all applicable indicator scores. It represents the academic outcomes of students within a school across multiple measures. Each indicator is weighted as follows:
A3: Elementary and Middle Schools: Academic Achievement = 35 points (30 w/o Science) Academic Growth = 30 points ELP Progress (if applicable) = 15 points Chronic Absenteeism = 10 points | D3: High Schools: Academic Achievement = 30 points (45 w/ Science starting in 2019) ELP Progress (if applicable) = 15 points Graduation = 10 points PostsecondaryOpportunities = 10 points Chronic Absenteeism = 10 points
A4: A school must have all applicable indicators (except for ELP Progress) to receive an overall score. For all bar graphs, the reference school is in orange and the comparison schools are blue.
A6: School ID | B6: County | C6: District | D6: School | E6: Overall Grade
A7: =INDEX(Matrix!$A$1:$E$2000,MATCH(CONCATENATE(Main!$B$7:$B$7,Main!$C$7:$C$7,Main!$E$7:$E$7),Matrix!$E$1:$E$2000,0),1) -> 01C032105 | B7: =Main!$B$7:$B$7 -> ADAIR | C7: =Main!$C$7:$C$7 -> GREASY | D7: =Main!$E$7:$E$7 -> GREASY PUBLIC SCHOOL | E7: =IFERROR(TRIM(VLOOKUP(A7,'Outcome Data'!$A$1:$BF$2001,9)),"") -> F | O7: PercentPointsPossible | P7: PointsReceived
A8: =Main!A12 -> 68C050110 | B8: =Main!B12 -> SEQUOYAH | C8: =Main!C12 -> BELFONTE | D8: =Main!E12 -> BELFONTE BELL ES (ADAIR CNTY) | E8: =IFERROR(TRIM(VLOOKUP(A8,'Outcome Data'!$A$1:$BF$2001,9)),"") -> D | N8: =Main!$E$7:$E$7 -> GREASY PUBLIC SCHOOL | O8: =IFERROR(VLOOKUP(Overall!$A$7,'Outcome Data'!$A$1:$BG$1781,8),"") -> 0.0409 | P8: =IFERROR(VLOOKUP(Overall!$A$7,'Outcome Data'!$A$1:$BG$1781,6),"") -> 3.07
A9: =Main!A13 -> 01C029105 | B9: =Main!B13 -> ADAIR | C9: =Main!C13 -> DAHLONEGAH | D9: =Main!E13 -> DAHLONEGAH PUBLIC SCHOOL | E9: =IFERROR(TRIM(VLOOKUP(A9,'Outcome Data'!$A$1:$BF$2001,9)),"") -> F | N9: =Overall!D8 -> BELFONTE BELL ES (ADAIR CNTY) | O9: =IFERROR(VLOOKUP(Overall!$A$8,'Outcome Data'!$A$1:$BG$1781,8),"") -> 0.3624 | P9: =IFERROR(VLOOKUP(Overall!$A$8,'Outcome Data'!$A$1:$BG$1781,6),"") -> 32.62
A10: =Main!A14 -> 68C050105 | B10: =Main!B14 -> SEQUOYAH | C10: =Main!C14 -> BELFONTE | D10: =Main!E14 -> BELFONTE PUBLIC SCHOOL | E10: =IFERROR(TRIM(VLOOKUP(A10,'Outcome Data'!$A$1:$BF$2001,9)),"") -> C | N10: =Overall!D9 -> DAHLONEGAH PUBLIC SCHOOL | O10: =IFERROR(VLOOKUP(Overall!$A$9,'Outcome Data'!$A$1:$BG$1781,8),"") -> 0.2471 | P10: =IFERROR(VLOOKUP(Overall!$A$9,'Outcome Data'!$A$1:$BG$1781,6),"") -> 18.53
A11: =Main!A15 -> 01C019105 | B11: =Main!B15 -> ADAIR | C11: =Main!C15 -> PEAVINE | D11: =Main!E15 -> PEAVINE PUBLIC SCHOOL | E11: =IFERROR(TRIM(VLOOKUP(A11,'Outcome Data'!$A$1:$BF$2001,9)),"") -> C | N11: =Overall!D10 -> BELFONTE PUBLIC SCHOOL | O11: =IFERROR(VLOOKUP(Overall!$A$10,'Outcome Data'!$A$1:$BG$1781,8),"") -> 0.5442 | P11: =IFERROR(VLOOKUP(Overall!$A$10,'Outcome Data'!$A$1:$BG$1781,6),"") -> 48.98
A12: =Main!A16 -> 48C072105 | B12: =Main!B16 -> MCCURTAIN | C12: =Main!C16 -> HOLLY CREEK | D12: =Main!E16 -> HOLLY CREEK PUBLIC SCHOOL | E12: =IFERROR(TRIM(VLOOKUP(A12,'Outcome Data'!$A$1:$BF$2001,9)),"") -> B | N12: =Overall!D11 -> PEAVINE PUBLIC SCHOOL | O12: =IFERROR(VLOOKUP(Overall!$A$11,'Outcome Data'!$A$1:$BG$1781,8),"") -> 0.4322 | P12: =IFERROR(VLOOKUP(Overall!$A$11,'Outcome Data'!$A$1:$BG$1781,6),"") -> 38.9
A13: =Main!A17 -> 51C009105 | B13: =Main!B17 -> MUSKOGEE | C13: =Main!C17 -> WAINWRIGHT | D13: =Main!E17 -> WAINWRIGHT PUBLIC SCHOOL | E13: =IFERROR(TRIM(VLOOKUP(A13,'Outcome Data'!$A$1:$BF$2001,9)),"") -> C | N13: =Overall!D12 -> HOLLY CREEK PUBLIC SCHOOL | O13: =IFERROR(VLOOKUP(Overall!$A$12,'Outcome Data'!$A$1:$BG$1781,8),"") -> 0.7233 | P13: =IFERROR(VLOOKUP(Overall!$A$12,'Outcome Data'!$A$1:$BG$1781,6),"") -> 54.25
A14: =Main!A18 -> 57C035105 | B14: =Main!B18 -> OSAGE | C14: =Main!C18 -> AVANT | D14: =Main!E18 -> AVANT PUBLIC SCHOOL | E14: =IFERROR(TRIM(VLOOKUP(A14,'Outcome Data'!$A$1:$BF$2001,9)),"") -> D | N14: =Overall!D13 -> WAINWRIGHT PUBLIC SCHOOL | O14: =IFERROR(VLOOKUP(Overall!$A$13,'Outcome Data'!$A$1:$BG$1781,8),"") -> 0.4768 | P14: =IFERROR(VLOOKUP(Overall!$A$13,'Outcome Data'!$A$1:$BG$1781,6),"") -> 35.76
A15: =Main!A19 -> 48C001105 | B15: =Main!B19 -> MCCURTAIN | C15: =Main!C19 -> FOREST GROVE | D15: =Main!E19 -> FOREST GROVE PUBLIC SCHOOL | E15: =IFERROR(TRIM(VLOOKUP(A15,'Outcome Data'!$A$1:$BF$2001,9)),"") -> D | N15: =Overall!D14 -> AVANT PUBLIC SCHOOL | O15: =IFERROR(VLOOKUP(Overall!$A$14,'Outcome Data'!$A$1:$BG$1781,8),"") -> 0.2751 | P15: =IFERROR(VLOOKUP(Overall!$A$14,'Outcome Data'!$A$1:$BG$1781,6),"") -> 20.63
A16: =Main!A20 -> 01I030105 | B16: =Main!B20 -> ADAIR | C16: =Main!C20 -> CAVE SPRINGS | D16: =Main!E20 -> CAVE SPRINGS ES | E16: =IFERROR(TRIM(VLOOKUP(A16,'Outcome Data'!$A$1:$BF$2001,9)),"") -> N/A | N16: =Overall!D15 -> FOREST GROVE PUBLIC SCHOOL | O16: =IFERROR(VLOOKUP(Overall!$A$15,'Outcome Data'!$A$1:$BG$1781,8),"") -> 0.4093 | P16: =IFERROR(VLOOKUP(Overall!$A$15,'Outcome Data'!$A$1:$BG$1781,6),"") -> 30.7
A17: =Main!A21 -> 31C010105 | B17: =Main!B21 -> HASKELL | C17: =Main!C21 -> WHITEFIELD | D17: =Main!E21 -> WHITEFIELD PUBLIC SCHOOL | E17: =IFERROR(TRIM(VLOOKUP(A17,'Outcome Data'!$A$1:$BF$2001,9)),"") -> C | N17: =Overall!D16 -> CAVE SPRINGS ES | O17: =IFERROR(VLOOKUP(Overall!$A$16,'Outcome Data'!$A$1:$BG$1781,8),"") -> 0.3325 | P17: =IFERROR(VLOOKUP(Overall!$A$16,'Outcome Data'!$A$1:$BG$1781,6),"") -> 13.3
N18: =Overall!D17 -> WHITEFIELD PUBLIC SCHOOL | O18: =IFERROR(VLOOKUP(Overall!$A$17,'Outcome Data'!$A$1:$BG$1781,8),"") -> 0.4396 | P18: =IFERROR(VLOOKUP(Overall!$A$17,'Outcome Data'!$A$1:$BG$1781,6),"") -> 32.97

Sheet Matrix (hidden)
A1: Fullcode | B1: CountyName | C1: DistrictName | D1: SchoolName | E1: CoDistSiteConcat | F1: 07I072110 | G1: 08I020115 | H1: 09I022110 | I1: 09I034110 | J1: 09I034135 | K1: 09I069130 | L1: 10I019135 | M1: 10I027105 | N1: 10I032110 | O1: 10I077105 | P1: 11I035115 | Q1: 14I040105 | R1: 16I001105 | S1: 16I008200 | T1: 19I002110 | U1: 19I003115 | V1: 20I026120 | W1: 20I099110 | X1: 24I057115 | Y1: 25I018105 | Z1: 26I001120 | AA1: 26I095115 | AB1: 26I097115 | AC1: 33I018150 | AD1: 33I018155 | AE1: 36I071117 | AF1: 37I007110 | AG1: 38I004110 | AH1: 40I029120 | AI1: 41I001110 | AJ1: 42I001120 | AK1: 42I001130 | AL1: 46I017105 | AM1: 46I032115 | AN1: 47I001110 | AO1: 47I015105 | AP1: 47I029105 | AQ1: 48I005120 | AR1: 48I074120 | AS1: 49I019110 | AT1: 50I001105 | AU1: 51I003110 | AV1: 51I020185 | AW1: 51I029105 | AX1: 55E021931 | AY1: 55I001122 | AZ1: 55I004103 | BA1: 55I004115 | BB1: 55I007115 | BC1: 57I002110 | BD1: 57I038110 | BE1: 59I006105 | BF1: 60I056105 | BG1: 60I067120 | BH1: 60I067140 | BI1: 61I080120 | BJ1: 61I080125 | BK1: 62I019105 | BL1: 62I019110 | BM1: 63I092105 | BN1: 63I092115 | BO1: 63I093110 | BP1: 66I002115 | BQ1: 66I004105 | BR1: 68I001105 | BS1: 69I001130 | BT1: 70I008115 | BU1: 70I008120 | BV1: 70I008125 | BW1: 70I008130 | BX1: 70I008140 | BY1: 72E017977 | BZ1: 72I001167 | CA1: 72I002103 | CB1: 72I003100 | CC1: 72I003103 | CD1: 72I003105 | CE1: 72I003107 | CF1: 72I003170 | CG1: 72I006105 | CH1: 72I007110 | CI1: 72I007125 | CJ1: 73I019110 | CK1: 76I001115 | CL1: 77I001125 | CM1: 01C019105 | CN1: 01C022105 | CO1: 01C024105 | CP1: 01C028105 | CQ1: 01C029105 | CR1: 01C032105 | CS1: 01I004105 | CT1: 01I011105 | CU1: 01I011610 | CV1: 01I025105 | CW1: 01I025505 | CX1: 01I030105 | CY1: 01I030505 | CZ1: 02I001105 | DA1: 02I046105 | DB1: 02I046510 | DC1: 02I093105 | DD1: 03C021105 | DE1: 03C022105 | DF1: 03I007105 | DG1: 03I015120 | DH1: 03I019105 | DI1: 03I026105 | DJ1: 04I022105 | DK1: 04I075105 | DL1: 04I123105 | DM1: 04I128105 | DN1: 05I002105 | DO1: 05I006115 | DP1: 05I006125 | DQ1: 05I006610 | DR1: 05I031105 | DS1: 05I031505 | DT1: 05I051105 | DU1: 06I009105 | DV1: 06I009615 | DW1: 06I042105 | DX1: 06I042505 | DY1: 06I080105 | DZ1: 06I080500 | EA1: 06I105105 | EB1: 07I001110 | EC1: 07I001515 | ED1: 07I002105 | EE1: 07I003105 | EF1: 07I004105 | EG1: 07I004110 | EH1: 07I004505 | EI1: 07I005105 | EJ1: 07I040105 | EK1: 07I048105 | EL1: 07I072105 | EM1: 07I072115 | EN1: 07I072125 | EO1: 07I072500 | EP1: 08I011105 | EQ1: 08I011505 | ER1: 08I012105 | ES1: 08I020105 | ET1: 08I020120 | EU1: 08I020510 | EV1: 08I033105 | EW1: 08I033510 | EX1: 08I056105 | EY1: 08I056505 | EZ1: 08I064105 | FA1: 08I064610 | FB1: 08I086105 | FC1: 08I160105 | FD1: 08I161105 | FE1: 08I161610 | FF1: 08I167105 | FG1: 08I167505 | FH1: 08I168105 | FI1: 09C029105 | FJ1: 09C031105 | FK1: 09C070105 | FL1: 09C162105 | FM1: 09I022105 | FN1: 09I022115 | FO1: 09I022120 | FP1: 09I022125 | FQ1: 09I022510 | FR1: 09I027105 | FS1: 09I027110 | FT1: 09I027115 | FU1: 09I027120 | FV1: 09I027125 | FW1: 09I027130 | FX1: 09I027135 | FY1: 09I027140 | FZ1: 09I027145 | GA1: 09I027520 | GB1: 09I034120 | GC1: 09I034510 | GD1: 09I034610 | GE1: 09I057105 | GF1: 09I069105 | GG1: 09I069110 | GH1: 09I069115 | GI1: 09I069120 | GJ1: 09I069125 | GK1: 09I069135 | GL1: 09I069140 | GM1: 09I069145 | GN1: 09I069150 | GO1: 09I069505 | GP1: 09I069510 | GQ1: 09I076105 | GR1: 10C072105 | GS1: 10I019110 | GT1: 10I019120 | GU1: 10I019125 | GV1: 10I019505 | GW1: 10I021105 | GX1: 10I027110 | GY1: 10I027505 | GZ1: 10I032105 | HA1: 10I032505 | HB1: 10I043105 | HC1: 10I055105 | HD1: 10I055505 | HE1: 10I074105 | HF1: 10I077110 | HG1: 10I077510 | HH1: 11C010105 | HI1: 11C014105 | HJ1: 11C021105 | HK1: 11C026105 | HL1: 11C031105 | HM1: 11C034105 | HN1: 11C044105 | HO1: 11C066105 | HP1: 11I006105 | HQ1: 11I016105 | HR1: 11I016505 | HS1: 11I035210 | HT1: 11I035212 | HU1: 11I035225 | HV1: 11I035520 | HW1: 11T001971 | HX1: 12C021105 | HY1: 12I001105 | HZ1: 12I001515 | IA1: 12I002105 | IB1: 12I002605 | IC1: 12I004105 | ID1: 12I039135 | IE1: 12I039140 | IF1: 12I039510 | IG1: 13I002105 | IH1: 13I002505 | II1: 13I010105 | IJ1: 13I011105 | IK1: 14C016105 | IL1: 14I002103 | IM1: 14I002107 | IN1: 14I002108 | IO1: 14I002109 | IP1: 14I002110 | IQ1: 14I002112 | IR1: 14I002113 | IS1: 14I002117 | IT1: 14I002120 | IU1: 14I002125 | IV1: 14I002130 | IW1: 14I002135 | IX1: 14I002140 | IY1: 14I002145 | IZ1: 14I002155 | JA1: 14I002160 | JB1: 14I002165 | JC1: 14I002170 | JD1: 14I002175 | JE1: 14I002180 | JF1: 14I002181 | JG1: 14I002185 | JH1: 14I002190 | JI1: 14I002195 | JJ1: 14I002196 | JK1: 14I002610 | JL1: 14I002650 | JM1: 14I002655 | JN1: 14I002680 | JO1: 14I002685 | JP1: 14I002690 | JQ1: 14I029107 | JR1: 14I029110 | JS1: 14I029112 | JT1: 14I029115 | JU1: 14I029120 | JV1: 14I029122 | JW1: 14I029125 | JX1: 14I029130 | JY1: 14I029135 | JZ1: 14I029140 | KA1: 14I029145 | KB1: 14I029150 | KC1: 14I029151 | KD1: 14I029153 | KE1: 14I029155 | KF1: 14I029160 | KG1: 14I029165 | KH1: 14I029170 | KI1: 14I029500 | KJ1: 14I029501 | KK1: 14I029502 | KL1: 14I029504 | KM1: 14I040110 | KN1: 14I040115 | KO1: 14I040510 | KP1: 14I057105 | KQ1: 14I057510 | KR1: 14I070105 | KS1: 14I070505 | KT1: 15C004105 | KU1: 15I001105 | KV1: 15I001505 | KW1: 15I002105 | KX1: 16C048105 | KY1: 16C049105 | KZ1: 16I001110 | LA1: 16I001505 | LB1: 16I001530 | LC1: 16I002105 | LD1: 16I003105 | LE1: 16I004105 | LF1: 16I004505 | LG1: 16I008105 | LH1: 16I008106 | LI1: 16I008108 | LJ1: 16I008110 | LK1: 16I008114 | LL1: 16I008122 | LM1: 16I008125 | LN1: 16I008127 | LO1: 16I008140 | LP1: 16I008148 | LQ1: 16I008165 | LR1: 16I008168 | LS1: 16I008173 | LT1: 16I008183 | LU1: 16I008195 | LV1: 16I008205 | LW1: 16I008220 | LX1: 16I008530 | LY1: 16I008535 | LZ1: 16I008540 | MA1: 16I008545 | MB1: 16I009105 | MC1: 16I009615 | MD1: 16I016105 | ME1: 16I016505 | MF1: 16I132105 | MG1: 17I001105 | MH1: 17I001505 | MI1: 17I101105 | MJ1: 17I333105 | MK1: 18C001105 | ML1: 18I006105 | MM1: 18I006505 | MN1: 18I017115 | MO1: 18I017515 | MP1: 18I020105 | MQ1: 18I020505 | MR1: 18I065200 | MS1: 18I065510 | MT1: 19C008105 | MU1: 19C012105 | MV1: 19C034105 | MW1: 19C035105 | MX1: 19I002115 | MY1: 19I002505 | MZ1: 19I003105 | NA1: 19I003110 | NB1: 19I003500 | NC1: 19I005105 | ND1: 19I017105 | NE1: 19I018105 | NF1: 19I018505 | NG1: 19I020105 | NH1: 19I021105 | NI1: 19I031105 | NJ1: 19I031110 | NK1: 19I031505 | NL1: 19I033125 | NM1: 19I033150 | NN1: 19I033160 | NO1: 19I033165 | NP1: 19I033505 | NQ1: 19I033610 | NR1: 19I039115 | NS1: 19I039505 | NT1: 20I005105 | NU1: 20I007105 | NV1: 20I007615 | NW1: 20I026105 | NX1: 20I026115 | NY1: 20I026510 | NZ1: 20I099115 | OA1: 20I099120 | OB1: 20I099505 | OC1: 21C006105 | OD1: 21C014105 | OE1: 21C030105 | OF1: 21C034105 | OG1: 21I001105 | OH1: 21I001305 | OI1: 21I001505 | OJ1: 21I002105 | OK1: 21I002110 | OL1: 21I002505 | OM1: 21I003105 | ON1: 21I003505 | OO1: 21I004105 | OP1: 21I005105 | OQ1: 22I005105 | OR1: 22I008105 | OS1: 22I008615 | OT1: 22I010105 | OU1: 23I002105 | OV1: 23I003105 | OW1: 23I042105 | OX1: 24I001105 | OY1: 24I018105 | OZ1: 24I042105 | PA1: 24I042505 | PB1: 24I047105 | PC1: 24I056105 | PD1: 24I056610 | PE1: 24I057105 | PF1: 24I057120 | PG1: 24I057125 | PH1: 24I057130 | PI1: 24I057132 | PJ1: 24I057137 | PK1: 24I057140 | PL1: 24I057160 | PM1: 24I057165 | PN1: 24I057170 | PO1: 24I057175 | PP1: 24I057505 | PQ1: 24I057510 | PR1: 24I057515 | PS1: 24I085105 | PT1: 24I094105 | PU1: 25C016105 | PV1: 25I002105 | PW1: 25I002505 | PX1: 25I005105 | PY1: 25I007105 | PZ1: 25I009105 | QA1: 25I009505 | QB1: 25I018110 | QC1: 25I018115 | QD1: 25I018610 | QE1: 25I038105 | QF1: 25I038500 | QG1: 25I072105 | QH1: 25I072605 | QI1: 26C037105 | QJ1: 26C096105 | QK1: 26C131105 | QL1: 26I001105 | QM1: 26I001115 | QN1: 26I001510 | QO1: 26I002105 | QP1: 26I002505 | QQ1: 26I051105 | QR1: 26I051510 | QS1: 26I056105 | QT1: 26I068105 | QU1: 26I068505 | QV1: 26I095120 | QW1: 26I095505 | QX1: 26I097105 | QY1: 26I097110 | QZ1: 26I097505 | RA1: 26I099105 | RB1: 26I128105 | RC1: 26I128615 | RD1: 27I054105 | RE1: 27I090105 | RF1: 27I090505 | RG1: 27I095105 | RH1: 28I001105 | RI1: 28I001510 | RJ1: 28I003105 | RK1: 29I066105 | RL1: 29I066510 | RM1: 30I001105 | RN1: 30I004105 | RO1: 31C010105 | RP1: 31I013105 | RQ1: 31I020105 | RR1: 31I020505 | RS1: 31I037105 | RT1: 31I043105 | RU1: 32I001105 | RV1: 32I005105 | RW1: 32I035120 | RX1: 32I035130 | RY1: 32I048105 | RZ1: 32I054105 | SA1: 33I001105 | SB1: 33I001610 | SC1: 33I014105 | SD1: 33I018105 | SE1: 33I018145 | SF1: 33I018160 | SG1: 33I018625 | SH1: 33I040105 | SI1: 33I054105 | SJ1: 34C003105 | SK1: 34I001105 | SL1: 34I014105 | SM1: 34I014610 | SN1: 34I023105 | SO1: 34I023510 | SP1: 35C007105 | SQ1: 35C010105 | SR1: 35I002105 | SS1: 35I020105 | ST1: 35I020505 | SU1: 35I029105 | SV1: 35I035105 | SW1: 35I037105 | SX1: 36C027105 | SY1: 36C050105 | SZ1: 36I045125 | TA1: 36I045505 | TB1: 36I071120 | TC1: 36I071125 | TD1: 36I071130 | TE1: 36I071135 | TF1: 36I071137 | TG1: 36I071145 | TH1: 36I071150 | TI1: 36I071505 | TJ1: 36I071515 | TK1: 36I087105 | TL1: 36I087505 | TM1: 36I125105 | TN1: 36I125505 | TO1: 37I002105 | TP1: 37I003105 | TQ1: 37I007120 | TR1: 37I007505 | TS1: 37I016105 | TT1: 37I016110 | TU1: 37I089105 | TV1: 37I089505 | TW1: 37I105105 | TX1: 37I105610 | TY1: 38I001115 | TZ1: 38I001505 | UA1: 38I002105 | UB1: 38I003110 | UC1: 38I004105 | UD1: 39I001105 | UE1: 39I001510 | UF1: 39I002105 | UG1: 39I003105 | UH1: 39I004105 | UI1: 40C004105 | UJ1: 40C011105 | UK1: 40C014105 | UL1: 40C039105 | UM1: 40I002110 | UN1: 40I002505 | UO1: 40I003105 | UP1: 40I007105 | UQ1: 40I007505 | UR1: 40I016105 | US1: 40I017105 | UT1: 40I020115 | UU1: 40I020505 | UV1: 40I026105 | UW1: 40I026615 | UX1: 40I029115 | UY1: 40I029505 | UZ1: 40I049105 | VA1: 40I052105 | VB1: 40I052610 | VC1: 40I062105 | VD1: 40I067105 | VE1: 40I091205 | VF1: 40I091605 | VG1: 41C005105 | VH1: 41I001120 | VI1: 41I001610 | VJ1: 41I003105 | VK1: 41I004105 | VL1: 41I004505 | VM1: 41I054110 | VN1: 41I054505 | VO1: 41I095105 | VP1: 41I095505 | VQ1: 41I103105 | VR1: 41I103505 | VS1: 41I105105 | VT1: 41I134105 | VU1: 41I134605 | VV1: 42I001110 | VW1: 42I001125 | VX1: 42I001610 | VY1: 42I002105 | VZ1: 42I002515 | WA1: 42I003105 | WB1: 42I014105 | WC1: 43C003105 | WD1: 43I004105 | WE1: 43I004505 | WF1: 43I005105 | WG1: 43I016105 | WH1: 43I016500 | WI1: 44I001105 | WJ1: 44I004105 | WK1: 44I084105 | WL1: 44I084510 | WM1: 44I092105 | WN1: 45I002105 | WO1: 45I002505 | WP1: 45I003105 | WQ1: 45I003505 | WR1: 46C035105 | WS1: 46C043105 | WT1: 46I001105 | WU1: 46I001110 | WV1: 46I001115 | WW1: 46I001610 | WX1: 46I002105 | WY1: 46I002505 | WZ1: 46I016105 | XA1: 46I016505 | XB1: 46I017110 | XC1: 46I017505 | XD1: 46I032105 | XE1: 46I032110 | XF1: 46I032505 | XG1: 47I001105 | XH1: 47I001505 | XI1: 47I002105 | XJ1: 47I002515 | XK1: 47I005105 | XL1: 47I005510 | XM1: 47I010105 | XN1: 47I010505 | XO1: 47I015115 | XP1: 47I015610 | XQ1: 47I029110 | XR1: 47I029510 | XS1: 48C001105 | XT1: 48C009105 | XU1: 48C023105 | XV1: 48C037105 | XW1: 48C072105 | XX1: 48I005110 | XY1: 48I005505 | XZ1: 48I006105 | YA1: 48I006510 | YB1: 48I011110 | YC1: 48I011505 | YD1: 48I013105 | YE1: 48I014105 | YF1: 48I014505 | YG1: 48I039105 | YH1: 48I039610 | YI1: 48I071105 | YJ1: 48I074110 | YK1: 48I074505 | YL1: 49C003105 | YM1: 49C016105 | YN1: 49I001120 | YO1: 49I001505 | YP1: 49I019112 | YQ1: 49I019505 | YR1: 49I027105 | YS1: 49I064105 | YT1: 50H000105 | YU1: 50I001110 | YV1: 50I001510 | YW1: 50I010105 | YX1: 50I010505 | YY1: 51C009105 | YZ1: 51H000105 | ZA1: 51I002110 | ZB1: 51I002505 | ZC1: 51I003105 | ZD1: 51I003505 | ZE1: 51I006105 | ZF1: 51I008110 | ZG1: 51I020105 | ZH1: 51I020110 | ZI1: 51I020120 | ZJ1: 51I020125 | ZK1: 51I020140 | ZL1: 51I020160 | ZM1: 51I020170 | ZN1: 51I020175 | ZO1: 51I020180 | ZP1: 51I020505 | ZQ1: 51I029110 | ZR1: 51I029505 | ZS1: 51I046105 | ZT1: 51I074105 | ZU1: 51I088105 | ZV1: 52I001105 | ZW1: 52I001605 | ZX1: 52I002105 | ZY1: 52I004105 | ZZ1: 52I006105 | AAA1: 52I006510 | AAB1: 53I003105 | AAC1: 53I003505 | AAD1: 53I040110 | AAE1: 53I040505 | AAF1: 53I051105 | AAG1: 54C029105 | AAH1: 54I002105 | AAI1: 54I014105 | AAJ1: 54I026105 | AAK1: 54I026110 | AAL1: 54I026505 | AAM1: 54I031110 | AAN1: 54I031610 | AAO1: 54I054105 | AAP1: 54I054110 | AAQ1: 55C029105 | AAR1: 55C074105 | AAS1: 55E001971 | AAT1: 55E002972 | AAU1: 55E003973 | AAV1: 55E012982 | AAW1: 55E012985 | AAX1: 55E021932 | AAY1: 55E021981 | AAZ1: 55E021989 | ABA1: 55E021990 | ABB1: 55E024930 | ABC1: 55E024950 | ABD1: 55G004971 | ABE1: 55G007987 | ABF1: 55G008930 | ABG1: 55G008931 | ABH1: 55G008950 | ABI1: 55G008951 | ABJ1: 55I001102 | ABK1: 55I001105 | ABL1: 55I001110 | ABM1: 55I001115 | ABN1: 55I001116 | ABO1: 55I001117 | ABP1: 55I001118 | ABQ1: 55I001120 | ABR1: 55I001124 | ABS1: 55I001125 | ABT1: 55I001126 | ABU1: 55I001127 | ABV1: 55I001128 | ABW1: 55I001130 | ABX1: 55I001133 | ABY1: 55I001134 | ABZ1: 55I001135 | ACA1: 55I001510 | ACB1: 55I001520 | ACC1: 55I001530 | ACD1: 55I001540 | ACE1: 55I001550 | ACF1: 55I003105 | ACG1: 55I003505 | ACH1: 55I004105 | ACI1: 55I004120 | ACJ1: 55I004125 | ACK1: 55I004126 | ACL1: 55I004515 | ACM1: 55I004520 | ACN1: 55I006105 | ACO1: 55I006110 | ACP1: 55I006115 | ACQ1: 55I006120 | ACR1: 55I006125 | ACS1: 55I006130 | ACT1: 55I006505 | ACU1: 55I007105 | ACV1: 55I007110 | ACW1: 55I007505 | ACX1: 55I009105 | ACY1: 55I009505 | ACZ1: 55I012105 | ADA1: 55I012110 | ADB1: 55I012115 | ADC1: 55I012122 | ADD1: 55I012125 | ADE1: 55I012130 | ADF1: 55I012135 | ADG1: 55I012140 | ADH1: 55I012145 | ADI1: 55I012150 | ADJ1: 55I012155 | ADK1: 55I012160 | ADL1: 55I012165 | ADM1: 55I012170 | ADN1: 55I012175 | ADO1: 55I012180 | ADP1: 55I012185 | ADQ1: 55I012505 | ADR1: 55I012510 | ADS1: 55I012515 | ADT1: 55I012520 | ADU1: 55I012525 | ADV1: 55I012530 | ADW1: 55I037105 | ADX1: 55I041105 | ADY1: 55I041107 | ADZ1: 55I041110 | AEA1: 55I041115 | AEB1: 55I041120 | AEC1: 55I041515 | AED1: 55I041610 | AEE1: 55I052105 | AEF1: 55I052110 | AEG1: 55I052115 | AEH1: 55I052120 | AEI1: 55I052130 | AEJ1: 55I052135 | AEK1: 55I052140 | AEL1: 55I052145 | AEM1: 55I052150 | AEN1: 55I052160 | AEO1: 55I052165 | AEP1: 55I052170 | AEQ1: 55I052185 | AER1: 55I052190 | AES1: 55I052195 | AET1: 55I052505 | AEU1: 55I052510 | AEV1: 55I052515 | AEW1: 55I052520 | AEX1: 55I052525 | AEY1: 55I053105 | AEZ1: 55I053505 | AFA1: 55I088105 | AFB1: 55I088110 | AFC1: 55I088505 | AFD1: 55I089105 | AFE1: 55I089110 | AFF1: 55I089123 | AFG1: 55I089125 | AFH1: 55I089135 | AFI1: 55I089150 | AFJ1: 55I089154 | AFK1: 55I089165 | AFL1: 55I089166 | AFM1: 55I089170 | AFN1: 55I089195 | AFO1: 55I089205 | AFP1: 55I089210 | AFQ1: 55I089215 | AFR1: 55I089220 | AFS1: 55I089240 | AFT1: 55I089244 | AFU1: 55I089252 | AFV1: 55I089255 | AFW1: 55I089260 | AFX1: 55I089265 | AFY1: 55I089268 | AFZ1: 55I089270 | AGA1: 55I089273 | AGB1: 55I089275 | AGC1: 55I089280 | AGD1: 55I089283 | AGE1: 55I089295 | AGF1: 55I089305 | AGG1: 55I089320 | AGH1: 55I089335 | AGI1: 55I089340 | AGJ1: 55I089343 | AGK1: 55I089344 | AGL1: 55I089350 | AGM1: 55I089352 | AGN1: 55I089353 | AGO1: 55I089360 | AGP1: 55I089365 | AGQ1: 55I089368 | AGR1: 55I089370 | AGS1: 55I089375 | AGT1: 55I089385 | AGU1: 55I089395 | AGV1: 55I089400 | AGW1: 55I089407 | AGX1: 55I089408 | AGY1: 55I089410 | AGZ1: 55I089417 | AHA1: 55I089440 | AHB1: 55I089455 | AHC1: 55I089460 | AHD1: 55I089465 | AHE1: 55I089477 | AHF1: 55I089480 | AHG1: 55I089503 | AHH1: 55I089508 | AHI1: 55I089511 | AHJ1: 55I089512 | AHK1: 55I089518 | AHL1: 55I089521 | AHM1: 55I089522 | AHN1: 55I089523 | AHO1: 55I089525 | AHP1: 55I089530 | AHQ1: 55I089535 | AHR1: 55I089540 | AHS1: 55Z001970 | AHT1: 55Z001971 | AHU1: 55Z002970 | AHV1: 55Z002971 | AHW1: 55Z003970 | AHX1: 55Z003971 | AHY1: 55Z004971 | AHZ1: 56C011105 | AIA1: 56I001140 | AIB1: 56I001145 | AIC1: 56I002105 | AID1: 56I002505 | AIE1: 56I003105 | AIF1: 56I003505 | AIG1: 56I004105 | AIH1: 56I004505 | AII1: 56I005110 | AIJ1: 56I006105 | AIK1: 56I007105 | AIL1: 56I008105 | AIM1: 56I008515 | AIN1: 57C003105 | AIO1: 57C007105 | AIP1: 57C035105 | AIQ1: 57C052105 | AIR1: 57C077105 | AIS1: 57I002115 | AIT1: 57I002615 | AIU1: 57I011105 | AIV1: 57I011505 | AIW1: 57I029105 | AIX1: 57I029615 | AIY1: 57I030105 | AIZ1: 57I038105 | AJA1: 57I038505 | AJB1: 57I050105 | AJC1: 57I090105 | AJD1: 57I090110 | AJE1: 58C010105 | AJF1: 58I001105 | AJG1: 58I001505 | AJH1: 58I014105 | AJI1: 58I014510 | AJJ1: 58I018105 | AJK1: 58I018505 | AJL1: 58I023120 | AJM1: 58I023130 | AJN1: 58I023135 | AJO1: 58I023140 | AJP1: 58I023505 | AJQ1: 58I026105 | AJR1: 58I031105 | AJS1: 58I031510 | AJT1: 59C002105 | AJU1: 59I001105 | AJV1: 59I001505 | AJW1: 59I006115 | AJX1: 59I006505 | AJY1: 60C104105 | AJZ1: 60I003105 | AKA1: 60I016105 | AKB1: 60I016115 | AKC1: 60I016120 | AKD1: 60I016125 | AKE1: 60I016130 | AKF1: 60I016135 | AKG1: 60I016505 | AKH1: 60I016610 | AKI1: 60I056110 | AKJ1: 60I056510 | AKK1: 60I067145 | AKL1: 60I067505 | AKM1: 60I101105 | AKN1: 60I103105 | AKO1: 60I103505 | AKP1: 61C009105 | AKQ1: 61C029105 | AKR1: 61C056105 | AKS1: 61C088105 | AKT1: 61E020972 | AKU1: 61I001105 | AKV1: 61I001510 | AKW1: 61I002105 | AKX1: 61I011105 | AKY1: 61I014105 | AKZ1: 61I017105 | ALA1: 61I025105 | ALB1: 61I028105 | ALC1: 61I030105 | ALD1: 61I063105 | ALE1: 61I080105 | ALF1: 61I080110 | ALG1: 61I080130 | ALH1: 61I080150 | ALI1: 61I080510 | ALJ1: 62I001105 | ALK1: 62I009105 | ALL1: 62I016105 | ALM1: 62I016110 | ALN1: 62I016115 | ALO1: 62I016610 | ALP1: 62I019125 | ALQ1: 62I019130 | ALR1: 62I019610 | ALS1: 62I024105 | ALT1: 62I024510 | ALU1: 62I030105 | ALV1: 62I030515 | ALW1: 62I037105 | ALX1: 63C010105 | ALY1: 63C027105 | ALZ1: 63C029105 | AMA1: 63C032105 | AMB1: 63I001105 | AMC1: 63I001610 | AMD1: 63I002105 | AME1: 63I002510 | AMF1: 63I003105 | AMG1: 63I003505 | AMH1: 63I004110 | AMI1: 63I005105 | AMJ1: 63I092120 | AMK1: 63I092505 | AML1: 63I093120 | AMM1: 63I093130 | AMN1: 63I093137 | AMO1: 63I093145 | AMP1: 63I093505 | AMQ1: 63I112105 | AMR1: 63I115105 | AMS1: 63I117105 | AMT1: 64C002105 | AMU1: 64C004105 | AMV1: 64C015105 | AMW1: 64I001105 | AMX1: 64I001610 | AMY1: 64I010105 | AMZ1: 64I013105 | ANA1: 64I013510 | ANB1: 64I022105 | ANC1: 65I003105 | AND1: 65I006105 | ANE1: 65I007105 | ANF1: 65I015105 | ANG1: 65I066105 | ANH1: 66C009105 | ANI1: 66I001105 | ANJ1: 66I001110 | ANK1: 66I001115 | ANL1: 66I001135 | ANM1: 66I001610 | ANN1: 66I002105 | ANO1: 66I002110 | ANP1: 66I002510 | ANQ1: 66I003110 | ANR1: 66I003510 | ANS1: 66I004205 | ANT1: 66I004505 | ANU1: 66I005105 | ANV1: 66I005515 | ANW1: 66I006105 | ANX1: 66I006510 | ANY1: 66I007105 | ANZ1: 66I007610 | AOA1: 66I008105 | AOB1: 66I008305 | AOC1: 66I008615 | AOD1: 67C054105 | AOE1: 67I001105 | AOF1: 67I001110 | AOG1: 67I001505 | AOH1: 67I002105 | AOI1: 67I002510 | AOJ1: 67I003105 | AOK1: 67I004105 | AOL1: 67I004510 | AOM1: 67I006110 | AON1: 67I007105 | AOO1: 67I010105 | AOP1: 67I014105 | AOQ1: 67I015105 | AOR1: 68C001105 | AOS1: 68C035105 | AOT1: 68C036105 | AOU1: 68C050105 | AOV1: 68C050110 | AOW1: 68C068105 | AOX1: 68I001110 | AOY1: 68I001510 | AOZ1: 68I002105 | APA1: 68I002505 | APB1: 68I003110 | APC1: 68I003510 | APD1: 68I004105 | APE1: 68I005105 | APF1: 68I005610 | APG1: 68I006105 | APH1: 68I006115 | API1: 68I007105 | APJ1: 69C082105 | APK1: 69I001110 | APL1: 69I001125 | APM1: 69I001135 | APN1: 69I001140 | APO1: 69I001145 | APP1: 69I001505 | APQ1: 69I002105 | APR1: 69I002510 | APS1: 69I003105 | APT1: 69I003505 | APU1: 69I015105 | APV1: 69I015505 | APW1: 69I021105 | APX1: 69I021505 | APY1: 69I034105 | APZ1: 69I034600 | AQA1: 69I042105 | AQB1: 70C009105 | AQC1: 70C080105 | AQD1: 70I001105 | AQE1: 70I008105 | AQF1: 70I008135 | AQG1: 70I008610 | AQH1: 70I015105 | AQI1: 70I023105 | AQJ1: 70I053105 | AQK1: 70I060105 | AQL1: 70I061105 | AQM1: 71C009105 | AQN1: 71I008115 | AQO1: 71I158105 | AQP1: 71I158505 | AQQ1: 71I249105 | AQR1: 72C015105 | AQS1: 72E004981 | AQT1: 72E005975 | AQU1: 72E006976 | AQV1: 72E018978 | AQW1: 72E019979 | AQX1: 72G001972 | AQY1: 72G003971 | AQZ1: 72G003980 | ARA1: 72G004974 | ARB1: 72I001103 | ARC1: 72I001111 | ARD1: 72I001112 | ARE1: 72I001118 | ARF1: 72I001135 | ARG1: 72I001140 | ARH1: 72I001145 | ARI1: 72I001155 | ARJ1: 72I001156 | ARK1: 72I001158 | ARL1: 72I001161 | ARM1: 72I001163 | ARN1: 72I001170 | ARO1: 72I001175 | ARP1: 72I001180 | ARQ1: 72I001185 | ARR1: 72I001198 | ARS1: 72I001199 | ART1: 72I001200 | ARU1: 72I001204 | ARV1: 72I001205 | ARW1: 72I001215 | ARX1: 72I001230 | ARY1: 72I001245 | ARZ1: 72I001251 | ASA1: 72I001252 | ASB1: 72I001255 | ASC1: 72I001260 | ASD1: 72I001265 | ASE1: 72I001269 | ASF1: 72I001275 | ASG1: 72I001305 | ASH1: 72I001310 | ASI1: 72I001315 | ASJ1: 72I001320 | ASK1: 72I001325 | ASL1: 72I001330 | ASM1: 72I001345 | ASN1: 72I001351 | ASO1: 72I001355 | ASP1: 72I001395 | ASQ1: 72I001402 | ASR1: 72I001405 | ASS1: 72I001410 | AST1: 72I001415 | ASU1: 72I001423 | ASV1: 72I001425 | ASW1: 72I001435 | ASX1: 72I001444 | ASY1: 72I001447 | ASZ1: 72I001449 | ATA1: 72I001515 | ATB1: 72I001530 | ATC1: 72I001537 | ATD1: 72I001563 | ATE1: 72I001573 | ATF1: 72I001574 | ATG1: 72I001658 | ATH1: 72I001659 | ATI1: 72I001661 | ATJ1: 72I001662 | ATK1: 72I001663 | ATL1: 72I001664 | ATM1: 72I001667 | ATN1: 72I002104 | ATO1: 72I002105 | ATP1: 72I002110 | ATQ1: 72I002120 | ATR1: 72I002123 | ATS1: 72I002520 | ATT1: 72I002615 | ATU1: 72I003110 | ATV1: 72I003120 | ATW1: 72I003125 | ATX1: 72I003135 | ATY1: 72I003140 | ATZ1: 72I003150 | AUA1: 72I003160 | AUB1: 72I003165 | AUC1: 72I003175 | AUD1: 72I003180 | AUE1: 72I003200 | AUF1: 72I003205 | AUG1: 72I003215 | AUH1: 72I003220 | AUI1: 72I003505 | AUJ1: 72I003510 | AUK1: 72I003520 | AUL1: 72I003525 | AUM1: 72I003530 | AUN1: 72I003700 | AUO1: 72I004110 | AUP1: 72I004120 | AUQ1: 72I004130 | AUR1: 72I004140 | AUS1: 72I004150 | AUT1: 72I004505 | AUU1: 72I005110 | AUV1: 72I005115 | AUW1: 72I005120 | AUX1: 72I005125 | AUY1: 72I005130 | AUZ1: 72I005135 | AVA1: 72I005505 | AVB1: 72I006125 | AVC1: 72I006130 | AVD1: 72I006135 | AVE1: 72I006500 | AVF1: 72I007120 | AVG1: 72I007505 | AVH1: 72I008105 | AVI1: 72I008505 | AVJ1: 72I009105 | AVK1: 72I009115 | AVL1: 72I009120 | AVM1: 72I009122 | AVN1: 72I009125 | AVO1: 72I009130 | AVP1: 72I009135 | AVQ1: 72I009140 | AVR1: 72I009145 | AVS1: 72I009150 | AVT1: 72I009155 | AVU1: 72I009160 | AVV1: 72I009180 | AVW1: 72I009510 | AVX1: 72I009620 | AVY1: 72I009720 | AVZ1: 72I010105 | AWA1: 72I010510 | AWB1: 72I011105 | AWC1: 72I011110 | AWD1: 72I011115 | AWE1: 72I011120 | AWF1: 72I011125 | AWG1: 72I011130 | AWH1: 72I011135 | AWI1: 72I011145 | AWJ1: 72I011510 | AWK1: 72I011515 | AWL1: 72I011610 | AWM1: 72I013105 | AWN1: 72I013505 | AWO1: 72I014105 | AWP1: 73I001105 | AWQ1: 73I017105 | AWR1: 73I017110 | AWS1: 73I017115 | AWT1: 73I017205 | AWU1: 73I017210 | AWV1: 73I017610 | AWW1: 73I017710 | AWX1: 73I019105 | AWY1: 73I019125 | AWZ1: 73I019505 | AXA1: 73I365105 | AXB1: 74I004105 | AXC1: 74I007115 | AXD1: 74I007510 | AXE1: 74I018110 | AXF1: 74I018510 | AXG1: 74I030110 | AXH1: 74I030120 | AXI1: 74I030130 | AXJ1: 74I030160 | AXK1: 74I030175 | AXL1: 74I030185 | AXM1: 74I030505 | AXN1: 74I030510 | AXO1: 75I001105 | AXP1: 75I010110 | AXQ1: 75I011105 | AXR1: 75I078105 | AXS1: 75I078610 | AXT1: 76I001105 | AXU1: 76I001110 | AXV1: 76I001505 | AXW1: 76I003105 | AXX1: 76I006105 | AXY1: 77I001105 | AXZ1: 77I001115 | AYA1: 77I001130 | AYB1: 77I001505 | AYC1: 77I001510 | AYD1: 77I002105 | AYE1: 77I003105 | AYF1: 77I005105 | AYG1: 16I001705 | AYH1: 09I034705 | AYI1: 24I057705 | AYJ1: 19I003705 | AYK1: 18I017715 | AYL1: 47I002715 | AYM1: 35I037705 | AYN1: 55I089707 | AYO1: 15I001705 | AYP1: 56I001705 | AYQ1: 54I002705 | AYR1: 72I001715 | AYS1: 70I060705 | AYT1: 58I018705 | AYU1: 55Z003972 | AYV1: 08I086705 | AYW1: 72I007705 | AYX1: 60I103715 | AYY1: 63I004705 | AYZ1: 72I005705 | AZA1: 72I008705 | AZB1: 49I019705 | AZC1: 56I003705 | AZD1: 57I038705 | AZE1: 51I002715 | AZF1: 55J001975 | AZG1: 44I001705 | AZH1: 36I087715 | AZI1: 53I051705 | AZJ1: 72E004988 | AZK1: 17I101715 | AZL1: 14I029705 | AZM1: 18I006705 | AZN1: 72I006705 | AZO1: 13I010705 | AZP1: 31I013705 | AZQ1: 39I001705 | AZR1: 01I011705 | AZS1: 51I003705 | AZT1: 49I027705 | AZU1: 16I016705 | AZV1: 03I019705 | AZW1: 75I010705 | AZX1: 61I030705 | AZY1: 52I004705 | AZZ1: 57I030705 | BAA1: 47I015705 | BAB1: 67I001715 | BAC1: 17I333705 | BAD1: 47I029705 | BAE1: 55I089726 | BAF1: 70I023715 | BAG1: 55E008978 | BAH1: 61I080705 | BAI1: 36I045705 | BAJ1: 62I019705 | BAK1: 07I072705 | BAL1: 46I016705 | BAM1: 02I093705 | BAN1: 55I012715 | BAO1: 41I095705 | BAP1: 04I022705 | BAQ1: 30I001705 | BAR1: 10I021705 | BAS1: 72I001710 | BAT1: 46I001705 | BAU1: 03I007705 | BAV1: 66I008705 | BAW1: 66I004705 | BAX1: 41I054705 | BAY1: 14I070715 | BAZ1: 59I006705 | BBA1: 26I095705 | BBB1: 40I049715 | BBC1: 11I016715 | BBD1: 51I020705 | BBE1: 30I004715 | BBF1: 22I005705 | BBG1: 42I014705 | BBH1: 32I048705 | BBI1: 23I003705 | BBJ1: 58I026705 | BBK1: 26I128715 | BBL1: 28I003715 | BBM1: 72I001730 | BBN1: 60I056705 | BBO1: 55G008962 | BBP1: 41I004705 | BBQ1: 69I042705 | BBR1: 13I011705 | BBS1: 72I001720 | BBT1: 55I006705 | BBU1: 40I026715 | BBV1: 52I001705 | BBW1: 14I057705 | BBX1: 14I002705 | BBY1: 69I001705 | BBZ1: 63I115705 | BCA1: 40I091715 | BCB1: 20I099705 | BCC1: 06I009715 | BCD1: 08I160715 | BCE1: 77I001705 | BCF1: 40I016705 | BCG1: 75I001705 | BCH1: 09I076705 | BCI1: 20I007715 | BCJ1: 10I077705 | BCK1: 19I033705 | BCL1: 55I089750 | BCM1: 62I001705 | BCN1: 61I011705 | BCO1: 59I001705 | BCP1: 19I002705 | BCQ1: 10I043705 | BCR1: 55I089780 | BCS1: 34I014705 | BCT1: 60I003705 | BCU1: 73I017705 | BCV1: 72I009705 | BCW1: 24I047715 | BCX1: 66I007705 | BCY1: 24I018705 | BCZ1: 37I007705 | BDA1: 53I003705 | BDB1: 21I004715 | BDC1: 19I005705 | BDD1: 26I097705 | BDE1: 72I001705 | BDF1: 58I023115 | BDG1: 41I134705 | BDH1: 65I003705 | BDI1: 65I007705 | BDJ1: 57I002705 | BDK1: 25I038705 | BDL1: 52I006705 | BDM1: 55I001705 | BDN1: 67I015705 | BDO1: 49I001710 | BDP1: 72I010705 | BDQ1: 40I052705 | BDR1: 07I040705 | BDS1: 72I002705 | BDT1: 63I117705 | BDU1: 15I002705 | BDV1: 16I008705 | BDW1: 04I123705 | BDX1: 61I001705 | BDY1: 55E024991 | BDZ1: 55I089705 | BEA1: 05I006705 | BEB1: 56I007705 | BEC1: 55Z002972 | BED1: 67I010705 | BEE1: 14I002710 | BEF1: 55I003705 | BEG1: 22I008715 | BEH1: 77I003705 | BEI1: 72I014705 | BEJ1: 14I040705 | BEK1: 55J001972 | BEL1: 19I021705 | BEM1: 07I003705 | BEN1: 10I074705 | BEO1: 74I030705 | BEP1: 68I007705 | BEQ1: 55E021977 | BER1: 55I089712 | BES1: 09I022705 | BET1: 72G005975 | BEU1: 51I006715 | BEV1: 10I055705 | BEW1: 57I011715 | BEX1: 65I066705 | BEY1: 39I002705 | BEZ1: 45I002705 | BFA1: 60I067705 | BFB1: 21I002705 | BFC1: 41I001705 | BFD1: 55Z004972 | BFE1: 69I015715 | BFF1: 40I003705 | BFG1: 55G004972 | BFH1: 14I002715 | BFI1: 72I001725 | BFJ1: 27I054705 | BFK1: 68I001705 | BFL1: 12I039705 | BFM1: 08I012705 | BFN1: 10I032705 | BFO1: 07I002705 | BFP1: 41I105705 | BFQ1: 57I050705 | BFR1: 24I001705 | BFS1: 41I103705 | BFT1: 66I001705 | BFU1: 16I132705 | BFV1: 72I001735 | BFW1: 71I249715 | BFX1: 04I075705 | BFY1: 51I008705 | BFZ1: 76I003720 | BGA1: 72G003991 | BGB1: 64I022705 | BGC1: 68I003705 | BGD1: 70I053705 | BGE1: 37I016705 | BGF1: 55G008961 | BGG1: 49I064705 | BGH1: 66I006705 | BGI1: 26I001705 | BGJ1: 16I002705 | BGK1: 51I029705 | BGL1: 62I024705 | BGM1: 47I010705 | BGN1: 62I030705 | BGO1: 44I092705 | BGP1: 51I046705 | BGQ1: 67I002705 | BGR1: 35I002705 | BGS1: 19I039705 | BGT1: 55I088705 | BGU1: 56I002705 | BGV1: 08I167705 | BGW1: 32I035705 | BGX1: 64I001705 | BGY1: 14I029740 | BGZ1: 03I015705 | BHA1: 75I078705 | BHB1: 55I089765 | BHC1: 55I004705 | BHD1: 19I031705 | BHE1: 33I054705 | BHF1: 16I008715 | BHG1: 31I020705 | BHH1: 74I007705 | BHI1: 09I057705 | BHJ1: 54I054705 | BHK1: 08I161705 | BHL1: 25I007715 | BHM1: 24I094705 | BHN1: 25I009705 | BHO1: 37I089705 | BHP1: 06I042705 | BHQ1: 18I020705 | BHR1: 40I002705 | BHS1: 02I001705 | BHT1: 69I003705 | BHU1: 44I084705 | BHV1: 07I005715 | BHW1: 56I005705 | BHX1: 63I092710 | BHY1: 73I019710 | BHZ1: 62I016705 | BIA1: 61I028705 | BIB1: 06I105705 | BIC1: 60I101705 | BID1: 11I035705 | BIE1: 55I052715 | BIF1: 38I001705 | BIG1: 73I365720 | BIH1: 61E020986 | BII1: 55I089770 | BIJ1: 58I014705 | BIK1: 12I002705 | BIL1: 34I023705 | BIM1: 67I003705 | BIN1: 61I014715 | BIO1: 16I004705 | BIP1: 16I008710 | BIQ1: 62I009705 | BIR1: 74I004720 | BIS1: 45I003705 | BIT1: 55I012720 | BIU1: 55I001710 | BIV1: 08I033705 | BIW1: 48I013705 | BIX1: 75I011705 | BIY1: 72I001745 | BIZ1: 11I006705 | BJA1: 63I112705 | BJB1: 56I008715 | BJC1: 24I056705 | BJD1: 55I009705 | BJE1: 07I001705 | BJF1: 62I037705 | BJG1: 58I031705 | BJH1: 64I013705 | BJI1: 70I015705 | BJJ1: 67I007705 | BJK1: 38I003715 | BJL1: 08I020705 | BJM1: 21I003715 | BJN1: 55I041705 | BJO1: 25I002715 | BJP1: 40I067705 | BJQ1: 63I002705 | BJR1: 42I001705 | BJS1: 76I001705 | BJT1: 67I006705 | BJU1: 61I017715 | BJV1: 05I031705 | BJW1: 19I017715 | BJX1: 08I011715 | BJY1: 55I053705 | BJZ1: 69I021715 | BKA1: 58I001715 | BKB1: 53I040705 | BKC1: 76I006705 | BKD1: 26I068705 | BKE1: 40I017705 | BKF1: 68I005705 | BKG1: 23I042705 | BKH1: 14I029710 | BKI1: 51I074715 | BKJ1: 02I046705 | BKK1: 70I008705 | BKL1: 43I004705 | BKM1: 69I034705 | BKN1: 43I016705 | BKO1: 23I002705 | BKP1: 60I016705 | BKQ1: 67I004705 | BKR1: 18I065705 | BKS1: 64I010705 | BKT1: 72I004705 | BKU1: 26I051705 | BKV1: 19I018705 | BKW1: 67I014705 | BKX1: 25I072715 | BKY1: 32I001705 | BKZ1: 50I001705 | BLA1: 48I011705 | BLB1: 72I003720 | BLC1: 40I062705 | BLD1: 77I002715 | BLE1: 27I095705 | BLF1: 55E021970 | BLG1: 57I090705 | BLH1: 56I006705 | BLI1: 21I001705 | BLJ1: 63I001705 | BLK1: 35I035705 | BLL1: 37I003705 | BLM1: 55E010980 | BLN1: 72I011715 | BLO1: 36I125705 | BLP1: 09I027705 | BLQ1: 68I006715 | BLR1: 41I003705 | BLS1: 33I018705 | BLT1: 06I080715 | BLU1: 37I105705 | BLV1: 36I071705 | BLW1: 40I029705 | BLX1: 33I014705 | BLY1: 66I003705 | BLZ1: 42I002715 | BMA1: 48I071715 | BMB1: 69I002705 | BMC1: 61I002705 | BMD1: 72I001750 | BME1: 08I168705 | BMF1: 48I074705 | BMG1: 72I001712 | BMH1: 55I012705 | BMI1: 46I002705 | BMJ1: 54I031705 | BMK1: 40I007705 | BML1: 70I061705 | BMM1: 51H000705 | BMN1: 72I013705 | BMO1: 63I003705 | BMP1: 32I005705 | BMQ1: 38I002705 | BMR1: 63I005705 | BMS1: 07I048705 | BMT1: 72I001740 | BMU1: 22I010705 | BMV1: 10I019705 | BMW1: 29I066705 | BMX1: 48I039705 | BMY1: 25I005705 | BMZ1: 20I026705 | BNA1: 09I069705 | BNB1: 63I093705 | BNC1: 57I029715 | BND1: 26I099705 | BNE1: 55E002987 | BNF1: 52I002705 | BNG1: 55I007705 | BNH1: 56I004705 | BNI1: 39I003705 | BNJ1: 35I029705 | BNK1: 55Z001972 | BNL1: 73I001715 | BNM1: 21I005715 | BNN1: 05I051715 | BNO1: 50I010705 | BNP1: 16I003705 | BNQ1: 37I002705 | BNR1: 27I090705 | BNS1: 46I032705 | BNT1: 26I002715 | BNU1: 12I001715 | BNV1: 43I005705 | BNW1: 13I002705 | BNX1: 08I064715 | BNY1: 58I023705 | BNZ1: 54I026705 | BOA1: 19I020715 | BOB1: 05I002705 | BOC1: 25I018705 | BOD1: 61I025715 | BOE1: 12I004705 | BOF1: 65I006705 | BOG1: 03I026705 | BOH1: 55I052710 | BOI1: 48I014705 | BOJ1: 54I014705 | BOK1: 44I004705 | BOL1: 35I020705 | BOM1: 74I018705 | BON1: 48I006705 | BOO1: 01I004705 | BOP1: 55I037705 | BOQ1: 55I089706 | BOR1: 34I001705 | BOS1: 16I009715 | BOT1: 55I001708 | BOU1: 01I025705 | BOV1: 55I089760 | BOW1: 07I004715 | BOX1: 65I015705 | BOY1: 33I001705 | BOZ1: 47I001705 | BPA1: 71I008715 | BPB1: 51I088705 | BPC1: 55I052705 | BPD1: 08I056705 | BPE1: 71I158710 | BPF1: 28I001705 | BPG1: 77I005705 | BPH1: 10I027705 | BPI1: 55I089710 | BPJ1: 31I043705 | BPK1: 66I005715 | BPL1: 47I005705 | BPM1: 61I063705 | BPN1: 40I020705 | BPO1: 01I030705 | BPP1: 70I001705 | BPQ1: 50H000705 | BPR1: 31I037705 | BPS1: 26I056715 | BPT1: 20I005715 | BPU1: 04I128705 | BPV1: 33I040705 | BPW1: 32I054705 | BPX1: 66I002705 | BPY1: 68I002705 | BPZ1: 68I004715 | BQA1: 46I017705 | BQB1: 38I004705 | BQC1: 17I001705 | BQD1: 39I004705 | BQE1: 48I005710 | BQF1: 24I085705 | BQG1: 24I042705 | BQH1: 42I003705
A2: 01C019105 | B2: ADAIR | C2: PEAVINE | D2: PEAVINE PUBLIC SCHOOL | E2: =CONCATENATE(B2,C2,D2) -> ADAIRPEAVINEPEAVINE PUBLIC SCHOOL | CM2: 1 | CN2: 0.8492701987 | CO2: 0.882996538 | CP2: 0.9061620669 | CQ2: 0.9642155108 | CR2: 0.9520142082 | CS2: 0.8717427447 | CT2: 0.8918107482 | CU2: 0.8736980184 | CV2: 0.8520133746 | CW2: 0.855461714 | CX2: 0.9415682543 | CY2: 0.9459716341 | CZ2: 0.7803632795 | DA2: 0.7750983968 | DB2: 0.7596450381 | DC2: 0.7997326421 | DD2: 0.8640178002 | DE2: 0.8623089985 | DF2: 0.8506036095 | DG2: 0.804374176 | DH2: 0.8196813406 | DI2: 0.7612200931 | DJ2: 0.8087257888 | DK2: 0.7421180096 | DL2: 0.7951488545 | DM2: 0.7817285806 | DN2: 0.7683989513 | DO2: 0.7085646984 | DP2: 0.7768840456 | DQ2: 0.6746485239 | DR2: 0.7101625101 | DS2: 0.6875587638 | DT2: 0.7961749628 | DU2: 0.7564294471 | DV2: 0.7494133064 | DW2: 0.7467440414 | DX2: 0.7301674892 | DY2: 0.7990789082 | DZ2: 0.7804214413 | EA2: 0.8165864632 | EB2: 0.8062332538 | EC2: 0.7986119274 | ED2: 0.933041328 | EE2: 0.88828179 | EF2: 0.88634906 | EG2: 0.8996664705 | EH2: 0.883219758 | EI2: 0.8953663444 | EJ2: 0.8273024921 | EK2: 0.8057868931 | EL2: 0.7617424149 | EM2: 0.7535197816 | EN2: 0.7385007152 | EO2: 0.7359836647 | EP2: 0.8651214264 | EQ2: 0.8629711688 | ER2: 0.8013727966 | ES2: 0.7703828464 | ET2: 0.7920177487 | EU2: 0.7736620274 | EV2: 0.8347077795 | EW2: 0.8123546599 | EX2: 0.864173681 | EY2: 0.8999209803 | EZ2: 0.8831534624 | FA2: 0.8730299535 | FB2: 0.8955404762 | FC2: 0.9014599987 | FD2: 0.8003421447 | FE2: 0.7551678833 | FF2: 0.8250803281 | FG2: 0.7849186724 | FH2: 0.8261794596 | FI2: 0.8211079618 | FJ2: 0.7900293929 | FK2: 0.8806000551 | FL2: 0.8034370598 | FM2: 0.6772814021 | FN2: 0.6649868932 | FO2: 0.6935786081 | FP2: 0.653626006 | FQ2: 0.6272538581 | FR2: 0.5872017402 | FS2: 0.5895323672 | FT2: 0.6095956735 | FU2: 0.585776855 | FV2: 0.5383658504 | FW2: 0.566852036 | FX2: 0.5727047313 | FY2: 0.5463639255 | FZ2: 0.531301615 | GA2: 0.496624556 | GB2: 0.757870548 | GC2: 0.7684270909 | GD2: 0.7618112314 | GE2: 0.8658593609 | GF2: 0.5735188755 | GG2: 0.5428649114 | GH2: 0.5529953585 | GI2: 0.5623491448 | GJ2: 0.579649187 | GK2: 0.5816266977 | GL2: 0.5401787934 | GM2: 0.4997002683 | GN2: 0.5607742732 | GO2: 0.4980479165 | GP2: 0.5038622928 | GQ2: 0.871465318 | GR2: 0.850659388 | GS2: 0.7504267282 | GT2: 0.7756731548 | GU2: 0.7648794208 | GV2: 0.8187628404 | GW2: 0.8906453014 | GX2: 0.7444167362 | GY2: 0.7255142667 | GZ2: 0.8371098381 | HA2: 0.8336877514 | HB2: 0.8284620823 | HC2: 0.8100289025 | HD2: 0.8060382936 | HE2: 0.8043813731 | HF2: 0.8453223008 | HG2: 0.8463213463 | HH2: 0.9428861437 | HI2: 0.9580619852 | HJ2: 0.900953591 | HK2: 0.9194901526 | HL2: 0.7665838451 | HM2: 0.8585448282 | HN2: 0.9724093357 | HO2: 0.885187492 | HP2: 0.8633448397 | HQ2: 0.9119053872 | HR2: 0.8861118573 | HS2: 0.7100179414 | HT2: 0.670867677 | HU2: 0.6876886927 | HV2: 0.6561081879 | HW2: 0.625929229 | HX2: 0.8915801956 | HY2: 0.8650258757 | HZ2: 0.8053376054 | IA2: 0.8676112673 | IB2: 0.8413961599 | IC2: 0.9396270392 | ID2: 0.7630053595 | IE2: 0.6959721294 | IF2: 0.6951291374 | IG2: 0.79488099 | IH2: 0.7922326713 | II2: 0.7773477441 | IJ2: 0.8005997535 | IK2: 0.777152942 | IL2: 0.6125887935 | IM2: 0.61892784 | IN2: 0.6370807916 | IO2: 0.6075568445 | IP2: 0.6182868642 | IQ2: 0.6035557079 | IR2: 0.6138919893 | IS2: 0.5979968203 | IT2: 0.6301425621 | IU2: 0.5713718772 | IV2: 0.593990161 | IW2: 0.5895609834 | IX2: 0.5674010868 | IY2: 0.5632299914 | IZ2: 0.5418332857 | JA2: 0.7155551488 | JB2: 0.5516448828 | JC2: 0.5499492364 | JD2: 0.6904841308 | JE2: 0.5835162861 | JF2: 0.5482911179 | JG2: 0.5426867826 | JH2: 0.5307777855 | JI2: 0.6618557799 | JJ2: 0.6927825676 | JK2: 0.4762353726 | JL2: 0.5092674181 | JM2: 0.571867527 | JN2: 0.5478728475 | JO2: 0.5446926199 | JP2: 0.4962220365 | JQ2: 0.8126494088 | JR2: 0.6126624328 | JS2: 0.5591109166 | JT2: 0.6059467797 | JU2: 0.6228240816 | JV2: 0.6457741905 | JW2: 0.616998151 | JX2: 0.6111319061 | JY2: 0.5444895225 | JZ2: 0.5719059695 | KA2: 0.6270364525 | KB2: 0.5871091968 | KC2: 0.5944244179 | KD2: 0.5349621542 | KE2: 0.5450974685 | KF2: 0.7038071387 | KG2: 0.5869486182 | KH2: 0.6000120829 | KI2: 0.5553277897 | KJ2: 0.5523226682 | KK2: 0.5444030209 | KL2: 0.5006884806 | KM2: 0.6218576888 | KN2: 0.7746098905 | KO2: 0.6055742848 | KP2: 0.733654908 | KQ2: 0.6902872443 | KR2: 0.8719547166 | KS2: 0.8598470458 | KT2: 0.8319980116 | KU2: 0.8177218273 | KV2: 0.7875864033 | KW2: 0.8701393547 | KX2: 0.7589454496 | KY2: 0.6486618435 | KZ2: 0.7125852049 | LA2: 0.6909087331 | LB2: 0.6793029401 | LC2: 0.919461815 | LD2: 0.8480787616 | LE2: 0.8053101881 | LF2: 0.7736303321 | LG2: 0.6506468454 | LH2: 0.6181602191 | LI2: 0.6254719979 | LJ2: 0.6668400253 | LK2: 0.6331976583 | LL2: 0.6340714872 | LM2: 0.6391175928 | LN2: 0.5847511369 | LO2: 0.6509720412 | LP2: 0.6257814667 | LQ2: 0.6655774579 | LR2: 0.663502916 | LS2: 0.6155051959 | LT2: 0.6328991512 | LU2: 0.6865765977 | LV2: 0.6262773014 | LW2: 0.6056415045 | LX2: 0.5779816304 | LY2: 0.6053241704 | LZ2: 0.6198941738 | MA2: 0.5843155868 | MB2: 0.8444149725 | MC2: 0.8395847911 | MD2: 0.7789525265 | ME2: 0.7731769525 | MF2: 0.844997855 | MG2: 0.7880900281 | MH2: 0.7657941258 | MI2: 0.8941067133 | MJ2: 0.8329362593 | MK2: 0.9302503301 | ML2: 0.8890023365 | MM2: 0.8959093245 | MN2: 0.8153420999 | MO2: 0.7762724302 | MP2: 0.8801015371 | MQ2: 0.8783398574 | MR2: 0.7216078819 | MS2: 0.6901759917 | MT2: 0.639440348 | MU2: 0.8149122185 | MV2: 0.795558805 | MW2: 0.8629771845 | MX2: 0.7844969999 | MY2: 0.7386513578 | MZ2: 0.6937045195 | NA2: 0.714073111 | NB2: 0.7071458776 | NC2: 0.8684658073 | ND2: 0.8815002164 | NE2: 0.5657873743 | NF2: 0.5570473871 | NG2: 0.9352348552 | NH2: 0.8801866325 | NI2: 0.7873757105 | NJ2: 0.7969408987 | NK2: 0.7713075337 | NL2: 0.6464362536 | NM2: 0.723903101 | NN2: 0.6296054797 | NO2: 0.624409904 | NP2: 0.5842756912 | NQ2: 0.5360272324 | NR2: 0.8801558085 | NS2: 0.8371115187 | NT2: 0.8381817655 | NU2: 0.7787314191 | NV2: 0.7337915792 | NW2: 0.6456244195 | NX2: 0.6482108242 | NY2: 0.6379105361 | NZ2: 0.6686050111 | OA2: 0.6795017304 | OB2: 0.7038217143 | OC2: 0.8757748159 | OD2: 0.8320329877 | OE2: 0.8291432017 | OF2: 0.8218249667 | OG2: 0.8404095228 | OH2: 0.8300674604 | OI2: 0.7975187123 | OJ2: 0.7768721043 | OK2: 0.7730858156 | OL2: 0.737787986 | OM2: 0.9378853871 | ON2: 0.8116770279 | OO2: 0.9544237355 | OP2: 0.8050545943 | OQ2: 0.7793329264 | OR2: 0.7424420162 | OS2: 0.7657857645 | OT2: 0.7790956151 | OU2: 0.8079698545 | OV2: 0.7602264141 | OW2: 0.7887104948 | OX2: 0.8402876929 | OY2: 0.8222311294 | OZ2: 0.6542085303 | PA2: 0.7269354637 | PB2: 0.8225982824 | PC2: 0.7595904443 | PD2: 0.8424058986 | PE2: 0.7037117288 | PF2: 0.6676164767 | PG2: 0.6236616394 | PH2: 0.6690940103 | PI2: 0.6690479399 | PJ2: 0.6796265422 | PK2: 0.7118009719 | PL2: 0.7082946136 | PM2: 0.7115765677 | PN2: 0.7337174974 | PO2: 0.6718765785 | PP2: 0.6685924486 | PQ2: 0.6630033066 | PR2: 0.6439949269 | PS2: 0.8709299939 | PT2: 0.8193678451 | PU2: 0.8437029787 | PV2: 0.7994705473 | PW2: 0.7949882549 | PX2: 0.9082779735 | PY2: 0.8860653686 | PZ2: 0.7502452625 | QA2: 0.7407788417 | QB2: 0.8201255239 | QC2: 0.8140639232 | QD2: 0.791435957 | QE2: 0.8620949251 | QF2: 0.8360022357 | QG2: 0.7905179355 | QH2: 0.7765366577 | QI2: 0.8757682423 | QJ2: 0.7948539747 | QK2: 0.7667353114 | QL2: 0.7789126586 | QM2: 0.7726830735 | QN2: 0.7405480555 | QO2: 0.8466090013 | QP2: 0.837067049 | QQ2: 0.837367937 | QR2: 0.8475341125 | QS2: 0.7933216555 | QT2: 0.8676511494 | QU2: 0.8600750459 | QV2: 0.7440975795 | QW2: 0.730483209 | QX2: 0.7825188046 | QY2: 0.7728132583 | QZ2: 0.7250299637 | RA2: 0.8917875455 | RB2: 0.8591179009 | RC2: 0.8340817581 | RD2: 0.7835649578 | RE2: 0.7607563963 | RF2: 0.7798888191 | RG2: 0.7982637918 | RH2: 0.671628714 | RI2: 0.6786142842 | RJ2: 0.8784707945 | RK2: 0.7839406686 | RL2: 0.7722508473 | RM2: 0.7828883719 | RN2: 0.7663443721 | RO2: 0.9650690676 | RP2: 0.8750582908 | RQ2: 0.742234228 | RR2: 0.7359123796 | RS2: 0.9445731615 | RT2: 0.9378812268 | RU2: 0.8679052027 | RV2: 0.8376436062 | RW2: 0.7816981636 | RX2: 0.7905477083 | RY2: 0.8261280702 | RZ2: 0.8405834188 | SA2: 0.8168041258 | SB2: 0.8040884155 | SC2: 0.8044113354 | SD2: 0.6142943013 | SE2: 0.6217722487 | SF2: 0.6299409904 | SG2: 0.6202555068 | SH2: 0.9107035434 | SI2: 0.8779553386 | SJ2: 0.8442908585 | SK2: 0.8195921872 | SL2: 0.8419751426 | SM2: 0.8148180645 | SN2: 0.8145591961 | SO2: 0.8071510382 | SP2: 0.9451804104 | SQ2: 0.9454765521 | SR2: 0.9045708713 | SS2: 0.8135051216 | ST2: 0.8011697607 | SU2: 0.8726355806 | SV2: 0.8338005066 | SW2: 0.8268184026 | SX2: 0.9359139086 | SY2: 0.8042447838 | SZ2: 0.8119516705 | TA2: 0.7241699706 | TB2: 0.7381206898 | TC2: 0.744357581 | TD2: 0.7026805542 | TE2: 0.7079242894 | TF2: 0.698761096 | TG2: 0.6333640791 | TH2: 0.7370506748 | TI2: 0.6494017926 | TJ2: 0.6560609801 | TK2: 0.7232539976 | TL2: 0.7235061287 | TM2: 0.8603196762 | TN2: 0.8515813056 | TO2: 0.9004186842 | TP2: 0.7971467753 | TQ2: 0.7389119527 | TR2: 0.7346306114 | TS2: 0.8201329562 | TT2: 0.8184733137 | TU2: 0.8168983579 | TV2: 0.8030874999 | TW2: 0.8068740112 | TX2: 0.7838237734 | TY2: 0.7749973019 | TZ2: 0.7148772896 | UA2: 0.8901509203 | UB2: 0.7910672494 | UC2: 0.8288101126 | UD2: 0.734410189 | UE2: 0.6802875031 | UF2: 0.8311808773 | UG2: 0.8163144099 | UH2: 0.7171548171 | UI2: 0.7419334097 | UJ2: 0.9530166326 | UK2: 0.9716495958 | UL2: 0.8849414918 | UM2: 0.9002487358 | UN2: 0.9030496542 | UO2: 0.7900845502 | UP2: 0.7913900103 | UQ2: 0.7576047978 | UR2: 0.8581674514 | US2: 0.9343298796 | UT2: 0.8576589478 | UU2: 0.854095581 | UV2: 0.8988058217 | UW2: 0.9138391448 | UX2: 0.8368436858 | UY2: 0.7654786413 | UZ2: 0.9390811913 | VA2: 0.8012355491 | VB2: 0.7388027052 | VC2: 0.8369025578 | VD2: 0.8694611611 | VE2: 0.6886632455 | VF2: 0.6031479303 | VG2: 0.9404392439 | VH2: 0.7477963891 | VI2: 0.7326804368 | VJ2: 0.8535277326 | VK2: 0.8528851168 | VL2: 0.8399276802 | VM2: 0.7806444546 | VN2: 0.7320883524 | VO2: 0.8309662377 | VP2: 0.8344208136 | VQ2: 0.7704700197 | VR2: 0.7597257365 | VS2: 0.8858359944 | VT2: 0.9344957276 | VU2: 0.9131775755 | VV2: 0.661063644 | VW2: 0.6758017506 | VX2: 0.6627451155 | VY2: 0.855786696 | VZ2: 0.864712684 | WA2: 0.8746303405 | WB2: 0.8977835655 | WC2: 0.9612691418 | WD2: 0.8720650458 | WE2: 0.8762251543 | WF2: 0.8070926346 | WG2: 0.8016510173 | WH2: 0.7791908964 | WI2: 0.7885148495 | WJ2: 0.8105431689 | WK2: 0.7560699867 | WL2: 0.7837407067 | WM2: 0.8832454315 | WN2: 0.7509669868 | WO2: 0.7702936834 | WP2: 0.8281786421 | WQ2: 0.8394863728 | WR2: 0.8455760652 | WS2: 0.8876288327 | WT2: 0.7577425384 | WU2: 0.7805311613 | WV2: 0.7792894499 | WW2: 0.746314636 | WX2: 0.8569127338 | WY2: 0.8386681177 | WZ2: 0.9427225975 | XA2: 0.9269270485 | XB2: 0.8940314739 | XC2: 0.9257737044 | XD2: 0.8241622188 | XE2: 0.8221223521 | XF2: 0.8422772331 | XG2: 0.7287996325 | XH2: 0.7029898592 | XI2: 0.8787081317 | XJ2: 0.8516239718 | XK2: 0.8101110179 | XL2: 0.8026362197 | XM2: 0.8858086782 | XN2: 0.8807512029 | XO2: 0.6957161013 | XP2: 0.6856357292 | XQ2: 0.7400360688 | XR2: 0.7313199341 | XS2: 0.9683015077 | XT2: 0.8139732316 | XU2: 0.952947604 | XV2: 0.7418203937 | XW2: 0.9612828923 | XX2: 0.6894388859 | XY2: 0.6834184231 | XZ2: 0.9295856424 | YA2: 0.8734164716 | YB2: 0.8095808094 | YC2: 0.7862905941 | YD2: 0.8701667708 | YE2: 0.8586521605 | YF2: 0.8477054953 | YG2: 0.8562807613 | YH2: 0.852783519 | YI2: 0.8648663319 | YJ2: 0.7571904254 | YK2: 0.731738105 | YL2: 0.9242831619 | YM2: 0.8780913362 | YN2: 0.8091002905 | YO2: 0.7750357013 | YP2: 0.7777342808 | YQ2: 0.7920099101 | YR2: 0.7796353955 | YS2: 0.8565342261 | YT2: 0.6730138486 | YU2: 0.6770667141 | YV2: 0.666365151 | YW2: 0.6750172761 | YX2: 0.6943938805 | YY2: 0.9622439697 | YZ2: 0.7351387865 | ZA2: 0.881954897 | ZB2: 0.8896268623 | ZC2: 0.7370870779 | ZD2: 0.7371204898 | ZE2: 0.7858407904 | ZF2: 0.9168951647 | ZG2: 0.8226722433 | ZH2: 0.8463690496 | ZI2: 0.8458503199 | ZJ2: 0.840311729 | ZK2: 0.846294613 | ZL2: 0.8425932691 | ZM2: 0.8318012218 | ZN2: 0.8474256632 | ZO2: 0.8524177858 | ZP2: 0.7986909865 | ZQ2: 0.7667196699 | ZR2: 0.7618122707 | ZS2: 0.9445376724 | ZT2: 0.8203765015 | ZU2: 0.9393342233 | ZV2: 0.766902175 | ZW2: 0.6534258233 | ZX2: 0.7088966093 | ZY2: 0.8314955297 | ZZ2: 0.8570086432 | AAA2: 0.8420365979 | AAB2: 0.8522544955 | AAC2: 0.8364123191 | AAD2: 0.7719419518 | AAE2: 0.7718386165 | AAF2: 0.7298529865 | AAG2: 0.8982732141 | AAH2: 0.9026089858 | AAI2: 0.814993803 | AAJ2: 0.7000335589 | AAK2: 0.6793271724 | AAL2: 0.6861800911 | AAM2: 0.9196632484 | AAN2: 0.8736903085 | AAO2: 0.9264469184 | AAP2: 0.843436619 | AAQ2: 0.6956869505 | AAR2: 0.7229504967 | AAS2: 0.6061073003 | AAT2: 0.7854059057 | AAU2: 0.6904417485 | AAV2: 0.6714706867 | AAW2: 0.6256206423 | AAX2: 0.6217156381 | AAY2: 0.5805629519 | AAZ2: 0.5703526229 | ABA2: 0.563787551 | ABB2: 0.6360391054 | ABC2: 0.6256035346 | ABD2: 0.5879345637 | ABE2: 0.5678825125 | ABF2: 0.6054690197 | ABG2: 0.6093936913 | ABH2: 0.6126060583 | ABI2: 0.6152987271 | ABJ2: 0.5819660661 | ABK2: 0.6254544496 | ABL2: 0.615959802 | ABM2: 0.6243851386 | ABN2: 0.5847806882 | ABO2: 0.6041662748 | ABP2: 0.6055723117 | ABQ2: 0.5751423507 | ABR2: 0.6227524669 | ABS2: 0.6041973089 | ABT2: 0.6090431232 | ABU2: 0.616009202 | ABV2: 0.6240487299 | ABW2: 0.6260169595 | ABX2: 0.6222447172 | ABY2: 0.6167703096 | ABZ2: 0.6121325473 | ACA2: 0.594932553 | ACB2: 0.6005975644 | ACC2: 0.557113723 | ACD2: 0.616959978 | ACE2: 0.6149731945 | ACF2: 0.8444468974 | ACG2: 0.8475610915 | ACH2: 0.633881584 | ACI2: 0.6165478131 | ACJ2: 0.5617827367 | ACK2: 0.7434260189 | ACL2: 0.5874267561 | ACM2: 0.5505459066 | ACN2: 0.5167397274 | ACO2: 0.5234061106 | ACP2: 0.6593898633 | ACQ2: 0.6538657004 | ACR2: 0.578927971 | ACS2: 0.667429573 | ACT2: 0.5925479114 | ACU2: 0.6833652045 | ACV2: 0.6747767081 | ACW2: 0.6781567857 | ACX2: 0.6088067332 | ACY2: 0.7481411016 | ACZ2: 0.5157363675 | ADA2: 0.5042517001 | ADB2: 0.5961492312 | ADC2: 0.5614428578 | ADD2: 0.5740677648 | ADE2: 0.5971342142 | ADF2: 0.5702756772 | ADG2: 0.5093229715 | ADH2: 0.5515722462 | ADI2: 0.5334333987 | ADJ2: 0.514770977 | ADK2: 0.5258213321 | ADL2: 0.5463069638 | ADM2: 0.5316327027 | ADN2: 0.5186517202 | ADO2: 0.6762030393 | ADP2: 0.5322605491 | ADQ2: 0.5170857508 | ADR2: 0.633390794 | ADS2: 0.488680487 | ADT2: 0.4884906726 | ADU2: 0.5194554713 | ADV2: 0.5079601367 | ADW2: 0.8217368685 | ADX2: 0.6506092994 | ADY2: 0.6507724055 | ADZ2: 0.6623748615 | AEA2: 0.6415910444 | AEB2: 0.7915395869 | AEC2: 0.6487103212 | AED2: 0.6348593504 | AEE2: 0.7468450083 | AEF2: 0.6157618417 | AEG2: 0.6463222346 | AEH2: 0.6691335686 | AEI2: 0.6686205376 | AEJ2: 0.6623312218 | AEK2: 0.6689376729 | AEL2: 0.6043172969 | AEM2: 0.5837705721 | AEN2: 0.6376007338 | AEO2: 0.6036333195 | AEP2: 0.6499634941 | AEQ2: 0.6119626328 | AER2: 0.7158682507 | AES2: 0.6154914267 | AET2: 0.5486595069 | AEU2: 0.629044863 | AEV2: 0.5885539562 | AEW2: 0.6192818408 | AEX2: 0.6164163023 | AEY2: 0.5490889687 | AEZ2: 0.5570013841 | AFA2: 0.5778001306 | AFB2: 0.4854727567 | AFC2: 0.5593999296 | AFD2: 0.5245465148 | AFE2: 0.5516329171 | AFF2: 0.5983676831 | AFG2: 0.5632561284 | AFH2: 0.4991744738 | AFI2: 0.5232647402 | AFJ2: 0.5520765899 | AFK2: 0.5344128048 | AFL2: 0.5337468599 | AFM2: 0.6065840172 | AFN2: 0.6090176496 | AFO2: 0.6378705488 | AFP2: 0.4975292255 | AFQ2: 0.5213395758 | AFR2: 0.5116415813 | AFS2: 0.5392418379 | AFT2: 0.6297836071 | AFU2: 0.5786960031 | AFV2: 0.5098344546 | AFW2: 0.5613419477 | AFX2: 0.4964082753 | AFY2: 0.5460400549 | AFZ2: 0.5480609625 | AGA2: 0.515148041 | AGB2: 0.5645034291 | AGC2: 0.5158785972 | AGD2: 0.5763466941 | AGE2: 0.5176712976 | AGF2: 0.5066327323 | AGG2: 0.5345372658 | AGH2: 0.5813988579 | AGI2: 0.5662349273 | AGJ2: 0.6175241115 | AGK2: 0.6353212312 | AGL2: 0.6188950253 | AGM2: 0.5345617063 | AGN2: 0.5292640324 | AGO2: 0.5240985818 | AGP2: 0.5563854488 | AGQ2: 0.5349883417 | AGR2: 0.5177519464 | AGS2: 0.5633151784 | AGT2: 0.5431068281 | AGU2: 0.5267817965 | AGV2: 0.517346316 | AGW2: 0.5524570238 | AGX2: 0.5944431043 | AGY2: 0.5049279135 | AGZ2: 0.6187679352 | AHA2: 0.5111759308 | AHB2: 0.5740439031 | AHC2: 0.5079075103 | AHD2: 0.5207817916 | AHE2: 0.6364120813 | AHF2: 0.5558238341 | AHG2: 0.5019911706 | AHH2: 0.484180129 | AHI2: 0.5193126694 | AHJ2: 0.6065732978 | AHK2: 0.5051473443 | AHL2: 0.6153034199 | AHM2: 0.7717765812 | AHN2: 0.5087430587 | AHO2: 0.5497514225 | AHP2: 0.5038865308 | AHQ2: 0.5743283005 | AHR2: 0.7269348511 | AHS2: 0.6573938716 | AHT2: 0.648424549 | AHU2: 0.6878801337 | AHV2: 0.6643545773 | AHW2: 0.6310893544 | AHX2: 0.613369556 | AHY2: 0.6689753999 | AHZ2: 0.9661600123 | AIA2: 0.8441569536 | AIB2: 0.8441366867 | AIC2: 0.8177227329 | AID2: 0.7968349216 | AIE2: 0.7893797625 | AIF2: 0.7957087066 | AIG2: 0.8690102759 | AIH2: 0.8659316602 | AII2: 0.8581309024 | AIJ2: 0.9165849989 | AIK2: 0.9456016084 | AIL2: 0.855456128 | AIM2: 0.8544772265 | AIN2: 0.814895939 | AIO2: 0.91544307 | AIP2: 0.9653778684 | AIQ2: 0.7908492644 | AIR2: 0.8080723626 | AIS2: 0.7969063525 | AIT2: 0.8034812224 | AIU2: 0.7795255652 | AIV2: 0.8637242797 | AIW2: 0.8616544236 | AIX2: 0.8518436262 | AIY2: 0.9143605898 | AIZ2: 0.8399349949 | AJA2: 0.8174685199 | AJB2: 0.9201169771 | AJC2: 0.8265787306 | AJD2: 0.8155429695 | AJE2: 0.9408608993 | AJF2: 0.8543622353 | AJG2: 0.8551128833 | AJH2: 0.8938811197 | AJI2: 0.9137685587 | AJJ2: 0.7973531968 | AJK2: 0.7805894222 | AJL2: 0.7833510031 | AJM2: 0.7644058373 | AJN2: 0.7628676338 | AJO2: 0.7022788069 | AJP2: 0.6689371265 | AJQ2: 0.9445617494 | AJR2: 0.8550152499 | AJS2: 0.8680845794 | AJT2: 0.9535231585 | AJU2: 0.8285531443 | AJV2: 0.8239704271 | AJW2: 0.7993148062 | AJX2: 0.7990174683 | AJY2: 0.8786997174 | AJZ2: 0.8818842229 | AKA2: 0.7695046619 | AKB2: 0.6961277499 | AKC2: 0.7402575912 | AKD2: 0.6737459625 | AKE2: 0.7703479744 | AKF2: 0.7258724628 | AKG2: 0.6541143556 | AKH2: 0.6235411685 | AKI2: 0.8157675026 | AKJ2: 0.8040397095 | AKK2: 0.7459641234 | AKL2: 0.7389181712 | AKM2: 0.8881397806 | AKN2: 0.878381957 | AKO2: 0.8814671671 | AKP2: 0.7462638839 | AKQ2: 0.7062597574 | AKR2: 0.877058376 | AKS2: 0.819005878 | AKT2: 0.7497693388 | AKU2: 0.7840322455 | AKV2: 0.8510902274 | AKW2: 0.8367397338 | AKX2: 0.7625356213 | AKY2: 0.8011858825 | AKZ2: 0.8666952744 | ALA2: 0.8412015596 | ALB2: 0.8313793432 | ALC2: 0.8931076231 | ALD2: 0.7034927338 | ALE2: 0.6928417185 | ALF2: 0.7280755863 | ALG2: 0.6664277959 | ALH2: 0.6771658156 | ALI2: 0.6598699583 | ALJ2: 0.8259626486 | ALK2: 0.9036965012 | ALL2: 0.7420072946 | ALM2: 0.777763003 | ALN2: 0.8829222666 | ALO2: 0.6971923563 | ALP2: 0.6646707654 | ALQ2: 0.6664536951 | ALR2: 0.6625178674 | ALS2: 0.7509517079 | ALT2: 0.728775784 | ALU2: 0.899403972 | ALV2: 0.885572956 | ALW2: 0.8055675724 | ALX2: 0.7635529953 | ALY2: 0.7519998211 | ALZ2: 0.8789590152 | AMA2: 0.7695475912 | AMB2: 0.8689271042 | AMC2: 0.8688663986 | AMD2: 0.7973417606 | AME2: 0.8140047319 | AMF2: 0.8423787456 | AMG2: 0.8331262744 | AMH2: 0.8257578369 | AMI2: 0.7912714198 | AMJ2: 0.7204534782 | AMK2: 0.6883782144 | AML2: 0.8498647636 | AMM2: 0.8353982231 | AMN2: 0.8350975271 | AMO2: 0.8293751277 | AMP2: 0.7743656769 | AMQ2: 0.8088069623 | AMR2: 0.8860951886 | AMS2: 0.8918958893 | AMT2: 0.8858313658 | AMU2: 0.715867726 | AMV2: 0.8574248008 | AMW2: 0.8584146384 | AMX2: 0.849735782 | AMY2: 0.8204580084 | AMZ2: 0.7747813877 | ANA2: 0.781732257 | ANB2: 0.8746900025 | ANC2: 0.7377506862 | AND2: 0.7696159519 | ANE2: 0.7731140065 | ANF2: 0.8363363847 | ANG2: 0.8061518376 | ANH2: 0.6974028341 | ANI2: 0.74430353 | ANJ2: 0.6948283497 | ANK2: 0.7139239521 | ANL2: 0.6884325504 | ANM2: 0.6588271231 | ANN2: 0.630103893 | ANO2: 0.6457803057 | ANP2: 0.6253524649 | ANQ2: 0.9241106156 | ANR2: 0.9246173466 | ANS2: 0.7948007376 | ANT2: 0.7742685537 | ANU2: 0.8357818271 | ANV2: 0.8377395763 | ANW2: 0.8292443471 | ANX2: 0.8054388466 | ANY2: 0.8948072049 | ANZ2: 0.8780601177 | AOA2: 0.6145741484 | AOB2: 0.619246142 | AOC2: 0.7026844013 | AOD2: 0.8874575261 | AOE2: 0.7984474031 | AOF2: 0.8089778041 | AOG2: 0.780192394 | AOH2: 0.7765195121 | AOI2: 0.7666485935 | AOJ2: 0.9144320091 | AOK2: 0.8308744394 | AOL2: 0.7895353871 | AOM2: 0.9193498884 | AON2: 0.9145872275 | AOO2: 0.8716910578 | AOP2: 0.8931976493 | AOQ2: 0.9082484514 | AOR2: 0.9228209939 | AOS2: 0.9565965681 | AOT2: 0.9234650383 | AOU2: 0.9644667349 | AOV2: 0.9650327703 | AOW2: 0.7807137577 | AOX2: 0.7554225948 | AOY2: 0.7228077476 | AOZ2: 0.927886314 | APA2: 0.9253183048 | APB2: 0.7863124859 | APC2: 0.7814655695 | APD2: 0.9357706276 | APE2: 0.7810331507 | APF2: 0.7418252261 | APG2: 0.8329612226 | APH2: 0.8277296795 | API2: 0.8981190138 | APJ2: 0.832718648 | APK2: 0.7425781 | APL2: 0.7278596135 | APM2: 0.7525019061 | APN2: 0.7723917907 | APO2: 0.7026631934 | APP2: 0.727482684 | APQ2: 0.8574755424 | APR2: 0.8368684883 | APS2: 0.7546783477 | APT2: 0.7475668759 | APU2: 0.7483722063 | APV2: 0.7603411068 | APW2: 0.8651677554 | APX2: 0.843199827 | APY2: 0.8158280718 | APZ2: 0.8305506869 | AQA2: 0.8571091575 | AQB2: 0.8712581373 | AQC2: 0.777456919 | AQD2: 0.8376726098 | AQE2: 0.5970935566 | AQF2: 0.6182244517 | AQG2: 0.6357897861 | AQH2: 0.8296252993 | AQI2: 0.7527079714 | AQJ2: 0.8740937779 | AQK2: 0.8287841933 | AQL2: 0.7435980232 | AQM2: 0.8397135734 | AQN2: 0.942555494 | AQO2: 0.7607906646 | AQP2: 0.7813793458 | AQQ2: 0.9041252162 | AQR2: 0.8268583738 | AQS2: 0.6123101742 | AQT2: 0.6529278881 | AQU2: 0.6535232429 | AQV2: 0.6258377044 | AQW2: 0.6581765151 | AQX2: 0.6299916286 | AQY2: 0.6379773009 | AQZ2: 0.61934945 | ARA2: 0.5046632909 | ARB2: 0.644932568 | ARC2: 0.6761885425 | ARD2: 0.5707560418 | ARE2: 0.6482347519 | ARF2: 0.6641246504 | ARG2: 0.5860475794 | ARH2: 0.623332055 | ARI2: 0.6915001899 | ARJ2: 0.6166385881 | ARK2: 0.611887069 | ARL2: 0.6708275119 | ARM2: 0.5840408611 | ARN2: 0.5625907629 | ARO2: 0.5692753512 | ARP2: 0.6634483164 | ARQ2: 0.6695617339 | ARR2: 0.6546372956 | ARS2: 0.6552158535 | ART2: 0.6646941684 | ARU2: 0.6083270969 | ARV2: 0.6322726491 | ARW2: 0.6439682004 | ARX2: 0.6613269638 | ARY2: 0.6368606151 | ARZ2: 0.6112649449 | ASA2: 0.5976967345 | ASB2: 0.6260702059 | ASC2: 0.6176141478 | ASD2: 0.5585840859 | ASE2: 0.6149757346 | ASF2: 0.6211114323 | ASG2: 0.6500258685 | ASH2: 0.6528145361 | ASI2: 0.585686047 | ASJ2: 0.671315595 | ASK2: 0.6285407394 | ASL2: 0.6251266945 | ASM2: 0.6181771516 | ASN2: 0.6116459148 | ASO2: 0.6721635995 | ASP2: 0.6717421467 | ASQ2: 0.6322097869 | ASR2: 0.617900816 | ASS2: 0.6178429694 | AST2: 0.5969971563 | ASU2: 0.5907623678 | ASV2: 0.6746553388 | ASW2: 0.6615593065 | ASX2: 0.6661344142 | ASY2: 0.6111689886 | ASZ2: 0.6133448286 | ATA2: 0.5510992709 | ATB2: 0.6871930412 | ATC2: 0.5713673883 | ATD2: 0.6396735288 | ATE2: 0.5649339274 | ATF2: 0.5698315459 | ATG2: 0.65608689 | ATH2: 0.621384436 | ATI2: 0.6308409664 | ATJ2: 0.6533507951 | ATK2: 0.6432759716 | ATL2: 0.6236310706 | ATM2: 0.6945553976 | ATN2: 0.5867963311 | ATO2: 0.7913035463 | ATP2: 0.65337455 | ATQ2: 0.6262878908 | ATR2: 0.5990616083 | ATS2: 0.5554970739 | ATT2: 0.5421871433 | ATU2: 0.6194070385 | ATV2: 0.6231619438 | ATW2: 0.5934074453 | ATX2: 0.5636358966 | ATY2: 0.604718672 | ATZ2: 0.577147533 | AUA2: 0.5800391522 | AUB2: 0.5632260705 | AUC2: 0.5983773913 | AUD2: 0.5277809951 | AUE2: 0.593281204 | AUF2: 0.7439646158 | AUG2: 0.6077427074 | AUH2: 0.586592622 | AUI2: 0.5205518808 | AUJ2: 0.5706016373 | AUK2: 0.5480650232 | AUL2: 0.5287968316 | AUM2: 0.5433495055 | AUN2: 0.4110818379 | AUO2: 0.5352093791 | AUP2: 0.5470147041 | AUQ2: 0.5284782729 | AUR2: 0.6787326001 | AUS2: 0.5487290191 | AUT2: 0.6125884842 | AUU2: 0.5509399498 | AUV2: 0.5385893506 | AUW2: 0.509947116 | AUX2: 0.5087938897 | AUY2: 0.5110107131 | AUZ2: 0.5687880456 | AVA2: 0.4568309294 | AVB2: 0.5721233215 | AVC2: 0.585023916 | AVD2: 0.6410819176 | AVE2: 0.6152101756 | AVF2: 0.663871979 | AVG2: 0.6515745858 | AVH2: 0.797001387 | AVI2: 0.7640735793 | AVJ2: 0.5954482596 | AVK2: 0.572339123 | AVL2: 0.5989452444 | AVM2: 0.5825950487 | AVN2: 0.6085755023 | AVO2: 0.5676958553 | AVP2: 0.5922800423 | AVQ2: 0.5875944958 | AVR2: 0.5590046846 | AVS2: 0.5538970558 | AVT2: 0.589804477 | AVU2: 0.5842843044 | AVV2: 0.58603497 | AVW2: 0.4681296588 | AVX2: 0.4675437506 | AVY2: 0.5060487531 | AVZ2: 0.5823832249 | AWA2: 0.5474609958 | AWB2: 0.7229599184 | AWC2: 0.5901099203 | AWD2: 0.5930604953 | AWE2: 0.5610403694 | AWF2: 0.5608850427 | AWG2: 0.5481218314 | AWH2: 0.5443707719 | AWI2: 0.681635562 | AWJ2: 0.4797384024 | AWK2: 0.4690659047 | AWL2: 0.4575443371 | AWM2: 0.5975411219 | AWN2: 0.5746160852 | AWO2: 0.8203454957 | AWP2: 0.938069691 | AWQ2: 0.6185065428 | AWR2: 0.7461084975 | AWS2: 0.6007725884 | AWT2: 0.6106825168 | AWU2: 0.6077709729 | AWV2: 0.5684454419 | AWW2: 0.7132962244 | AWX2: 0.8218188954 | AWY2: 0.7991087304 | AWZ2: 0.831854858 | AXA2: 0.8925514282 | AXB2: 0.8997286614 | AXC2: 0.7670341519 | AXD2: 0.7453953679 | AXE2: 0.8603067843 | AXF2: 0.8580109016 | AXG2: 0.7661245492 | AXH2: 0.7058970172 | AXI2: 0.8058590407 | AXJ2: 0.6989311684 | AXK2: 0.6792106852 | AXL2: 0.7440895298 | AXM2: 0.6907201902 | AXN2: 0.6545816307 | AXO2: 0.8848850532 | AXP2: 0.8383639922 | AXQ2: 0.8316936459 | AXR2: 0.7303453972 | AXS2: 0.7033589344 | AXT2: 0.6738189579 | AXU2: 0.6813912746 | AXV2: 0.69055836 | AXW2: 0.7476360164 | AXX2: 0.8199636335 | AXY2: 0.6583112073 | AXZ2: 0.6834027156 | AYA2: 0.6667928827 | AYB2: 0.6220257616 | AYC2: 0.6228774722 | AYD2: 0.8460350514 | AYE2: 0.8524025999 | AYF2: 0.7728211686
A3: 01C022105 | B3: ADAIR | C3: MARYETTA | D3: MARYETTA PUBLIC SCHOOL | E3: =CONCATENATE(B3,C3,D3) -> ADAIRMARYETTAMARYETTA PUBLIC SCHOOL | CM3: 0.8492701987 | CN3: 1 | CO3: 0.7656092382 | CP3: 0.918096476 | CQ3: 0.8253354672 | CR3: 0.8426685223 | CS3: 0.8768136159 | CT3: 0.7713470618 | CU3: 0.7656028763 | CV3: 0.7321122017 | CW3: 0.7376950436 | CX3: 0.8111652016 | CY3: 0.8042408957 | CZ3: 0.8234113326 | DA3: 0.8082836685 | DB3: 0.7937517631 | DC3: 0.8291727553 | DD3: 0.8449262066 | DE3: 0.8434668746 | DF3: 0.8243013805 | DG3: 0.8451737434 | DH3: 0.8547744731 | DI3: 0.7791588691 | DJ3: 0.8479797867 | DK3: 0.7710476999 | DL3: 0.8231747232 | DM3: 0.8429321429 | DN3: 0.879578898 | DO3: 0.7574228533 | DP3: 0.8908155866 | DQ3: 0.715493635 | DR3: 0.7486462434 | DS3: 0.724811375 | DT3: 0.8247920524 | DU3: 0.7860368956 | DV3: 0.788378329 | DW3: 0.7530766912 | DX3: 0.7629899604 | DY3: 0.8189134808 | DZ3: 0.805218946 | EA3: 0.8365648234 | EB3: 0.9189078264 | EC3: 0.9147778092 | ED3: 0.8028474361 | EE3: 0.8454387547 | EF3: 0.8289254483 | EG3: 0.8090109507 | EH3: 0.8371584737 | EI3: 0.8577082679 | EJ3: 0.8464420758 | EK3: 0.7745737179 | EL3: 0.7197391322 | EM3: 0.7204816005 | EN3: 0.7157923953 | EO3: 0.7094566987 | EP3: 0.8277391502 | EQ3: 0.8356891223 | ER3: 0.8411583199 | ES3: 0.7291029348 | ET3: 0.7449945463 | EU3: 0.7342638623 | EV3: 0.835304691 | EW3: 0.8145868316 | EX3: 0.789283322 | EY3: 0.8082528527 | EZ3: 0.8322110219 | FA3: 0.8310848749 | FB3: 0.839410636 | FC3: 0.8275494 | FD3: 0.8480084401 | FE3: 0.8066097987 | FF3: 0.8221328801 | FG3: 0.8182339268 | FH3: 0.8431902851 | FI3: 0.9285497059 | FJ3: 0.8953444295 | FK3: 0.891593779 | FL3: 0.7660457141 | FM3: 0.7889834642 | FN3: 0.7769749216 | FO3: 0.8056069393 | FP3: 0.7698338288 | FQ3: 0.7377951616 | FR3: 0.6255921306 | FS3: 0.6371626946 | FT3: 0.6595436742 | FU3: 0.6249508345 | FV3: 0.5779115701 | FW3: 0.6052424264 | FX3: 0.6110951217 | FY3: 0.598263509 | FZ3: 0.5782826408 | GA3: 0.5417814712 | GB3: 0.8549815262 | GC3: 0.8597319218 | GD3: 0.7112259749 | GE3: 0.8224432649 | GF3: 0.6133311322 | GG3: 0.5827213134 | GH3: 0.5936556283 | GI3: 0.6018948645 | GJ3: 0.6191949067 | GK3: 0.620017088 | GL3: 0.5868943319 | GM3: 0.5443823555 | GN3: 0.6039080807 | GO3: 0.5410215743 | GP3: 0.5468359506 | GQ3: 0.8286653424 | GR3: 0.8316892858 | GS3: 0.6976546978 | GT3: 0.7184469987 | GU3: 0.7071699954 | GV3: 0.8377262931 | GW3: 0.8326287463 | GX3: 0.863239311 | GY3: 0.8463259154 | GZ3: 0.8053370475 | HA3: 0.8006272269 | HB3: 0.8268155413 | HC3: 0.8335255672 | HD3: 0.8074158255 | HE3: 0.7818902199 | HF3: 0.8163892171 | HG3: 0.8165004793 | HH3: 0.804283583 | HI3: 0.8186140989 | HJ3: 0.8650201181 | HK3: 0.7934903271 | HL3: 0.791203375 | HM3: 0.8947786266 | HN3: 0.8352706448 | HO3: 0.8536464578 | HP3: 0.8216578203 | HQ3: 0.8280955501 | HR3: 0.8507391994 | HS3: 0.7086224149 | HT3: 0.728265772 | HU3: 0.7269873513 | HV3: 0.6912134183 | HW3: 0.6558824072 | HX3: 0.8178387405 | HY3: 0.7975086412 | HZ3: 0.8266554999 | IA3: 0.7953658245 | IB3: 0.7752794826 | IC3: 0.8027031139 | ID3: 0.8768022777 | IE3: 0.7347151019 | IF3: 0.733513025 | IG3: 0.8235372858 | IH3: 0.82120426 | II3: 0.8128697233 | IJ3: 0.8286256222 | IK3: 0.8880267372 | IL3: 0.6528695828 | IM3: 0.6612542456 | IN3: 0.6719623455 | IO3: 0.6435587291 | IP3: 0.6504658669 | IQ3: 0.6416916022 | IR3: 0.6529967905 | IS3: 0.6365654755 | IT3: 0.6501214712 | IU3: 0.6097622676 | IV3: 0.6313196439 | IW3: 0.6299034651 | IX3: 0.6040259106 | IY3: 0.6016203818 | IZ3: 0.5856176876 | JA3: 0.823794114 | JB3: 0.5900749508 | JC3: 0.5883396268 | JD3: 0.7988983301 | JE3: 0.6229532407 | JF3: 0.5902048386 | JG3: 0.5812517328 | JH3: 0.5691681758 | JI3: 0.772830071 | JJ3: 0.8028577412 | JK3: 0.5192090305 | JL3: 0.5538326929 | JM3: 0.6130479426 | JN3: 0.5906764654 | JO3: 0.5876662777 | JP3: 0.5391956943 | JQ3: 0.774986199 | JR3: 0.6690160017 | JS3: 0.6037240332 | JT3: 0.6672330455 | JU3: 0.663348209 | JV3: 0.6467450983 | JW3: 0.6558124904 | JX3: 0.6577791831 | JY3: 0.5855423407 | JZ3: 0.6147888217 | KA3: 0.6646615039 | KB3: 0.63064985 | KC3: 0.6353953947 | KD3: 0.5793974743 | KE3: 0.5922610794 | KF3: 0.8197352776 | KG3: 0.6223549213 | KH3: 0.5482787487 | KI3: 0.5983014475 | KJ3: 0.5972645871 | KK3: 0.5873766787 | KL3: 0.5457866888 | KM3: 0.6626755763 | KN3: 0.8810526649 | KO3: 0.6493330055 | KP3: 0.8436733874 | KQ3: 0.8051786712 | KR3: 0.838484219 | KS3: 0.8154924966 | KT3: 0.8589018447 | KU3: 0.8445303767 | KV3: 0.8257508132 | KW3: 0.7967463946 | KX3: 0.8705297929 | KY3: 0.6898077377 | KZ3: 0.818617306 | LA3: 0.7969408342 | LB3: 0.7853350412 | LC3: 0.8687767429 | LD3: 0.8064973417 | LE3: 0.9028753016 | LF3: 0.8701374478 | LG3: 0.645872492 | LH3: 0.6535128127 | LI3: 0.6605175824 | LJ3: 0.6288385209 | LK3: 0.6647174038 | LL3: 0.6520584175 | LM3: 0.6403437106 | LN3: 0.6231415273 | LO3: 0.6348912314 | LP3: 0.6594939765 | LQ3: 0.62895916 | LR3: 0.6430957 | LS3: 0.6518838553 | LT3: 0.6624039291 | LU3: 0.6582233447 | LV3: 0.6604887917 | LW3: 0.6459457052 | LX3: 0.6203274247 | LY3: 0.6339102196 | LZ3: 0.6245577627 | MA3: 0.6244279652 | MB3: 0.8039110002 | MC3: 0.8052471196 | MD3: 0.7459763953 | ME3: 0.7436681532 | MF3: 0.799229747 | MG3: 0.7511123005 | MH3: 0.7330457676 | MI3: 0.8362771888 | MJ3: 0.7913104084 | MK3: 0.8269154468 | ML3: 0.847332878 | MM3: 0.8328937768 | MN3: 0.8424203526 | MO3: 0.8114618677 | MP3: 0.8336290624 | MQ3: 0.8307669783 | MR3: 0.7604670037 | MS3: 0.7281814337 | MT3: 0.678375075 | MU3: 0.7558193215 | MV3: 0.9014344214 | MW3: 0.9151617175 | MX3: 0.7482802884 | MY3: 0.8519821874 | MZ3: 0.8066761905 | NA3: 0.8274159164 | NB3: 0.8191275183 | NC3: 0.8768736054 | ND3: 0.8374860076 | NE3: 0.602513147 | NF3: 0.5972027823 | NG3: 0.7938620061 | NH3: 0.8374628361 | NI3: 0.9000453843 | NJ3: 0.9008909317 | NK3: 0.8874747846 | NL3: 0.6831748653 | NM3: 0.832633949 | NN3: 0.6618999962 | NO3: 0.6550901275 | NP3: 0.6260596281 | NQ3: 0.573869 | NR3: 0.8063248514 | NS3: 0.7912218845 | NT3: 0.797673797 | NU3: 0.8134085608 | NV3: 0.7731795533 | NW3: 0.6848706897 | NX3: 0.6930283615 | NY3: 0.6827429785 | NZ3: 0.6979153429 | OA3: 0.7124152048 | OB3: 0.7147097525 | OC3: 0.8293071626 | OD3: 0.8610772255 | OE3: 0.8599515459 | OF3: 0.9266696902 | OG3: 0.7950138722 | OH3: 0.7901333062 | OI3: 0.7551872201 | OJ3: 0.7424543929 | OK3: 0.7382336313 | OL3: 0.7032267458 | OM3: 0.8120302809 | ON3: 0.7769845606 | OO3: 0.8135539955 | OP3: 0.7835063627 | OQ3: 0.8129152006 | OR3: 0.7765245668 | OS3: 0.7990445112 | OT3: 0.8029718786 | OU3: 0.8389448547 | OV3: 0.7901544692 | OW3: 0.8252576178 | OX3: 0.799294187 | OY3: 0.7793153304 | OZ3: 0.693835066 | PA3: 0.8429722527 | PB3: 0.8340773783 | PC3: 0.8670993004 | PD3: 0.814760806 | PE3: 0.6891287771 | PF3: 0.673542846 | PG3: 0.6536819337 | PH3: 0.6648044435 | PI3: 0.7056733352 | PJ3: 0.7144034898 | PK3: 0.7489929791 | PL3: 0.7372922095 | PM3: 0.7138605529 | PN3: 0.8509150904 | PO3: 0.715577462 | PP3: 0.7029014192 | PQ3: 0.6709059643 | PR3: 0.6894864354 | PS3: 0.8283990493 | PT3: 0.831509138 | PU3: 0.828244415 | PV3: 0.834475016 | PW3: 0.8322802502 | PX3: 0.7704882868 | PY3: 0.8446734284 | PZ3: 0.7166532531 | QA3: 0.7114520405 | QB3: 0.7721594774 | QC3: 0.7763443894 | QD3: 0.7625459146 | QE3: 0.8247100321 | QF3: 0.7969041253 | QG3: 0.8240013317 | QH3: 0.8104669401 | QI3: 0.8338282898 | QJ3: 0.899839637 | QK3: 0.8749252695 | QL3: 0.7354292688 | QM3: 0.7355848121 | QN3: 0.6978615086 | QO3: 0.8075321881 | QP3: 0.8025778744 | QQ3: 0.7973800027 | QR3: 0.8065264596 | QS3: 0.7376632553 | QT3: 0.8258354972 | QU3: 0.8176595153 | QV3: 0.8596680281 | QW3: 0.849870449 | QX3: 0.7479796874 | QY3: 0.7381641303 | QZ3: 0.6967605636 | RA3: 0.8284661605 | RB3: 0.8171493021 | RC3: 0.7996165068 | RD3: 0.8142271475 | RE3: 0.7921635398 | RF3: 0.8152867382 | RG3: 0.8288418441 | RH3: 0.6982875802 | RI3: 0.7200336295 | RJ3: 0.8335308482 | RK3: 0.8085112109 | RL3: 0.7851212881 | RM3: 0.8371479528 | RN3: 0.8154889629 | RO3: 0.8159980159 | RP3: 0.8020933631 | RQ3: 0.6919084556 | RR3: 0.6818429942 | RS3: 0.7994544868 | RT3: 0.810732062 | RU3: 0.8231732626 | RV3: 0.8420017969 | RW3: 0.7203255965 | RX3: 0.7278471043 | RY3: 0.8139874134 | RZ3: 0.8301102066 | SA3: 0.7775657555 | SB3: 0.7702335443 | SC3: 0.8377009776 | SD3: 0.6519769337 | SE3: 0.6581015509 | SF3: 0.663263273 | SG3: 0.6584051694 | SH3: 0.8387841294 | SI3: 0.8344184351 | SJ3: 0.79932854 | SK3: 0.8293389146 | SL3: 0.8296954674 | SM3: 0.8196466594 | SN3: 0.820974773 | SO3: 0.8320108305 | SP3: 0.8120004439 | SQ3: 0.8085110626 | SR3: 0.8480333548 | SS3: 0.8367373096 | ST3: 0.8159084072 | SU3: 0.8043441966 | SV3: 0.8197162113 | SW3: 0.8526741193 | SX3: 0.8436155111 | SY3: 0.9056881359 | SZ3: 0.9044150305 | TA3: 0.766107664 | TB3: 0.7035355344 | TC3: 0.7035804847 | TD3: 0.7381436027 | TE3: 0.7284781658 | TF3: 0.7335914847 | TG3: 0.6688794132 | TH3: 0.7238611782 | TI3: 0.6908268126 | TJ3: 0.7006608731 | TK3: 0.7662680788 | TL3: 0.7651075273 | TM3: 0.8210914956 | TN3: 0.8159698289 | TO3: 0.8319538024 | TP3: 0.8307492756 | TQ3: 0.7094308941 | TR3: 0.851158697 | TS3: 0.8350785125 | TT3: 0.8114786103 | TU3: 0.7765449421 | TV3: 0.7638574882 | TW3: 0.7640340615 | TX3: 0.7404851511 | TY3: 0.7140493933 | TZ3: 0.7490993831 | UA3: 0.826344513 | UB3: 0.8210696343 | UC3: 0.773631719 | UD3: 0.7716155153 | UE3: 0.7220399622 | UF3: 0.8208883874 | UG3: 0.8404539196 | UH3: 0.8078820885 | UI3: 0.6985318791 | UJ3: 0.8212016525 | UK3: 0.8318151865 | UL3: 0.8199965301 | UM3: 0.7663704146 | UN3: 0.7726878719 | UO3: 0.6901997677 | UP3: 0.8984107694 | UQ3: 0.8699011798 | UR3: 0.8239785078 | US3: 0.7956132019 | UT3: 0.8740581672 | UU3: 0.8689677914 | UV3: 0.757314346 | UW3: 0.7664872455 | UX3: 0.7137720706 | UY3: 0.7373257582 | UZ3: 0.7997566993 | VA3: 0.83422277 | VB3: 0.7730923441 | VC3: 0.8308719652 | VD3: 0.7321564555 | VE3: 0.6388286383 | VF3: 0.6347666815 | VG3: 0.8109252051 | VH3: 0.7134537736 | VI3: 0.7023226752 | VJ3: 0.810919875 | VK3: 0.8123576547 | VL3: 0.8023246323 | VM3: 0.8193013222 | VN3: 0.7724617783 | VO3: 0.7958503495 | VP3: 0.7990365298 | VQ3: 0.8115709642 | VR3: 0.8008634837 | VS3: 0.8333489261 | VT3: 0.800414601 | VU3: 0.7801271609 | VV3: 0.7725795133 | VW3: 0.7908526334 | VX3: 0.7772194414 | VY3: 0.8148781217 | VZ3: 0.8296327511 | WA3: 0.8291542787 | WB3: 0.8396186052 | WC3: 0.8267160674 | WD3: 0.8294124335 | WE3: 0.8125658555 | WF3: 0.8382737174 | WG3: 0.8417956407 | WH3: 0.8199101071 | WI3: 0.8445082961 | WJ3: 0.8415010477 | WK3: 0.7934748236 | WL3: 0.8232385343 | WM3: 0.8406420606 | WN3: 0.7192649616 | WO3: 0.7305361014 | WP3: 0.7938609032 | WQ3: 0.810775847 | WR3: 0.7848891753 | WS3: 0.8276183227 | WT3: 0.7249116879 | WU3: 0.7424906506 | WV3: 0.7461631828 | WW3: 0.7117304178 | WX3: 0.821908303 | WY3: 0.8068765903 | WZ3: 0.8058938479 | XA3: 0.795458348 | XB3: 0.7637151251 | XC3: 0.7912454908 | XD3: 0.7779002772 | XE3: 0.7891655507 | XF3: 0.7962971752 | XG3: 0.8434100096 | XH3: 0.8188847512 | XI3: 0.841691299 | XJ3: 0.8212960526 | XK3: 0.7752912597 | XL3: 0.7695623119 | XM3: 0.844990532 | XN3: 0.8338328382 | XO3: 0.8272622961 | XP3: 0.8095656649 | XQ3: 0.8548890194 | XR3: 0.8493265016 | XS3: 0.821842551 | XT3: 0.9222984738 | XU3: 0.8080215999 | XV3: 0.7730144687 | XW3: 0.8339513892 | XX3: 0.7260127046 | XY3: 0.7211066232 | XZ3: 0.7897896296 | YA3: 0.8382730979 | YB3: 0.832145867 | YC3: 0.8272722811 | YD3: 0.8233994414 | YE3: 0.7869091613 | YF3: 0.7771501423 | YG3: 0.7915386051 | YH3: 0.7831656926 | YI3: 0.7936093767 | YJ3: 0.6977943826 | YK3: 0.7189509302 | YL3: 0.864855094 | YM3: 0.8105830133 | YN3: 0.8294410798 | YO3: 0.8186883101 | YP3: 0.7069086842 | YQ3: 0.7126310032 | YR3: 0.7213775997 | YS3: 0.7864919593 | YT3: 0.6948136212 | YU3: 0.7183783324 | YV3: 0.7093234236 | YW3: 0.7132669728 | YX3: 0.7382538835 | YY3: 0.8127122877 | YZ3: 0.6878902306 | ZA3: 0.8249427495 | ZB3: 0.8257850706 | ZC3: 0.7040906804 | ZD3: 0.7072001587 | ZE3: 0.801399901 | ZF3: 0.8243714458 | ZG3: 0.6859876312 | ZH3: 0.8621746533 | ZI3: 0.710290908 | ZJ3: 0.7021865381 | ZK3: 0.7241293424 | ZL3: 0.8554873495 | ZM3: 0.6979561087 | ZN3: 0.7137634822 | ZO3: 0.7138181932 | ZP3: 0.6732461234 | ZQ3: 0.7336620393 | ZR3: 0.7293345487 | ZS3: 0.8077952702 | ZT3: 0.8463096063 | ZU3: 0.7994122306 | ZV3: 0.8796655099 | ZW3: 0.6979546684 | ZX3: 0.7255416626 | ZY3: 0.847557232 | ZZ3: 0.8182055579 | AAA3: 0.8067071452 | AAB3: 0.8130109474 | AAC3: 0.7991251193 | AAD3: 0.7220909244 | AAE3: 0.7412785392 | AAF3: 0.7572095473 | AAG3: 0.8548464246 | AAH3: 0.82035913 | AAI3: 0.8408955684 | AAJ3: 0.7390073242 | AAK3: 0.7185111647 | AAL3: 0.7297882545 | AAM3: 0.801119444 | AAN3: 0.7887374926 | AAO3: 0.7796444724 | AAP3: 0.7762896956 | AAQ3: 0.8057451501 | AAR3: 0.6652610764 | AAS3: 0.6401007232 | AAT3: 0.7986386248 | AAU3: 0.6339915191 | AAV3: 0.6164789635 | AAW3: 0.5867485586 | AAX3: 0.5861702751 | AAY3: 0.5655778108 | AAZ3: 0.5593084255 | ABA3: 0.552020877 | ABB3: 0.6609875921 | ABC3: 0.6256718266 | ABD3: 0.560987558 | ABE3: 0.6152493301 | ABF3: 0.6436101436 | ABG3: 0.6475348152 | ABH3: 0.6519235175 | ABI3: 0.6546161863 | ABJ3: 0.634772376 | ABK3: 0.6324731863 | ABL3: 0.6510679214 | ABM3: 0.6700808679 | ABN3: 0.6285891655 | ABO3: 0.6440836374 | ABP3: 0.6444011952 | ABQ3: 0.6245176491 | ABR3: 0.6559443195 | ABS3: 0.6483293014 | ABT3: 0.6556669244 | ABU3: 0.6608272424 | ABV3: 0.6498205411 | ABW3: 0.6584863437 | ABX3: 0.6431159019 | ABY3: 0.6551052058 | ABZ3: 0.6322059809 | ACA3: 0.6250371272 | ACB3: 0.6354963746 | ACC3: 0.6014440412 | ACD3: 0.6326661884 | ACE3: 0.6347242299 | ACF3: 0.809837826 | ACG3: 0.8144136599 | ACH3: 0.6719029681 | ACI3: 0.6563600698 | ACJ3: 0.6006370404 | ACK3: 0.857120424 | ACL3: 0.6298763304 | ACM3: 0.5932383381 | ACN3: 0.5590112881 | ACO3: 0.562300027 | ACP3: 0.7688805529 | ACQ3: 0.7646762377 | ACR3: 0.6916152091 | ACS3: 0.7811171206 | ACT3: 0.7026000892 | ACU3: 0.7986501514 | ACV3: 0.7881623285 | ACW3: 0.7963409593 | ACX3: 0.648048322 | ACY3: 0.8641211131 | ACZ3: 0.5538097921 | ADA3: 0.5446132936 | ADB3: 0.6353644168 | ADC3: 0.5998332482 | ADD3: 0.6139655233 | ADE3: 0.6514048101 | ADF3: 0.6165362896 | ADG3: 0.5469848645 | ADH3: 0.5918855221 | ADI3: 0.5752562526 | ADJ3: 0.5537887999 | ADK3: 0.5656864656 | ADL3: 0.5904888835 | ADM3: 0.5707975149 | ADN3: 0.5589853452 | ADO3: 0.7877184393 | ADP3: 0.57341055 | ADQ3: 0.5603291068 | ADR3: 0.7477762343 | ADS3: 0.5316541448 | ADT3: 0.5328126033 | ADU3: 0.5627189324 | ADV3: 0.5525254115 | ADW3: 0.8763534004 | ADX3: 0.6110959435 | ADY3: 0.6094878432 | ADZ3: 0.6170325696 | AEA3: 0.5993247237 | AEB3: 0.8276090977 | AEC3: 0.6102735441 | AED3: 0.5942559743 | AEE3: 0.8594509656 | AEF3: 0.6518871627 | AEG3: 0.6449558791 | AEH3: 0.6144309806 | AEI3: 0.6121043365 | AEJ3: 0.6757604353 | AEK3: 0.6114803888 | AEL3: 0.6459184254 | AEM3: 0.6221609625 | AEN3: 0.6492078565 | AEO3: 0.6420237099 | AEP3: 0.6854738474 | AEQ3: 0.6514722689 | AER3: 0.8314617497 | AES3: 0.6175873589 | AET3: 0.5916331647 | AEU3: 0.625568966 | AEV3: 0.6143179234 | AEW3: 0.6229871376 | AEX3: 0.6558629604 | AEY3: 0.6132010381 | AEZ3: 0.6227624015 | AFA3: 0.6182622131 | AFB3: 0.5100042 | AFC3: 0.6023735874 | AFD3: 0.5775297558 | AFE3: 0.5988715936 | AFF3: 0.6408848084 | AFG3: 0.6097159807 | AFH3: 0.5517058093 | AFI3: 0.5781428348 | AFJ3: 0.5894440099 | AFK3: 0.5867406452 | AFL3: 0.5791000696 | AFM3: 0.6304478853 | AFN3: 0.6294935678 | AFO3: 0.6606598847 | AFP3: 0.5127065646 | AFQ3: 0.5736341847 | AFR3: 0.565511073 | AFS3: 0.5803338176 | AFT3: 0.6525578835 | AFU3: 0.6053966043 | AFV3: 0.5561814294 | AFW3: 0.6129130183 | AFX3: 0.5490563648 | AFY3: 0.5975045342 | AFZ3: 0.5909731954 | AGA3: 0.5682308452 | AGB3: 0.603028125 | AGC3: 0.5639790975 | AGD3: 0.5984755991 | AGE3: 0.5709737939 | AGF3: 0.560182014 | AGG3: 0.5840640527 | AGH3: 0.6263840145 | AGI3: 0.5965215531 | AGJ3: 0.6402749484 | AGK3: 0.6581589886 | AGL3: 0.6403309225 | AGM3: 0.5838962697 | AGN3: 0.5765961556 | AGO3: 0.5775846632 | AGP3: 0.6004101838 | AGQ3: 0.5628015476 | AGR3: 0.5680847802 | AGS3: 0.5907079052 | AGT3: 0.5911105418 | AGU3: 0.570516605 | AGV3: 0.5650489602 | AGW3: 0.6050539987 | AGX3: 0.6152081753 | AGY3: 0.5568204644 | AGZ3: 0.6395003288 | AHA3: 0.5617841841 | AHB3: 0.5999025448 | AHC3: 0.5574115754 | AHD3: 0.5691485121 | AHE3: 0.6652303154 | AHF3: 0.5814864139 | AHG3: 0.5399812648 | AHH3: 0.5272940603 | AHI3: 0.5469497825 | AHJ3: 0.6321010856 | AHK3: 0.5586667577 | AHL3: 0.6416666978 | AHM3: 0.8741426213 | AHN3: 0.5606185982 | AHO3: 0.6030539189 | AHP3: 0.5545181304 | AHQ3: 0.6019824946 | AHR3: 0.8308955848 | AHS3: 0.6948741724 | AHT3: 0.6871164092 | AHU3: 0.7031608217 | AHV3: 0.703900297 | AHW3: 0.6680747771 | AHX3: 0.6520270569 | AHY3: 0.6981161738 | AHZ3: 0.8243308494 | AIA3: 0.7086584699 | AIB3: 0.7131600445 | AIC3: 0.9007756056 | AID3: 0.8822867456 | AIE3: 0.7539369132 | AIF3: 0.7490429301 | AIG3: 0.8285412647 | AIH3: 0.8222823113 | AII3: 0.8179104859 | AIJ3: 0.8127410224 | AIK3: 0.8004556454 | AIL3: 0.7246154566 | AIM3: 0.7195549305 | AIN3: 0.7682961892 | AIO3: 0.8696193207 | AIP3: 0.8216567543 | AIQ3: 0.9029333875 | AIR3: 0.9173195932 | AIS3: 0.7325993493 | AIT3: 0.7402166166 | AIU3: 0.8081397664 | AIV3: 0.8184761387 | AIW3: 0.8103661286 | AIX3: 0.8129899086 | AIY3: 0.8117131993 | AIZ3: 0.7495622169 | AJA3: 0.7583110443 | AJB3: 0.8102874562 | AJC3: 0.810808809 | AJD3: 0.8478912772 | AJE3: 0.8361772632 | AJF3: 0.8176949716 | AJG3: 0.8193050525 | AJH3: 0.8264397986 | AJI3: 0.792354797 | AJJ3: 0.7452973705 | AJK3: 0.740332401 | AJL3: 0.7366861183 | AJM3: 0.7165595224 | AJN3: 0.7222234747 | AJO3: 0.6634054424 | AJP3: 0.6446225822 | AJQ3: 0.8051501647 | AJR3: 0.8152175467 | AJS3: 0.8327385361 | AJT3: 0.8146609369 | AJU3: 0.8067881475 | AJV3: 0.7845700625 | AJW3: 0.8968261702 | AJX3: 0.7574808721 | AJY3: 0.8341623199 | AJZ3: 0.8452198222 | AKA3: 0.7253147356 | AKB3: 0.6668395038 | AKC3: 0.7069991652 | AKD3: 0.6445575315 | AKE3: 0.7259684922 | AKF3: 0.6944036826 | AKG3: 0.6256724259 | AKH3: 0.5968958185 | AKI3: 0.7821296978 | AKJ3: 0.772408518 | AKK3: 0.7153742871 | AKL3: 0.8483754678 | AKM3: 0.8449004569 | AKN3: 0.8342125067 | AKO3: 0.8412784295 | AKP3: 0.7841914779 | AKQ3: 0.743627384 | AKR3: 0.8323169631 | AKS3: 0.7604150479 | AKT3: 0.7761877541 | AKU3: 0.7222523967 | AKV3: 0.8776188376 | AKW3: 0.8468781337 | AKX3: 0.7587426498 | AKY3: 0.8297753302 | AKZ3: 0.8057404649 | ALA3: 0.823482398 | ALB3: 0.8341375245 | ALC3: 0.8454084017 | ALD3: 0.7310464607 | ALE3: 0.7200883071 | ALF3: 0.7560653736 | ALG3: 0.6941618877 | ALH3: 0.7120849945 | ALI3: 0.7019306657 | ALJ3: 0.8278990433 | ALK3: 0.8543520754 | ALL3: 0.8585995889 | ALM3: 0.8916493338 | ALN3: 0.8367567324 | ALO3: 0.8081014338 | ALP3: 0.7039868272 | ALQ3: 0.7053392377 | ALR3: 0.7034533485 | ALS3: 0.8649600112 | ALT3: 0.8470877364 | ALU3: 0.8148779455 | ALV3: 0.831077408 | ALW3: 0.835588759 | ALX3: 0.8731597219 | ALY3: 0.715200433 | ALZ3: 0.735788893 | AMA3: 0.8771965546 | AMB3: 0.8347155181 | AMC3: 0.8333235985 | AMD3: 0.7618314661 | AME3: 0.7795005554 | AMF3: 0.810250941 | AMG3: 0.8043147846 | AMH3: 0.7713651738 | AMI3: 0.7351505032 | AMJ3: 0.834246777 | AMK3: 0.6600907058 | AML3: 0.7193245363 | AMM3: 0.7093060972 | AMN3: 0.7089220655 | AMO3: 0.7098581067 | AMP3: 0.6509615721 | AMQ3: 0.8379530701 | AMR3: 0.7898570294 | AMS3: 0.7654055309 | AMT3: 0.8107284494 | AMU3: 0.7409693086 | AMV3: 0.7873218847 | AMW3: 0.7929907185 | AMX3: 0.7850990855 | AMY3: 0.8265073002 | AMZ3: 0.8026306988 | ANA3: 0.8141403217 | ANB3: 0.8023267173 | ANC3: 0.7669187171 | AND3: 0.797636026 | ANE3: 0.8054257079 | ANF3: 0.8319387637 | ANG3: 0.8401327567 | ANH3: 0.8079666082 | ANI3: 0.8266013541 | ANJ3: 0.8079377862 | ANK3: 0.8313647858 | ANL3: 0.8047232748 | ANM3: 0.7802706769 | ANN3: 0.654054111 | ANO3: 0.6584466189 | ANP3: 0.6656950485 | ANQ3: 0.7879388073 | ANR3: 0.791026827 | ANS3: 0.759643301 | ANT3: 0.7435697791 | ANU3: 0.8002092814 | ANV3: 0.8052351341 | ANW3: 0.7936115824 | ANX3: 0.776212813 | ANY3: 0.8292710719 | ANZ3: 0.8322564079 | AOA3: 0.724377307 | AOB3: 0.7344493509 | AOC3: 0.816133217 | AOD3: 0.890318667 | AOE3: 0.7215328343 | AOF3: 0.7309399387 | AOG3: 0.7512715899 | AOH3: 0.7119154648 | AOI3: 0.7080692265 | AOJ3: 0.8308596881 | AOK3: 0.8167993406 | AOL3: 0.8208870661 | AOM3: 0.8130984808 | AON3: 0.8456593267 | AOO3: 0.8026955407 | AOP3: 0.8517820035 | AOQ3: 0.8372942114 | AOR3: 0.790113979 | AOS3: 0.8213145536 | AOT3: 0.8609726064 | AOU3: 0.8351413489 | AOV3: 0.8379351854 | AOW3: 0.8808764642 | AOX3: 0.7115267237 | AOY3: 0.6849864554 | AOZ3: 0.7999026017 | APA3: 0.7944956085 | APB3: 0.7993813696 | APC3: 0.8002698742 | APD3: 0.8094053883 | APE3: 0.7933620522 | APF3: 0.7602702914 | APG3: 0.7660713719 | APH3: 0.7612403078 | API3: 0.8563482164 | APJ3: 0.7871594957 | APK3: 0.7001639211 | APL3: 0.6966553324 | APM3: 0.7030325558 | APN3: 0.7346542061 | APO3: 0.6669975061 | APP3: 0.6974657285 | APQ3: 0.8283689191 | APR3: 0.8080664458 | APS3: 0.7205250949 | APT3: 0.7143065771 | APU3: 0.7809365635 | APV3: 0.7980156485 | APW3: 0.8270324288 | APX3: 0.8079612088 | APY3: 0.7730549946 | APZ3: 0.7907687761 | AQA3: 0.8142834879 | AQB3: 0.768552825 | AQC3: 0.8893354758 | AQD3: 0.7439589014 | AQE3: 0.6224471371 | AQF3: 0.6414612787 | AQG3: 0.6676776371 | AQH3: 0.806329728 | AQI3: 0.8095578374 | AQJ3: 0.8558159766 | AQK3: 0.7844493575 | AQL3: 0.8003461337 | AQM3: 0.8034334597 | AQN3: 0.8000211973 | AQO3: 0.6886984941 | AQP3: 0.717782549 | AQQ3: 0.8213749748 | AQR3: 0.9323226422 | AQS3: 0.6531522114 | AQT3: 0.633956336 | AQU3: 0.6193440729 | AQV3: 0.6019180734 | AQW3: 0.630146932 | AQX3: 0.613717786 | AQY3: 0.6715232057 | AQZ3: 0.6464787377 | ARA3: 0.5326394817 | ARB3: 0.6260996757 | ARC3: 0.6207988898 | ARD3: 0.6091680495 | ARE3: 0.6580170396 | ARF3: 0.6364048435 | ARG3: 0.6161968777 | ARH3: 0.599438836 | ARI3: 0.6892738934 | ARJ3: 0.6215695348 | ARK3: 0.6079618201 | ARL3: 0.6293459029 | ARM3: 0.6320930385 | ARN3: 0.5971646968 | ARO3: 0.5991884865 | ARP3: 0.6281443945 | ARQ3: 0.6333717936 | ARR3: 0.6490419057 | ARS3: 0.6638603326 | ART3: 0.6160647488 | ARU3: 0.6286381076 | ARV3: 0.6613893499 | ARW3: 0.6793910511 | ARX3: 0.6231706724 | ARY3: 0.6461415164 | ARZ3: 0.6058963059 | ASA3: 0.6055043828 | ASB3: 0.6571310203 | ASC3: 0.6426171178 | ASD3: 0.5897059907 | ASE3: 0.612632872 | ASF3: 0.6123412444 | ASG3: 0.638136884 | ASH3: 0.6388089522 | ASI3: 0.6129708223 | ASJ3: 0.6450740884 | ASK3: 0.6124231254 | ASL3: 0.6121365678 | ASM3: 0.6307338383 | ASN3: 0.6085404871 | ASO3: 0.6381186301 | ASP3: 0.6474700836 | ASQ3: 0.6444919901 | ASR3: 0.6057140625 | ASS3: 0.6187934302 | AST3: 0.5735423626 | ASU3: 0.6160294429 | ASV3: 0.6479899966 | ASW3: 0.6197147028 | ASX3: 0.6678122375 | ASY3: 0.6012476533 | ASZ3: 0.6408153785 | ATA3: 0.5967070535 | ATB3: 0.6451606434 | ATC3: 0.615615487 | ATD3: 0.6207401299 | ATE3: 0.6101539134 | ATF3: 0.5973610853 | ATG3: 0.6228117846 | ATH3: 0.6082620281 | ATI3: 0.6103979014 | ATJ3: 0.6313642058 | ATK3: 0.6355193325 | ATL3: 0.6032716841 | ATM3: 0.6546694198 | ATN3: 0.6249599564 | ATO3: 0.9070034696 | ATP3: 0.6759642033 | ATQ3: 0.6610299936 | ATR3: 0.6380162848 | ATS3: 0.5951782974 | ATT3: 0.5805023099 | ATU3: 0.6577974289 | ATV3: 0.6629742005 | ATW3: 0.6319335486 | ATX3: 0.6045526553 | ATY3: 0.6484573546 | ATZ3: 0.6166289223 | AUA3: 0.6213810336 | AUB3: 0.6044095064 | AUC3: 0.6427478595 | AUD3: 0.5729505084 | AUE3: 0.6331572976 | AUF3: 0.8586700884 | AUG3: 0.6476298612 | AUH3: 0.6443988971 | AUI3: 0.5644220486 | AUJ3: 0.6104066368 | AUK3: 0.5902483574 | AUL3: 0.5717704894 | AUM3: 0.5879147802 | AUN3: 0.4508412376 | AUO3: 0.5738345435 | AUP3: 0.5854050945 | AUQ3: 0.5742067027 | AUR3: 0.7939852329 | AUS3: 0.5906857893 | AUT3: 0.723045809 | AUU3: 0.6071882358 | AUV3: 0.5787485335 | AUW3: 0.5480620911 | AUX3: 0.5569529823 | AUY3: 0.5645925513 | AUZ3: 0.626525725 | AVA3: 0.5011755614 | AVB3: 0.6119108812 | AVC3: 0.6253558771 | AVD3: 0.75932076 | AVE3: 0.729544549 | AVF3: 0.7776273448 | AVG3: 0.7705381899 | AVH3: 0.9108877177 | AVI3: 0.8845425786 | AVJ3: 0.6587284842 | AVK3: 0.6230128359 | AVL3: 0.6101854411 | AVM3: 0.6262707155 | AVN3: 0.6511646517 | AVO3: 0.6263875304 | AVP3: 0.5918614289 | AVQ3: 0.6478239144 | AVR3: 0.6138772374 | AVS3: 0.617429076 | AVT3: 0.6127670324 | AVU3: 0.6422543258 | AVV3: 0.6139858332 | AVW3: 0.5280260253 | AVX3: 0.5191509629 | AVY3: 0.5604812766 | AVZ3: 0.6231180248 | AWA3: 0.592424406 | AWB3: 0.8333041962 | AWC3: 0.6285003107 | AWD3: 0.6326062151 | AWE3: 0.601586029 | AWF3: 0.6006972994 | AWG3: 0.586461268 | AWH3: 0.5827611623 | AWI3: 0.7911392802 | AWJ3: 0.5210998362 | AWK3: 0.5074562951 | AWL3: 0.4959347275 | AWM3: 0.6382156425 | AWN3: 0.6181121453 | AWO3: 0.9247619172 | AWP3: 0.8263872344 | AWQ3: 0.6585911695 | AWR3: 0.8594755224 | AWS3: 0.6417447027 | AWT3: 0.6504986096 | AWU3: 0.6481506473 | AWV3: 0.6065283896 | AWW3: 0.8276674097 | AWX3: 0.8353898188 | AWY3: 0.6695885697 | AWZ3: 0.8491882017 | AXA3: 0.8564742371 | AXB3: 0.8309859054 | AXC3: 0.7338010924 | AXD3: 0.7154065636 | AXE3: 0.8250337226 | AXF3: 0.8224826473 | AXG3: 0.7309743265 | AXH3: 0.6756801592 | AXI3: 0.7155635406 | AXJ3: 0.6681035869 | AXK3: 0.6499329335 | AXL3: 0.7114978545 | AXM3: 0.6675278546 | AXN3: 0.6336427339 | AXO3: 0.8418859913 | AXP3: 0.8286310122 | AXQ3: 0.793800958 | AXR3: 0.7669494703 | AXS3: 0.7451478091 | AXT3: 0.7142576262 | AXU3: 0.721008432 | AXV3: 0.737228496 | AXW3: 0.7778583362 | AXX3: 0.8483816405 | AXY3: 0.6966549714 | AXZ3: 0.7397903995 | AYA3: 0.7140857792 | AYB3: 0.6670872098 | AYC3: 0.6737479602 | AYD3: 0.8076978951 | AYE3: 0.8080717719 | AYF3: 0.8046151645
A4: 01C024105 | B4: ADAIR | C4: ROCKY MOUNTAIN | D4: ROCKY MOUNTAIN PUBLIC SCHOOL | E4: ADAIRROCKY MOUNTAINROCKY MOUNTAIN PUBLIC SCHOOL | CM4: 0.882996538 | CN4: 0.7656092382 | CO4: 1 | CP4: 0.8005401304 | CQ4: 0.8635631769 | CR4: 0.855971075 | CS4: 0.7584238853 | CT4: 0.7828995271 | CU4: 0.7644079572 | CV4: 0.9073409355 | CW4: 0.9062176208 | CX4: 0.8348306898 | CY4: 0.8381200548 | CZ4: 0.6791535355 | DA4: 0.6625812982 | DB4: 0.6456467351 | DC4: 0.6879203991 | DD4: 0.752191324 | DE4: 0.749955282 | DF4: 0.742628731 | DG4: 0.6901348886 | DH4: 0.7066937485 | DI4: 0.6486332528 | DJ4: 0.7053299036 | DK4: 0.6286831021 | DL4: 0.6811532876 | DM4: 0.7186670987 | DN4: 0.6596407777 | DO4: 0.7507290105 | DP4: 0.6640595691 | DQ4: 0.7097978935 | DR4: 0.7460113891 | DS4: 0.7237015813 | DT4: 0.6836318887 | DU4: 0.6479562657 | DV4: 0.6454416316 | DW4: 0.7855715323 | DX4: 0.7761478298 | DY4: 0.6868124705 | DZ4: 0.6744026781 | EA4: 0.7041596766 | EB4: 0.6942279232 | EC4: 0.6867103343 | ED4: 0.8203832165 | EE4: 0.7762764593 | EF4: 0.775289982 | EG4: 0.7925999549 | EH4: 0.7712897108 | EI4: 0.7850895441 | EJ4: 0.7137250352 | EK4: 0.8413514352 | EL4: 0.7963360485 | EM4: 0.787538298 | EN4: 0.782270441 | EO4: 0.7715512886 | EP4: 0.7572246336 | EQ4: 0.7599554048 | ER4: 0.7016995852 | ES4: 0.8106372142 | ET4: 0.8265883621 | EU4: 0.8100433518 | EV4: 0.7243504784 | EW4: 0.6990462753 | EX4: 0.7568272999 | EY4: 0.7866129689 | EZ4: 0.7706319795 | FA4: 0.7610246229 | FB4: 0.7818006715 | FC4: 0.7903048472 | FD4: 0.6968677054 | FE4: 0.6500900964 | FF4: 0.7131502808 | FG4: 0.6725523151 | FH4: 0.7138565412 | FI4: 0.7123723055 | FJ4: 0.6766915517 | FK4: 0.7747810938 | FL4: 0.6970941131 | FM4: 0.5703258759 | FN4: 0.5585702841 | FO4: 0.5869493511 | FP4: 0.5488002347 | FQ4: 0.5218864898 | FR4: 0.5497916852 | FS4: 0.5613872953 | FT4: 0.6075378907 | FU4: 0.5491503891 | FV4: 0.5040780076 | FW4: 0.5294419809 | FX4: 0.5352946762 | FY4: 0.5173102667 | FZ4: 0.497813364 | GA4: 0.4610189182 | GB4: 0.6748667019 | GC4: 0.6712529128 | GD4: 0.8001394031 | GE4: 0.7533002331 | GF4: 0.534656894 | GG4: 0.5082746937 | GH4: 0.5154967612 | GI4: 0.5279984187 | GJ4: 0.5444020573 | GK4: 0.5442166426 | GL4: 0.5052396164 | GM4: 0.4636198026 | GN4: 0.5281076352 | GO4: 0.4602590214 | GP4: 0.4660733977 | GQ4: 0.7650279648 | GR4: 0.7383135268 | GS4: 0.7884048313 | GT4: 0.8168446436 | GU4: 0.801409316 | GV4: 0.710656774 | GW4: 0.7787152541 | GX4: 0.6313374043 | GY4: 0.6144240087 | GZ4: 0.7257950225 | HA4: 0.7210246667 | HB4: 0.7186837559 | HC4: 0.7008720241 | HD4: 0.6927004524 | HE4: 0.7016519191 | HF4: 0.7326001628 | HG4: 0.7339984279 | HH4: 0.8354725779 | HI4: 0.8448373337 | HJ4: 0.7899385924 | HK4: 0.8442378734 | HL4: 0.6655714666 | HM4: 0.8102080121 | HN4: 0.8597619252 | HO4: 0.79231257 | HP4: 0.7598173713 | HQ4: 0.7995071854 | HR4: 0.7736706696 | HS4: 0.747715423 | HT4: 0.7382528704 | HU4: 0.7224880596 | HV4: 0.6930104765 | HW4: 0.6663002129 | HX4: 0.7828480656 | HY4: 0.7514204438 | HZ4: 0.6934075581 | IA4: 0.7553674972 | IB4: 0.7333268463 | IC4: 0.8266211693 | ID4: 0.6510753123 | IE4: 0.7321049143 | IF4: 0.7302284409 | IG4: 0.7004120355 | IH4: 0.6791828245 | II4: 0.6711705533 | IJ4: 0.6866041867 | IK4: 0.6644898573 | IL4: 0.5742617134 | IM4: 0.5854538002 | IN4: 0.5972586834 | IO4: 0.5687612319 | IP4: 0.5812264713 | IQ4: 0.5661456528 | IR4: 0.5771963451 | IS4: 0.5613111362 | IT4: 0.592732507 | IU4: 0.5339618222 | IV4: 0.5595897654 | IW4: 0.5512955958 | IX4: 0.5299910318 | IY4: 0.5258199364 | IZ4: 0.5091872725 | JA4: 0.6067165223 | JB4: 0.5142745054 | JC4: 0.5125391813 | JD4: 0.5822183886 | JE4: 0.5471527953 | JF4: 0.510731859 | JG4: 0.5054512874 | JH4: 0.4933677304 | JI4: 0.5546904213 | JJ4: 0.583565101 | JK4: 0.4384464775 | JL4: 0.4700789343 | JM4: 0.5340786319 | JN4: 0.5108697663 | JO4: 0.5069037248 | JP4: 0.4584331414 | JQ4: 0.703802417 | JR4: 0.5960915773 | JS4: 0.5229614803 | JT4: 0.5945023774 | JU4: 0.5840227514 | JV4: 0.6162837725 | JW4: 0.5809901228 | JX4: 0.5805165671 | JY4: 0.5067006274 | JZ4: 0.5357891271 | KA4: 0.5892475574 | KB4: 0.5499965658 | KC4: 0.5595949492 | KD4: 0.4986349214 | KE4: 0.5114985265 | KF4: 0.5961155818 | KG4: 0.5504143334 | KH4: 0.5616624049 | KI4: 0.5175388946 | KJ4: 0.5165020342 | KK4: 0.5066141258 | KL4: 0.4650241359 | KM4: 0.5828394752 | KN4: 0.6617402038 | KO4: 0.5664141843 | KP4: 0.7706582556 | KQ4: 0.7288006292 | KR4: 0.7593806927 | KS4: 0.7475241274 | KT4: 0.7182386254 | KU4: 0.7071726398 | KV4: 0.6725731774 | KW4: 0.7564685425 | KX4: 0.6486230688 | KY4: 0.615217285 | KZ4: 0.6074996345 | LA4: 0.5858231628 | LB4: 0.5742173698 | LC4: 0.8139091634 | LD4: 0.7356925804 | LE4: 0.6924405014 | LF4: 0.6602924909 | LG4: 0.6153777782 | LH4: 0.5825267555 | LI4: 0.5880619429 | LJ4: 0.6320372455 | LK4: 0.6010619469 | LL4: 0.5972012604 | LM4: 0.6045801957 | LN4: 0.5473410818 | LO4: 0.6135619861 | LP4: 0.5883714117 | LQ4: 0.6328848317 | LR4: 0.6266713554 | LS4: 0.5780951409 | LT4: 0.5956942364 | LU4: 0.6480357929 | LV4: 0.5921678154 | LW4: 0.5701452598 | LX4: 0.5401927353 | LY4: 0.5681154242 | LZ4: 0.5823028444 | MA4: 0.5516076208 | MB4: 0.7319802935 | MC4: 0.7329305146 | MD4: 0.66973506 | ME4: 0.6599143946 | MF4: 0.7316025539 | MG4: 0.8292540254 | MH4: 0.8064450856 | MI4: 0.7790527227 | MJ4: 0.7198782528 | MK4: 0.8152153214 | ML4: 0.7766214105 | MM4: 0.7882128864 | MN4: 0.7002363692 | MO4: 0.6684756991 | MP4: 0.7702005991 | MQ4: 0.7674559838 | MR4: 0.7568863433 | MS4: 0.7240108687 | MT4: 0.6007140363 | MU4: 0.6994843386 | MV4: 0.6867356399 | MW4: 0.7503586326 | MX4: 0.819214802 | MY4: 0.6307090004 | MZ4: 0.7291263558 | NA4: 0.7502159285 | NB4: 0.741047737 | NC4: 0.7562575174 | ND4: 0.7694948858 | NE4: 0.5327547249 | NF4: 0.5214363941 | NG4: 0.8254177861 | NH4: 0.7705629295 | NI4: 0.6750409469 | NJ4: 0.6884114838 | NK4: 0.6610343972 | NL4: 0.6157886063 | NM4: 0.6150644745 | NN4: 0.5921954247 | NO4: 0.5877447901 | NP4: 0.5502591827 | NQ4: 0.5056631348 | NR4: 0.7675351349 | NS4: 0.7308515443 | NT4: 0.7253120788 | NU4: 0.6667260885 | NV4: 0.6214686607 | NW4: 0.6802742783 | NX4: 0.6882511706 | NY4: 0.6762791208 | NZ4: 0.7685213324 | OA4: 0.753936624 | OB4: 0.7728383286 | OC4: 0.7668173068 | OD4: 0.7187041457 | OE4: 0.7222144686 | OF4: 0.7097747781 | OG4: 0.7275398361 | OH4: 0.7209930629 | OI4: 0.6886804801 | OJ4: 0.8129454223 | OK4: 0.8086547884 | OL4: 0.7728595078 | OM4: 0.8251939835 | ON4: 0.7067112127 | OO4: 0.8417638853 | OP4: 0.6965910604 | OQ4: 0.669482356 | OR4: 0.6405263942 | OS4: 0.6542216824 | OT4: 0.6673687786 | OU4: 0.7012465859 | OV4: 0.6527426762 | OW4: 0.6807472735 | OX4: 0.727916113 | OY4: 0.716012471 | OZ4: 0.6894869918 | PA4: 0.6156344866 | PB4: 0.7096526709 | PC4: 0.6542535989 | PD4: 0.7369570894 | PE4: 0.7975798425 | PF4: 0.7723401892 | PG4: 0.6590063438 | PH4: 0.7703451547 | PI4: 0.7020782173 | PJ4: 0.7191646163 | PK4: 0.7560849044 | PL4: 0.7702615374 | PM4: 0.7916131416 | PN4: 0.6204549395 | PO4: 0.7154633828 | PP4: 0.710643115 | PQ4: 0.738185337 | PR4: 0.6801524539 | PS4: 0.758857512 | PT4: 0.7073625145 | PU4: 0.7578455628 | PV4: 0.6923905702 | PW4: 0.6875042637 | PX4: 0.8016861889 | PY4: 0.7794110921 | PZ4: 0.7838748803 | QA4: 0.7759283209 | QB4: 0.8571680786 | QC4: 0.8515501754 | QD4: 0.8275823224 | QE4: 0.7492252384 | QF4: 0.723132549 | QG4: 0.6809984196 | QH4: 0.6615310712 | QI4: 0.7637629117 | QJ4: 0.6880414348 | QK4: 0.6538656247 | QL4: 0.8165567047 | QM4: 0.8158004834 | QN4: 0.7750978155 | QO4: 0.7346036706 | QP4: 0.7265834891 | QQ4: 0.7249442268 | QR4: 0.7356040653 | QS4: 0.6814812181 | QT4: 0.7559061662 | QU4: 0.7457927532 | QV4: 0.6316993777 | QW4: 0.6180850072 | QX4: 0.6695738346 | QY4: 0.6600462266 | QZ4: 0.6195158176 | RA4: 0.7795842735 | RB4: 0.7471878536 | RC4: 0.7216835563 | RD4: 0.6715596272 | RE4: 0.6541331688 | RF4: 0.6732345427 | RG4: 0.6836999698 | RH4: 0.7062347468 | RI4: 0.7186988266 | RJ4: 0.765022085 | RK4: 0.7052922835 | RL4: 0.6767286276 | RM4: 0.7094835785 | RN4: 0.6748548501 | RO4: 0.8502778557 | RP4: 0.7611834277 | RQ4: 0.7745646003 | RR4: 0.7694794613 | RS4: 0.8323698895 | RT4: 0.8238183916 | RU4: 0.7549602327 | RV4: 0.7241541895 | RW4: 0.819513966 | RX4: 0.8253897408 | RY4: 0.7123638918 | RZ4: 0.7277893342 | SA4: 0.7096783645 | SB4: 0.6953375118 | SC4: 0.6961308743 | SD4: 0.6487575288 | SE4: 0.6595037657 | SF4: 0.6667783542 | SG4: 0.6527351943 | SH4: 0.8010293062 | SI4: 0.7660252913 | SJ4: 0.7318723292 | SK4: 0.7069490454 | SL4: 0.7289725639 | SM4: 0.7030356698 | SN4: 0.7081813827 | SO4: 0.6984371705 | SP4: 0.8313526318 | SQ4: 0.8320416447 | SR4: 0.7911359638 | SS4: 0.7037777072 | ST4: 0.6888326908 | SU4: 0.7605735724 | SV4: 0.7234280328 | SW4: 0.7132129707 | SX4: 0.8268188557 | SY4: 0.6898702369 | SZ4: 0.6997146967 | TA4: 0.7607048472 | TB4: 0.7721392062 | TC4: 0.7817380626 | TD4: 0.7405127392 | TE4: 0.7420432792 | TF4: 0.7339642741 | TG4: 0.6671046893 | TH4: 0.7771591481 | TI4: 0.6846827213 | TJ4: 0.6909811886 | TK4: 0.7634695397 | TL4: 0.7688546421 | TM4: 0.748154399 | TN4: 0.7392169373 | TO4: 0.8343606491 | TP4: 0.6914902958 | TQ4: 0.7786279044 | TR4: 0.6299806933 | TS4: 0.7470839806 | TT4: 0.731612847 | TU4: 0.7049683106 | TV4: 0.6909224112 | TW4: 0.6948686806 | TX4: 0.6720035069 | TY4: 0.81094246 | TZ4: 0.7558024221 | UA4: 0.7767160129 | UB4: 0.6786440425 | UC4: 0.7199714861 | UD4: 0.7679379826 | UE4: 0.7196768135 | UF4: 0.7187552358 | UG4: 0.7021249271 | UH4: 0.6090444574 | UI4: 0.7803625669 | UJ4: 0.8390210658 | UK4: 0.8659653755 | UL4: 0.7823212432 | UM4: 0.7881075725 | UN4: 0.7897870963 | UO4: 0.8631536469 | UP4: 0.6788498604 | UQ4: 0.6491159065 | UR4: 0.7429045106 | US4: 0.8261001411 | UT4: 0.7454553062 | UU4: 0.7408330231 | UV4: 0.7897662068 | UW4: 0.7991247355 | UX4: 0.8800885694 | UY4: 0.8049986233 | UZ4: 0.8260401487 | VA4: 0.6893586776 | VB4: 0.6300102084 | VC4: 0.7294876253 | VD4: 0.912730059 | VE4: 0.6556143255 | VF4: 0.5709605991 | VG4: 0.8325860145 | VH4: 0.78401449 | VI4: 0.7686907306 | VJ4: 0.7415976853 | VK4: 0.7410963513 | VL4: 0.7277145425 | VM4: 0.6687144074 | VN4: 0.6288666611 | VO4: 0.7227538392 | VP4: 0.7265302928 | VQ4: 0.6594676189 | VR4: 0.646895579 | VS4: 0.7739098733 | VT4: 0.8213484112 | VU4: 0.8002187143 | VV4: 0.6968970697 | VW4: 0.7123137055 | VX4: 0.6987283065 | VY4: 0.7475228492 | VZ4: 0.757488843 | WA4: 0.761531416 | WB4: 0.7861613711 | WC4: 0.8601253782 | WD4: 0.7650038535 | WE4: 0.765487963 | WF4: 0.6946829388 | WG4: 0.7246599726 | WH4: 0.6994896901 | WI4: 0.7203624875 | WJ4: 0.7024593156 | WK4: 0.6475458705 | WL4: 0.6720516969 | WM4: 0.7752861671 | WN4: 0.8462253919 | WO4: 0.8227117268 | WP4: 0.7163219366 | WQ4: 0.7328320964 | WR4: 0.739460636 | WS4: 0.7727915787 | WT4: 0.7918822867 | WU4: 0.8177567392 | WV4: 0.8167651694 | WW4: 0.7815930975 | WX4: 0.7446121829 | WY4: 0.7264291498 | WZ4: 0.8311781654 | XA4: 0.8170668441 | XB4: 0.7859311698 | XC4: 0.8133755026 | XD4: 0.7153686527 | XE4: 0.7774077702 | XF4: 0.7336170613 | XG4: 0.6168847089 | XH4: 0.5987929556 | XI4: 0.7664505529 | XJ4: 0.7448926492 | XK4: 0.6973034187 | XL4: 0.6896625021 | XM4: 0.7737331062 | XN4: 0.7683530011 | XO4: 0.7462603643 | XP4: 0.7290929361 | XQ4: 0.6271416072 | XR4: 0.6181591867 | XS4: 0.8556634822 | XT4: 0.7007106737 | XU4: 0.8380135324 | XV4: 0.7770988551 | XW4: 0.8476774604 | XX4: 0.7306692565 | XY4: 0.7271065779 | XZ4: 0.8229619784 | YA4: 0.76354051 | YB4: 0.6968961867 | YC4: 0.6744094805 | YD4: 0.7569365986 | YE4: 0.7462712346 | YF4: 0.7410684947 | YG4: 0.7427545506 | YH4: 0.7404778764 | YI4: 0.7530460653 | YJ4: 0.792620578 | YK4: 0.7695525032 | YL4: 0.8087799987 | YM4: 0.7683320983 | YN4: 0.694162348 | YO4: 0.6624137366 | YP4: 0.8119370687 | YQ4: 0.8297500877 | YR4: 0.666895149 | YS4: 0.7414992174 | YT4: 0.728234055 | YU4: 0.7138058941 | YV4: 0.7019613965 | YW4: 0.7094129649 | YX4: 0.7294018461 | YY4: 0.8487436464 | YZ4: 0.7667273137 | ZA4: 0.7692702744 | ZB4: 0.7795712563 | ZC4: 0.7774691473 | ZD4: 0.7732371185 | ZE4: 0.6723950224 | ZF4: 0.8099544674 | ZG4: 0.8588903442 | ZH4: 0.7359531014 | ZI4: 0.8820684208 | ZJ4: 0.8757731566 | ZK4: 0.8922737369 | ZL4: 0.7298182389 | ZM4: 0.8724408956 | ZN4: 0.8860696881 | ZO4: 0.8915507144 | ZP4: 0.836020414 | ZQ4: 0.8039469591 | ZR4: 0.7984657259 | ZS4: 0.8304095818 | ZT4: 0.708451273 | ZU4: 0.8275139567 | ZV4: 0.654116635 | ZW4: 0.6935387251 | ZX4: 0.5949763258 | ZY4: 0.7186378868 | ZZ4: 0.7450033126 | AAA4: 0.7286987566 | AAB4: 0.740434229 | AAC4: 0.726216675 | AAD4: 0.8070450037 | AAE4: 0.8078489103 | AAF4: 0.7645247464 | AAG4: 0.7876651659 | AAH4: 0.7965947068 | AAI4: 0.7027239877 | AAJ4: 0.7380696123 | AAK4: 0.7163391492 | AAL4: 0.7277492461 | AAM4: 0.8056649454 | AAN4: 0.7598753553 | AAO4: 0.8162618764 | AAP4: 0.7348059975 | AAQ4: 0.586469484 | AAR4: 0.6863506121 | AAS4: 0.5767174189 | AAT4: 0.6911570957 | AAU4: 0.6590690387 | AAV4: 0.6377848764 | AAW4: 0.6561142131 | AAX4: 0.6483978653 | AAY4: 0.5941304603 | AAZ4: 0.6052814502 | ABA4: 0.5946053851 | ABB4: 0.6170757729 | ABC4: 0.6222986314 | ABD4: 0.6156867261 | ABE4: 0.5374815221 | ABF4: 0.5668283162 | ABG4: 0.5707529879 | ABH4: 0.5796048452 | ABI4: 0.582297514 | ABJ4: 0.614280641 | ABK4: 0.6501953494 | ABL4: 0.6277257709 | ABM4: 0.6050166188 | ABN4: 0.5478266126 | ABO4: 0.5663773797 | ABP4: 0.5683707868 | ABQ4: 0.6019818826 | ABR4: 0.5837268624 | ABS4: 0.5762634606 | ABT4: 0.6112567742 | ABU4: 0.585026797 | ABV4: 0.5866386749 | ABW4: 0.6219018429 | ABX4: 0.5848346622 | ABY4: 0.5793602545 | ABZ4: 0.6388193424 | ACA4: 0.578746811 | ACB4: 0.565470018 | ACC4: 0.5206814882 | ACD4: 0.6179737085 | ACE4: 0.5858120553 | ACF4: 0.7375018184 | ACG4: 0.7358057906 | ACH4: 0.5957278548 | ACI4: 0.5777522004 | ACJ4: 0.524836595 | ACK4: 0.630751582 | ACL4: 0.549637861 | ACM4: 0.5130394429 | ACN4: 0.4835920935 | ACO4: 0.4864995815 | ACP4: 0.5505512368 | ACQ4: 0.5463748174 | ACR4: 0.4759374535 | ACS4: 0.5628176544 | ACT4: 0.4872083686 | ACU4: 0.7196650526 | ACV4: 0.7111153631 | ACW4: 0.7130423759 | ACX4: 0.569844609 | ACY4: 0.6367199092 | ACZ4: 0.4795111694 | ADA4: 0.4691241538 | ADB4: 0.5595639713 | ADC4: 0.5240328027 | ADD4: 0.5417334615 | ADE4: 0.5756043647 | ADF4: 0.5407358442 | ADG4: 0.4729274763 | ADH4: 0.5159318903 | ADI4: 0.5020696157 | ADJ4: 0.4779007282 | ADK4: 0.4898860201 | ADL4: 0.5146884381 | ADM4: 0.49504201 | ADN4: 0.480862825 | ADO4: 0.5695448101 | ADP4: 0.494471654 | ADQ4: 0.4795665538 | ADR4: 0.5241733275 | ADS4: 0.4508915919 | ADT4: 0.454834966 | ADU4: 0.4819563795 | ADV4: 0.4687716529 | ADW4: 0.7099416999 | ADX4: 0.6629875591 | ADY4: 0.6631603658 | ADZ4: 0.6570671257 | AEA4: 0.6632593374 | AEB4: 0.7113533074 | AEC4: 0.6375891325 | AED4: 0.6447913841 | AEE4: 0.6401690022 | AEF4: 0.5794387388 | AEG4: 0.6090639878 | AEH4: 0.6317235135 | AEI4: 0.6352725086 | AEJ4: 0.6252761257 | AEK4: 0.6323057103 | AEL4: 0.569409593 | AEM4: 0.5463605171 | AEN4: 0.6008323055 | AEO4: 0.5662232645 | AEP4: 0.6119804924 | AEQ4: 0.5748121136 | AER4: 0.6033427232 | AES4: 0.5810414918 | AET4: 0.5108706118 | AEU4: 0.5942798933 | AEV4: 0.5525836982 | AEW4: 0.5851384208 | AEX4: 0.5799394093 | AEY4: 0.5780938149 | AEZ4: 0.5764580346 | AFA4: 0.540539248 | AFB4: 0.4437835457 | AFC4: 0.5216110345 | AFD4: 0.5573432027 | AFE4: 0.57722744 | AFF4: 0.5782133666 | AFG4: 0.5838339295 | AFH4: 0.5278519923 | AFI4: 0.5579951323 | AFJ4: 0.5267853549 | AFK4: 0.5636996475 | AFL4: 0.5576687914 | AFM4: 0.5700800431 | AFN4: 0.5737237283 | AFO4: 0.6000145756 | AFP4: 0.4593075358 | AFQ4: 0.5531965009 | AFR4: 0.540977329 | AFS4: 0.566444859 | AFT4: 0.5914745272 | AFU4: 0.54257595 | AFV4: 0.5336456629 | AFW4: 0.5900194662 | AFX4: 0.5255569111 | AFY4: 0.5737286935 | AFZ4: 0.5720056763 | AGA4: 0.5439955895 | AGB4: 0.5625165988 | AGC4: 0.5422204264 | AGD4: 0.5402266409 | AGE4: 0.5463488161 | AGF4: 0.5355570362 | AGG4: 0.5649900285 | AGH4: 0.5899002089 | AGI4: 0.5330373006 | AGJ4: 0.5806757702 | AGK4: 0.598014283 | AGL4: 0.5877064981 | AGM4: 0.5613605032 | AGN4: 0.5588476318 | AGO4: 0.5529596853 | AGP4: 0.5836225528 | AGQ4: 0.503341548 | AGR4: 0.5463154217 | AGS4: 0.530722974 | AGT4: 0.5689138609 | AGU4: 0.5519921818 | AGV4: 0.5457803425 | AGW4: 0.5811345424 | AGX4: 0.5574273622 | AGY4: 0.5342751546 | AGZ4: 0.5817498128 | AHA4: 0.5452685693 | AHB4: 0.5389897633 | AHC4: 0.5372050811 | AHD4: 0.5484843524 | AHE4: 0.5978002662 | AHF4: 0.5228149826 | AHG4: 0.474338364 | AHH4: 0.4616511595 | AHI4: 0.4887795623 | AHJ4: 0.5675476933 | AHK4: 0.5329683574 | AHL4: 0.5774474467 | AHM4: 0.6594018588 | AHN4: 0.5365946058 | AHO4: 0.5707145463 | AHP4: 0.5308935349 | AHQ4: 0.5369182455 | AHR4: 0.6334416325 | AHS4: 0.6194634491 | AHT4: 0.6119047436 | AHU4: 0.6504700787 | AHV4: 0.6324833074 | AHW4: 0.593942695 | AHX4: 0.5762266114 | AHY4: 0.6385534598 | AHZ4: 0.852103758 | AIA4: 0.8800252693 | AIB4: 0.879022277 | AIC4: 0.7051783615 | AID4: 0.6844002426 | AIE4: 0.8250992136 | AIF4: 0.8312530002 | AIG4: 0.7570802286 | AIH4: 0.7536433754 | AII4: 0.7459038706 | AIJ4: 0.8022857354 | AIK4: 0.8331990788 | AIL4: 0.891859293 | AIM4: 0.8956707862 | AIN4: 0.8501794912 | AIO4: 0.8020081625 | AIP4: 0.8572940151 | AIQ4: 0.6793142289 | AIR4: 0.6965183716 | AIS4: 0.8328132577 | AIT4: 0.8398829265 | AIU4: 0.6667204339 | AIV4: 0.7562630698 | AIW4: 0.7497351485 | AIX4: 0.7453744138 | AIY4: 0.8046939111 | AIZ4: 0.8758893619 | AJA4: 0.8563452099 | AJB4: 0.8141159192 | AJC4: 0.7139630314 | AJD4: 0.703722703 | AJE4: 0.8276844154 | AJF4: 0.7422546604 | AJG4: 0.7479118386 | AJH4: 0.780981174 | AJI4: 0.8039193273 | AJJ4: 0.8415552063 | AJK4: 0.8206705966 | AJL4: 0.8208361185 | AJM4: 0.7984243537 | AJN4: 0.7981460952 | AJO4: 0.7382959359 | AJP4: 0.7025775328 | AJQ4: 0.8340758923 | AJR4: 0.7421291036 | AJS4: 0.7548220216 | AJT4: 0.84120024 | AJU4: 0.7165667006 | AJV4: 0.7117346042 | AJW4: 0.6866931529 | AJX4: 0.834809285 | AJY4: 0.7692893413 | AJZ4: 0.7699574393 | AKA4: 0.8035276125 | AKB4: 0.7307519435 | AKC4: 0.7742761076 | AKD4: 0.7109947808 | AKE4: 0.8255263966 | AKF4: 0.7603000833 | AKG4: 0.6877670158 | AKH4: 0.6568492157 | AKI4: 0.7073977692 | AKJ4: 0.6903658416 | AKK4: 0.780828015 | AKL4: 0.6300795447 | AKM4: 0.7768498399 | AKN4: 0.7643083706 | AKO4: 0.7748128906 | AKP4: 0.7889611321 | AKQ4: 0.7400778883 | AKR4: 0.7661076832 | AKS4: 0.7090348874 | AKT4: 0.6375482437 | AKU4: 0.8201368791 | AKV4: 0.7407210603 | AKW4: 0.7245709762 | AKX4: 0.7967014604 | AKY4: 0.689126351 | AKZ4: 0.7541712591 | ALA4: 0.7341044017 | ALB4: 0.7187973755 | ALC4: 0.7786244851 | ALD4: 0.5902428904 | ALE4: 0.7342472592 | ALF4: 0.7633692032 | ALG4: 0.7004463123 | ALH4: 0.7130763244 | ALI4: 0.6939377453 | ALJ4: 0.7130623496 | ALK4: 0.7916181546 | ALL4: 0.6370082339 | ALM4: 0.664855761 | ALN4: 0.7709922194 | ALO4: 0.597679782 | ALP4: 0.6996149532 | ALQ4: 0.7006088203 | ALR4: 0.6961575437 | ALS4: 0.6387233501 | ALT4: 0.6170462237 | ALU4: 0.7875057692 | ALV4: 0.7731747542 | ALW4: 0.6941774677 | ALX4: 0.654883869 | ALY4: 0.7927135131 | ALZ4: 0.9151771161 | AMA4: 0.657802608 | AMB4: 0.7568279107 | AMC4: 0.7565434801 | AMD4: 0.6887178981 | AME4: 0.7017915941 | AMF4: 0.7354775086 | AMG4: 0.7260711728 | AMH4: 0.7173548004 | AMI4: 0.6794374875 | AMJ4: 0.6082880388 | AMK4: 0.7226715929 | AML4: 0.8854333686 | AMM4: 0.8716163239 | AMN4: 0.8709890296 | AMO4: 0.8653007898 | AMP4: 0.8090338276 | AMQ4: 0.6964865418 | AMR4: 0.7769714941 | AMS4: 0.7832160288 | AMT4: 0.7709814212 | AMU4: 0.6010177813 | AMV4: 0.7421067017 | AMW4: 0.7464845911 | AMX4: 0.7375226442 | AMY4: 0.7064769813 | AMZ4: 0.6622345708 | ANA4: 0.6693340552 | ANB4: 0.7600194413 | ANC4: 0.6321495812 | AND4: 0.660552038 | ANE4: 0.6611086759 | ANF4: 0.7265862595 | ANG4: 0.6983491895 | ANH4: 0.7331038943 | ANI4: 0.7863658595 | ANJ4: 0.7317707825 | ANK4: 0.7531085607 | ANL4: 0.7305327444 | ANM4: 0.6965169183 | ANN4: 0.5997098747 | ANO4: 0.6138385722 | ANP4: 0.5905060687 | ANQ4: 0.8118397874 | ANR4: 0.8108041076 | ANS4: 0.6818557675 | ANT4: 0.661083964 | ANU4: 0.7229121404 | ANV4: 0.7294011438 | ANW4: 0.7163837218 | ANX4: 0.6952761963 | ANY4: 0.7820426954 | ANZ4: 0.7656619159 | AOA4: 0.6492530971 | AOB4: 0.6545761762 | AOC4: 0.58934656 | AOD4: 0.775175583 | AOE4: 0.8337258645 | AOF4: 0.8449019664 | AOG4: 0.8160176237 | AOH4: 0.8120917762 | AOI4: 0.8074630721 | AOJ4: 0.8021090907 | AOK4: 0.719086189 | AOL4: 0.6810516574 | AOM4: 0.8096824952 | AON4: 0.8026620769 | AOO4: 0.7561878945 | AOP4: 0.7816088837 | AOQ4: 0.7941322253 | AOR4: 0.8167328163 | AOS4: 0.8516679634 | AOT4: 0.8114597077 | AOU4: 0.8862995024 | AOV4: 0.8958455932 | AOW4: 0.6679545699 | AOX4: 0.792152496 | AOY4: 0.7576503257 | AOZ4: 0.8152457129 | APA4: 0.8126929617 | APB4: 0.821515664 | APC4: 0.8182073913 | APD4: 0.8218821052 | APE4: 0.8172512516 | APF4: 0.7776504558 | APG4: 0.7224344521 | APH4: 0.7171774239 | API4: 0.7832986129 | APJ4: 0.7280182645 | APK4: 0.7822556397 | APL4: 0.7678614524 | APM4: 0.788007895 | APN4: 0.8254046841 | APO4: 0.7365285873 | APP4: 0.7621155226 | APQ4: 0.7508212659 | APR4: 0.7244702865 | APS4: 0.7904298163 | APT4: 0.7824524662 | APU4: 0.6363668757 | APV4: 0.6481541008 | APW4: 0.7580962016 | APX4: 0.7308016252 | APY4: 0.7038227412 | APZ4: 0.7226432036 | AQA4: 0.7504800731 | AQB4: 0.825797832 | AQC4: 0.6766400461 | AQD4: 0.7928646767 | AQE4: 0.6989845127 | AQF4: 0.716342253 | AQG4: 0.7211636189 | AQH4: 0.7212514922 | AQI4: 0.6984283695 | AQJ4: 0.796394408 | AQK4: 0.7159145066 | AQL4: 0.6635415013 | AQM4: 0.7360390421 | AQN4: 0.8306034532 | AQO4: 0.8490980751 | AQP4: 0.832633725 | AQQ4: 0.7966215543 | AQR4: 0.7141304564 | AQS4: 0.5807819818 | AQT4: 0.6213093326 | AQU4: 0.6175296728 | AQV4: 0.6253084044 | AQW4: 0.6268354028 | AQX4: 0.593005645 | AQY4: 0.6204585262 | AQZ4: 0.6207611439 | ARA4: 0.4675557463 | ARB4: 0.6077483362 | ARC4: 0.6387784875 | ARD4: 0.5435251487 | ARE4: 0.6461005622 | ARF4: 0.6267145954 | ARG4: 0.5550800292 | ARH4: 0.6522313478 | ARI4: 0.6555959263 | ARJ4: 0.6436562706 | ARK4: 0.638662563 | ARL4: 0.6397661562 | ARM4: 0.6183474385 | ARN4: 0.529240583 | ARO4: 0.5341569041 | ARP4: 0.6260382613 | ARQ4: 0.637085031 | ARR4: 0.6231302346 | ARS4: 0.6236194376 | ART4: 0.6281901942 | ARU4: 0.6334733719 | ARV4: 0.5972712878 | ARW4: 0.6158802886 | ARX4: 0.6688963121 | ARY4: 0.6436543797 | ARZ4: 0.6404865077 | ASA4: 0.6239313823 | ASB4: 0.6387749679 | ASC4: 0.5815642119 | ASD4: 0.5207951908 | ASE4: 0.6436532531 | ASF4: 0.6436283144 | ASG4: 0.6616691802 | ASH4: 0.6485868278 | ASI4: 0.5535045794 | ASJ4: 0.6377931307 | ASK4: 0.6581243389 | ASL4: 0.6544833085 | ASM4: 0.6446431782 | ASN4: 0.6346194495 | ASO4: 0.6423885789 | ASP4: 0.6352381725 | ASQ4: 0.6479845526 | ASR4: 0.646668749 | ASS4: 0.6434170754 | AST4: 0.6254839675 | ASU4: 0.5523025531 | ASV4: 0.6384614429 | ASW4: 0.6241638656 | ASX4: 0.6270513327 | ASY4: 0.6418879021 | ASZ4: 0.5809364874 | ATA4: 0.5203279564 | ATB4: 0.6484352939 | ATC4: 0.5348529341 | ATD4: 0.6033001452 | ATE4: 0.5337748163 | ATF4: 0.5314906012 | ATG4: 0.6170612855 | ATH4: 0.623508798 | ATI4: 0.6319295598 | ATJ4: 0.619927275 | ATK4: 0.6134693853 | ATL4: 0.6224684762 | ATM4: 0.6926856833 | ATN4: 0.5480007185 | ATO4: 0.680617955 | ATP4: 0.6151723219 | ATQ4: 0.5884319177 | ATR4: 0.5602659957 | ATS4: 0.5182392286 | ATT4: 0.5049028735 | ATU4: 0.5819969834 | ATV4: 0.5843663312 | ATW4: 0.5571450282 | ATX4: 0.5244474128 | ATY4: 0.5726569091 | ATZ4: 0.5408284769 | AUA4: 0.5442307474 | AUB4: 0.5257668954 | AUC4: 0.5641399902 | AUD4: 0.4958131646 | AUE4: 0.5545494282 | AUF4: 0.631914071 | AUG4: 0.5700556859 | AUH4: 0.5972681683 | AUI4: 0.4852653827 | AUJ4: 0.5333922416 | AUK4: 0.5088765393 | AUL4: 0.4910079365 | AUM4: 0.5041610216 | AUN4: 0.3732929428 | AUO4: 0.4980340981 | AUP4: 0.5096046491 | AUQ4: 0.4934441497 | AUR4: 0.5703655371 | AUS4: 0.5115581721 | AUT4: 0.5071371372 | AUU4: 0.5675135601 | AUV4: 0.5029480881 | AUW4: 0.4730640585 | AUX4: 0.4790633256 | AUY4: 0.4849344657 | AUZ4: 0.5614837897 | AVA4: 0.4204130085 | AVB4: 0.5332532379 | AVC4: 0.5457601488 | AVD4: 0.6758922245 | AVE4: 0.6487772573 | AVF4: 0.6998104543 | AVG4: 0.6904080202 | AVH4: 0.6841317003 | AVI4: 0.6572942759 | AVJ4: 0.6120063447 | AVK4: 0.5997069761 | AVL4: 0.6316813555 | AVM4: 0.5458645375 | AVN4: 0.5711921857 | AVO4: 0.5431176286 | AVP4: 0.6197170701 | AVQ4: 0.5877211313 | AVR4: 0.5331146845 | AVS4: 0.5505370793 | AVT4: 0.6195718028 | AVU4: 0.5957538287 | AVV4: 0.6147124886 | AVW4: 0.451082536 | AVX4: 0.4437731579 | AVY4: 0.4847788948 | AVZ4: 0.5466770421 | AWA4: 0.5091368681 | AWB4: 0.6146466079 | AWC4: 0.5526998653 | AWD4: 0.5599962563 | AWE4: 0.5257855835 | AWF4: 0.5220894301 | AWG4: 0.5110504791 | AWH4: 0.5069607168 | AWI4: 0.5727969356 | AWJ4: 0.4423711631 | AWK4: 0.4316558497 | AWL4: 0.420134282 | AWM4: 0.5596077732 | AWN4: 0.5354602949 | AWO4: 0.707475809 | AWP4: 0.8311151026 | AWQ4: 0.5802912091 | AWR4: 0.6331236612 | AWS4: 0.5650110346 | AWT4: 0.5747128365 | AWU4: 0.5705503075 | AWV4: 0.5290891699 | AWW4: 0.6040752063 | AWX4: 0.7098888482 | AWY4: 0.8336878843 | AWZ4: 0.7193102064 | AXA4: 0.7835956383 | AXB4: 0.7867336237 | AXC4: 0.8052051873 | AXD4: 0.78049275 | AXE4: 0.7473938305 | AXF4: 0.7446730604 | AXG4: 0.8014278909 | AXH4: 0.7427368566 | AXI4: 0.8422357334 | AXJ4: 0.7328479845 | AXK4: 0.7174380626 | AXL4: 0.7785545519 | AXM4: 0.7296224445 | AXN4: 0.6937073458 | AXO4: 0.7728970547 | AXP4: 0.7278294114 | AXQ4: 0.7225869949 | AXR4: 0.7659638225 | AXS4: 0.7384445769 | AXT4: 0.7100719213 | AXU4: 0.716935046 | AXV4: 0.7284725381 | AXW4: 0.6354327444 | AXX4: 0.7056504788 | AXY4: 0.6923237477 | AXZ4: 0.7470394303 | AYA4: 0.7101615715 | AYB4: 0.661579924 | AYC4: 0.6650679327 | AYD4: 0.7356877751 | AYE4: 0.7403312888 | AYF4: 0.6663837344
